Workbook

Sheet Report - ALL (DASHBOARD)
A2: Dashboard | B2: Select Parameter: | F2: Select Statistic: | I2: Select Seasonal Period: | L2: Do you want to convert CFS values to TAF/Mon? | W2: 5
W3: 1
W4: 8
L5: News | W5: FALSE
L6: - parameter list updated to include all items on the appendix list (in addition to other locations of interest)
L7: - year type sorting is now done by calendar year
L8: - year type sorting is provided for 60-20-20 index as well as 40-30-30 index
L9: - format modified to be consistent with appendix reports
L10: - check out the new spinners!
B13: =CONCATENATE('Report Data'!$P$7," / seasonal statistics (",$W$2,"-",$W$3,"-",$W$4,"-",IF(NOT($W$5),1,2),"a):") -> Shasta Storage / seasonal statistics (5-1-8-1a):
C17: ='Report Data'!P6 -> May
C18: ='Report Data'!P7 -> Shasta Storage
C19: ='Report Data'!P9 -> (S4/STORAGE)
C20: ='Report Data'!P8 -> Averages
C21: ='Report Data'!P11 -> Volume (TAF) | F21: =CONCATENATE("Difference from ",'Report Data'!Q13) -> Difference from 2035CT NAA 020921
H23: Water Year Type Reference
C25: =IF('Report Data'!O14=0,"",'Report Data'!O14) -> 2035CT NAA 020921 | E25: =IFERROR('Report Data'!P14,"") -> 3958.678344
C26: =IF('Report Data'!O15=0,"",'Report Data'!O15) -> 2035CT Alt 1A 020921 | E26: =IFERROR('Report Data'!P15,"") -> 3975.790216 | F26: =IFERROR('Report Data'!Q15,"") -> 17.11187134
C27: =IF('Report Data'!O16=0,"",'Report Data'!O16) -> 2035CT Alt 1B 020921 | E27: =IFERROR('Report Data'!P16,"") -> 3990.625616 | F27: =IFERROR('Report Data'!Q16,"") -> 31.94727127
C28: =IF('Report Data'!O17=0,"",'Report Data'!O17) -> 2035CT Alt 2 020921 | E28: =IFERROR('Report Data'!P17,"") -> 3975.790216 | F28: =IFERROR('Report Data'!Q17,"") -> 17.11187134
C29: =IF('Report Data'!O18=0,"",'Report Data'!O18) -> 2035CT Alt 3 020921 | E29: =IFERROR('Report Data'!P18,"") -> 4120.124033 | F29: =IFERROR('Report Data'!Q18,"") -> 161.4456884
C30: =IF('Report Data'!O19=0,"",'Report Data'!O19) ->  | E30: =IFERROR('Report Data'!P19,"") ->  | F30: =IFERROR('Report Data'!Q19,"") -> 
B60: =CONCATENATE('Report Data'!$P$7," / monthly statistics (",$W$2,"-",$W$3,"-",$W$4,"-",IF(NOT($W$5),1,2),"b):") -> Shasta Storage / monthly statistics (5-1-8-1b):
B88: =CONCATENATE('Report Data'!$P$7," / time series (",$W$2,"-",$W$3,"-",$W$4,"-",IF(NOT($W$5),1,2),"c):") -> Shasta Storage / time series (5-1-8-1c):

Sheet Report Data
A2: Information, Tables and Calculations for Reports
A4: Table of Selected Values for Monthly Chart: | O4: Trend Evaluation: | U4: Water Year Type Averages:
A6: Title: | B6: ='Compile Data'!$B$5 -> Shasta Storage | O6: Title: | P6: =INDEX(Other!$B$9:$B$33,'Report - ALL (DASHBOARD)'!$W$4) -> May | U6: Title: | V6: =INDEX(Other!$B$9:$B$33,'Report - ALL (DASHBOARD)'!$W$4) -> May
B7: =INDEX(Other!$C$9:$C$35,'Report - ALL (DASHBOARD)'!$W$3) -> Averages | P7: ='Compile Data'!$B$5 -> Shasta Storage | V7: ='Compile Data'!$B$5 -> Shasta Storage
B8: =CONCATENATE("(",'Compile Data'!$B$6,"/",'Compile Data'!$B$7,")") -> (S4/STORAGE) | P8: =CONCATENATE(INDEX(Other!$C$9:$C$35,'Report - ALL (DASHBOARD)'!$W$3)," ",IF('Report - ALL (DASHBOARD)'!$W$3>4,IF(AND('Compile Data'!$B$10="TAF",'Compile Data'!$B$8="PER-AVER"),"Totals","Averages"),"")) -> Averages | V8: =CONCATENATE(INDEX(Other!$C$9:$C$35,'Report - ALL (DASHBOARD)'!$W$3)," ",IF('Report - ALL (DASHBOARD)'!$W$3>4,IF(AND('Compile Data'!$B$10="TAF",'Compile Data'!$B$8="PER-AVER"),"Totals","Averages"),"")) -> Averages
P9: =CONCATENATE("(",'Compile Data'!$B$6,"/",'Compile Data'!$B$7,")") -> (S4/STORAGE) | V9: =CONCATENATE("(",'Compile Data'!$B$6,"/",'Compile Data'!$B$7,")") -> (S4/STORAGE)
A11: Y-axis: | B11: =IF('Compile Data'!$B$10="CFS","Flow (CFS)",IF('Compile Data'!$B$10="TAF","Volume (TAF)",IF('Compile Data'!$B$10="KM","POSITION (KM)",""))) -> Volume (TAF) | P11: =IF('Compile Data'!$B$10="CFS","Flow (CFS)",IF('Compile Data'!$B$10="TAF","Volume (TAF)",IF('Compile Data'!$B$10="KM","POSITION (KM)",""))) -> Volume (TAF) | V11: =IF('Compile Data'!$B$10="CFS","Flow (CFS)",IF('Compile Data'!$B$10="TAF","Volume (TAF)",IF('Compile Data'!$B$10="KM","POSITION (KM)",""))) -> Volume (TAF)
Q12: Diff from | R12: Diff from
B13: OCT | C13: NOV | D13: DEC | E13: JAN | F13: FEB | G13: MAR | H13: APR | I13: MAY | J13: JUN | K13: JUL | L13: AUG | M13: SEP | P13: Value | Q13: =$O$14 -> 2035CT NAA 020921 | R13: =$O$15 -> 2035CT Alt 1A 020921 | V13: Wet | W13: Above Normal | X13: Below Normal | Y13: Dry | Z13: Critically Dry
A14: ='Compile Data'!$B$1 -> 2035CT NAA 020921 | B14: =INDEX('Compile Data'!L$95:L$120,'Report - ALL (DASHBOARD)'!$W$3) -> 2590.226617 | C14: =INDEX('Compile Data'!M$95:M$120,'Report - ALL (DASHBOARD)'!$W$3) -> 2621.709042 | D14: =INDEX('Compile Data'!N$95:N$120,'Report - ALL (DASHBOARD)'!$W$3) -> 2809.981371 | E14: =INDEX('Compile Data'!O$95:O$120,'Report - ALL (DASHBOARD)'!$W$3) -> 3095.480796 | F14: =INDEX('Compile Data'!P$95:P$120,'Report - ALL (DASHBOARD)'!$W$3) -> 3352.776722 | G14: =INDEX('Compile Data'!Q$95:Q$120,'Report - ALL (DASHBOARD)'!$W$3) -> 3700.175752 | H14: =INDEX('Compile Data'!R$95:R$120,'Report - ALL (DASHBOARD)'!$W$3) -> 4043.438001 | I14: =INDEX('Compile Data'!S$95:S$120,'Report - ALL (DASHBOARD)'!$W$3) -> 3958.678344 | J14: =INDEX('Compile Data'!T$95:T$120,'Report - ALL (DASHBOARD)'!$W$3) -> 3617.020473 | K14: =INDEX('Compile Data'!U$95:U$120,'Report - ALL (DASHBOARD)'!$W$3) -> 3085.506543 | L14: =INDEX('Compile Data'!V$95:V$120,'Report - ALL (DASHBOARD)'!$W$3) -> 2787.625754 | M14: =INDEX('Compile Data'!W$95:W$120,'Report - ALL (DASHBOARD)'!$W$3) -> 2688.23237 | O14: ='Compile Data'!$B$1 -> 2035CT NAA 020921 | P14: =INDEX('Compile Data'!$L$95:$AI$120,'Report - ALL (DASHBOARD)'!$W$3,'Report - ALL (DASHBOARD)'!$W$4) -> 3958.678344 | U14: ='Compile Data'!$B$1 -> 2035CT NAA 020921 | V14: =INDEX('Compile Data'!$L$95:$AI$120,14,'Report - ALL (DASHBOARD)'!$W$4) -> 4422.150068 | W14: =INDEX('Compile Data'!$L$95:$AI$120,15,'Report - ALL (DASHBOARD)'!$W$4) -> 4376.115522 | X14: =INDEX('Compile Data'!$L$95:$AI$120,16,'Report - ALL (DASHBOARD)'!$W$4) -> 4227.460645 | Y14: =INDEX('Compile Data'!$L$95:$AI$120,17,'Report - ALL (DASHBOARD)'!$W$4) -> 3734.852879 | Z14: =INDEX('Compile Data'!$L$95:$AI$120,18,'Report - ALL (DASHBOARD)'!$W$4) -> 2567.762975
A15: ='Compile Data'!$C$1 -> 2035CT Alt 1A 020921 | B15: =INDEX('Compile Data'!AL$95:AL$120,'Report - ALL (DASHBOARD)'!$W$3) -> 2600.279638 | C15: =INDEX('Compile Data'!AM$95:AM$120,'Report - ALL (DASHBOARD)'!$W$3) -> 2625.556637 | D15: =INDEX('Compile Data'!AN$95:AN$120,'Report - ALL (DASHBOARD)'!$W$3) -> 2817.915317 | E15: =INDEX('Compile Data'!AO$95:AO$120,'Report - ALL (DASHBOARD)'!$W$3) -> 3102.989604 | F15: =INDEX('Compile Data'!AP$95:AP$120,'Report - ALL (DASHBOARD)'!$W$3) -> 3359.312578 | G15: =INDEX('Compile Data'!AQ$95:AQ$120,'Report - ALL (DASHBOARD)'!$W$3) -> 3707.77011 | H15: =INDEX('Compile Data'!AR$95:AR$120,'Report - ALL (DASHBOARD)'!$W$3) -> 4052.544148 | I15: =INDEX('Compile Data'!AS$95:AS$120,'Report - ALL (DASHBOARD)'!$W$3) -> 3975.790216 | J15: =INDEX('Compile Data'!AT$95:AT$120,'Report - ALL (DASHBOARD)'!$W$3) -> 3637.532216 | K15: =INDEX('Compile Data'!AU$95:AU$120,'Report - ALL (DASHBOARD)'!$W$3) -> 3106.083644 | L15: =INDEX('Compile Data'!AV$95:AV$120,'Report - ALL (DASHBOARD)'!$W$3) -> 2804.640133 | M15: =INDEX('Compile Data'!AW$95:AW$120,'Report - ALL (DASHBOARD)'!$W$3) -> 2704.41385 | O15: ='Compile Data'!$C$1 -> 2035CT Alt 1A 020921 | P15: =INDEX('Compile Data'!$AL$95:$BI$120,'Report - ALL (DASHBOARD)'!$W$3,'Report - ALL (DASHBOARD)'!$W$4) -> 3975.790216 | Q15: =$P15-$P$14 -> 17.11187134 | U15: ='Compile Data'!$C$1 -> 2035CT Alt 1A 020921 | V15: =INDEX('Compile Data'!$AL$95:$BI$120,14,'Report - ALL (DASHBOARD)'!$W$4) -> 4428.716942 | W15: =INDEX('Compile Data'!$AL$95:$BI$120,15,'Report - ALL (DASHBOARD)'!$W$4) -> 4395.435298 | X15: =INDEX('Compile Data'!$AL$95:$BI$120,16,'Report - ALL (DASHBOARD)'!$W$4) -> 4224.992094 | Y15: =INDEX('Compile Data'!$AL$95:$BI$120,17,'Report - ALL (DASHBOARD)'!$W$4) -> 3751.101586 | Z15: =INDEX('Compile Data'!$AL$95:$BI$120,18,'Report - ALL (DASHBOARD)'!$W$4) -> 2632.531443
A16: ='Compile Data'!$D$1 -> 2035CT Alt 1B 020921 | B16: =INDEX('Compile Data'!BL$95:BL$120,'Report - ALL (DASHBOARD)'!$W$3) -> 2611.911464 | C16: =INDEX('Compile Data'!BM$95:BM$120,'Report - ALL (DASHBOARD)'!$W$3) -> 2634.352898 | D16: =INDEX('Compile Data'!BN$95:BN$120,'Report - ALL (DASHBOARD)'!$W$3) -> 2821.655595 | E16: =INDEX('Compile Data'!BO$95:BO$120,'Report - ALL (DASHBOARD)'!$W$3) -> 3103.504735 | F16: =INDEX('Compile Data'!BP$95:BP$120,'Report - ALL (DASHBOARD)'!$W$3) -> 3359.532815 | G16: =INDEX('Compile Data'!BQ$95:BQ$120,'Report - ALL (DASHBOARD)'!$W$3) -> 3707.478374 | H16: =INDEX('Compile Data'!BR$95:BR$120,'Report - ALL (DASHBOARD)'!$W$3) -> 4053.255128 | I16: =INDEX('Compile Data'!BS$95:BS$120,'Report - ALL (DASHBOARD)'!$W$3) -> 3990.625616 | J16: =INDEX('Compile Data'!BT$95:BT$120,'Report - ALL (DASHBOARD)'!$W$3) -> 3654.901306 | K16: =INDEX('Compile Data'!BU$95:BU$120,'Report - ALL (DASHBOARD)'!$W$3) -> 3122.243954 | L16: =INDEX('Compile Data'!BV$95:BV$120,'Report - ALL (DASHBOARD)'!$W$3) -> 2820.713923 | M16: =INDEX('Compile Data'!BW$95:BW$120,'Report - ALL (DASHBOARD)'!$W$3) -> 2718.17282 | O16: ='Compile Data'!$D$1 -> 2035CT Alt 1B 020921 | P16: =INDEX('Compile Data'!$BL$95:$CI$120,'Report - ALL (DASHBOARD)'!$W$3,'Report - ALL (DASHBOARD)'!$W$4) -> 3990.625616 | Q16: 31.94727127 | R16: =$P16-$P$15 -> 14.83539993 | U16: ='Compile Data'!$D$1 -> 2035CT Alt 1B 020921 | V16: =INDEX('Compile Data'!$BL$95:$CI$120,14,'Report - ALL (DASHBOARD)'!$W$4) -> 4428.659481 | W16: =INDEX('Compile Data'!$BL$95:$CI$120,15,'Report - ALL (DASHBOARD)'!$W$4) -> 4432.373083 | X16: =INDEX('Compile Data'!$BL$95:$CI$120,16,'Report - ALL (DASHBOARD)'!$W$4) -> 4248.340407 | Y16: =INDEX('Compile Data'!$BL$95:$CI$120,17,'Report - ALL (DASHBOARD)'!$W$4) -> 3794.793148 | Z16: =INDEX('Compile Data'!$BL$95:$CI$120,18,'Report - ALL (DASHBOARD)'!$W$4) -> 2608.531741
A17: ='Compile Data'!$E$1 -> 2035CT Alt 2 020921 | B17: =INDEX('Compile Data'!CL$95:CL$120,'Report - ALL (DASHBOARD)'!$W$3) -> 2600.279638 | C17: =INDEX('Compile Data'!CM$95:CM$120,'Report - ALL (DASHBOARD)'!$W$3) -> 2625.556637 | D17: =INDEX('Compile Data'!CN$95:CN$120,'Report - ALL (DASHBOARD)'!$W$3) -> 2817.915317 | E17: =INDEX('Compile Data'!CO$95:CO$120,'Report - ALL (DASHBOARD)'!$W$3) -> 3102.989604 | F17: =INDEX('Compile Data'!CP$95:CP$120,'Report - ALL (DASHBOARD)'!$W$3) -> 3359.312578 | G17: =INDEX('Compile Data'!CQ$95:CQ$120,'Report - ALL (DASHBOARD)'!$W$3) -> 3707.77011 | H17: =INDEX('Compile Data'!CR$95:CR$120,'Report - ALL (DASHBOARD)'!$W$3) -> 4052.544148 | I17: =INDEX('Compile Data'!CS$95:CS$120,'Report - ALL (DASHBOARD)'!$W$3) -> 3975.790216 | J17: =INDEX('Compile Data'!CT$95:CT$120,'Report - ALL (DASHBOARD)'!$W$3) -> 3637.532216 | K17: =INDEX('Compile Data'!CU$95:CU$120,'Report - ALL (DASHBOARD)'!$W$3) -> 3106.083644 | L17: =INDEX('Compile Data'!CV$95:CV$120,'Report - ALL (DASHBOARD)'!$W$3) -> 2804.640133 | M17: =INDEX('Compile Data'!CW$95:CW$120,'Report - ALL (DASHBOARD)'!$W$3) -> 2704.41385 | O17: ='Compile Data'!$E$1 -> 2035CT Alt 2 020921 | P17: =INDEX('Compile Data'!$CL$95:$DI$120,'Report - ALL (DASHBOARD)'!$W$3,'Report - ALL (DASHBOARD)'!$W$4) -> 3975.790216 | Q17: 17.11187134 | R17: =$P17-$P$15 -> 0 | U17: ='Compile Data'!$E$1 -> 2035CT Alt 2 020921 | V17: =INDEX('Compile Data'!$CL$95:$DI$120,14,'Report - ALL (DASHBOARD)'!$W$4) -> 4428.716942 | W17: =INDEX('Compile Data'!$CL$95:$DI$120,15,'Report - ALL (DASHBOARD)'!$W$4) -> 4395.435298 | X17: =INDEX('Compile Data'!$CL$95:$DI$120,16,'Report - ALL (DASHBOARD)'!$W$4) -> 4224.992094 | Y17: =INDEX('Compile Data'!$CL$95:$DI$120,17,'Report - ALL (DASHBOARD)'!$W$4) -> 3751.101586 | Z17: =INDEX('Compile Data'!$CL$95:$DI$120,18,'Report - ALL (DASHBOARD)'!$W$4) -> 2632.531443
A18: ='Compile Data'!$F$1 -> 2035CT Alt 3 020921 | B18: =INDEX('Compile Data'!DL$95:DL$120,'Report - ALL (DASHBOARD)'!$W$3) -> 2816.132204 | C18: =INDEX('Compile Data'!DM$95:DM$120,'Report - ALL (DASHBOARD)'!$W$3) -> 2805.50088 | D18: =INDEX('Compile Data'!DN$95:DN$120,'Report - ALL (DASHBOARD)'!$W$3) -> 2930.076832 | E18: =INDEX('Compile Data'!DO$95:DO$120,'Report - ALL (DASHBOARD)'!$W$3) -> 3170.835275 | F18: =INDEX('Compile Data'!DP$95:DP$120,'Report - ALL (DASHBOARD)'!$W$3) -> 3403.80169 | G18: =INDEX('Compile Data'!DQ$95:DQ$120,'Report - ALL (DASHBOARD)'!$W$3) -> 3747.884722 | H18: =INDEX('Compile Data'!DR$95:DR$120,'Report - ALL (DASHBOARD)'!$W$3) -> 4111.498447 | I18: =INDEX('Compile Data'!DS$95:DS$120,'Report - ALL (DASHBOARD)'!$W$3) -> 4120.124033 | J18: =INDEX('Compile Data'!DT$95:DT$120,'Report - ALL (DASHBOARD)'!$W$3) -> 3864.841904 | K18: =INDEX('Compile Data'!DU$95:DU$120,'Report - ALL (DASHBOARD)'!$W$3) -> 3393.575296 | L18: =INDEX('Compile Data'!DV$95:DV$120,'Report - ALL (DASHBOARD)'!$W$3) -> 3065.485482 | M18: =INDEX('Compile Data'!DW$95:DW$120,'Report - ALL (DASHBOARD)'!$W$3) -> 2918.561459 | O18: ='Compile Data'!$F$1 -> 2035CT Alt 3 020921 | P18: =INDEX('Compile Data'!$DL$95:$EI$120,'Report - ALL (DASHBOARD)'!$W$3,'Report - ALL (DASHBOARD)'!$W$4) -> 4120.124033 | Q18: =$P18-$P$14 -> 161.4456884 | R18: =$P18-$P$15 -> 144.3338171 | U18: ='Compile Data'!$F$1 -> 2035CT Alt 3 020921 | V18: =INDEX('Compile Data'!$DL$95:$EI$120,14,'Report - ALL (DASHBOARD)'!$W$4) -> 4493.799199 | W18: =INDEX('Compile Data'!$DL$95:$EI$120,15,'Report - ALL (DASHBOARD)'!$W$4) -> 4506.445998 | X18: =INDEX('Compile Data'!$DL$95:$EI$120,16,'Report - ALL (DASHBOARD)'!$W$4) -> 4353.511892 | Y18: =INDEX('Compile Data'!$DL$95:$EI$120,17,'Report - ALL (DASHBOARD)'!$W$4) -> 3972.14667 | Z18: =INDEX('Compile Data'!$DL$95:$EI$120,18,'Report - ALL (DASHBOARD)'!$W$4) -> 2887.651157
A19: ='Compile Data'!$G$1 -> 0 | B19: =INDEX('Compile Data'!EL$95:EL$120,'Report - ALL (DASHBOARD)'!$W$3) ->  | C19: =INDEX('Compile Data'!EM$95:EM$120,'Report - ALL (DASHBOARD)'!$W$3) ->  | D19: =INDEX('Compile Data'!EN$95:EN$120,'Report - ALL (DASHBOARD)'!$W$3) ->  | E19: =INDEX('Compile Data'!EO$95:EO$120,'Report - ALL (DASHBOARD)'!$W$3) ->  | F19: =INDEX('Compile Data'!EP$95:EP$120,'Report - ALL (DASHBOARD)'!$W$3) ->  | G19: =INDEX('Compile Data'!EQ$95:EQ$120,'Report - ALL (DASHBOARD)'!$W$3) ->  | H19: =INDEX('Compile Data'!ER$95:ER$120,'Report - ALL (DASHBOARD)'!$W$3) ->  | I19: =INDEX('Compile Data'!ES$95:ES$120,'Report - ALL (DASHBOARD)'!$W$3) ->  | J19: =INDEX('Compile Data'!ET$95:ET$120,'Report - ALL (DASHBOARD)'!$W$3) ->  | K19: =INDEX('Compile Data'!EU$95:EU$120,'Report - ALL (DASHBOARD)'!$W$3) ->  | L19: =INDEX('Compile Data'!EV$95:EV$120,'Report - ALL (DASHBOARD)'!$W$3) ->  | M19: =INDEX('Compile Data'!EW$95:EW$120,'Report - ALL (DASHBOARD)'!$W$3) ->  | O19: ='Compile Data'!$G$1 -> 0 | P19: =INDEX('Compile Data'!$EL$95:$FI$120,'Report - ALL (DASHBOARD)'!$W$3,'Report - ALL (DASHBOARD)'!$W$4) ->  | R19: =$P19-$P$15 ->  | U19: ='Compile Data'!$G$1 -> 0 | V19: =INDEX('Compile Data'!$EL$95:$FI$120,14,'Report - ALL (DASHBOARD)'!$W$4) ->  | W19: =INDEX('Compile Data'!$EL$95:$FI$120,15,'Report - ALL (DASHBOARD)'!$W$4) ->  | X19: =INDEX('Compile Data'!$EL$95:$FI$120,16,'Report - ALL (DASHBOARD)'!$W$4) ->  | Y19: =INDEX('Compile Data'!$EL$95:$FI$120,17,'Report - ALL (DASHBOARD)'!$W$4) ->  | Z19: =INDEX('Compile Data'!$EL$95:$FI$120,18,'Report - ALL (DASHBOARD)'!$W$4) -> 
A21: Annuals Plot: | O21: Exceedence Plot:
A23: Title: | B23: =INDEX(Other!$B$9:$B$33,'Report - ALL (DASHBOARD)'!$W$4) -> May | O23: Title: | P23: =INDEX(Other!$B$9:$B$33,'Report - ALL (DASHBOARD)'!$W$4) -> May
B24: ='Compile Data'!$B$5 -> Shasta Storage | P24: ='Compile Data'!$B$5 -> Shasta Storage
B25: =IF('Compile Data'!$B$10="CFS","Flow (CFS)",IF('Compile Data'!$B$10="TAF","Volume (TAF)",IF('Compile Data'!$B$10="KM","POSITION (KM)",""))) -> Volume (TAF) | P25: =IF('Compile Data'!$B$10="CFS","Flow (CFS)",IF('Compile Data'!$B$10="TAF","Volume (TAF)",IF('Compile Data'!$B$10="KM","POSITION (KM)",""))) -> Volume (TAF)
B27: ='Compile Data'!$B$1 -> 2035CT NAA 020921 | C27: ='Compile Data'!$C$1 -> 2035CT Alt 1A 020921 | D27: ='Compile Data'!$D$1 -> 2035CT Alt 1B 020921 | E27: ='Compile Data'!$E$1 -> 2035CT Alt 2 020921 | F27: ='Compile Data'!$F$1 -> 2035CT Alt 3 020921 | G27: ='Compile Data'!$G$1 -> 0 | Q27: ='Compile Data'!$B$1 -> 2035CT NAA 020921 | R27: ='Compile Data'!$C$1 -> 2035CT Alt 1A 020921 | S27: ='Compile Data'!$D$1 -> 2035CT Alt 1B 020921 | T27: ='Compile Data'!$E$1 -> 2035CT Alt 2 020921 | U27: ='Compile Data'!$F$1 -> 2035CT Alt 3 020921 | V27: ='Compile Data'!$G$1 -> 0
A28: 1922 | B28: =INDEX('Compile Data'!$L$12:$AI$93,$A28-1921,'Report - ALL (DASHBOARD)'!$W$4) -> 4552 | C28: =INDEX('Compile Data'!$AL$12:$BI$93,$A28-1921,'Report - ALL (DASHBOARD)'!$W$4) -> 4552 | D28: =INDEX('Compile Data'!$BL$12:$CI$93,$A28-1921,'Report - ALL (DASHBOARD)'!$W$4) -> 4552 | E28: =INDEX('Compile Data'!$CL$12:$DI$93,$A28-1921,'Report - ALL (DASHBOARD)'!$W$4) -> 4552 | F28: =INDEX('Compile Data'!$DL$12:$EI$93,$A28-1921,'Report - ALL (DASHBOARD)'!$W$4) -> 4552 | G28: =INDEX('Compile Data'!$EL$12:$FI$93,$A28-1921,'Report - ALL (DASHBOARD)'!$W$4) ->  | O28: 1 | P28: =(O28-1)/81 -> 0 | Q28: =INDEX('Compile Data'!$L$123:$AI$204,$O28,'Report - ALL (DASHBOARD)'!$W$4) -> 4552 | R28: =INDEX('Compile Data'!$AL$123:$BI$204,$O28,'Report - ALL (DASHBOARD)'!$W$4) -> 4552 | S28: =INDEX('Compile Data'!$BL$123:$CI$204,$O28,'Report - ALL (DASHBOARD)'!$W$4) -> 4552 | T28: =INDEX('Compile Data'!$CL$123:$DI$204,$O28,'Report - ALL (DASHBOARD)'!$W$4) -> 4552 | U28: =INDEX('Compile Data'!$DL$123:$EI$204,$O28,'Report - ALL (DASHBOARD)'!$W$4) -> 4552 | V28: =INDEX('Compile Data'!$EL$123:$FI$204,$O28,'Report - ALL (DASHBOARD)'!$W$4) -> 
A29: =A28+1 -> 1923 | B29: =INDEX('Compile Data'!$L$12:$AI$93,$A29-1921,'Report - ALL (DASHBOARD)'!$W$4) -> 4013.903732 | C29: =INDEX('Compile Data'!$AL$12:$BI$93,$A29-1921,'Report - ALL (DASHBOARD)'!$W$4) -> 4030.769395 | D29: =INDEX('Compile Data'!$BL$12:$CI$93,$A29-1921,'Report - ALL (DASHBOARD)'!$W$4) -> 4037.905051 | E29: =INDEX('Compile Data'!$CL$12:$DI$93,$A29-1921,'Report - ALL (DASHBOARD)'!$W$4) -> 4030.769395 | F29: =INDEX('Compile Data'!$DL$12:$EI$93,$A29-1921,'Report - ALL (DASHBOARD)'!$W$4) -> 3991.377675 | G29: =INDEX('Compile Data'!$EL$12:$FI$93,$A29-1921,'Report - ALL (DASHBOARD)'!$W$4) ->  | O29: 2 | P29: 0.01234567901 | Q29: =INDEX('Compile Data'!$L$123:$AI$204,$O29,'Report - ALL (DASHBOARD)'!$W$4) -> 4552 | R29: =INDEX('Compile Data'!$AL$123:$BI$204,$O29,'Report - ALL (DASHBOARD)'!$W$4) -> 4552 | S29: =INDEX('Compile Data'!$BL$123:$CI$204,$O29,'Report - ALL (DASHBOARD)'!$W$4) -> 4552 | T29: =INDEX('Compile Data'!$CL$123:$DI$204,$O29,'Report - ALL (DASHBOARD)'!$W$4) -> 4552 | U29: =INDEX('Compile Data'!$DL$123:$EI$204,$O29,'Report - ALL (DASHBOARD)'!$W$4) -> 4552 | V29: =INDEX('Compile Data'!$EL$123:$FI$204,$O29,'Report - ALL (DASHBOARD)'!$W$4) -> 
A30: =A29+1 -> 1924 | B30: =INDEX('Compile Data'!$L$12:$AI$93,$A30-1921,'Report - ALL (DASHBOARD)'!$W$4) -> 2187.638974 | C30: =INDEX('Compile Data'!$AL$12:$BI$93,$A30-1921,'Report - ALL (DASHBOARD)'!$W$4) -> 2218.982026 | D30: =INDEX('Compile Data'!$BL$12:$CI$93,$A30-1921,'Report - ALL (DASHBOARD)'!$W$4) -> 2218.440557 | E30: =INDEX('Compile Data'!$CL$12:$DI$93,$A30-1921,'Report - ALL (DASHBOARD)'!$W$4) -> 2218.982026 | F30: =INDEX('Compile Data'!$DL$12:$EI$93,$A30-1921,'Report - ALL (DASHBOARD)'!$W$4) -> 2437.614183 | G30: =INDEX('Compile Data'!$EL$12:$FI$93,$A30-1921,'Report - ALL (DASHBOARD)'!$W$4) ->  | O30: 3 | P30: 0.02469135802 | Q30: =INDEX('Compile Data'!$L$123:$AI$204,$O30,'Report - ALL (DASHBOARD)'!$W$4) -> 4552 | R30: =INDEX('Compile Data'!$AL$123:$BI$204,$O30,'Report - ALL (DASHBOARD)'!$W$4) -> 4552 | S30: =INDEX('Compile Data'!$BL$123:$CI$204,$O30,'Report - ALL (DASHBOARD)'!$W$4) -> 4552 | T30: =INDEX('Compile Data'!$CL$123:$DI$204,$O30,'Report - ALL (DASHBOARD)'!$W$4) -> 4552 | U30: =INDEX('Compile Data'!$DL$123:$EI$204,$O30,'Report - ALL (DASHBOARD)'!$W$4) -> 4552 | V30: =INDEX('Compile Data'!$EL$123:$FI$204,$O30,'Report - ALL (DASHBOARD)'!$W$4) -> 
A31: 1925 | B31: =INDEX('Compile Data'!$L$12:$AI$93,$A31-1921,'Report - ALL (DASHBOARD)'!$W$4) -> 4105.41576 | C31: =INDEX('Compile Data'!$AL$12:$BI$93,$A31-1921,'Report - ALL (DASHBOARD)'!$W$4) -> 4159.561735 | D31: =INDEX('Compile Data'!$BL$12:$CI$93,$A31-1921,'Report - ALL (DASHBOARD)'!$W$4) -> 4174.373327 | E31: =INDEX('Compile Data'!$CL$12:$DI$93,$A31-1921,'Report - ALL (DASHBOARD)'!$W$4) -> 4159.561735 | F31: =INDEX('Compile Data'!$DL$12:$EI$93,$A31-1921,'Report - ALL (DASHBOARD)'!$W$4) -> 4344.307713 | G31: =INDEX('Compile Data'!$EL$12:$FI$93,$A31-1921,'Report - ALL (DASHBOARD)'!$W$4) ->  | O31: 4 | P31: 0.03703703704 | Q31: =INDEX('Compile Data'!$L$123:$AI$204,$O31,'Report - ALL (DASHBOARD)'!$W$4) -> 4552 | R31: =INDEX('Compile Data'!$AL$123:$BI$204,$O31,'Report - ALL (DASHBOARD)'!$W$4) -> 4552 | S31: =INDEX('Compile Data'!$BL$123:$CI$204,$O31,'Report - ALL (DASHBOARD)'!$W$4) -> 4552 | T31: =INDEX('Compile Data'!$CL$123:$DI$204,$O31,'Report - ALL (DASHBOARD)'!$W$4) -> 4552 | U31: =INDEX('Compile Data'!$DL$123:$EI$204,$O31,'Report - ALL (DASHBOARD)'!$W$4) -> 4552 | V31: =INDEX('Compile Data'!$EL$123:$FI$204,$O31,'Report - ALL (DASHBOARD)'!$W$4) -> 
A32: 1926 | B32: =INDEX('Compile Data'!$L$12:$AI$93,$A32-1921,'Report - ALL (DASHBOARD)'!$W$4) -> 3550.205382 | C32: =INDEX('Compile Data'!$AL$12:$BI$93,$A32-1921,'Report - ALL (DASHBOARD)'!$W$4) -> 3470.369137 | D32: =INDEX('Compile Data'!$BL$12:$CI$93,$A32-1921,'Report - ALL (DASHBOARD)'!$W$4) -> 3540.10848 | E32: =INDEX('Compile Data'!$CL$12:$DI$93,$A32-1921,'Report - ALL (DASHBOARD)'!$W$4) -> 3470.369137 | F32: =INDEX('Compile Data'!$DL$12:$EI$93,$A32-1921,'Report - ALL (DASHBOARD)'!$W$4) -> 3795.713003 | G32: =INDEX('Compile Data'!$EL$12:$FI$93,$A32-1921,'Report - ALL (DASHBOARD)'!$W$4) ->  | O32: 5 | P32: 0.04938271605 | Q32: =INDEX('Compile Data'!$L$123:$AI$204,$O32,'Report - ALL (DASHBOARD)'!$W$4) -> 4552 | R32: =INDEX('Compile Data'!$AL$123:$BI$204,$O32,'Report - ALL (DASHBOARD)'!$W$4) -> 4552 | S32: =INDEX('Compile Data'!$BL$123:$CI$204,$O32,'Report - ALL (DASHBOARD)'!$W$4) -> 4552 | T32: =INDEX('Compile Data'!$CL$123:$DI$204,$O32,'Report - ALL (DASHBOARD)'!$W$4) -> 4552 | U32: =INDEX('Compile Data'!$DL$123:$EI$204,$O32,'Report - ALL (DASHBOARD)'!$W$4) -> 4552 | V32: =INDEX('Compile Data'!$EL$123:$FI$204,$O32,'Report - ALL (DASHBOARD)'!$W$4) -> 
A33: 1927 | B33: =INDEX('Compile Data'!$L$12:$AI$93,$A33-1921,'Report - ALL (DASHBOARD)'!$W$4) -> 4504.419062 | C33: =INDEX('Compile Data'!$AL$12:$BI$93,$A33-1921,'Report - ALL (DASHBOARD)'!$W$4) -> 4531.043995 | D33: =INDEX('Compile Data'!$BL$12:$CI$93,$A33-1921,'Report - ALL (DASHBOARD)'!$W$4) -> 4531.108094 | E33: =INDEX('Compile Data'!$CL$12:$DI$93,$A33-1921,'Report - ALL (DASHBOARD)'!$W$4) -> 4531.043995 | F33: =INDEX('Compile Data'!$DL$12:$EI$93,$A33-1921,'Report - ALL (DASHBOARD)'!$W$4) -> 4552 | G33: =INDEX('Compile Data'!$EL$12:$FI$93,$A33-1921,'Report - ALL (DASHBOARD)'!$W$4) ->  | O33: 6 | P33: 0.06172839506 | Q33: =INDEX('Compile Data'!$L$123:$AI$204,$O33,'Report - ALL (DASHBOARD)'!$W$4) -> 4552 | R33: =INDEX('Compile Data'!$AL$123:$BI$204,$O33,'Report - ALL (DASHBOARD)'!$W$4) -> 4552 | S33: =INDEX('Compile Data'!$BL$123:$CI$204,$O33,'Report - ALL (DASHBOARD)'!$W$4) -> 4552 | T33: =INDEX('Compile Data'!$CL$123:$DI$204,$O33,'Report - ALL (DASHBOARD)'!$W$4) -> 4552 | U33: =INDEX('Compile Data'!$DL$123:$EI$204,$O33,'Report - ALL (DASHBOARD)'!$W$4) -> 4552 | V33: =INDEX('Compile Data'!$EL$123:$FI$204,$O33,'Report - ALL (DASHBOARD)'!$W$4) -> 
A34: 1928 | B34: =INDEX('Compile Data'!$L$12:$AI$93,$A34-1921,'Report - ALL (DASHBOARD)'!$W$4) -> 4201.575249 | C34: =INDEX('Compile Data'!$AL$12:$BI$93,$A34-1921,'Report - ALL (DASHBOARD)'!$W$4) -> 4207.631296 | D34: =INDEX('Compile Data'!$BL$12:$CI$93,$A34-1921,'Report - ALL (DASHBOARD)'!$W$4) -> 4271.365254 | E34: =INDEX('Compile Data'!$CL$12:$DI$93,$A34-1921,'Report - ALL (DASHBOARD)'!$W$4) -> 4207.631296 | F34: =INDEX('Compile Data'!$DL$12:$EI$93,$A34-1921,'Report - ALL (DASHBOARD)'!$W$4) -> 4477.54442 | G34: =INDEX('Compile Data'!$EL$12:$FI$93,$A34-1921,'Report - ALL (DASHBOARD)'!$W$4) ->  | O34: 7 | P34: 0.07407407407 | Q34: =INDEX('Compile Data'!$L$123:$AI$204,$O34,'Report - ALL (DASHBOARD)'!$W$4) -> 4552 | R34: =INDEX('Compile Data'!$AL$123:$BI$204,$O34,'Report - ALL (DASHBOARD)'!$W$4) -> 4552 | S34: =INDEX('Compile Data'!$BL$123:$CI$204,$O34,'Report - ALL (DASHBOARD)'!$W$4) -> 4552 | T34: =INDEX('Compile Data'!$CL$123:$DI$204,$O34,'Report - ALL (DASHBOARD)'!$W$4) -> 4552 | U34: =INDEX('Compile Data'!$DL$123:$EI$204,$O34,'Report - ALL (DASHBOARD)'!$W$4) -> 4552 | V34: =INDEX('Compile Data'!$EL$123:$FI$204,$O34,'Report - ALL (DASHBOARD)'!$W$4) -> 
A35: 1929 | B35: =INDEX('Compile Data'!$L$12:$AI$93,$A35-1921,'Report - ALL (DASHBOARD)'!$W$4) -> 2516.219941 | C35: =INDEX('Compile Data'!$AL$12:$BI$93,$A35-1921,'Report - ALL (DASHBOARD)'!$W$4) -> 2588.133464 | D35: =INDEX('Compile Data'!$BL$12:$CI$93,$A35-1921,'Report - ALL (DASHBOARD)'!$W$4) -> 2627.567595 | E35: =INDEX('Compile Data'!$CL$12:$DI$93,$A35-1921,'Report - ALL (DASHBOARD)'!$W$4) -> 2588.133464 | F35: =INDEX('Compile Data'!$DL$12:$EI$93,$A35-1921,'Report - ALL (DASHBOARD)'!$W$4) -> 2922.224043 | G35: =INDEX('Compile Data'!$EL$12:$FI$93,$A35-1921,'Report - ALL (DASHBOARD)'!$W$4) ->  | O35: 8 | P35: 0.08641975309 | Q35: =INDEX('Compile Data'!$L$123:$AI$204,$O35,'Report - ALL (DASHBOARD)'!$W$4) -> 4552 | R35: =INDEX('Compile Data'!$AL$123:$BI$204,$O35,'Report - ALL (DASHBOARD)'!$W$4) -> 4552 | S35: =INDEX('Compile Data'!$BL$123:$CI$204,$O35,'Report - ALL (DASHBOARD)'!$W$4) -> 4552 | T35: =INDEX('Compile Data'!$CL$123:$DI$204,$O35,'Report - ALL (DASHBOARD)'!$W$4) -> 4552 | U35: =INDEX('Compile Data'!$DL$123:$EI$204,$O35,'Report - ALL (DASHBOARD)'!$W$4) -> 4552 | V35: =INDEX('Compile Data'!$EL$123:$FI$204,$O35,'Report - ALL (DASHBOARD)'!$W$4) -> 
A36: 1930 | B36: =INDEX('Compile Data'!$L$12:$AI$93,$A36-1921,'Report - ALL (DASHBOARD)'!$W$4) -> 3332.505722 | C36: =INDEX('Compile Data'!$AL$12:$BI$93,$A36-1921,'Report - ALL (DASHBOARD)'!$W$4) -> 3368.638784 | D36: =INDEX('Compile Data'!$BL$12:$CI$93,$A36-1921,'Report - ALL (DASHBOARD)'!$W$4) -> 3407.695779 | E36: =INDEX('Compile Data'!$CL$12:$DI$93,$A36-1921,'Report - ALL (DASHBOARD)'!$W$4) -> 3368.638784 | F36: =INDEX('Compile Data'!$DL$12:$EI$93,$A36-1921,'Report - ALL (DASHBOARD)'!$W$4) -> 3637.34285 | G36: =INDEX('Compile Data'!$EL$12:$FI$93,$A36-1921,'Report - ALL (DASHBOARD)'!$W$4) ->  | O36: 9 | P36: 0.0987654321 | Q36: =INDEX('Compile Data'!$L$123:$AI$204,$O36,'Report - ALL (DASHBOARD)'!$W$4) -> 4552 | R36: =INDEX('Compile Data'!$AL$123:$BI$204,$O36,'Report - ALL (DASHBOARD)'!$W$4) -> 4552 | S36: =INDEX('Compile Data'!$BL$123:$CI$204,$O36,'Report - ALL (DASHBOARD)'!$W$4) -> 4552 | T36: =INDEX('Compile Data'!$CL$123:$DI$204,$O36,'Report - ALL (DASHBOARD)'!$W$4) -> 4552 | U36: =INDEX('Compile Data'!$DL$123:$EI$204,$O36,'Report - ALL (DASHBOARD)'!$W$4) -> 4552 | V36: =INDEX('Compile Data'!$EL$123:$FI$204,$O36,'Report - ALL (DASHBOARD)'!$W$4) -> 
A37: 1931 | B37: =INDEX('Compile Data'!$L$12:$AI$93,$A37-1921,'Report - ALL (DASHBOARD)'!$W$4) -> 1671.819804 | C37: =INDEX('Compile Data'!$AL$12:$BI$93,$A37-1921,'Report - ALL (DASHBOARD)'!$W$4) -> 1692.271309 | D37: =INDEX('Compile Data'!$BL$12:$CI$93,$A37-1921,'Report - ALL (DASHBOARD)'!$W$4) -> 1651.561511 | E37: =INDEX('Compile Data'!$CL$12:$DI$93,$A37-1921,'Report - ALL (DASHBOARD)'!$W$4) -> 1692.271309 | F37: =INDEX('Compile Data'!$DL$12:$EI$93,$A37-1921,'Report - ALL (DASHBOARD)'!$W$4) -> 2342.603182 | G37: =INDEX('Compile Data'!$EL$12:$FI$93,$A37-1921,'Report - ALL (DASHBOARD)'!$W$4) ->  | O37: 10 | P37: 0.1111111111 | Q37: =INDEX('Compile Data'!$L$123:$AI$204,$O37,'Report - ALL (DASHBOARD)'!$W$4) -> 4552 | R37: =INDEX('Compile Data'!$AL$123:$BI$204,$O37,'Report - ALL (DASHBOARD)'!$W$4) -> 4552 | S37: =INDEX('Compile Data'!$BL$123:$CI$204,$O37,'Report - ALL (DASHBOARD)'!$W$4) -> 4552 | T37: =INDEX('Compile Data'!$CL$123:$DI$204,$O37,'Report - ALL (DASHBOARD)'!$W$4) -> 4552 | U37: =INDEX('Compile Data'!$DL$123:$EI$204,$O37,'Report - ALL (DASHBOARD)'!$W$4) -> 4552 | V37: =INDEX('Compile Data'!$EL$123:$FI$204,$O37,'Report - ALL (DASHBOARD)'!$W$4) -> 
A38: 1932 | B38: =INDEX('Compile Data'!$L$12:$AI$93,$A38-1921,'Report - ALL (DASHBOARD)'!$W$4) -> 2121.694286 | C38: =INDEX('Compile Data'!$AL$12:$BI$93,$A38-1921,'Report - ALL (DASHBOARD)'!$W$4) -> 2165.708692 | D38: =INDEX('Compile Data'!$BL$12:$CI$93,$A38-1921,'Report - ALL (DASHBOARD)'!$W$4) -> 2119.362424 | E38: =INDEX('Compile Data'!$CL$12:$DI$93,$A38-1921,'Report - ALL (DASHBOARD)'!$W$4) -> 2165.708692 | F38: =INDEX('Compile Data'!$DL$12:$EI$93,$A38-1921,'Report - ALL (DASHBOARD)'!$W$4) -> 2446.112382 | G38: =INDEX('Compile Data'!$EL$12:$FI$93,$A38-1921,'Report - ALL (DASHBOARD)'!$W$4) ->  | O38: 11 | P38: 0.1234567901 | Q38: =INDEX('Compile Data'!$L$123:$AI$204,$O38,'Report - ALL (DASHBOARD)'!$W$4) -> 4552 | R38: =INDEX('Compile Data'!$AL$123:$BI$204,$O38,'Report - ALL (DASHBOARD)'!$W$4) -> 4552 | S38: =INDEX('Compile Data'!$BL$123:$CI$204,$O38,'Report - ALL (DASHBOARD)'!$W$4) -> 4552 | T38: =INDEX('Compile Data'!$CL$123:$DI$204,$O38,'Report - ALL (DASHBOARD)'!$W$4) -> 4552 | U38: =INDEX('Compile Data'!$DL$123:$EI$204,$O38,'Report - ALL (DASHBOARD)'!$W$4) -> 4552 | V38: =INDEX('Compile Data'!$EL$123:$FI$204,$O38,'Report - ALL (DASHBOARD)'!$W$4) -> 
A39: 1933 | B39: =INDEX('Compile Data'!$L$12:$AI$93,$A39-1921,'Report - ALL (DASHBOARD)'!$W$4) -> 2196.074317 | C39: =INDEX('Compile Data'!$AL$12:$BI$93,$A39-1921,'Report - ALL (DASHBOARD)'!$W$4) -> 2280.84647 | D39: =INDEX('Compile Data'!$BL$12:$CI$93,$A39-1921,'Report - ALL (DASHBOARD)'!$W$4) -> 2041.675775 | E39: =INDEX('Compile Data'!$CL$12:$DI$93,$A39-1921,'Report - ALL (DASHBOARD)'!$W$4) -> 2280.84647 | F39: =INDEX('Compile Data'!$DL$12:$EI$93,$A39-1921,'Report - ALL (DASHBOARD)'!$W$4) -> 2414.304882 | G39: =INDEX('Compile Data'!$EL$12:$FI$93,$A39-1921,'Report - ALL (DASHBOARD)'!$W$4) ->  | O39: 12 | P39: 0.1358024691 | Q39: =INDEX('Compile Data'!$L$123:$AI$204,$O39,'Report - ALL (DASHBOARD)'!$W$4) -> 4552 | R39: =INDEX('Compile Data'!$AL$123:$BI$204,$O39,'Report - ALL (DASHBOARD)'!$W$4) -> 4552 | S39: =INDEX('Compile Data'!$BL$123:$CI$204,$O39,'Report - ALL (DASHBOARD)'!$W$4) -> 4552 | T39: =INDEX('Compile Data'!$CL$123:$DI$204,$O39,'Report - ALL (DASHBOARD)'!$W$4) -> 4552 | U39: =INDEX('Compile Data'!$DL$123:$EI$204,$O39,'Report - ALL (DASHBOARD)'!$W$4) -> 4552 | V39: =INDEX('Compile Data'!$EL$123:$FI$204,$O39,'Report - ALL (DASHBOARD)'!$W$4) -> 
A40: 1934 | B40: =INDEX('Compile Data'!$L$12:$AI$93,$A40-1921,'Report - ALL (DASHBOARD)'!$W$4) -> 1966.971269 | C40: =INDEX('Compile Data'!$AL$12:$BI$93,$A40-1921,'Report - ALL (DASHBOARD)'!$W$4) -> 2004.77753 | D40: =INDEX('Compile Data'!$BL$12:$CI$93,$A40-1921,'Report - ALL (DASHBOARD)'!$W$4) -> 1811.637541 | E40: =INDEX('Compile Data'!$CL$12:$DI$93,$A40-1921,'Report - ALL (DASHBOARD)'!$W$4) -> 2004.77753 | F40: =INDEX('Compile Data'!$DL$12:$EI$93,$A40-1921,'Report - ALL (DASHBOARD)'!$W$4) -> 2127.499309 | G40: =INDEX('Compile Data'!$EL$12:$FI$93,$A40-1921,'Report - ALL (DASHBOARD)'!$W$4) ->  | O40: 13 | P40: 0.1481481481 | Q40: =INDEX('Compile Data'!$L$123:$AI$204,$O40,'Report - ALL (DASHBOARD)'!$W$4) -> 4552 | R40: =INDEX('Compile Data'!$AL$123:$BI$204,$O40,'Report - ALL (DASHBOARD)'!$W$4) -> 4552 | S40: =INDEX('Compile Data'!$BL$123:$CI$204,$O40,'Report - ALL (DASHBOARD)'!$W$4) -> 4552 | T40: =INDEX('Compile Data'!$CL$123:$DI$204,$O40,'Report - ALL (DASHBOARD)'!$W$4) -> 4552 | U40: =INDEX('Compile Data'!$DL$123:$EI$204,$O40,'Report - ALL (DASHBOARD)'!$W$4) -> 4552 | V40: =INDEX('Compile Data'!$EL$123:$FI$204,$O40,'Report - ALL (DASHBOARD)'!$W$4) -> 
A41: 1935 | B41: =INDEX('Compile Data'!$L$12:$AI$93,$A41-1921,'Report - ALL (DASHBOARD)'!$W$4) -> 3484.534992 | C41: =INDEX('Compile Data'!$AL$12:$BI$93,$A41-1921,'Report - ALL (DASHBOARD)'!$W$4) -> 3436.889135 | D41: =INDEX('Compile Data'!$BL$12:$CI$93,$A41-1921,'Report - ALL (DASHBOARD)'!$W$4) -> 3266.061689 | E41: =INDEX('Compile Data'!$CL$12:$DI$93,$A41-1921,'Report - ALL (DASHBOARD)'!$W$4) -> 3436.889135 | F41: =INDEX('Compile Data'!$DL$12:$EI$93,$A41-1921,'Report - ALL (DASHBOARD)'!$W$4) -> 3446.273233 | G41: =INDEX('Compile Data'!$EL$12:$FI$93,$A41-1921,'Report - ALL (DASHBOARD)'!$W$4) ->  | O41: 14 | P41: 0.1604938272 | Q41: =INDEX('Compile Data'!$L$123:$AI$204,$O41,'Report - ALL (DASHBOARD)'!$W$4) -> 4552 | R41: =INDEX('Compile Data'!$AL$123:$BI$204,$O41,'Report - ALL (DASHBOARD)'!$W$4) -> 4552 | S41: =INDEX('Compile Data'!$BL$123:$CI$204,$O41,'Report - ALL (DASHBOARD)'!$W$4) -> 4552 | T41: =INDEX('Compile Data'!$CL$123:$DI$204,$O41,'Report - ALL (DASHBOARD)'!$W$4) -> 4552 | U41: =INDEX('Compile Data'!$DL$123:$EI$204,$O41,'Report - ALL (DASHBOARD)'!$W$4) -> 4552 | V41: =INDEX('Compile Data'!$EL$123:$FI$204,$O41,'Report - ALL (DASHBOARD)'!$W$4) -> 
A42: 1936 | B42: =INDEX('Compile Data'!$L$12:$AI$93,$A42-1921,'Report - ALL (DASHBOARD)'!$W$4) -> 4071.73718 | C42: =INDEX('Compile Data'!$AL$12:$BI$93,$A42-1921,'Report - ALL (DASHBOARD)'!$W$4) -> 4070.520318 | D42: =INDEX('Compile Data'!$BL$12:$CI$93,$A42-1921,'Report - ALL (DASHBOARD)'!$W$4) -> 4094.17729 | E42: =INDEX('Compile Data'!$CL$12:$DI$93,$A42-1921,'Report - ALL (DASHBOARD)'!$W$4) -> 4070.520318 | F42: =INDEX('Compile Data'!$DL$12:$EI$93,$A42-1921,'Report - ALL (DASHBOARD)'!$W$4) -> 4179.11525 | G42: =INDEX('Compile Data'!$EL$12:$FI$93,$A42-1921,'Report - ALL (DASHBOARD)'!$W$4) ->  | O42: 15 | P42: 0.1728395062 | Q42: =INDEX('Compile Data'!$L$123:$AI$204,$O42,'Report - ALL (DASHBOARD)'!$W$4) -> 4552 | R42: =INDEX('Compile Data'!$AL$123:$BI$204,$O42,'Report - ALL (DASHBOARD)'!$W$4) -> 4552 | S42: =INDEX('Compile Data'!$BL$123:$CI$204,$O42,'Report - ALL (DASHBOARD)'!$W$4) -> 4552 | T42: =INDEX('Compile Data'!$CL$123:$DI$204,$O42,'Report - ALL (DASHBOARD)'!$W$4) -> 4552 | U42: =INDEX('Compile Data'!$DL$123:$EI$204,$O42,'Report - ALL (DASHBOARD)'!$W$4) -> 4552 | V42: =INDEX('Compile Data'!$EL$123:$FI$204,$O42,'Report - ALL (DASHBOARD)'!$W$4) -> 
A43: 1937 | B43: =INDEX('Compile Data'!$L$12:$AI$93,$A43-1921,'Report - ALL (DASHBOARD)'!$W$4) -> 4198.088386 | C43: =INDEX('Compile Data'!$AL$12:$BI$93,$A43-1921,'Report - ALL (DASHBOARD)'!$W$4) -> 4215.473847 | D43: =INDEX('Compile Data'!$BL$12:$CI$93,$A43-1921,'Report - ALL (DASHBOARD)'!$W$4) -> 4235.0557 | E43: =INDEX('Compile Data'!$CL$12:$DI$93,$A43-1921,'Report - ALL (DASHBOARD)'!$W$4) -> 4215.473847 | F43: =INDEX('Compile Data'!$DL$12:$EI$93,$A43-1921,'Report - ALL (DASHBOARD)'!$W$4) -> 4251.055642 | G43: =INDEX('Compile Data'!$EL$12:$FI$93,$A43-1921,'Report - ALL (DASHBOARD)'!$W$4) ->  | O43: 16 | P43: 0.1851851852 | Q43: =INDEX('Compile Data'!$L$123:$AI$204,$O43,'Report - ALL (DASHBOARD)'!$W$4) -> 4552 | R43: =INDEX('Compile Data'!$AL$123:$BI$204,$O43,'Report - ALL (DASHBOARD)'!$W$4) -> 4552 | S43: =INDEX('Compile Data'!$BL$123:$CI$204,$O43,'Report - ALL (DASHBOARD)'!$W$4) -> 4552 | T43: =INDEX('Compile Data'!$CL$123:$DI$204,$O43,'Report - ALL (DASHBOARD)'!$W$4) -> 4552 | U43: =INDEX('Compile Data'!$DL$123:$EI$204,$O43,'Report - ALL (DASHBOARD)'!$W$4) -> 4552 | V43: =INDEX('Compile Data'!$EL$123:$FI$204,$O43,'Report - ALL (DASHBOARD)'!$W$4) -> 
A44: 1938 | B44: =INDEX('Compile Data'!$L$12:$AI$93,$A44-1921,'Report - ALL (DASHBOARD)'!$W$4) -> 4552 | C44: =INDEX('Compile Data'!$AL$12:$BI$93,$A44-1921,'Report - ALL (DASHBOARD)'!$W$4) -> 4552 | D44: =INDEX('Compile Data'!$BL$12:$CI$93,$A44-1921,'Report - ALL (DASHBOARD)'!$W$4) -> 4552 | E44: =INDEX('Compile Data'!$CL$12:$DI$93,$A44-1921,'Report - ALL (DASHBOARD)'!$W$4) -> 4552 | F44: =INDEX('Compile Data'!$DL$12:$EI$93,$A44-1921,'Report - ALL (DASHBOARD)'!$W$4) -> 4552 | G44: =INDEX('Compile Data'!$EL$12:$FI$93,$A44-1921,'Report - ALL (DASHBOARD)'!$W$4) ->  | O44: 17 | P44: 0.1975308642 | Q44: =INDEX('Compile Data'!$L$123:$AI$204,$O44,'Report - ALL (DASHBOARD)'!$W$4) -> 4552 | R44: =INDEX('Compile Data'!$AL$123:$BI$204,$O44,'Report - ALL (DASHBOARD)'!$W$4) -> 4552 | S44: =INDEX('Compile Data'!$BL$123:$CI$204,$O44,'Report - ALL (DASHBOARD)'!$W$4) -> 4552 | T44: =INDEX('Compile Data'!$CL$123:$DI$204,$O44,'Report - ALL (DASHBOARD)'!$W$4) -> 4552 | U44: =INDEX('Compile Data'!$DL$123:$EI$204,$O44,'Report - ALL (DASHBOARD)'!$W$4) -> 4552 | V44: =INDEX('Compile Data'!$EL$123:$FI$204,$O44,'Report - ALL (DASHBOARD)'!$W$4) -> 
A45: 1939 | B45: =INDEX('Compile Data'!$L$12:$AI$93,$A45-1921,'Report - ALL (DASHBOARD)'!$W$4) -> 3469.015946 | C45: =INDEX('Compile Data'!$AL$12:$BI$93,$A45-1921,'Report - ALL (DASHBOARD)'!$W$4) -> 3472.884461 | D45: =INDEX('Compile Data'!$BL$12:$CI$93,$A45-1921,'Report - ALL (DASHBOARD)'!$W$4) -> 3509.79476 | E45: =INDEX('Compile Data'!$CL$12:$DI$93,$A45-1921,'Report - ALL (DASHBOARD)'!$W$4) -> 3472.884461 | F45: =INDEX('Compile Data'!$DL$12:$EI$93,$A45-1921,'Report - ALL (DASHBOARD)'!$W$4) -> 3634.203956 | G45: =INDEX('Compile Data'!$EL$12:$FI$93,$A45-1921,'Report - ALL (DASHBOARD)'!$W$4) ->  | O45: 18 | P45: 0.2098765432 | Q45: =INDEX('Compile Data'!$L$123:$AI$204,$O45,'Report - ALL (DASHBOARD)'!$W$4) -> 4552 | R45: =INDEX('Compile Data'!$AL$123:$BI$204,$O45,'Report - ALL (DASHBOARD)'!$W$4) -> 4552 | S45: =INDEX('Compile Data'!$BL$123:$CI$204,$O45,'Report - ALL (DASHBOARD)'!$W$4) -> 4552 | T45: =INDEX('Compile Data'!$CL$123:$DI$204,$O45,'Report - ALL (DASHBOARD)'!$W$4) -> 4552 | U45: =INDEX('Compile Data'!$DL$123:$EI$204,$O45,'Report - ALL (DASHBOARD)'!$W$4) -> 4552 | V45: =INDEX('Compile Data'!$EL$123:$FI$204,$O45,'Report - ALL (DASHBOARD)'!$W$4) -> 
A46: 1940 | B46: =INDEX('Compile Data'!$L$12:$AI$93,$A46-1921,'Report - ALL (DASHBOARD)'!$W$4) -> 4046.05442 | C46: =INDEX('Compile Data'!$AL$12:$BI$93,$A46-1921,'Report - ALL (DASHBOARD)'!$W$4) -> 4039.666421 | D46: =INDEX('Compile Data'!$BL$12:$CI$93,$A46-1921,'Report - ALL (DASHBOARD)'!$W$4) -> 4083.103803 | E46: =INDEX('Compile Data'!$CL$12:$DI$93,$A46-1921,'Report - ALL (DASHBOARD)'!$W$4) -> 4039.666421 | F46: =INDEX('Compile Data'!$DL$12:$EI$93,$A46-1921,'Report - ALL (DASHBOARD)'!$W$4) -> 4296.786252 | G46: =INDEX('Compile Data'!$EL$12:$FI$93,$A46-1921,'Report - ALL (DASHBOARD)'!$W$4) ->  | O46: 19 | P46: 0.2222222222 | Q46: =INDEX('Compile Data'!$L$123:$AI$204,$O46,'Report - ALL (DASHBOARD)'!$W$4) -> 4552 | R46: =INDEX('Compile Data'!$AL$123:$BI$204,$O46,'Report - ALL (DASHBOARD)'!$W$4) -> 4552 | S46: =INDEX('Compile Data'!$BL$123:$CI$204,$O46,'Report - ALL (DASHBOARD)'!$W$4) -> 4552 | T46: =INDEX('Compile Data'!$CL$123:$DI$204,$O46,'Report - ALL (DASHBOARD)'!$W$4) -> 4552 | U46: =INDEX('Compile Data'!$DL$123:$EI$204,$O46,'Report - ALL (DASHBOARD)'!$W$4) -> 4552 | V46: =INDEX('Compile Data'!$EL$123:$FI$204,$O46,'Report - ALL (DASHBOARD)'!$W$4) -> 
A47: 1941 | B47: =INDEX('Compile Data'!$L$12:$AI$93,$A47-1921,'Report - ALL (DASHBOARD)'!$W$4) -> 4552 | C47: =INDEX('Compile Data'!$AL$12:$BI$93,$A47-1921,'Report - ALL (DASHBOARD)'!$W$4) -> 4552 | D47: =INDEX('Compile Data'!$BL$12:$CI$93,$A47-1921,'Report - ALL (DASHBOARD)'!$W$4) -> 4552 | E47: =INDEX('Compile Data'!$CL$12:$DI$93,$A47-1921,'Report - ALL (DASHBOARD)'!$W$4) -> 4552 | F47: =INDEX('Compile Data'!$DL$12:$EI$93,$A47-1921,'Report - ALL (DASHBOARD)'!$W$4) -> 4552 | G47: =INDEX('Compile Data'!$EL$12:$FI$93,$A47-1921,'Report - ALL (DASHBOARD)'!$W$4) ->  | O47: 20 | P47: 0.2345679012 | Q47: =INDEX('Compile Data'!$L$123:$AI$204,$O47,'Report - ALL (DASHBOARD)'!$W$4) -> 4542.794994 | R47: =INDEX('Compile Data'!$AL$123:$BI$204,$O47,'Report - ALL (DASHBOARD)'!$W$4) -> 4552 | S47: =INDEX('Compile Data'!$BL$123:$CI$204,$O47,'Report - ALL (DASHBOARD)'!$W$4) -> 4552 | T47: =INDEX('Compile Data'!$CL$123:$DI$204,$O47,'Report - ALL (DASHBOARD)'!$W$4) -> 4552 | U47: =INDEX('Compile Data'!$DL$123:$EI$204,$O47,'Report - ALL (DASHBOARD)'!$W$4) -> 4552 | V47: =INDEX('Compile Data'!$EL$123:$FI$204,$O47,'Report - ALL (DASHBOARD)'!$W$4) -> 
A48: 1942 | B48: =INDEX('Compile Data'!$L$12:$AI$93,$A48-1921,'Report - ALL (DASHBOARD)'!$W$4) -> 4552 | C48: =INDEX('Compile Data'!$AL$12:$BI$93,$A48-1921,'Report - ALL (DASHBOARD)'!$W$4) -> 4552 | D48: =INDEX('Compile Data'!$BL$12:$CI$93,$A48-1921,'Report - ALL (DASHBOARD)'!$W$4) -> 4552 | E48: =INDEX('Compile Data'!$CL$12:$DI$93,$A48-1921,'Report - ALL (DASHBOARD)'!$W$4) -> 4552 | F48: =INDEX('Compile Data'!$DL$12:$EI$93,$A48-1921,'Report - ALL (DASHBOARD)'!$W$4) -> 4552 | G48: =INDEX('Compile Data'!$EL$12:$FI$93,$A48-1921,'Report - ALL (DASHBOARD)'!$W$4) ->  | O48: 21 | P48: 0.2469135802 | Q48: =INDEX('Compile Data'!$L$123:$AI$204,$O48,'Report - ALL (DASHBOARD)'!$W$4) -> 4527.437031 | R48: =INDEX('Compile Data'!$AL$123:$BI$204,$O48,'Report - ALL (DASHBOARD)'!$W$4) -> 4552 | S48: =INDEX('Compile Data'!$BL$123:$CI$204,$O48,'Report - ALL (DASHBOARD)'!$W$4) -> 4552 | T48: =INDEX('Compile Data'!$CL$123:$DI$204,$O48,'Report - ALL (DASHBOARD)'!$W$4) -> 4552 | U48: =INDEX('Compile Data'!$DL$123:$EI$204,$O48,'Report - ALL (DASHBOARD)'!$W$4) -> 4552 | V48: =INDEX('Compile Data'!$EL$123:$FI$204,$O48,'Report - ALL (DASHBOARD)'!$W$4) -> 
A49: 1943 | B49: =INDEX('Compile Data'!$L$12:$AI$93,$A49-1921,'Report - ALL (DASHBOARD)'!$W$4) -> 4452.793928 | C49: =INDEX('Compile Data'!$AL$12:$BI$93,$A49-1921,'Report - ALL (DASHBOARD)'!$W$4) -> 4452.718221 | D49: =INDEX('Compile Data'!$BL$12:$CI$93,$A49-1921,'Report - ALL (DASHBOARD)'!$W$4) -> 4452.71303 | E49: =INDEX('Compile Data'!$CL$12:$DI$93,$A49-1921,'Report - ALL (DASHBOARD)'!$W$4) -> 4452.718221 | F49: =INDEX('Compile Data'!$DL$12:$EI$93,$A49-1921,'Report - ALL (DASHBOARD)'!$W$4) -> 4552 | G49: =INDEX('Compile Data'!$EL$12:$FI$93,$A49-1921,'Report - ALL (DASHBOARD)'!$W$4) ->  | O49: 22 | P49: 0.2592592593 | Q49: =INDEX('Compile Data'!$L$123:$AI$204,$O49,'Report - ALL (DASHBOARD)'!$W$4) -> 4519.547806 | R49: =INDEX('Compile Data'!$AL$123:$BI$204,$O49,'Report - ALL (DASHBOARD)'!$W$4) -> 4544.645259 | S49: =INDEX('Compile Data'!$BL$123:$CI$204,$O49,'Report - ALL (DASHBOARD)'!$W$4) -> 4552 | T49: =INDEX('Compile Data'!$CL$123:$DI$204,$O49,'Report - ALL (DASHBOARD)'!$W$4) -> 4544.645259 | U49: =INDEX('Compile Data'!$DL$123:$EI$204,$O49,'Report - ALL (DASHBOARD)'!$W$4) -> 4552 | V49: =INDEX('Compile Data'!$EL$123:$FI$204,$O49,'Report - ALL (DASHBOARD)'!$W$4) -> 
A50: 1944 | B50: =INDEX('Compile Data'!$L$12:$AI$93,$A50-1921,'Report - ALL (DASHBOARD)'!$W$4) -> 3462.834558 | C50: =INDEX('Compile Data'!$AL$12:$BI$93,$A50-1921,'Report - ALL (DASHBOARD)'!$W$4) -> 3454.194153 | D50: =INDEX('Compile Data'!$BL$12:$CI$93,$A50-1921,'Report - ALL (DASHBOARD)'!$W$4) -> 3525.311803 | E50: =INDEX('Compile Data'!$CL$12:$DI$93,$A50-1921,'Report - ALL (DASHBOARD)'!$W$4) -> 3454.194153 | F50: =INDEX('Compile Data'!$DL$12:$EI$93,$A50-1921,'Report - ALL (DASHBOARD)'!$W$4) -> 3766.321953 | G50: =INDEX('Compile Data'!$EL$12:$FI$93,$A50-1921,'Report - ALL (DASHBOARD)'!$W$4) ->  | O50: 23 | P50: 0.2716049383 | Q50: =INDEX('Compile Data'!$L$123:$AI$204,$O50,'Report - ALL (DASHBOARD)'!$W$4) -> 4518.691239 | R50: =INDEX('Compile Data'!$AL$123:$BI$204,$O50,'Report - ALL (DASHBOARD)'!$W$4) -> 4538.158375 | S50: =INDEX('Compile Data'!$BL$123:$CI$204,$O50,'Report - ALL (DASHBOARD)'!$W$4) -> 4544.655425 | T50: =INDEX('Compile Data'!$CL$123:$DI$204,$O50,'Report - ALL (DASHBOARD)'!$W$4) -> 4538.158375 | U50: =INDEX('Compile Data'!$DL$123:$EI$204,$O50,'Report - ALL (DASHBOARD)'!$W$4) -> 4552 | V50: =INDEX('Compile Data'!$EL$123:$FI$204,$O50,'Report - ALL (DASHBOARD)'!$W$4) -> 
A51: 1945 | B51: =INDEX('Compile Data'!$L$12:$AI$93,$A51-1921,'Report - ALL (DASHBOARD)'!$W$4) -> 4368.219834 | C51: =INDEX('Compile Data'!$AL$12:$BI$93,$A51-1921,'Report - ALL (DASHBOARD)'!$W$4) -> 4401.818905 | D51: =INDEX('Compile Data'!$BL$12:$CI$93,$A51-1921,'Report - ALL (DASHBOARD)'!$W$4) -> 4458.794396 | E51: =INDEX('Compile Data'!$CL$12:$DI$93,$A51-1921,'Report - ALL (DASHBOARD)'!$W$4) -> 4401.818905 | F51: =INDEX('Compile Data'!$DL$12:$EI$93,$A51-1921,'Report - ALL (DASHBOARD)'!$W$4) -> 4552 | G51: =INDEX('Compile Data'!$EL$12:$FI$93,$A51-1921,'Report - ALL (DASHBOARD)'!$W$4) ->  | O51: 24 | P51: 0.2839506173 | Q51: =INDEX('Compile Data'!$L$123:$AI$204,$O51,'Report - ALL (DASHBOARD)'!$W$4) -> 4504.419062 | R51: =INDEX('Compile Data'!$AL$123:$BI$204,$O51,'Report - ALL (DASHBOARD)'!$W$4) -> 4531.043995 | S51: =INDEX('Compile Data'!$BL$123:$CI$204,$O51,'Report - ALL (DASHBOARD)'!$W$4) -> 4531.108094 | T51: =INDEX('Compile Data'!$CL$123:$DI$204,$O51,'Report - ALL (DASHBOARD)'!$W$4) -> 4531.043995 | U51: =INDEX('Compile Data'!$DL$123:$EI$204,$O51,'Report - ALL (DASHBOARD)'!$W$4) -> 4552 | V51: =INDEX('Compile Data'!$EL$123:$FI$204,$O51,'Report - ALL (DASHBOARD)'!$W$4) -> 
A52: 1946 | B52: =INDEX('Compile Data'!$L$12:$AI$93,$A52-1921,'Report - ALL (DASHBOARD)'!$W$4) -> 4278.878367 | C52: =INDEX('Compile Data'!$AL$12:$BI$93,$A52-1921,'Report - ALL (DASHBOARD)'!$W$4) -> 4272.595186 | D52: =INDEX('Compile Data'!$BL$12:$CI$93,$A52-1921,'Report - ALL (DASHBOARD)'!$W$4) -> 4295.48073 | E52: =INDEX('Compile Data'!$CL$12:$DI$93,$A52-1921,'Report - ALL (DASHBOARD)'!$W$4) -> 4272.595186 | F52: =INDEX('Compile Data'!$DL$12:$EI$93,$A52-1921,'Report - ALL (DASHBOARD)'!$W$4) -> 4530.083164 | G52: =INDEX('Compile Data'!$EL$12:$FI$93,$A52-1921,'Report - ALL (DASHBOARD)'!$W$4) ->  | O52: 25 | P52: 0.2962962963 | Q52: =INDEX('Compile Data'!$L$123:$AI$204,$O52,'Report - ALL (DASHBOARD)'!$W$4) -> 4452.793928 | R52: =INDEX('Compile Data'!$AL$123:$BI$204,$O52,'Report - ALL (DASHBOARD)'!$W$4) -> 4452.718221 | S52: =INDEX('Compile Data'!$BL$123:$CI$204,$O52,'Report - ALL (DASHBOARD)'!$W$4) -> 4488.609909 | T52: =INDEX('Compile Data'!$CL$123:$DI$204,$O52,'Report - ALL (DASHBOARD)'!$W$4) -> 4452.718221 | U52: =INDEX('Compile Data'!$DL$123:$EI$204,$O52,'Report - ALL (DASHBOARD)'!$W$4) -> 4552 | V52: =INDEX('Compile Data'!$EL$123:$FI$204,$O52,'Report - ALL (DASHBOARD)'!$W$4) -> 
A53: 1947 | B53: =INDEX('Compile Data'!$L$12:$AI$93,$A53-1921,'Report - ALL (DASHBOARD)'!$W$4) -> 3569.975061 | C53: =INDEX('Compile Data'!$AL$12:$BI$93,$A53-1921,'Report - ALL (DASHBOARD)'!$W$4) -> 3560.723934 | D53: =INDEX('Compile Data'!$BL$12:$CI$93,$A53-1921,'Report - ALL (DASHBOARD)'!$W$4) -> 3578.605027 | E53: =INDEX('Compile Data'!$CL$12:$DI$93,$A53-1921,'Report - ALL (DASHBOARD)'!$W$4) -> 3560.723934 | F53: =INDEX('Compile Data'!$DL$12:$EI$93,$A53-1921,'Report - ALL (DASHBOARD)'!$W$4) -> 3858.73596 | G53: =INDEX('Compile Data'!$EL$12:$FI$93,$A53-1921,'Report - ALL (DASHBOARD)'!$W$4) ->  | O53: 26 | P53: 0.3086419753 | Q53: =INDEX('Compile Data'!$L$123:$AI$204,$O53,'Report - ALL (DASHBOARD)'!$W$4) -> 4407.684637 | R53: =INDEX('Compile Data'!$AL$123:$BI$204,$O53,'Report - ALL (DASHBOARD)'!$W$4) -> 4424.306877 | S53: =INDEX('Compile Data'!$BL$123:$CI$204,$O53,'Report - ALL (DASHBOARD)'!$W$4) -> 4458.794396 | T53: =INDEX('Compile Data'!$CL$123:$DI$204,$O53,'Report - ALL (DASHBOARD)'!$W$4) -> 4424.306877 | U53: =INDEX('Compile Data'!$DL$123:$EI$204,$O53,'Report - ALL (DASHBOARD)'!$W$4) -> 4552 | V53: =INDEX('Compile Data'!$EL$123:$FI$204,$O53,'Report - ALL (DASHBOARD)'!$W$4) -> 
A54: 1948 | B54: =INDEX('Compile Data'!$L$12:$AI$93,$A54-1921,'Report - ALL (DASHBOARD)'!$W$4) -> 4552 | C54: =INDEX('Compile Data'!$AL$12:$BI$93,$A54-1921,'Report - ALL (DASHBOARD)'!$W$4) -> 4552 | D54: =INDEX('Compile Data'!$BL$12:$CI$93,$A54-1921,'Report - ALL (DASHBOARD)'!$W$4) -> 4552 | E54: =INDEX('Compile Data'!$CL$12:$DI$93,$A54-1921,'Report - ALL (DASHBOARD)'!$W$4) -> 4552 | F54: =INDEX('Compile Data'!$DL$12:$EI$93,$A54-1921,'Report - ALL (DASHBOARD)'!$W$4) -> 4552 | G54: =INDEX('Compile Data'!$EL$12:$FI$93,$A54-1921,'Report - ALL (DASHBOARD)'!$W$4) ->  | O54: 27 | P54: 0.3209876543 | Q54: =INDEX('Compile Data'!$L$123:$AI$204,$O54,'Report - ALL (DASHBOARD)'!$W$4) -> 4393.850738 | R54: =INDEX('Compile Data'!$AL$123:$BI$204,$O54,'Report - ALL (DASHBOARD)'!$W$4) -> 4410.839127 | S54: =INDEX('Compile Data'!$BL$123:$CI$204,$O54,'Report - ALL (DASHBOARD)'!$W$4) -> 4452.71303 | T54: =INDEX('Compile Data'!$CL$123:$DI$204,$O54,'Report - ALL (DASHBOARD)'!$W$4) -> 4410.839127 | U54: =INDEX('Compile Data'!$DL$123:$EI$204,$O54,'Report - ALL (DASHBOARD)'!$W$4) -> 4552 | V54: =INDEX('Compile Data'!$EL$123:$FI$204,$O54,'Report - ALL (DASHBOARD)'!$W$4) -> 
A55: 1949 | B55: =INDEX('Compile Data'!$L$12:$AI$93,$A55-1921,'Report - ALL (DASHBOARD)'!$W$4) -> 4325.322406 | C55: =INDEX('Compile Data'!$AL$12:$BI$93,$A55-1921,'Report - ALL (DASHBOARD)'!$W$4) -> 4322.244113 | D55: =INDEX('Compile Data'!$BL$12:$CI$93,$A55-1921,'Report - ALL (DASHBOARD)'!$W$4) -> 4338.235893 | E55: =INDEX('Compile Data'!$CL$12:$DI$93,$A55-1921,'Report - ALL (DASHBOARD)'!$W$4) -> 4322.244113 | F55: =INDEX('Compile Data'!$DL$12:$EI$93,$A55-1921,'Report - ALL (DASHBOARD)'!$W$4) -> 4493.858074 | G55: =INDEX('Compile Data'!$EL$12:$FI$93,$A55-1921,'Report - ALL (DASHBOARD)'!$W$4) ->  | O55: 28 | P55: 0.3333333333 | Q55: =INDEX('Compile Data'!$L$123:$AI$204,$O55,'Report - ALL (DASHBOARD)'!$W$4) -> 4383.971589 | R55: =INDEX('Compile Data'!$AL$123:$BI$204,$O55,'Report - ALL (DASHBOARD)'!$W$4) -> 4401.818905 | S55: =INDEX('Compile Data'!$BL$123:$CI$204,$O55,'Report - ALL (DASHBOARD)'!$W$4) -> 4434.679232 | T55: =INDEX('Compile Data'!$CL$123:$DI$204,$O55,'Report - ALL (DASHBOARD)'!$W$4) -> 4401.818905 | U55: =INDEX('Compile Data'!$DL$123:$EI$204,$O55,'Report - ALL (DASHBOARD)'!$W$4) -> 4552 | V55: =INDEX('Compile Data'!$EL$123:$FI$204,$O55,'Report - ALL (DASHBOARD)'!$W$4) -> 
A56: 1950 | B56: =INDEX('Compile Data'!$L$12:$AI$93,$A56-1921,'Report - ALL (DASHBOARD)'!$W$4) -> 4336.668378 | C56: =INDEX('Compile Data'!$AL$12:$BI$93,$A56-1921,'Report - ALL (DASHBOARD)'!$W$4) -> 4340.877946 | D56: =INDEX('Compile Data'!$BL$12:$CI$93,$A56-1921,'Report - ALL (DASHBOARD)'!$W$4) -> 4347.604413 | E56: =INDEX('Compile Data'!$CL$12:$DI$93,$A56-1921,'Report - ALL (DASHBOARD)'!$W$4) -> 4340.877946 | F56: =INDEX('Compile Data'!$DL$12:$EI$93,$A56-1921,'Report - ALL (DASHBOARD)'!$W$4) -> 4338.97964 | G56: =INDEX('Compile Data'!$EL$12:$FI$93,$A56-1921,'Report - ALL (DASHBOARD)'!$W$4) ->  | O56: 29 | P56: 0.3456790123 | Q56: =INDEX('Compile Data'!$L$123:$AI$204,$O56,'Report - ALL (DASHBOARD)'!$W$4) -> 4382.759859 | R56: =INDEX('Compile Data'!$AL$123:$BI$204,$O56,'Report - ALL (DASHBOARD)'!$W$4) -> 4389.51876 | S56: =INDEX('Compile Data'!$BL$123:$CI$204,$O56,'Report - ALL (DASHBOARD)'!$W$4) -> 4423.715099 | T56: =INDEX('Compile Data'!$CL$123:$DI$204,$O56,'Report - ALL (DASHBOARD)'!$W$4) -> 4389.51876 | U56: =INDEX('Compile Data'!$DL$123:$EI$204,$O56,'Report - ALL (DASHBOARD)'!$W$4) -> 4552 | V56: =INDEX('Compile Data'!$EL$123:$FI$204,$O56,'Report - ALL (DASHBOARD)'!$W$4) -> 
A57: 1951 | B57: =INDEX('Compile Data'!$L$12:$AI$93,$A57-1921,'Report - ALL (DASHBOARD)'!$W$4) -> 4356.519917 | C57: =INDEX('Compile Data'!$AL$12:$BI$93,$A57-1921,'Report - ALL (DASHBOARD)'!$W$4) -> 4363.358973 | D57: =INDEX('Compile Data'!$BL$12:$CI$93,$A57-1921,'Report - ALL (DASHBOARD)'!$W$4) -> 4363.362417 | E57: =INDEX('Compile Data'!$CL$12:$DI$93,$A57-1921,'Report - ALL (DASHBOARD)'!$W$4) -> 4363.358973 | F57: =INDEX('Compile Data'!$DL$12:$EI$93,$A57-1921,'Report - ALL (DASHBOARD)'!$W$4) -> 4552 | G57: =INDEX('Compile Data'!$EL$12:$FI$93,$A57-1921,'Report - ALL (DASHBOARD)'!$W$4) ->  | O57: 30 | P57: 0.3580246914 | Q57: =INDEX('Compile Data'!$L$123:$AI$204,$O57,'Report - ALL (DASHBOARD)'!$W$4) -> 4368.219834 | R57: =INDEX('Compile Data'!$AL$123:$BI$204,$O57,'Report - ALL (DASHBOARD)'!$W$4) -> 4368.507671 | S57: =INDEX('Compile Data'!$BL$123:$CI$204,$O57,'Report - ALL (DASHBOARD)'!$W$4) -> 4401.205523 | T57: =INDEX('Compile Data'!$CL$123:$DI$204,$O57,'Report - ALL (DASHBOARD)'!$W$4) -> 4368.507671 | U57: =INDEX('Compile Data'!$DL$123:$EI$204,$O57,'Report - ALL (DASHBOARD)'!$W$4) -> 4552 | V57: =INDEX('Compile Data'!$EL$123:$FI$204,$O57,'Report - ALL (DASHBOARD)'!$W$4) -> 
A58: 1952 | B58: =INDEX('Compile Data'!$L$12:$AI$93,$A58-1921,'Report - ALL (DASHBOARD)'!$W$4) -> 4552 | C58: =INDEX('Compile Data'!$AL$12:$BI$93,$A58-1921,'Report - ALL (DASHBOARD)'!$W$4) -> 4552 | D58: =INDEX('Compile Data'!$BL$12:$CI$93,$A58-1921,'Report - ALL (DASHBOARD)'!$W$4) -> 4552 | E58: =INDEX('Compile Data'!$CL$12:$DI$93,$A58-1921,'Report - ALL (DASHBOARD)'!$W$4) -> 4552 | F58: =INDEX('Compile Data'!$DL$12:$EI$93,$A58-1921,'Report - ALL (DASHBOARD)'!$W$4) -> 4552 | G58: =INDEX('Compile Data'!$EL$12:$FI$93,$A58-1921,'Report - ALL (DASHBOARD)'!$W$4) ->  | O58: 31 | P58: 0.3703703704 | Q58: =INDEX('Compile Data'!$L$123:$AI$204,$O58,'Report - ALL (DASHBOARD)'!$W$4) -> 4356.519917 | R58: =INDEX('Compile Data'!$AL$123:$BI$204,$O58,'Report - ALL (DASHBOARD)'!$W$4) -> 4363.358973 | S58: =INDEX('Compile Data'!$BL$123:$CI$204,$O58,'Report - ALL (DASHBOARD)'!$W$4) -> 4389.507535 | T58: =INDEX('Compile Data'!$CL$123:$DI$204,$O58,'Report - ALL (DASHBOARD)'!$W$4) -> 4363.358973 | U58: =INDEX('Compile Data'!$DL$123:$EI$204,$O58,'Report - ALL (DASHBOARD)'!$W$4) -> 4552 | V58: =INDEX('Compile Data'!$EL$123:$FI$204,$O58,'Report - ALL (DASHBOARD)'!$W$4) -> 
A59: 1953 | B59: =INDEX('Compile Data'!$L$12:$AI$93,$A59-1921,'Report - ALL (DASHBOARD)'!$W$4) -> 4552 | C59: =INDEX('Compile Data'!$AL$12:$BI$93,$A59-1921,'Report - ALL (DASHBOARD)'!$W$4) -> 4552 | D59: =INDEX('Compile Data'!$BL$12:$CI$93,$A59-1921,'Report - ALL (DASHBOARD)'!$W$4) -> 4552 | E59: =INDEX('Compile Data'!$CL$12:$DI$93,$A59-1921,'Report - ALL (DASHBOARD)'!$W$4) -> 4552 | F59: =INDEX('Compile Data'!$DL$12:$EI$93,$A59-1921,'Report - ALL (DASHBOARD)'!$W$4) -> 4552 | G59: =INDEX('Compile Data'!$EL$12:$FI$93,$A59-1921,'Report - ALL (DASHBOARD)'!$W$4) ->  | O59: 32 | P59: 0.3827160494 | Q59: =INDEX('Compile Data'!$L$123:$AI$204,$O59,'Report - ALL (DASHBOARD)'!$W$4) -> 4336.668378 | R59: =INDEX('Compile Data'!$AL$123:$BI$204,$O59,'Report - ALL (DASHBOARD)'!$W$4) -> 4362.734339 | S59: =INDEX('Compile Data'!$BL$123:$CI$204,$O59,'Report - ALL (DASHBOARD)'!$W$4) -> 4373.377015 | T59: =INDEX('Compile Data'!$CL$123:$DI$204,$O59,'Report - ALL (DASHBOARD)'!$W$4) -> 4362.734339 | U59: =INDEX('Compile Data'!$DL$123:$EI$204,$O59,'Report - ALL (DASHBOARD)'!$W$4) -> 4552 | V59: =INDEX('Compile Data'!$EL$123:$FI$204,$O59,'Report - ALL (DASHBOARD)'!$W$4) -> 
A60: 1954 | B60: =INDEX('Compile Data'!$L$12:$AI$93,$A60-1921,'Report - ALL (DASHBOARD)'!$W$4) -> 4310.626203 | C60: =INDEX('Compile Data'!$AL$12:$BI$93,$A60-1921,'Report - ALL (DASHBOARD)'!$W$4) -> 4310.274228 | D60: =INDEX('Compile Data'!$BL$12:$CI$93,$A60-1921,'Report - ALL (DASHBOARD)'!$W$4) -> 4401.205523 | E60: =INDEX('Compile Data'!$CL$12:$DI$93,$A60-1921,'Report - ALL (DASHBOARD)'!$W$4) -> 4310.274228 | F60: =INDEX('Compile Data'!$DL$12:$EI$93,$A60-1921,'Report - ALL (DASHBOARD)'!$W$4) -> 4552 | G60: =INDEX('Compile Data'!$EL$12:$FI$93,$A60-1921,'Report - ALL (DASHBOARD)'!$W$4) ->  | O60: 33 | P60: 0.3950617284 | Q60: =INDEX('Compile Data'!$L$123:$AI$204,$O60,'Report - ALL (DASHBOARD)'!$W$4) -> 4331.480089 | R60: =INDEX('Compile Data'!$AL$123:$BI$204,$O60,'Report - ALL (DASHBOARD)'!$W$4) -> 4357.654817 | S60: =INDEX('Compile Data'!$BL$123:$CI$204,$O60,'Report - ALL (DASHBOARD)'!$W$4) -> 4368.386448 | T60: =INDEX('Compile Data'!$CL$123:$DI$204,$O60,'Report - ALL (DASHBOARD)'!$W$4) -> 4357.654817 | U60: =INDEX('Compile Data'!$DL$123:$EI$204,$O60,'Report - ALL (DASHBOARD)'!$W$4) -> 4552 | V60: =INDEX('Compile Data'!$EL$123:$FI$204,$O60,'Report - ALL (DASHBOARD)'!$W$4) -> 
A61: 1955 | B61: =INDEX('Compile Data'!$L$12:$AI$93,$A61-1921,'Report - ALL (DASHBOARD)'!$W$4) -> 4149.573882 | C61: =INDEX('Compile Data'!$AL$12:$BI$93,$A61-1921,'Report - ALL (DASHBOARD)'!$W$4) -> 4156.581777 | D61: =INDEX('Compile Data'!$BL$12:$CI$93,$A61-1921,'Report - ALL (DASHBOARD)'!$W$4) -> 4249.843042 | E61: =INDEX('Compile Data'!$CL$12:$DI$93,$A61-1921,'Report - ALL (DASHBOARD)'!$W$4) -> 4156.581777 | F61: =INDEX('Compile Data'!$DL$12:$EI$93,$A61-1921,'Report - ALL (DASHBOARD)'!$W$4) -> 4333.817413 | G61: =INDEX('Compile Data'!$EL$12:$FI$93,$A61-1921,'Report - ALL (DASHBOARD)'!$W$4) ->  | O61: 34 | P61: 0.4074074074 | Q61: =INDEX('Compile Data'!$L$123:$AI$204,$O61,'Report - ALL (DASHBOARD)'!$W$4) -> 4327.900621 | R61: =INDEX('Compile Data'!$AL$123:$BI$204,$O61,'Report - ALL (DASHBOARD)'!$W$4) -> 4340.877946 | S61: =INDEX('Compile Data'!$BL$123:$CI$204,$O61,'Report - ALL (DASHBOARD)'!$W$4) -> 4363.362417 | T61: =INDEX('Compile Data'!$CL$123:$DI$204,$O61,'Report - ALL (DASHBOARD)'!$W$4) -> 4340.877946 | U61: =INDEX('Compile Data'!$DL$123:$EI$204,$O61,'Report - ALL (DASHBOARD)'!$W$4) -> 4552 | V61: =INDEX('Compile Data'!$EL$123:$FI$204,$O61,'Report - ALL (DASHBOARD)'!$W$4) -> 
A62: 1956 | B62: =INDEX('Compile Data'!$L$12:$AI$93,$A62-1921,'Report - ALL (DASHBOARD)'!$W$4) -> 4552 | C62: =INDEX('Compile Data'!$AL$12:$BI$93,$A62-1921,'Report - ALL (DASHBOARD)'!$W$4) -> 4552 | D62: =INDEX('Compile Data'!$BL$12:$CI$93,$A62-1921,'Report - ALL (DASHBOARD)'!$W$4) -> 4552 | E62: =INDEX('Compile Data'!$CL$12:$DI$93,$A62-1921,'Report - ALL (DASHBOARD)'!$W$4) -> 4552 | F62: =INDEX('Compile Data'!$DL$12:$EI$93,$A62-1921,'Report - ALL (DASHBOARD)'!$W$4) -> 4552 | G62: =INDEX('Compile Data'!$EL$12:$FI$93,$A62-1921,'Report - ALL (DASHBOARD)'!$W$4) ->  | O62: 35 | P62: 0.4197530864 | Q62: =INDEX('Compile Data'!$L$123:$AI$204,$O62,'Report - ALL (DASHBOARD)'!$W$4) -> 4325.322406 | R62: =INDEX('Compile Data'!$AL$123:$BI$204,$O62,'Report - ALL (DASHBOARD)'!$W$4) -> 4337.864386 | S62: =INDEX('Compile Data'!$BL$123:$CI$204,$O62,'Report - ALL (DASHBOARD)'!$W$4) -> 4356.848174 | T62: =INDEX('Compile Data'!$CL$123:$DI$204,$O62,'Report - ALL (DASHBOARD)'!$W$4) -> 4337.864386 | U62: =INDEX('Compile Data'!$DL$123:$EI$204,$O62,'Report - ALL (DASHBOARD)'!$W$4) -> 4552 | V62: =INDEX('Compile Data'!$EL$123:$FI$204,$O62,'Report - ALL (DASHBOARD)'!$W$4) -> 
A63: 1957 | B63: =INDEX('Compile Data'!$L$12:$AI$93,$A63-1921,'Report - ALL (DASHBOARD)'!$W$4) -> 4552 | C63: =INDEX('Compile Data'!$AL$12:$BI$93,$A63-1921,'Report - ALL (DASHBOARD)'!$W$4) -> 4552 | D63: =INDEX('Compile Data'!$BL$12:$CI$93,$A63-1921,'Report - ALL (DASHBOARD)'!$W$4) -> 4552 | E63: =INDEX('Compile Data'!$CL$12:$DI$93,$A63-1921,'Report - ALL (DASHBOARD)'!$W$4) -> 4552 | F63: =INDEX('Compile Data'!$DL$12:$EI$93,$A63-1921,'Report - ALL (DASHBOARD)'!$W$4) -> 4552 | G63: =INDEX('Compile Data'!$EL$12:$FI$93,$A63-1921,'Report - ALL (DASHBOARD)'!$W$4) ->  | O63: 36 | P63: 0.4320987654 | Q63: =INDEX('Compile Data'!$L$123:$AI$204,$O63,'Report - ALL (DASHBOARD)'!$W$4) -> 4321.859056 | R63: =INDEX('Compile Data'!$AL$123:$BI$204,$O63,'Report - ALL (DASHBOARD)'!$W$4) -> 4322.244113 | S63: =INDEX('Compile Data'!$BL$123:$CI$204,$O63,'Report - ALL (DASHBOARD)'!$W$4) -> 4351.931774 | T63: =INDEX('Compile Data'!$CL$123:$DI$204,$O63,'Report - ALL (DASHBOARD)'!$W$4) -> 4322.244113 | U63: =INDEX('Compile Data'!$DL$123:$EI$204,$O63,'Report - ALL (DASHBOARD)'!$W$4) -> 4530.083164 | V63: =INDEX('Compile Data'!$EL$123:$FI$204,$O63,'Report - ALL (DASHBOARD)'!$W$4) -> 
A64: 1958 | B64: =INDEX('Compile Data'!$L$12:$AI$93,$A64-1921,'Report - ALL (DASHBOARD)'!$W$4) -> 4393.850738 | C64: =INDEX('Compile Data'!$AL$12:$BI$93,$A64-1921,'Report - ALL (DASHBOARD)'!$W$4) -> 4424.306877 | D64: =INDEX('Compile Data'!$BL$12:$CI$93,$A64-1921,'Report - ALL (DASHBOARD)'!$W$4) -> 4423.715099 | E64: =INDEX('Compile Data'!$CL$12:$DI$93,$A64-1921,'Report - ALL (DASHBOARD)'!$W$4) -> 4424.306877 | F64: =INDEX('Compile Data'!$DL$12:$EI$93,$A64-1921,'Report - ALL (DASHBOARD)'!$W$4) -> 4552 | G64: =INDEX('Compile Data'!$EL$12:$FI$93,$A64-1921,'Report - ALL (DASHBOARD)'!$W$4) ->  | O64: 37 | P64: 0.4444444444 | Q64: =INDEX('Compile Data'!$L$123:$AI$204,$O64,'Report - ALL (DASHBOARD)'!$W$4) -> 4315.208696 | R64: =INDEX('Compile Data'!$AL$123:$BI$204,$O64,'Report - ALL (DASHBOARD)'!$W$4) -> 4312.875376 | S64: =INDEX('Compile Data'!$BL$123:$CI$204,$O64,'Report - ALL (DASHBOARD)'!$W$4) -> 4347.604413 | T64: =INDEX('Compile Data'!$CL$123:$DI$204,$O64,'Report - ALL (DASHBOARD)'!$W$4) -> 4312.875376 | U64: =INDEX('Compile Data'!$DL$123:$EI$204,$O64,'Report - ALL (DASHBOARD)'!$W$4) -> 4520.399576 | V64: =INDEX('Compile Data'!$EL$123:$FI$204,$O64,'Report - ALL (DASHBOARD)'!$W$4) -> 
A65: 1959 | B65: =INDEX('Compile Data'!$L$12:$AI$93,$A65-1921,'Report - ALL (DASHBOARD)'!$W$4) -> 4084.734286 | C65: =INDEX('Compile Data'!$AL$12:$BI$93,$A65-1921,'Report - ALL (DASHBOARD)'!$W$4) -> 4094.351837 | D65: =INDEX('Compile Data'!$BL$12:$CI$93,$A65-1921,'Report - ALL (DASHBOARD)'!$W$4) -> 4188.05205 | E65: =INDEX('Compile Data'!$CL$12:$DI$93,$A65-1921,'Report - ALL (DASHBOARD)'!$W$4) -> 4094.351837 | F65: =INDEX('Compile Data'!$DL$12:$EI$93,$A65-1921,'Report - ALL (DASHBOARD)'!$W$4) -> 4424.009982 | G65: =INDEX('Compile Data'!$EL$12:$FI$93,$A65-1921,'Report - ALL (DASHBOARD)'!$W$4) ->  | O65: 38 | P65: 0.4567901235 | Q65: =INDEX('Compile Data'!$L$123:$AI$204,$O65,'Report - ALL (DASHBOARD)'!$W$4) -> 4310.626203 | R65: =INDEX('Compile Data'!$AL$123:$BI$204,$O65,'Report - ALL (DASHBOARD)'!$W$4) -> 4310.274228 | S65: =INDEX('Compile Data'!$BL$123:$CI$204,$O65,'Report - ALL (DASHBOARD)'!$W$4) -> 4338.235893 | T65: =INDEX('Compile Data'!$CL$123:$DI$204,$O65,'Report - ALL (DASHBOARD)'!$W$4) -> 4310.274228 | U65: =INDEX('Compile Data'!$DL$123:$EI$204,$O65,'Report - ALL (DASHBOARD)'!$W$4) -> 4509.487622 | V65: =INDEX('Compile Data'!$EL$123:$FI$204,$O65,'Report - ALL (DASHBOARD)'!$W$4) -> 
A66: 1960 | B66: =INDEX('Compile Data'!$L$12:$AI$93,$A66-1921,'Report - ALL (DASHBOARD)'!$W$4) -> 4196.045878 | C66: =INDEX('Compile Data'!$AL$12:$BI$93,$A66-1921,'Report - ALL (DASHBOARD)'!$W$4) -> 4198.635622 | D66: =INDEX('Compile Data'!$BL$12:$CI$93,$A66-1921,'Report - ALL (DASHBOARD)'!$W$4) -> 4292.723003 | E66: =INDEX('Compile Data'!$CL$12:$DI$93,$A66-1921,'Report - ALL (DASHBOARD)'!$W$4) -> 4198.635622 | F66: =INDEX('Compile Data'!$DL$12:$EI$93,$A66-1921,'Report - ALL (DASHBOARD)'!$W$4) -> 4306.773931 | G66: =INDEX('Compile Data'!$EL$12:$FI$93,$A66-1921,'Report - ALL (DASHBOARD)'!$W$4) ->  | O66: 39 | P66: 0.4691358025 | Q66: =INDEX('Compile Data'!$L$123:$AI$204,$O66,'Report - ALL (DASHBOARD)'!$W$4) -> 4296.979088 | R66: =INDEX('Compile Data'!$AL$123:$BI$204,$O66,'Report - ALL (DASHBOARD)'!$W$4) -> 4287.88832 | S66: =INDEX('Compile Data'!$BL$123:$CI$204,$O66,'Report - ALL (DASHBOARD)'!$W$4) -> 4335.030792 | T66: =INDEX('Compile Data'!$CL$123:$DI$204,$O66,'Report - ALL (DASHBOARD)'!$W$4) -> 4287.88832 | U66: =INDEX('Compile Data'!$DL$123:$EI$204,$O66,'Report - ALL (DASHBOARD)'!$W$4) -> 4493.858074 | V66: =INDEX('Compile Data'!$EL$123:$FI$204,$O66,'Report - ALL (DASHBOARD)'!$W$4) -> 
A67: 1961 | B67: =INDEX('Compile Data'!$L$12:$AI$93,$A67-1921,'Report - ALL (DASHBOARD)'!$W$4) -> 4315.208696 | C67: =INDEX('Compile Data'!$AL$12:$BI$93,$A67-1921,'Report - ALL (DASHBOARD)'!$W$4) -> 4337.864386 | D67: =INDEX('Compile Data'!$BL$12:$CI$93,$A67-1921,'Report - ALL (DASHBOARD)'!$W$4) -> 4327.695931 | E67: =INDEX('Compile Data'!$CL$12:$DI$93,$A67-1921,'Report - ALL (DASHBOARD)'!$W$4) -> 4337.864386 | F67: =INDEX('Compile Data'!$DL$12:$EI$93,$A67-1921,'Report - ALL (DASHBOARD)'!$W$4) -> 4509.487622 | G67: =INDEX('Compile Data'!$EL$12:$FI$93,$A67-1921,'Report - ALL (DASHBOARD)'!$W$4) ->  | O67: 40 | P67: 0.4814814815 | Q67: =INDEX('Compile Data'!$L$123:$AI$204,$O67,'Report - ALL (DASHBOARD)'!$W$4) -> 4278.878367 | R67: =INDEX('Compile Data'!$AL$123:$BI$204,$O67,'Report - ALL (DASHBOARD)'!$W$4) -> 4274.004285 | S67: =INDEX('Compile Data'!$BL$123:$CI$204,$O67,'Report - ALL (DASHBOARD)'!$W$4) -> 4327.695931 | T67: =INDEX('Compile Data'!$CL$123:$DI$204,$O67,'Report - ALL (DASHBOARD)'!$W$4) -> 4274.004285 | U67: =INDEX('Compile Data'!$DL$123:$EI$204,$O67,'Report - ALL (DASHBOARD)'!$W$4) -> 4483.039065 | V67: =INDEX('Compile Data'!$EL$123:$FI$204,$O67,'Report - ALL (DASHBOARD)'!$W$4) -> 
A68: 1962 | B68: =INDEX('Compile Data'!$L$12:$AI$93,$A68-1921,'Report - ALL (DASHBOARD)'!$W$4) -> 4321.859056 | C68: =INDEX('Compile Data'!$AL$12:$BI$93,$A68-1921,'Report - ALL (DASHBOARD)'!$W$4) -> 4312.875376 | D68: =INDEX('Compile Data'!$BL$12:$CI$93,$A68-1921,'Report - ALL (DASHBOARD)'!$W$4) -> 4335.030792 | E68: =INDEX('Compile Data'!$CL$12:$DI$93,$A68-1921,'Report - ALL (DASHBOARD)'!$W$4) -> 4312.875376 | F68: =INDEX('Compile Data'!$DL$12:$EI$93,$A68-1921,'Report - ALL (DASHBOARD)'!$W$4) -> 4520.399576 | G68: =INDEX('Compile Data'!$EL$12:$FI$93,$A68-1921,'Report - ALL (DASHBOARD)'!$W$4) ->  | O68: 41 | P68: 0.4938271605 | Q68: =INDEX('Compile Data'!$L$123:$AI$204,$O68,'Report - ALL (DASHBOARD)'!$W$4) -> 4267.521262 | R68: =INDEX('Compile Data'!$AL$123:$BI$204,$O68,'Report - ALL (DASHBOARD)'!$W$4) -> 4272.595186 | S68: =INDEX('Compile Data'!$BL$123:$CI$204,$O68,'Report - ALL (DASHBOARD)'!$W$4) -> 4326.554804 | T68: =INDEX('Compile Data'!$CL$123:$DI$204,$O68,'Report - ALL (DASHBOARD)'!$W$4) -> 4272.595186 | U68: =INDEX('Compile Data'!$DL$123:$EI$204,$O68,'Report - ALL (DASHBOARD)'!$W$4) -> 4477.54442 | V68: =INDEX('Compile Data'!$EL$123:$FI$204,$O68,'Report - ALL (DASHBOARD)'!$W$4) -> 
A69: 1963 | B69: =INDEX('Compile Data'!$L$12:$AI$93,$A69-1921,'Report - ALL (DASHBOARD)'!$W$4) -> 4542.794994 | C69: =INDEX('Compile Data'!$AL$12:$BI$93,$A69-1921,'Report - ALL (DASHBOARD)'!$W$4) -> 4552 | D69: =INDEX('Compile Data'!$BL$12:$CI$93,$A69-1921,'Report - ALL (DASHBOARD)'!$W$4) -> 4552 | E69: =INDEX('Compile Data'!$CL$12:$DI$93,$A69-1921,'Report - ALL (DASHBOARD)'!$W$4) -> 4552 | F69: =INDEX('Compile Data'!$DL$12:$EI$93,$A69-1921,'Report - ALL (DASHBOARD)'!$W$4) -> 4552 | G69: =INDEX('Compile Data'!$EL$12:$FI$93,$A69-1921,'Report - ALL (DASHBOARD)'!$W$4) ->  | O69: 42 | P69: 0.5061728395 | Q69: =INDEX('Compile Data'!$L$123:$AI$204,$O69,'Report - ALL (DASHBOARD)'!$W$4) -> 4230.526206 | R69: =INDEX('Compile Data'!$AL$123:$BI$204,$O69,'Report - ALL (DASHBOARD)'!$W$4) -> 4267.03815 | S69: =INDEX('Compile Data'!$BL$123:$CI$204,$O69,'Report - ALL (DASHBOARD)'!$W$4) -> 4313.615061 | T69: =INDEX('Compile Data'!$CL$123:$DI$204,$O69,'Report - ALL (DASHBOARD)'!$W$4) -> 4267.03815 | U69: =INDEX('Compile Data'!$DL$123:$EI$204,$O69,'Report - ALL (DASHBOARD)'!$W$4) -> 4467.963121 | V69: =INDEX('Compile Data'!$EL$123:$FI$204,$O69,'Report - ALL (DASHBOARD)'!$W$4) -> 
A70: 1964 | B70: =INDEX('Compile Data'!$L$12:$AI$93,$A70-1921,'Report - ALL (DASHBOARD)'!$W$4) -> 3739.142593 | C70: =INDEX('Compile Data'!$AL$12:$BI$93,$A70-1921,'Report - ALL (DASHBOARD)'!$W$4) -> 3826.807431 | D70: =INDEX('Compile Data'!$BL$12:$CI$93,$A70-1921,'Report - ALL (DASHBOARD)'!$W$4) -> 3837.798065 | E70: =INDEX('Compile Data'!$CL$12:$DI$93,$A70-1921,'Report - ALL (DASHBOARD)'!$W$4) -> 3826.807431 | F70: =INDEX('Compile Data'!$DL$12:$EI$93,$A70-1921,'Report - ALL (DASHBOARD)'!$W$4) -> 3979.80165 | G70: =INDEX('Compile Data'!$EL$12:$FI$93,$A70-1921,'Report - ALL (DASHBOARD)'!$W$4) ->  | O70: 43 | P70: 0.5185185185 | Q70: =INDEX('Compile Data'!$L$123:$AI$204,$O70,'Report - ALL (DASHBOARD)'!$W$4) -> 4214.095529 | R70: =INDEX('Compile Data'!$AL$123:$BI$204,$O70,'Report - ALL (DASHBOARD)'!$W$4) -> 4256.434341 | S70: =INDEX('Compile Data'!$BL$123:$CI$204,$O70,'Report - ALL (DASHBOARD)'!$W$4) -> 4295.48073 | T70: =INDEX('Compile Data'!$CL$123:$DI$204,$O70,'Report - ALL (DASHBOARD)'!$W$4) -> 4256.434341 | U70: =INDEX('Compile Data'!$DL$123:$EI$204,$O70,'Report - ALL (DASHBOARD)'!$W$4) -> 4462.38203 | V70: =INDEX('Compile Data'!$EL$123:$FI$204,$O70,'Report - ALL (DASHBOARD)'!$W$4) -> 
A71: 1965 | B71: =INDEX('Compile Data'!$L$12:$AI$93,$A71-1921,'Report - ALL (DASHBOARD)'!$W$4) -> 4383.971589 | C71: =INDEX('Compile Data'!$AL$12:$BI$93,$A71-1921,'Report - ALL (DASHBOARD)'!$W$4) -> 4368.507671 | D71: =INDEX('Compile Data'!$BL$12:$CI$93,$A71-1921,'Report - ALL (DASHBOARD)'!$W$4) -> 4368.386448 | E71: =INDEX('Compile Data'!$CL$12:$DI$93,$A71-1921,'Report - ALL (DASHBOARD)'!$W$4) -> 4368.507671 | F71: =INDEX('Compile Data'!$DL$12:$EI$93,$A71-1921,'Report - ALL (DASHBOARD)'!$W$4) -> 4552 | G71: =INDEX('Compile Data'!$EL$12:$FI$93,$A71-1921,'Report - ALL (DASHBOARD)'!$W$4) ->  | O71: 44 | P71: 0.5308641975 | Q71: =INDEX('Compile Data'!$L$123:$AI$204,$O71,'Report - ALL (DASHBOARD)'!$W$4) -> 4201.575249 | R71: =INDEX('Compile Data'!$AL$123:$BI$204,$O71,'Report - ALL (DASHBOARD)'!$W$4) -> 4217.723575 | S71: =INDEX('Compile Data'!$BL$123:$CI$204,$O71,'Report - ALL (DASHBOARD)'!$W$4) -> 4292.723003 | T71: =INDEX('Compile Data'!$CL$123:$DI$204,$O71,'Report - ALL (DASHBOARD)'!$W$4) -> 4217.723575 | U71: =INDEX('Compile Data'!$DL$123:$EI$204,$O71,'Report - ALL (DASHBOARD)'!$W$4) -> 4426.12931 | V71: =INDEX('Compile Data'!$EL$123:$FI$204,$O71,'Report - ALL (DASHBOARD)'!$W$4) -> 
A72: 1966 | B72: =INDEX('Compile Data'!$L$12:$AI$93,$A72-1921,'Report - ALL (DASHBOARD)'!$W$4) -> 4214.095529 | C72: =INDEX('Compile Data'!$AL$12:$BI$93,$A72-1921,'Report - ALL (DASHBOARD)'!$W$4) -> 4160.397845 | D72: =INDEX('Compile Data'!$BL$12:$CI$93,$A72-1921,'Report - ALL (DASHBOARD)'!$W$4) -> 4195.847512 | E72: =INDEX('Compile Data'!$CL$12:$DI$93,$A72-1921,'Report - ALL (DASHBOARD)'!$W$4) -> 4160.397845 | F72: =INDEX('Compile Data'!$DL$12:$EI$93,$A72-1921,'Report - ALL (DASHBOARD)'!$W$4) -> 4462.38203 | G72: =INDEX('Compile Data'!$EL$12:$FI$93,$A72-1921,'Report - ALL (DASHBOARD)'!$W$4) ->  | O72: 45 | P72: 0.5432098765 | Q72: =INDEX('Compile Data'!$L$123:$AI$204,$O72,'Report - ALL (DASHBOARD)'!$W$4) -> 4198.088386 | R72: =INDEX('Compile Data'!$AL$123:$BI$204,$O72,'Report - ALL (DASHBOARD)'!$W$4) -> 4215.473847 | S72: =INDEX('Compile Data'!$BL$123:$CI$204,$O72,'Report - ALL (DASHBOARD)'!$W$4) -> 4274.121897 | T72: =INDEX('Compile Data'!$CL$123:$DI$204,$O72,'Report - ALL (DASHBOARD)'!$W$4) -> 4215.473847 | U72: =INDEX('Compile Data'!$DL$123:$EI$204,$O72,'Report - ALL (DASHBOARD)'!$W$4) -> 4424.009982 | V72: =INDEX('Compile Data'!$EL$123:$FI$204,$O72,'Report - ALL (DASHBOARD)'!$W$4) -> 
A73: 1967 | B73: =INDEX('Compile Data'!$L$12:$AI$93,$A73-1921,'Report - ALL (DASHBOARD)'!$W$4) -> 4552 | C73: =INDEX('Compile Data'!$AL$12:$BI$93,$A73-1921,'Report - ALL (DASHBOARD)'!$W$4) -> 4552 | D73: =INDEX('Compile Data'!$BL$12:$CI$93,$A73-1921,'Report - ALL (DASHBOARD)'!$W$4) -> 4552 | E73: =INDEX('Compile Data'!$CL$12:$DI$93,$A73-1921,'Report - ALL (DASHBOARD)'!$W$4) -> 4552 | F73: =INDEX('Compile Data'!$DL$12:$EI$93,$A73-1921,'Report - ALL (DASHBOARD)'!$W$4) -> 4552 | G73: =INDEX('Compile Data'!$EL$12:$FI$93,$A73-1921,'Report - ALL (DASHBOARD)'!$W$4) ->  | O73: 46 | P73: 0.5555555556 | Q73: =INDEX('Compile Data'!$L$123:$AI$204,$O73,'Report - ALL (DASHBOARD)'!$W$4) -> 4196.045878 | R73: =INDEX('Compile Data'!$AL$123:$BI$204,$O73,'Report - ALL (DASHBOARD)'!$W$4) -> 4207.631296 | S73: =INDEX('Compile Data'!$BL$123:$CI$204,$O73,'Report - ALL (DASHBOARD)'!$W$4) -> 4271.365254 | T73: =INDEX('Compile Data'!$CL$123:$DI$204,$O73,'Report - ALL (DASHBOARD)'!$W$4) -> 4207.631296 | U73: =INDEX('Compile Data'!$DL$123:$EI$204,$O73,'Report - ALL (DASHBOARD)'!$W$4) -> 4368.705807 | V73: =INDEX('Compile Data'!$EL$123:$FI$204,$O73,'Report - ALL (DASHBOARD)'!$W$4) -> 
A74: 1968 | B74: =INDEX('Compile Data'!$L$12:$AI$93,$A74-1921,'Report - ALL (DASHBOARD)'!$W$4) -> 4296.979088 | C74: =INDEX('Compile Data'!$AL$12:$BI$93,$A74-1921,'Report - ALL (DASHBOARD)'!$W$4) -> 4256.434341 | D74: =INDEX('Compile Data'!$BL$12:$CI$93,$A74-1921,'Report - ALL (DASHBOARD)'!$W$4) -> 4351.931774 | E74: =INDEX('Compile Data'!$CL$12:$DI$93,$A74-1921,'Report - ALL (DASHBOARD)'!$W$4) -> 4256.434341 | F74: =INDEX('Compile Data'!$DL$12:$EI$93,$A74-1921,'Report - ALL (DASHBOARD)'!$W$4) -> 4483.039065 | G74: =INDEX('Compile Data'!$EL$12:$FI$93,$A74-1921,'Report - ALL (DASHBOARD)'!$W$4) ->  | O74: 47 | P74: 0.5679012346 | Q74: =INDEX('Compile Data'!$L$123:$AI$204,$O74,'Report - ALL (DASHBOARD)'!$W$4) -> 4149.573882 | R74: =INDEX('Compile Data'!$AL$123:$BI$204,$O74,'Report - ALL (DASHBOARD)'!$W$4) -> 4198.635622 | S74: =INDEX('Compile Data'!$BL$123:$CI$204,$O74,'Report - ALL (DASHBOARD)'!$W$4) -> 4249.843042 | T74: =INDEX('Compile Data'!$CL$123:$DI$204,$O74,'Report - ALL (DASHBOARD)'!$W$4) -> 4198.635622 | U74: =INDEX('Compile Data'!$DL$123:$EI$204,$O74,'Report - ALL (DASHBOARD)'!$W$4) -> 4344.307713 | V74: =INDEX('Compile Data'!$EL$123:$FI$204,$O74,'Report - ALL (DASHBOARD)'!$W$4) -> 
A75: 1969 | B75: =INDEX('Compile Data'!$L$12:$AI$93,$A75-1921,'Report - ALL (DASHBOARD)'!$W$4) -> 4519.547806 | C75: =INDEX('Compile Data'!$AL$12:$BI$93,$A75-1921,'Report - ALL (DASHBOARD)'!$W$4) -> 4552 | D75: =INDEX('Compile Data'!$BL$12:$CI$93,$A75-1921,'Report - ALL (DASHBOARD)'!$W$4) -> 4552 | E75: =INDEX('Compile Data'!$CL$12:$DI$93,$A75-1921,'Report - ALL (DASHBOARD)'!$W$4) -> 4552 | F75: =INDEX('Compile Data'!$DL$12:$EI$93,$A75-1921,'Report - ALL (DASHBOARD)'!$W$4) -> 4552 | G75: =INDEX('Compile Data'!$EL$12:$FI$93,$A75-1921,'Report - ALL (DASHBOARD)'!$W$4) ->  | O75: 48 | P75: 0.5802469136 | Q75: =INDEX('Compile Data'!$L$123:$AI$204,$O75,'Report - ALL (DASHBOARD)'!$W$4) -> 4139.561693 | R75: =INDEX('Compile Data'!$AL$123:$BI$204,$O75,'Report - ALL (DASHBOARD)'!$W$4) -> 4160.397845 | S75: =INDEX('Compile Data'!$BL$123:$CI$204,$O75,'Report - ALL (DASHBOARD)'!$W$4) -> 4235.0557 | T75: =INDEX('Compile Data'!$CL$123:$DI$204,$O75,'Report - ALL (DASHBOARD)'!$W$4) -> 4160.397845 | U75: =INDEX('Compile Data'!$DL$123:$EI$204,$O75,'Report - ALL (DASHBOARD)'!$W$4) -> 4338.97964 | V75: =INDEX('Compile Data'!$EL$123:$FI$204,$O75,'Report - ALL (DASHBOARD)'!$W$4) -> 
A76: 1970 | B76: =INDEX('Compile Data'!$L$12:$AI$93,$A76-1921,'Report - ALL (DASHBOARD)'!$W$4) -> 3965.007044 | C76: =INDEX('Compile Data'!$AL$12:$BI$93,$A76-1921,'Report - ALL (DASHBOARD)'!$W$4) -> 3967.491672 | D76: =INDEX('Compile Data'!$BL$12:$CI$93,$A76-1921,'Report - ALL (DASHBOARD)'!$W$4) -> 3967.386917 | E76: =INDEX('Compile Data'!$CL$12:$DI$93,$A76-1921,'Report - ALL (DASHBOARD)'!$W$4) -> 3967.491672 | F76: =INDEX('Compile Data'!$DL$12:$EI$93,$A76-1921,'Report - ALL (DASHBOARD)'!$W$4) -> 4132.836478 | G76: =INDEX('Compile Data'!$EL$12:$FI$93,$A76-1921,'Report - ALL (DASHBOARD)'!$W$4) ->  | O76: 49 | P76: 0.5925925926 | Q76: =INDEX('Compile Data'!$L$123:$AI$204,$O76,'Report - ALL (DASHBOARD)'!$W$4) -> 4125.482161 | R76: =INDEX('Compile Data'!$AL$123:$BI$204,$O76,'Report - ALL (DASHBOARD)'!$W$4) -> 4159.561735 | S76: =INDEX('Compile Data'!$BL$123:$CI$204,$O76,'Report - ALL (DASHBOARD)'!$W$4) -> 4195.847512 | T76: =INDEX('Compile Data'!$CL$123:$DI$204,$O76,'Report - ALL (DASHBOARD)'!$W$4) -> 4159.561735 | U76: =INDEX('Compile Data'!$DL$123:$EI$204,$O76,'Report - ALL (DASHBOARD)'!$W$4) -> 4333.817413 | V76: =INDEX('Compile Data'!$EL$123:$FI$204,$O76,'Report - ALL (DASHBOARD)'!$W$4) -> 
A77: 1971 | B77: =INDEX('Compile Data'!$L$12:$AI$93,$A77-1921,'Report - ALL (DASHBOARD)'!$W$4) -> 4552 | C77: =INDEX('Compile Data'!$AL$12:$BI$93,$A77-1921,'Report - ALL (DASHBOARD)'!$W$4) -> 4552 | D77: =INDEX('Compile Data'!$BL$12:$CI$93,$A77-1921,'Report - ALL (DASHBOARD)'!$W$4) -> 4552 | E77: =INDEX('Compile Data'!$CL$12:$DI$93,$A77-1921,'Report - ALL (DASHBOARD)'!$W$4) -> 4552 | F77: =INDEX('Compile Data'!$DL$12:$EI$93,$A77-1921,'Report - ALL (DASHBOARD)'!$W$4) -> 4552 | G77: =INDEX('Compile Data'!$EL$12:$FI$93,$A77-1921,'Report - ALL (DASHBOARD)'!$W$4) ->  | O77: 50 | P77: 0.6049382716 | Q77: =INDEX('Compile Data'!$L$123:$AI$204,$O77,'Report - ALL (DASHBOARD)'!$W$4) -> 4109.410995 | R77: =INDEX('Compile Data'!$AL$123:$BI$204,$O77,'Report - ALL (DASHBOARD)'!$W$4) -> 4156.581777 | S77: =INDEX('Compile Data'!$BL$123:$CI$204,$O77,'Report - ALL (DASHBOARD)'!$W$4) -> 4188.05205 | T77: =INDEX('Compile Data'!$CL$123:$DI$204,$O77,'Report - ALL (DASHBOARD)'!$W$4) -> 4156.581777 | U77: =INDEX('Compile Data'!$DL$123:$EI$204,$O77,'Report - ALL (DASHBOARD)'!$W$4) -> 4306.773931 | V77: =INDEX('Compile Data'!$EL$123:$FI$204,$O77,'Report - ALL (DASHBOARD)'!$W$4) -> 
A78: 1972 | B78: =INDEX('Compile Data'!$L$12:$AI$93,$A78-1921,'Report - ALL (DASHBOARD)'!$W$4) -> 4407.684637 | C78: =INDEX('Compile Data'!$AL$12:$BI$93,$A78-1921,'Report - ALL (DASHBOARD)'!$W$4) -> 4410.839127 | D78: =INDEX('Compile Data'!$BL$12:$CI$93,$A78-1921,'Report - ALL (DASHBOARD)'!$W$4) -> 4488.609909 | E78: =INDEX('Compile Data'!$CL$12:$DI$93,$A78-1921,'Report - ALL (DASHBOARD)'!$W$4) -> 4410.839127 | F78: =INDEX('Compile Data'!$DL$12:$EI$93,$A78-1921,'Report - ALL (DASHBOARD)'!$W$4) -> 4467.963121 | G78: =INDEX('Compile Data'!$EL$12:$FI$93,$A78-1921,'Report - ALL (DASHBOARD)'!$W$4) ->  | O78: 51 | P78: 0.6172839506 | Q78: =INDEX('Compile Data'!$L$123:$AI$204,$O78,'Report - ALL (DASHBOARD)'!$W$4) -> 4105.41576 | R78: =INDEX('Compile Data'!$AL$123:$BI$204,$O78,'Report - ALL (DASHBOARD)'!$W$4) -> 4125.872228 | S78: =INDEX('Compile Data'!$BL$123:$CI$204,$O78,'Report - ALL (DASHBOARD)'!$W$4) -> 4174.373327 | T78: =INDEX('Compile Data'!$CL$123:$DI$204,$O78,'Report - ALL (DASHBOARD)'!$W$4) -> 4125.872228 | U78: =INDEX('Compile Data'!$DL$123:$EI$204,$O78,'Report - ALL (DASHBOARD)'!$W$4) -> 4300.43063 | V78: =INDEX('Compile Data'!$EL$123:$FI$204,$O78,'Report - ALL (DASHBOARD)'!$W$4) -> 
A79: 1973 | B79: =INDEX('Compile Data'!$L$12:$AI$93,$A79-1921,'Report - ALL (DASHBOARD)'!$W$4) -> 4327.900621 | C79: =INDEX('Compile Data'!$AL$12:$BI$93,$A79-1921,'Report - ALL (DASHBOARD)'!$W$4) -> 4362.734339 | D79: =INDEX('Compile Data'!$BL$12:$CI$93,$A79-1921,'Report - ALL (DASHBOARD)'!$W$4) -> 4434.679232 | E79: =INDEX('Compile Data'!$CL$12:$DI$93,$A79-1921,'Report - ALL (DASHBOARD)'!$W$4) -> 4362.734339 | F79: =INDEX('Compile Data'!$DL$12:$EI$93,$A79-1921,'Report - ALL (DASHBOARD)'!$W$4) -> 4552 | G79: =INDEX('Compile Data'!$EL$12:$FI$93,$A79-1921,'Report - ALL (DASHBOARD)'!$W$4) ->  | O79: 52 | P79: 0.6296296296 | Q79: =INDEX('Compile Data'!$L$123:$AI$204,$O79,'Report - ALL (DASHBOARD)'!$W$4) -> 4084.734286 | R79: =INDEX('Compile Data'!$AL$123:$BI$204,$O79,'Report - ALL (DASHBOARD)'!$W$4) -> 4094.351837 | S79: =INDEX('Compile Data'!$BL$123:$CI$204,$O79,'Report - ALL (DASHBOARD)'!$W$4) -> 4125.876521 | T79: =INDEX('Compile Data'!$CL$123:$DI$204,$O79,'Report - ALL (DASHBOARD)'!$W$4) -> 4094.351837 | U79: =INDEX('Compile Data'!$DL$123:$EI$204,$O79,'Report - ALL (DASHBOARD)'!$W$4) -> 4296.786252 | V79: =INDEX('Compile Data'!$EL$123:$FI$204,$O79,'Report - ALL (DASHBOARD)'!$W$4) -> 
A80: 1974 | B80: =INDEX('Compile Data'!$L$12:$AI$93,$A80-1921,'Report - ALL (DASHBOARD)'!$W$4) -> 4125.482161 | C80: =INDEX('Compile Data'!$AL$12:$BI$93,$A80-1921,'Report - ALL (DASHBOARD)'!$W$4) -> 4125.872228 | D80: =INDEX('Compile Data'!$BL$12:$CI$93,$A80-1921,'Report - ALL (DASHBOARD)'!$W$4) -> 4125.876521 | E80: =INDEX('Compile Data'!$CL$12:$DI$93,$A80-1921,'Report - ALL (DASHBOARD)'!$W$4) -> 4125.872228 | F80: =INDEX('Compile Data'!$DL$12:$EI$93,$A80-1921,'Report - ALL (DASHBOARD)'!$W$4) -> 4552 | G80: =INDEX('Compile Data'!$EL$12:$FI$93,$A80-1921,'Report - ALL (DASHBOARD)'!$W$4) ->  | O80: 53 | P80: 0.6419753086 | Q80: =INDEX('Compile Data'!$L$123:$AI$204,$O80,'Report - ALL (DASHBOARD)'!$W$4) -> 4071.73718 | R80: =INDEX('Compile Data'!$AL$123:$BI$204,$O80,'Report - ALL (DASHBOARD)'!$W$4) -> 4070.520318 | S80: =INDEX('Compile Data'!$BL$123:$CI$204,$O80,'Report - ALL (DASHBOARD)'!$W$4) -> 4094.17729 | T80: =INDEX('Compile Data'!$CL$123:$DI$204,$O80,'Report - ALL (DASHBOARD)'!$W$4) -> 4070.520318 | U80: =INDEX('Compile Data'!$DL$123:$EI$204,$O80,'Report - ALL (DASHBOARD)'!$W$4) -> 4251.055642 | V80: =INDEX('Compile Data'!$EL$123:$FI$204,$O80,'Report - ALL (DASHBOARD)'!$W$4) -> 
A81: 1975 | B81: =INDEX('Compile Data'!$L$12:$AI$93,$A81-1921,'Report - ALL (DASHBOARD)'!$W$4) -> 4552 | C81: =INDEX('Compile Data'!$AL$12:$BI$93,$A81-1921,'Report - ALL (DASHBOARD)'!$W$4) -> 4552 | D81: =INDEX('Compile Data'!$BL$12:$CI$93,$A81-1921,'Report - ALL (DASHBOARD)'!$W$4) -> 4552 | E81: =INDEX('Compile Data'!$CL$12:$DI$93,$A81-1921,'Report - ALL (DASHBOARD)'!$W$4) -> 4552 | F81: =INDEX('Compile Data'!$DL$12:$EI$93,$A81-1921,'Report - ALL (DASHBOARD)'!$W$4) -> 4552 | G81: =INDEX('Compile Data'!$EL$12:$FI$93,$A81-1921,'Report - ALL (DASHBOARD)'!$W$4) ->  | O81: 54 | P81: 0.6543209877 | Q81: =INDEX('Compile Data'!$L$123:$AI$204,$O81,'Report - ALL (DASHBOARD)'!$W$4) -> 4046.05442 | R81: =INDEX('Compile Data'!$AL$123:$BI$204,$O81,'Report - ALL (DASHBOARD)'!$W$4) -> 4039.666421 | S81: =INDEX('Compile Data'!$BL$123:$CI$204,$O81,'Report - ALL (DASHBOARD)'!$W$4) -> 4083.103803 | T81: =INDEX('Compile Data'!$CL$123:$DI$204,$O81,'Report - ALL (DASHBOARD)'!$W$4) -> 4039.666421 | U81: =INDEX('Compile Data'!$DL$123:$EI$204,$O81,'Report - ALL (DASHBOARD)'!$W$4) -> 4179.11525 | V81: =INDEX('Compile Data'!$EL$123:$FI$204,$O81,'Report - ALL (DASHBOARD)'!$W$4) -> 
A82: 1976 | B82: =INDEX('Compile Data'!$L$12:$AI$93,$A82-1921,'Report - ALL (DASHBOARD)'!$W$4) -> 3903.025328 | C82: =INDEX('Compile Data'!$AL$12:$BI$93,$A82-1921,'Report - ALL (DASHBOARD)'!$W$4) -> 3956.947367 | D82: =INDEX('Compile Data'!$BL$12:$CI$93,$A82-1921,'Report - ALL (DASHBOARD)'!$W$4) -> 4042.622009 | E82: =INDEX('Compile Data'!$CL$12:$DI$93,$A82-1921,'Report - ALL (DASHBOARD)'!$W$4) -> 3956.947367 | F82: =INDEX('Compile Data'!$DL$12:$EI$93,$A82-1921,'Report - ALL (DASHBOARD)'!$W$4) -> 3945.820666 | G82: =INDEX('Compile Data'!$EL$12:$FI$93,$A82-1921,'Report - ALL (DASHBOARD)'!$W$4) ->  | O82: 55 | P82: 0.6666666667 | Q82: =INDEX('Compile Data'!$L$123:$AI$204,$O82,'Report - ALL (DASHBOARD)'!$W$4) -> 4013.903732 | R82: =INDEX('Compile Data'!$AL$123:$BI$204,$O82,'Report - ALL (DASHBOARD)'!$W$4) -> 4030.769395 | S82: =INDEX('Compile Data'!$BL$123:$CI$204,$O82,'Report - ALL (DASHBOARD)'!$W$4) -> 4042.622009 | T82: =INDEX('Compile Data'!$CL$123:$DI$204,$O82,'Report - ALL (DASHBOARD)'!$W$4) -> 4030.769395 | U82: =INDEX('Compile Data'!$DL$123:$EI$204,$O82,'Report - ALL (DASHBOARD)'!$W$4) -> 4132.836478 | V82: =INDEX('Compile Data'!$EL$123:$FI$204,$O82,'Report - ALL (DASHBOARD)'!$W$4) -> 
A83: 1977 | B83: =INDEX('Compile Data'!$L$12:$AI$93,$A83-1921,'Report - ALL (DASHBOARD)'!$W$4) -> 2071.228972 | C83: =INDEX('Compile Data'!$AL$12:$BI$93,$A83-1921,'Report - ALL (DASHBOARD)'!$W$4) -> 2340.191327 | D83: =INDEX('Compile Data'!$BL$12:$CI$93,$A83-1921,'Report - ALL (DASHBOARD)'!$W$4) -> 2421.767435 | E83: =INDEX('Compile Data'!$CL$12:$DI$93,$A83-1921,'Report - ALL (DASHBOARD)'!$W$4) -> 2340.191327 | F83: =INDEX('Compile Data'!$DL$12:$EI$93,$A83-1921,'Report - ALL (DASHBOARD)'!$W$4) -> 2110.330013 | G83: =INDEX('Compile Data'!$EL$12:$FI$93,$A83-1921,'Report - ALL (DASHBOARD)'!$W$4) ->  | O83: 56 | P83: 0.6790123457 | Q83: =INDEX('Compile Data'!$L$123:$AI$204,$O83,'Report - ALL (DASHBOARD)'!$W$4) -> 3965.007044 | R83: =INDEX('Compile Data'!$AL$123:$BI$204,$O83,'Report - ALL (DASHBOARD)'!$W$4) -> 3967.491672 | S83: =INDEX('Compile Data'!$BL$123:$CI$204,$O83,'Report - ALL (DASHBOARD)'!$W$4) -> 4037.905051 | T83: =INDEX('Compile Data'!$CL$123:$DI$204,$O83,'Report - ALL (DASHBOARD)'!$W$4) -> 3967.491672 | U83: =INDEX('Compile Data'!$DL$123:$EI$204,$O83,'Report - ALL (DASHBOARD)'!$W$4) -> 4067.450012 | V83: =INDEX('Compile Data'!$EL$123:$FI$204,$O83,'Report - ALL (DASHBOARD)'!$W$4) -> 
A84: 1978 | B84: =INDEX('Compile Data'!$L$12:$AI$93,$A84-1921,'Report - ALL (DASHBOARD)'!$W$4) -> 4552 | C84: =INDEX('Compile Data'!$AL$12:$BI$93,$A84-1921,'Report - ALL (DASHBOARD)'!$W$4) -> 4552 | D84: =INDEX('Compile Data'!$BL$12:$CI$93,$A84-1921,'Report - ALL (DASHBOARD)'!$W$4) -> 4552 | E84: =INDEX('Compile Data'!$CL$12:$DI$93,$A84-1921,'Report - ALL (DASHBOARD)'!$W$4) -> 4552 | F84: =INDEX('Compile Data'!$DL$12:$EI$93,$A84-1921,'Report - ALL (DASHBOARD)'!$W$4) -> 4552 | G84: =INDEX('Compile Data'!$EL$12:$FI$93,$A84-1921,'Report - ALL (DASHBOARD)'!$W$4) ->  | O84: 57 | P84: 0.6913580247 | Q84: =INDEX('Compile Data'!$L$123:$AI$204,$O84,'Report - ALL (DASHBOARD)'!$W$4) -> 3903.025328 | R84: =INDEX('Compile Data'!$AL$123:$BI$204,$O84,'Report - ALL (DASHBOARD)'!$W$4) -> 3956.947367 | S84: =INDEX('Compile Data'!$BL$123:$CI$204,$O84,'Report - ALL (DASHBOARD)'!$W$4) -> 3967.386917 | T84: =INDEX('Compile Data'!$CL$123:$DI$204,$O84,'Report - ALL (DASHBOARD)'!$W$4) -> 3956.947367 | U84: =INDEX('Compile Data'!$DL$123:$EI$204,$O84,'Report - ALL (DASHBOARD)'!$W$4) -> 4037.111119 | V84: =INDEX('Compile Data'!$EL$123:$FI$204,$O84,'Report - ALL (DASHBOARD)'!$W$4) -> 
A85: 1979 | B85: =INDEX('Compile Data'!$L$12:$AI$93,$A85-1921,'Report - ALL (DASHBOARD)'!$W$4) -> 4230.526206 | C85: =INDEX('Compile Data'!$AL$12:$BI$93,$A85-1921,'Report - ALL (DASHBOARD)'!$W$4) -> 4267.03815 | D85: =INDEX('Compile Data'!$BL$12:$CI$93,$A85-1921,'Report - ALL (DASHBOARD)'!$W$4) -> 4326.554804 | E85: =INDEX('Compile Data'!$CL$12:$DI$93,$A85-1921,'Report - ALL (DASHBOARD)'!$W$4) -> 4267.03815 | F85: =INDEX('Compile Data'!$DL$12:$EI$93,$A85-1921,'Report - ALL (DASHBOARD)'!$W$4) -> 4552 | G85: =INDEX('Compile Data'!$EL$12:$FI$93,$A85-1921,'Report - ALL (DASHBOARD)'!$W$4) ->  | O85: 58 | P85: 0.7037037037 | Q85: =INDEX('Compile Data'!$L$123:$AI$204,$O85,'Report - ALL (DASHBOARD)'!$W$4) -> 3891.452702 | R85: =INDEX('Compile Data'!$AL$123:$BI$204,$O85,'Report - ALL (DASHBOARD)'!$W$4) -> 3908.770198 | S85: =INDEX('Compile Data'!$BL$123:$CI$204,$O85,'Report - ALL (DASHBOARD)'!$W$4) -> 3908.763096 | T85: =INDEX('Compile Data'!$CL$123:$DI$204,$O85,'Report - ALL (DASHBOARD)'!$W$4) -> 3908.770198 | U85: =INDEX('Compile Data'!$DL$123:$EI$204,$O85,'Report - ALL (DASHBOARD)'!$W$4) -> 3991.377675 | V85: =INDEX('Compile Data'!$EL$123:$FI$204,$O85,'Report - ALL (DASHBOARD)'!$W$4) -> 
A86: 1980 | B86: =INDEX('Compile Data'!$L$12:$AI$93,$A86-1921,'Report - ALL (DASHBOARD)'!$W$4) -> 4139.561693 | C86: =INDEX('Compile Data'!$AL$12:$BI$93,$A86-1921,'Report - ALL (DASHBOARD)'!$W$4) -> 4287.88832 | D86: =INDEX('Compile Data'!$BL$12:$CI$93,$A86-1921,'Report - ALL (DASHBOARD)'!$W$4) -> 4373.377015 | E86: =INDEX('Compile Data'!$CL$12:$DI$93,$A86-1921,'Report - ALL (DASHBOARD)'!$W$4) -> 4287.88832 | F86: =INDEX('Compile Data'!$DL$12:$EI$93,$A86-1921,'Report - ALL (DASHBOARD)'!$W$4) -> 4426.12931 | G86: =INDEX('Compile Data'!$EL$12:$FI$93,$A86-1921,'Report - ALL (DASHBOARD)'!$W$4) ->  | O86: 59 | P86: 0.7160493827 | Q86: =INDEX('Compile Data'!$L$123:$AI$204,$O86,'Report - ALL (DASHBOARD)'!$W$4) -> 3853.280694 | R86: =INDEX('Compile Data'!$AL$123:$BI$204,$O86,'Report - ALL (DASHBOARD)'!$W$4) -> 3861.468768 | S86: =INDEX('Compile Data'!$BL$123:$CI$204,$O86,'Report - ALL (DASHBOARD)'!$W$4) -> 3861.483235 | T86: =INDEX('Compile Data'!$CL$123:$DI$204,$O86,'Report - ALL (DASHBOARD)'!$W$4) -> 3861.468768 | U86: =INDEX('Compile Data'!$DL$123:$EI$204,$O86,'Report - ALL (DASHBOARD)'!$W$4) -> 3987.165264 | V86: =INDEX('Compile Data'!$EL$123:$FI$204,$O86,'Report - ALL (DASHBOARD)'!$W$4) -> 
A87: 1981 | B87: =INDEX('Compile Data'!$L$12:$AI$93,$A87-1921,'Report - ALL (DASHBOARD)'!$W$4) -> 4109.410995 | C87: =INDEX('Compile Data'!$AL$12:$BI$93,$A87-1921,'Report - ALL (DASHBOARD)'!$W$4) -> 4217.723575 | D87: =INDEX('Compile Data'!$BL$12:$CI$93,$A87-1921,'Report - ALL (DASHBOARD)'!$W$4) -> 4313.615061 | E87: =INDEX('Compile Data'!$CL$12:$DI$93,$A87-1921,'Report - ALL (DASHBOARD)'!$W$4) -> 4217.723575 | F87: =INDEX('Compile Data'!$DL$12:$EI$93,$A87-1921,'Report - ALL (DASHBOARD)'!$W$4) -> 4300.43063 | G87: =INDEX('Compile Data'!$EL$12:$FI$93,$A87-1921,'Report - ALL (DASHBOARD)'!$W$4) ->  | O87: 60 | P87: 0.7283950617 | Q87: =INDEX('Compile Data'!$L$123:$AI$204,$O87,'Report - ALL (DASHBOARD)'!$W$4) -> 3792.28015 | R87: =INDEX('Compile Data'!$AL$123:$BI$204,$O87,'Report - ALL (DASHBOARD)'!$W$4) -> 3826.807431 | S87: =INDEX('Compile Data'!$BL$123:$CI$204,$O87,'Report - ALL (DASHBOARD)'!$W$4) -> 3837.798065 | T87: =INDEX('Compile Data'!$CL$123:$DI$204,$O87,'Report - ALL (DASHBOARD)'!$W$4) -> 3826.807431 | U87: =INDEX('Compile Data'!$DL$123:$EI$204,$O87,'Report - ALL (DASHBOARD)'!$W$4) -> 3979.80165 | V87: =INDEX('Compile Data'!$EL$123:$FI$204,$O87,'Report - ALL (DASHBOARD)'!$W$4) -> 
A88: 1982 | B88: =INDEX('Compile Data'!$L$12:$AI$93,$A88-1921,'Report - ALL (DASHBOARD)'!$W$4) -> 4331.480089 | C88: =INDEX('Compile Data'!$AL$12:$BI$93,$A88-1921,'Report - ALL (DASHBOARD)'!$W$4) -> 4357.654817 | D88: =INDEX('Compile Data'!$BL$12:$CI$93,$A88-1921,'Report - ALL (DASHBOARD)'!$W$4) -> 4356.848174 | E88: =INDEX('Compile Data'!$CL$12:$DI$93,$A88-1921,'Report - ALL (DASHBOARD)'!$W$4) -> 4357.654817 | F88: =INDEX('Compile Data'!$DL$12:$EI$93,$A88-1921,'Report - ALL (DASHBOARD)'!$W$4) -> 4552 | G88: =INDEX('Compile Data'!$EL$12:$FI$93,$A88-1921,'Report - ALL (DASHBOARD)'!$W$4) ->  | O88: 61 | P88: 0.7407407407 | Q88: =INDEX('Compile Data'!$L$123:$AI$204,$O88,'Report - ALL (DASHBOARD)'!$W$4) -> 3739.142593 | R88: =INDEX('Compile Data'!$AL$123:$BI$204,$O88,'Report - ALL (DASHBOARD)'!$W$4) -> 3792.829492 | S88: =INDEX('Compile Data'!$BL$123:$CI$204,$O88,'Report - ALL (DASHBOARD)'!$W$4) -> 3807.288764 | T88: =INDEX('Compile Data'!$CL$123:$DI$204,$O88,'Report - ALL (DASHBOARD)'!$W$4) -> 3792.829492 | U88: =INDEX('Compile Data'!$DL$123:$EI$204,$O88,'Report - ALL (DASHBOARD)'!$W$4) -> 3945.820666 | V88: =INDEX('Compile Data'!$EL$123:$FI$204,$O88,'Report - ALL (DASHBOARD)'!$W$4) -> 
A89: 1983 | B89: =INDEX('Compile Data'!$L$12:$AI$93,$A89-1921,'Report - ALL (DASHBOARD)'!$W$4) -> 4552 | C89: =INDEX('Compile Data'!$AL$12:$BI$93,$A89-1921,'Report - ALL (DASHBOARD)'!$W$4) -> 4552 | D89: =INDEX('Compile Data'!$BL$12:$CI$93,$A89-1921,'Report - ALL (DASHBOARD)'!$W$4) -> 4552 | E89: =INDEX('Compile Data'!$CL$12:$DI$93,$A89-1921,'Report - ALL (DASHBOARD)'!$W$4) -> 4552 | F89: =INDEX('Compile Data'!$DL$12:$EI$93,$A89-1921,'Report - ALL (DASHBOARD)'!$W$4) -> 4552 | G89: =INDEX('Compile Data'!$EL$12:$FI$93,$A89-1921,'Report - ALL (DASHBOARD)'!$W$4) ->  | O89: 62 | P89: 0.7530864198 | Q89: =INDEX('Compile Data'!$L$123:$AI$204,$O89,'Report - ALL (DASHBOARD)'!$W$4) -> 3660.438066 | R89: =INDEX('Compile Data'!$AL$123:$BI$204,$O89,'Report - ALL (DASHBOARD)'!$W$4) -> 3669.622137 | S89: =INDEX('Compile Data'!$BL$123:$CI$204,$O89,'Report - ALL (DASHBOARD)'!$W$4) -> 3745.898331 | T89: =INDEX('Compile Data'!$CL$123:$DI$204,$O89,'Report - ALL (DASHBOARD)'!$W$4) -> 3669.622137 | U89: =INDEX('Compile Data'!$DL$123:$EI$204,$O89,'Report - ALL (DASHBOARD)'!$W$4) -> 3914.630786 | V89: =INDEX('Compile Data'!$EL$123:$FI$204,$O89,'Report - ALL (DASHBOARD)'!$W$4) -> 
A90: 1984 | B90: =INDEX('Compile Data'!$L$12:$AI$93,$A90-1921,'Report - ALL (DASHBOARD)'!$W$4) -> 4382.759859 | C90: =INDEX('Compile Data'!$AL$12:$BI$93,$A90-1921,'Report - ALL (DASHBOARD)'!$W$4) -> 4389.51876 | D90: =INDEX('Compile Data'!$BL$12:$CI$93,$A90-1921,'Report - ALL (DASHBOARD)'!$W$4) -> 4389.507535 | E90: =INDEX('Compile Data'!$CL$12:$DI$93,$A90-1921,'Report - ALL (DASHBOARD)'!$W$4) -> 4389.51876 | F90: =INDEX('Compile Data'!$DL$12:$EI$93,$A90-1921,'Report - ALL (DASHBOARD)'!$W$4) -> 4552 | G90: =INDEX('Compile Data'!$EL$12:$FI$93,$A90-1921,'Report - ALL (DASHBOARD)'!$W$4) ->  | O90: 63 | P90: 0.7654320988 | Q90: =INDEX('Compile Data'!$L$123:$AI$204,$O90,'Report - ALL (DASHBOARD)'!$W$4) -> 3569.975061 | R90: =INDEX('Compile Data'!$AL$123:$BI$204,$O90,'Report - ALL (DASHBOARD)'!$W$4) -> 3560.723934 | S90: =INDEX('Compile Data'!$BL$123:$CI$204,$O90,'Report - ALL (DASHBOARD)'!$W$4) -> 3637.022956 | T90: =INDEX('Compile Data'!$CL$123:$DI$204,$O90,'Report - ALL (DASHBOARD)'!$W$4) -> 3560.723934 | U90: =INDEX('Compile Data'!$DL$123:$EI$204,$O90,'Report - ALL (DASHBOARD)'!$W$4) -> 3894.468758 | V90: =INDEX('Compile Data'!$EL$123:$FI$204,$O90,'Report - ALL (DASHBOARD)'!$W$4) -> 
A91: 1985 | B91: =INDEX('Compile Data'!$L$12:$AI$93,$A91-1921,'Report - ALL (DASHBOARD)'!$W$4) -> 3660.438066 | C91: =INDEX('Compile Data'!$AL$12:$BI$93,$A91-1921,'Report - ALL (DASHBOARD)'!$W$4) -> 3669.622137 | D91: =INDEX('Compile Data'!$BL$12:$CI$93,$A91-1921,'Report - ALL (DASHBOARD)'!$W$4) -> 3745.898331 | E91: =INDEX('Compile Data'!$CL$12:$DI$93,$A91-1921,'Report - ALL (DASHBOARD)'!$W$4) -> 3669.622137 | F91: =INDEX('Compile Data'!$DL$12:$EI$93,$A91-1921,'Report - ALL (DASHBOARD)'!$W$4) -> 3894.468758 | G91: =INDEX('Compile Data'!$EL$12:$FI$93,$A91-1921,'Report - ALL (DASHBOARD)'!$W$4) ->  | O91: 64 | P91: 0.7777777778 | Q91: =INDEX('Compile Data'!$L$123:$AI$204,$O91,'Report - ALL (DASHBOARD)'!$W$4) -> 3559.749646 | R91: =INDEX('Compile Data'!$AL$123:$BI$204,$O91,'Report - ALL (DASHBOARD)'!$W$4) -> 3560.306889 | S91: =INDEX('Compile Data'!$BL$123:$CI$204,$O91,'Report - ALL (DASHBOARD)'!$W$4) -> 3626.782125 | T91: =INDEX('Compile Data'!$CL$123:$DI$204,$O91,'Report - ALL (DASHBOARD)'!$W$4) -> 3560.306889 | U91: =INDEX('Compile Data'!$DL$123:$EI$204,$O91,'Report - ALL (DASHBOARD)'!$W$4) -> 3858.73596 | V91: =INDEX('Compile Data'!$EL$123:$FI$204,$O91,'Report - ALL (DASHBOARD)'!$W$4) -> 
A92: 1986 | B92: =INDEX('Compile Data'!$L$12:$AI$93,$A92-1921,'Report - ALL (DASHBOARD)'!$W$4) -> 3891.452702 | C92: =INDEX('Compile Data'!$AL$12:$BI$93,$A92-1921,'Report - ALL (DASHBOARD)'!$W$4) -> 3908.770198 | D92: =INDEX('Compile Data'!$BL$12:$CI$93,$A92-1921,'Report - ALL (DASHBOARD)'!$W$4) -> 3908.763096 | E92: =INDEX('Compile Data'!$CL$12:$DI$93,$A92-1921,'Report - ALL (DASHBOARD)'!$W$4) -> 3908.770198 | F92: =INDEX('Compile Data'!$DL$12:$EI$93,$A92-1921,'Report - ALL (DASHBOARD)'!$W$4) -> 4037.111119 | G92: =INDEX('Compile Data'!$EL$12:$FI$93,$A92-1921,'Report - ALL (DASHBOARD)'!$W$4) ->  | O92: 65 | P92: =(O92-1)/81 -> 0.7901234568 | Q92: =INDEX('Compile Data'!$L$123:$AI$204,$O92,'Report - ALL (DASHBOARD)'!$W$4) -> 3550.205382 | R92: =INDEX('Compile Data'!$AL$123:$BI$204,$O92,'Report - ALL (DASHBOARD)'!$W$4) -> 3516.022004 | S92: =INDEX('Compile Data'!$BL$123:$CI$204,$O92,'Report - ALL (DASHBOARD)'!$W$4) -> 3578.605027 | T92: =INDEX('Compile Data'!$CL$123:$DI$204,$O92,'Report - ALL (DASHBOARD)'!$W$4) -> 3516.022004 | U92: =INDEX('Compile Data'!$DL$123:$EI$204,$O92,'Report - ALL (DASHBOARD)'!$W$4) -> 3795.713003 | V92: =INDEX('Compile Data'!$EL$123:$FI$204,$O92,'Report - ALL (DASHBOARD)'!$W$4) -> 
A93: 1987 | B93: =INDEX('Compile Data'!$L$12:$AI$93,$A93-1921,'Report - ALL (DASHBOARD)'!$W$4) -> 3559.749646 | C93: =INDEX('Compile Data'!$AL$12:$BI$93,$A93-1921,'Report - ALL (DASHBOARD)'!$W$4) -> 3560.306889 | D93: =INDEX('Compile Data'!$BL$12:$CI$93,$A93-1921,'Report - ALL (DASHBOARD)'!$W$4) -> 3637.022956 | E93: =INDEX('Compile Data'!$CL$12:$DI$93,$A93-1921,'Report - ALL (DASHBOARD)'!$W$4) -> 3560.306889 | F93: =INDEX('Compile Data'!$DL$12:$EI$93,$A93-1921,'Report - ALL (DASHBOARD)'!$W$4) -> 3773.943082 | G93: =INDEX('Compile Data'!$EL$12:$FI$93,$A93-1921,'Report - ALL (DASHBOARD)'!$W$4) ->  | O93: 66 | P93: 0.8024691358 | Q93: =INDEX('Compile Data'!$L$123:$AI$204,$O93,'Report - ALL (DASHBOARD)'!$W$4) -> 3516.607967 | R93: =INDEX('Compile Data'!$AL$123:$BI$204,$O93,'Report - ALL (DASHBOARD)'!$W$4) -> 3511.127948 | S93: =INDEX('Compile Data'!$BL$123:$CI$204,$O93,'Report - ALL (DASHBOARD)'!$W$4) -> 3560.420527 | T93: =INDEX('Compile Data'!$CL$123:$DI$204,$O93,'Report - ALL (DASHBOARD)'!$W$4) -> 3511.127948 | U93: =INDEX('Compile Data'!$DL$123:$EI$204,$O93,'Report - ALL (DASHBOARD)'!$W$4) -> 3773.943082 | V93: =INDEX('Compile Data'!$EL$123:$FI$204,$O93,'Report - ALL (DASHBOARD)'!$W$4) -> 
A94: =A93+1 -> 1988 | B94: =INDEX('Compile Data'!$L$12:$AI$93,$A94-1921,'Report - ALL (DASHBOARD)'!$W$4) -> 3123.063715 | C94: =INDEX('Compile Data'!$AL$12:$BI$93,$A94-1921,'Report - ALL (DASHBOARD)'!$W$4) -> 3286.953538 | D94: =INDEX('Compile Data'!$BL$12:$CI$93,$A94-1921,'Report - ALL (DASHBOARD)'!$W$4) -> 3155.865624 | E94: =INDEX('Compile Data'!$CL$12:$DI$93,$A94-1921,'Report - ALL (DASHBOARD)'!$W$4) -> 3286.953538 | F94: =INDEX('Compile Data'!$DL$12:$EI$93,$A94-1921,'Report - ALL (DASHBOARD)'!$W$4) -> 3226.988344 | G94: =INDEX('Compile Data'!$EL$12:$FI$93,$A94-1921,'Report - ALL (DASHBOARD)'!$W$4) ->  | O94: 67 | P94: 0.8148148148 | Q94: =INDEX('Compile Data'!$L$123:$AI$204,$O94,'Report - ALL (DASHBOARD)'!$W$4) -> 3501.011532 | R94: =INDEX('Compile Data'!$AL$123:$BI$204,$O94,'Report - ALL (DASHBOARD)'!$W$4) -> 3472.884461 | S94: =INDEX('Compile Data'!$BL$123:$CI$204,$O94,'Report - ALL (DASHBOARD)'!$W$4) -> 3540.10848 | T94: =INDEX('Compile Data'!$CL$123:$DI$204,$O94,'Report - ALL (DASHBOARD)'!$W$4) -> 3472.884461 | U94: =INDEX('Compile Data'!$DL$123:$EI$204,$O94,'Report - ALL (DASHBOARD)'!$W$4) -> 3766.321953 | V94: =INDEX('Compile Data'!$EL$123:$FI$204,$O94,'Report - ALL (DASHBOARD)'!$W$4) -> 
A95: 1989 | B95: =INDEX('Compile Data'!$L$12:$AI$93,$A95-1921,'Report - ALL (DASHBOARD)'!$W$4) -> 3792.28015 | C95: =INDEX('Compile Data'!$AL$12:$BI$93,$A95-1921,'Report - ALL (DASHBOARD)'!$W$4) -> 3792.829492 | D95: =INDEX('Compile Data'!$BL$12:$CI$93,$A95-1921,'Report - ALL (DASHBOARD)'!$W$4) -> 3807.288764 | E95: =INDEX('Compile Data'!$CL$12:$DI$93,$A95-1921,'Report - ALL (DASHBOARD)'!$W$4) -> 3792.829492 | F95: =INDEX('Compile Data'!$DL$12:$EI$93,$A95-1921,'Report - ALL (DASHBOARD)'!$W$4) -> 3987.165264 | G95: =INDEX('Compile Data'!$EL$12:$FI$93,$A95-1921,'Report - ALL (DASHBOARD)'!$W$4) ->  | O95: 68 | P95: 0.8271604938 | Q95: =INDEX('Compile Data'!$L$123:$AI$204,$O95,'Report - ALL (DASHBOARD)'!$W$4) -> 3484.534992 | R95: =INDEX('Compile Data'!$AL$123:$BI$204,$O95,'Report - ALL (DASHBOARD)'!$W$4) -> 3470.369137 | S95: =INDEX('Compile Data'!$BL$123:$CI$204,$O95,'Report - ALL (DASHBOARD)'!$W$4) -> 3525.311803 | T95: =INDEX('Compile Data'!$CL$123:$DI$204,$O95,'Report - ALL (DASHBOARD)'!$W$4) -> 3470.369137 | U95: =INDEX('Compile Data'!$DL$123:$EI$204,$O95,'Report - ALL (DASHBOARD)'!$W$4) -> 3721.546138 | V95: =INDEX('Compile Data'!$EL$123:$FI$204,$O95,'Report - ALL (DASHBOARD)'!$W$4) -> 
A96: 1990 | B96: =INDEX('Compile Data'!$L$12:$AI$93,$A96-1921,'Report - ALL (DASHBOARD)'!$W$4) -> 3113.903002 | C96: =INDEX('Compile Data'!$AL$12:$BI$93,$A96-1921,'Report - ALL (DASHBOARD)'!$W$4) -> 3130.898902 | D96: =INDEX('Compile Data'!$BL$12:$CI$93,$A96-1921,'Report - ALL (DASHBOARD)'!$W$4) -> 3147.208097 | E96: =INDEX('Compile Data'!$CL$12:$DI$93,$A96-1921,'Report - ALL (DASHBOARD)'!$W$4) -> 3130.898902 | F96: =INDEX('Compile Data'!$DL$12:$EI$93,$A96-1921,'Report - ALL (DASHBOARD)'!$W$4) -> 3695.315212 | G96: =INDEX('Compile Data'!$EL$12:$FI$93,$A96-1921,'Report - ALL (DASHBOARD)'!$W$4) ->  | O96: 69 | P96: 0.8395061728 | Q96: =INDEX('Compile Data'!$L$123:$AI$204,$O96,'Report - ALL (DASHBOARD)'!$W$4) -> 3469.015946 | R96: =INDEX('Compile Data'!$AL$123:$BI$204,$O96,'Report - ALL (DASHBOARD)'!$W$4) -> 3454.194153 | S96: =INDEX('Compile Data'!$BL$123:$CI$204,$O96,'Report - ALL (DASHBOARD)'!$W$4) -> 3509.79476 | T96: =INDEX('Compile Data'!$CL$123:$DI$204,$O96,'Report - ALL (DASHBOARD)'!$W$4) -> 3454.194153 | U96: =INDEX('Compile Data'!$DL$123:$EI$204,$O96,'Report - ALL (DASHBOARD)'!$W$4) -> 3695.315212 | V96: =INDEX('Compile Data'!$EL$123:$FI$204,$O96,'Report - ALL (DASHBOARD)'!$W$4) -> 
A97: 1991 | B97: =INDEX('Compile Data'!$L$12:$AI$93,$A97-1921,'Report - ALL (DASHBOARD)'!$W$4) -> 2210.878367 | C97: =INDEX('Compile Data'!$AL$12:$BI$93,$A97-1921,'Report - ALL (DASHBOARD)'!$W$4) -> 2240.386628 | D97: =INDEX('Compile Data'!$BL$12:$CI$93,$A97-1921,'Report - ALL (DASHBOARD)'!$W$4) -> 2267.032128 | E97: =INDEX('Compile Data'!$CL$12:$DI$93,$A97-1921,'Report - ALL (DASHBOARD)'!$W$4) -> 2240.386628 | F97: =INDEX('Compile Data'!$DL$12:$EI$93,$A97-1921,'Report - ALL (DASHBOARD)'!$W$4) -> 2741.935938 | G97: =INDEX('Compile Data'!$EL$12:$FI$93,$A97-1921,'Report - ALL (DASHBOARD)'!$W$4) ->  | O97: 70 | P97: 0.8518518519 | Q97: =INDEX('Compile Data'!$L$123:$AI$204,$O97,'Report - ALL (DASHBOARD)'!$W$4) -> 3462.834558 | R97: =INDEX('Compile Data'!$AL$123:$BI$204,$O97,'Report - ALL (DASHBOARD)'!$W$4) -> 3436.889135 | S97: =INDEX('Compile Data'!$BL$123:$CI$204,$O97,'Report - ALL (DASHBOARD)'!$W$4) -> 3407.695779 | T97: =INDEX('Compile Data'!$CL$123:$DI$204,$O97,'Report - ALL (DASHBOARD)'!$W$4) -> 3436.889135 | U97: =INDEX('Compile Data'!$DL$123:$EI$204,$O97,'Report - ALL (DASHBOARD)'!$W$4) -> 3637.34285 | V97: =INDEX('Compile Data'!$EL$123:$FI$204,$O97,'Report - ALL (DASHBOARD)'!$W$4) -> 
A98: 1992 | B98: =INDEX('Compile Data'!$L$12:$AI$93,$A98-1921,'Report - ALL (DASHBOARD)'!$W$4) -> 2335.72405 | C98: =INDEX('Compile Data'!$AL$12:$BI$93,$A98-1921,'Report - ALL (DASHBOARD)'!$W$4) -> 2333.966744 | D98: =INDEX('Compile Data'!$BL$12:$CI$93,$A98-1921,'Report - ALL (DASHBOARD)'!$W$4) -> 2356.58209 | E98: =INDEX('Compile Data'!$CL$12:$DI$93,$A98-1921,'Report - ALL (DASHBOARD)'!$W$4) -> 2333.966744 | F98: =INDEX('Compile Data'!$DL$12:$EI$93,$A98-1921,'Report - ALL (DASHBOARD)'!$W$4) -> 2965.631977 | G98: =INDEX('Compile Data'!$EL$12:$FI$93,$A98-1921,'Report - ALL (DASHBOARD)'!$W$4) ->  | O98: 71 | P98: 0.8641975309 | Q98: =INDEX('Compile Data'!$L$123:$AI$204,$O98,'Report - ALL (DASHBOARD)'!$W$4) -> 3332.505722 | R98: =INDEX('Compile Data'!$AL$123:$BI$204,$O98,'Report - ALL (DASHBOARD)'!$W$4) -> 3368.638784 | S98: =INDEX('Compile Data'!$BL$123:$CI$204,$O98,'Report - ALL (DASHBOARD)'!$W$4) -> 3266.061689 | T98: =INDEX('Compile Data'!$CL$123:$DI$204,$O98,'Report - ALL (DASHBOARD)'!$W$4) -> 3368.638784 | U98: =INDEX('Compile Data'!$DL$123:$EI$204,$O98,'Report - ALL (DASHBOARD)'!$W$4) -> 3634.203956 | V98: =INDEX('Compile Data'!$EL$123:$FI$204,$O98,'Report - ALL (DASHBOARD)'!$W$4) -> 
A99: 1993 | B99: =INDEX('Compile Data'!$L$12:$AI$93,$A99-1921,'Report - ALL (DASHBOARD)'!$W$4) -> 4552 | C99: =INDEX('Compile Data'!$AL$12:$BI$93,$A99-1921,'Report - ALL (DASHBOARD)'!$W$4) -> 4552 | D99: =INDEX('Compile Data'!$BL$12:$CI$93,$A99-1921,'Report - ALL (DASHBOARD)'!$W$4) -> 4552 | E99: =INDEX('Compile Data'!$CL$12:$DI$93,$A99-1921,'Report - ALL (DASHBOARD)'!$W$4) -> 4552 | F99: =INDEX('Compile Data'!$DL$12:$EI$93,$A99-1921,'Report - ALL (DASHBOARD)'!$W$4) -> 4552 | G99: =INDEX('Compile Data'!$EL$12:$FI$93,$A99-1921,'Report - ALL (DASHBOARD)'!$W$4) ->  | O99: 72 | P99: 0.8765432099 | Q99: =INDEX('Compile Data'!$L$123:$AI$204,$O99,'Report - ALL (DASHBOARD)'!$W$4) -> 3123.063715 | R99: =INDEX('Compile Data'!$AL$123:$BI$204,$O99,'Report - ALL (DASHBOARD)'!$W$4) -> 3286.953538 | S99: =INDEX('Compile Data'!$BL$123:$CI$204,$O99,'Report - ALL (DASHBOARD)'!$W$4) -> 3155.865624 | T99: =INDEX('Compile Data'!$CL$123:$DI$204,$O99,'Report - ALL (DASHBOARD)'!$W$4) -> 3286.953538 | U99: =INDEX('Compile Data'!$DL$123:$EI$204,$O99,'Report - ALL (DASHBOARD)'!$W$4) -> 3446.273233 | V99: =INDEX('Compile Data'!$EL$123:$FI$204,$O99,'Report - ALL (DASHBOARD)'!$W$4) -> 
A100: 1994 | B100: =INDEX('Compile Data'!$L$12:$AI$93,$A100-1921,'Report - ALL (DASHBOARD)'!$W$4) -> 3516.607967 | C100: =INDEX('Compile Data'!$AL$12:$BI$93,$A100-1921,'Report - ALL (DASHBOARD)'!$W$4) -> 3516.022004 | D100: =INDEX('Compile Data'!$BL$12:$CI$93,$A100-1921,'Report - ALL (DASHBOARD)'!$W$4) -> 3560.420527 | E100: =INDEX('Compile Data'!$CL$12:$DI$93,$A100-1921,'Report - ALL (DASHBOARD)'!$W$4) -> 3516.022004 | F100: =INDEX('Compile Data'!$DL$12:$EI$93,$A100-1921,'Report - ALL (DASHBOARD)'!$W$4) -> 3721.546138 | G100: =INDEX('Compile Data'!$EL$12:$FI$93,$A100-1921,'Report - ALL (DASHBOARD)'!$W$4) ->  | O100: 73 | P100: 0.8888888889 | Q100: =INDEX('Compile Data'!$L$123:$AI$204,$O100,'Report - ALL (DASHBOARD)'!$W$4) -> 3113.903002 | R100: =INDEX('Compile Data'!$AL$123:$BI$204,$O100,'Report - ALL (DASHBOARD)'!$W$4) -> 3130.898902 | S100: =INDEX('Compile Data'!$BL$123:$CI$204,$O100,'Report - ALL (DASHBOARD)'!$W$4) -> 3147.208097 | T100: =INDEX('Compile Data'!$CL$123:$DI$204,$O100,'Report - ALL (DASHBOARD)'!$W$4) -> 3130.898902 | U100: =INDEX('Compile Data'!$DL$123:$EI$204,$O100,'Report - ALL (DASHBOARD)'!$W$4) -> 3226.988344 | V100: =INDEX('Compile Data'!$EL$123:$FI$204,$O100,'Report - ALL (DASHBOARD)'!$W$4) -> 
A101: 1995 | B101: =INDEX('Compile Data'!$L$12:$AI$93,$A101-1921,'Report - ALL (DASHBOARD)'!$W$4) -> 4552 | C101: =INDEX('Compile Data'!$AL$12:$BI$93,$A101-1921,'Report - ALL (DASHBOARD)'!$W$4) -> 4552 | D101: =INDEX('Compile Data'!$BL$12:$CI$93,$A101-1921,'Report - ALL (DASHBOARD)'!$W$4) -> 4552 | E101: =INDEX('Compile Data'!$CL$12:$DI$93,$A101-1921,'Report - ALL (DASHBOARD)'!$W$4) -> 4552 | F101: =INDEX('Compile Data'!$DL$12:$EI$93,$A101-1921,'Report - ALL (DASHBOARD)'!$W$4) -> 4552 | G101: =INDEX('Compile Data'!$EL$12:$FI$93,$A101-1921,'Report - ALL (DASHBOARD)'!$W$4) ->  | O101: 74 | P101: 0.9012345679 | Q101: =INDEX('Compile Data'!$L$123:$AI$204,$O101,'Report - ALL (DASHBOARD)'!$W$4) -> 2516.219941 | R101: =INDEX('Compile Data'!$AL$123:$BI$204,$O101,'Report - ALL (DASHBOARD)'!$W$4) -> 2588.133464 | S101: =INDEX('Compile Data'!$BL$123:$CI$204,$O101,'Report - ALL (DASHBOARD)'!$W$4) -> 2627.567595 | T101: =INDEX('Compile Data'!$CL$123:$DI$204,$O101,'Report - ALL (DASHBOARD)'!$W$4) -> 2588.133464 | U101: =INDEX('Compile Data'!$DL$123:$EI$204,$O101,'Report - ALL (DASHBOARD)'!$W$4) -> 2965.631977 | V101: =INDEX('Compile Data'!$EL$123:$FI$204,$O101,'Report - ALL (DASHBOARD)'!$W$4) -> 
A102: 1996 | B102: =INDEX('Compile Data'!$L$12:$AI$93,$A102-1921,'Report - ALL (DASHBOARD)'!$W$4) -> 4552 | C102: =INDEX('Compile Data'!$AL$12:$BI$93,$A102-1921,'Report - ALL (DASHBOARD)'!$W$4) -> 4552 | D102: =INDEX('Compile Data'!$BL$12:$CI$93,$A102-1921,'Report - ALL (DASHBOARD)'!$W$4) -> 4552 | E102: =INDEX('Compile Data'!$CL$12:$DI$93,$A102-1921,'Report - ALL (DASHBOARD)'!$W$4) -> 4552 | F102: =INDEX('Compile Data'!$DL$12:$EI$93,$A102-1921,'Report - ALL (DASHBOARD)'!$W$4) -> 4552 | G102: =INDEX('Compile Data'!$EL$12:$FI$93,$A102-1921,'Report - ALL (DASHBOARD)'!$W$4) ->  | O102: 75 | P102: 0.9135802469 | Q102: =INDEX('Compile Data'!$L$123:$AI$204,$O102,'Report - ALL (DASHBOARD)'!$W$4) -> 2335.72405 | R102: =INDEX('Compile Data'!$AL$123:$BI$204,$O102,'Report - ALL (DASHBOARD)'!$W$4) -> 2340.191327 | S102: =INDEX('Compile Data'!$BL$123:$CI$204,$O102,'Report - ALL (DASHBOARD)'!$W$4) -> 2421.767435 | T102: =INDEX('Compile Data'!$CL$123:$DI$204,$O102,'Report - ALL (DASHBOARD)'!$W$4) -> 2340.191327 | U102: =INDEX('Compile Data'!$DL$123:$EI$204,$O102,'Report - ALL (DASHBOARD)'!$W$4) -> 2922.224043 | V102: =INDEX('Compile Data'!$EL$123:$FI$204,$O102,'Report - ALL (DASHBOARD)'!$W$4) -> 
A103: 1997 | B103: =INDEX('Compile Data'!$L$12:$AI$93,$A103-1921,'Report - ALL (DASHBOARD)'!$W$4) -> 3853.280694 | C103: =INDEX('Compile Data'!$AL$12:$BI$93,$A103-1921,'Report - ALL (DASHBOARD)'!$W$4) -> 3861.468768 | D103: =INDEX('Compile Data'!$BL$12:$CI$93,$A103-1921,'Report - ALL (DASHBOARD)'!$W$4) -> 3861.483235 | E103: =INDEX('Compile Data'!$CL$12:$DI$93,$A103-1921,'Report - ALL (DASHBOARD)'!$W$4) -> 3861.468768 | F103: =INDEX('Compile Data'!$DL$12:$EI$93,$A103-1921,'Report - ALL (DASHBOARD)'!$W$4) -> 3914.630786 | G103: =INDEX('Compile Data'!$EL$12:$FI$93,$A103-1921,'Report - ALL (DASHBOARD)'!$W$4) ->  | O103: 76 | P103: 0.9259259259 | Q103: =INDEX('Compile Data'!$L$123:$AI$204,$O103,'Report - ALL (DASHBOARD)'!$W$4) -> 2210.878367 | R103: =INDEX('Compile Data'!$AL$123:$BI$204,$O103,'Report - ALL (DASHBOARD)'!$W$4) -> 2333.966744 | S103: =INDEX('Compile Data'!$BL$123:$CI$204,$O103,'Report - ALL (DASHBOARD)'!$W$4) -> 2356.58209 | T103: =INDEX('Compile Data'!$CL$123:$DI$204,$O103,'Report - ALL (DASHBOARD)'!$W$4) -> 2333.966744 | U103: =INDEX('Compile Data'!$DL$123:$EI$204,$O103,'Report - ALL (DASHBOARD)'!$W$4) -> 2741.935938 | V103: =INDEX('Compile Data'!$EL$123:$FI$204,$O103,'Report - ALL (DASHBOARD)'!$W$4) -> 
A104: 1998 | B104: =INDEX('Compile Data'!$L$12:$AI$93,$A104-1921,'Report - ALL (DASHBOARD)'!$W$4) -> 4552 | C104: =INDEX('Compile Data'!$AL$12:$BI$93,$A104-1921,'Report - ALL (DASHBOARD)'!$W$4) -> 4552 | D104: =INDEX('Compile Data'!$BL$12:$CI$93,$A104-1921,'Report - ALL (DASHBOARD)'!$W$4) -> 4552 | E104: =INDEX('Compile Data'!$CL$12:$DI$93,$A104-1921,'Report - ALL (DASHBOARD)'!$W$4) -> 4552 | F104: =INDEX('Compile Data'!$DL$12:$EI$93,$A104-1921,'Report - ALL (DASHBOARD)'!$W$4) -> 4552 | G104: =INDEX('Compile Data'!$EL$12:$FI$93,$A104-1921,'Report - ALL (DASHBOARD)'!$W$4) ->  | O104: 77 | P104: 0.9382716049 | Q104: =INDEX('Compile Data'!$L$123:$AI$204,$O104,'Report - ALL (DASHBOARD)'!$W$4) -> 2196.074317 | R104: =INDEX('Compile Data'!$AL$123:$BI$204,$O104,'Report - ALL (DASHBOARD)'!$W$4) -> 2280.84647 | S104: =INDEX('Compile Data'!$BL$123:$CI$204,$O104,'Report - ALL (DASHBOARD)'!$W$4) -> 2267.032128 | T104: =INDEX('Compile Data'!$CL$123:$DI$204,$O104,'Report - ALL (DASHBOARD)'!$W$4) -> 2280.84647 | U104: =INDEX('Compile Data'!$DL$123:$EI$204,$O104,'Report - ALL (DASHBOARD)'!$W$4) -> 2446.112382 | V104: =INDEX('Compile Data'!$EL$123:$FI$204,$O104,'Report - ALL (DASHBOARD)'!$W$4) -> 
A105: 1999 | B105: =INDEX('Compile Data'!$L$12:$AI$93,$A105-1921,'Report - ALL (DASHBOARD)'!$W$4) -> 4518.691239 | C105: =INDEX('Compile Data'!$AL$12:$BI$93,$A105-1921,'Report - ALL (DASHBOARD)'!$W$4) -> 4544.645259 | D105: =INDEX('Compile Data'!$BL$12:$CI$93,$A105-1921,'Report - ALL (DASHBOARD)'!$W$4) -> 4544.655425 | E105: =INDEX('Compile Data'!$CL$12:$DI$93,$A105-1921,'Report - ALL (DASHBOARD)'!$W$4) -> 4544.645259 | F105: =INDEX('Compile Data'!$DL$12:$EI$93,$A105-1921,'Report - ALL (DASHBOARD)'!$W$4) -> 4552 | G105: =INDEX('Compile Data'!$EL$12:$FI$93,$A105-1921,'Report - ALL (DASHBOARD)'!$W$4) ->  | O105: 78 | P105: 0.950617284 | Q105: =INDEX('Compile Data'!$L$123:$AI$204,$O105,'Report - ALL (DASHBOARD)'!$W$4) -> 2187.638974 | R105: =INDEX('Compile Data'!$AL$123:$BI$204,$O105,'Report - ALL (DASHBOARD)'!$W$4) -> 2240.386628 | S105: =INDEX('Compile Data'!$BL$123:$CI$204,$O105,'Report - ALL (DASHBOARD)'!$W$4) -> 2218.440557 | T105: =INDEX('Compile Data'!$CL$123:$DI$204,$O105,'Report - ALL (DASHBOARD)'!$W$4) -> 2240.386628 | U105: =INDEX('Compile Data'!$DL$123:$EI$204,$O105,'Report - ALL (DASHBOARD)'!$W$4) -> 2437.614183 | V105: =INDEX('Compile Data'!$EL$123:$FI$204,$O105,'Report - ALL (DASHBOARD)'!$W$4) -> 
A106: 2000 | B106: =INDEX('Compile Data'!$L$12:$AI$93,$A106-1921,'Report - ALL (DASHBOARD)'!$W$4) -> 4527.437031 | C106: =INDEX('Compile Data'!$AL$12:$BI$93,$A106-1921,'Report - ALL (DASHBOARD)'!$W$4) -> 4538.158375 | D106: =INDEX('Compile Data'!$BL$12:$CI$93,$A106-1921,'Report - ALL (DASHBOARD)'!$W$4) -> 4552 | E106: =INDEX('Compile Data'!$CL$12:$DI$93,$A106-1921,'Report - ALL (DASHBOARD)'!$W$4) -> 4538.158375 | F106: =INDEX('Compile Data'!$DL$12:$EI$93,$A106-1921,'Report - ALL (DASHBOARD)'!$W$4) -> 4552 | G106: =INDEX('Compile Data'!$EL$12:$FI$93,$A106-1921,'Report - ALL (DASHBOARD)'!$W$4) ->  | O106: 79 | P106: 0.962962963 | Q106: =INDEX('Compile Data'!$L$123:$AI$204,$O106,'Report - ALL (DASHBOARD)'!$W$4) -> 2121.694286 | R106: =INDEX('Compile Data'!$AL$123:$BI$204,$O106,'Report - ALL (DASHBOARD)'!$W$4) -> 2218.982026 | S106: =INDEX('Compile Data'!$BL$123:$CI$204,$O106,'Report - ALL (DASHBOARD)'!$W$4) -> 2119.362424 | T106: =INDEX('Compile Data'!$CL$123:$DI$204,$O106,'Report - ALL (DASHBOARD)'!$W$4) -> 2218.982026 | U106: =INDEX('Compile Data'!$DL$123:$EI$204,$O106,'Report - ALL (DASHBOARD)'!$W$4) -> 2414.304882 | V106: =INDEX('Compile Data'!$EL$123:$FI$204,$O106,'Report - ALL (DASHBOARD)'!$W$4) -> 
A107: 2001 | B107: =INDEX('Compile Data'!$L$12:$AI$93,$A107-1921,'Report - ALL (DASHBOARD)'!$W$4) -> 3501.011532 | C107: =INDEX('Compile Data'!$AL$12:$BI$93,$A107-1921,'Report - ALL (DASHBOARD)'!$W$4) -> 3511.127948 | D107: =INDEX('Compile Data'!$BL$12:$CI$93,$A107-1921,'Report - ALL (DASHBOARD)'!$W$4) -> 3626.782125 | E107: =INDEX('Compile Data'!$CL$12:$DI$93,$A107-1921,'Report - ALL (DASHBOARD)'!$W$4) -> 3511.127948 | F107: =INDEX('Compile Data'!$DL$12:$EI$93,$A107-1921,'Report - ALL (DASHBOARD)'!$W$4) -> 4067.450012 | G107: =INDEX('Compile Data'!$EL$12:$FI$93,$A107-1921,'Report - ALL (DASHBOARD)'!$W$4) ->  | O107: 80 | P107: 0.975308642 | Q107: =INDEX('Compile Data'!$L$123:$AI$204,$O107,'Report - ALL (DASHBOARD)'!$W$4) -> 2071.228972 | R107: =INDEX('Compile Data'!$AL$123:$BI$204,$O107,'Report - ALL (DASHBOARD)'!$W$4) -> 2165.708692 | S107: =INDEX('Compile Data'!$BL$123:$CI$204,$O107,'Report - ALL (DASHBOARD)'!$W$4) -> 2041.675775 | T107: =INDEX('Compile Data'!$CL$123:$DI$204,$O107,'Report - ALL (DASHBOARD)'!$W$4) -> 2165.708692 | U107: =INDEX('Compile Data'!$DL$123:$EI$204,$O107,'Report - ALL (DASHBOARD)'!$W$4) -> 2342.603182 | V107: =INDEX('Compile Data'!$EL$123:$FI$204,$O107,'Report - ALL (DASHBOARD)'!$W$4) -> 
A108: 2002 | B108: =INDEX('Compile Data'!$L$12:$AI$93,$A108-1921,'Report - ALL (DASHBOARD)'!$W$4) -> 4267.521262 | C108: =INDEX('Compile Data'!$AL$12:$BI$93,$A108-1921,'Report - ALL (DASHBOARD)'!$W$4) -> 4274.004285 | D108: =INDEX('Compile Data'!$BL$12:$CI$93,$A108-1921,'Report - ALL (DASHBOARD)'!$W$4) -> 4274.121897 | E108: =INDEX('Compile Data'!$CL$12:$DI$93,$A108-1921,'Report - ALL (DASHBOARD)'!$W$4) -> 4274.004285 | F108: =INDEX('Compile Data'!$DL$12:$EI$93,$A108-1921,'Report - ALL (DASHBOARD)'!$W$4) -> 4368.705807 | G108: =INDEX('Compile Data'!$EL$12:$FI$93,$A108-1921,'Report - ALL (DASHBOARD)'!$W$4) ->  | O108: 81 | P108: 0.987654321 | Q108: =INDEX('Compile Data'!$L$123:$AI$204,$O108,'Report - ALL (DASHBOARD)'!$W$4) -> 1966.971269 | R108: =INDEX('Compile Data'!$AL$123:$BI$204,$O108,'Report - ALL (DASHBOARD)'!$W$4) -> 2004.77753 | S108: =INDEX('Compile Data'!$BL$123:$CI$204,$O108,'Report - ALL (DASHBOARD)'!$W$4) -> 1811.637541 | T108: =INDEX('Compile Data'!$CL$123:$DI$204,$O108,'Report - ALL (DASHBOARD)'!$W$4) -> 2004.77753 | U108: =INDEX('Compile Data'!$DL$123:$EI$204,$O108,'Report - ALL (DASHBOARD)'!$W$4) -> 2127.499309 | V108: =INDEX('Compile Data'!$EL$123:$FI$204,$O108,'Report - ALL (DASHBOARD)'!$W$4) -> 
A109: 2003 | B109: =INDEX('Compile Data'!$L$12:$AI$93,$A109-1921,'Report - ALL (DASHBOARD)'!$W$4) -> 4552 | C109: =INDEX('Compile Data'!$AL$12:$BI$93,$A109-1921,'Report - ALL (DASHBOARD)'!$W$4) -> 4552 | D109: =INDEX('Compile Data'!$BL$12:$CI$93,$A109-1921,'Report - ALL (DASHBOARD)'!$W$4) -> 4552 | E109: =INDEX('Compile Data'!$CL$12:$DI$93,$A109-1921,'Report - ALL (DASHBOARD)'!$W$4) -> 4552 | F109: =INDEX('Compile Data'!$DL$12:$EI$93,$A109-1921,'Report - ALL (DASHBOARD)'!$W$4) -> 4552 | G109: =INDEX('Compile Data'!$EL$12:$FI$93,$A109-1921,'Report - ALL (DASHBOARD)'!$W$4) ->  | O109: 82 | P109: 1 | Q109: =INDEX('Compile Data'!$L$123:$AI$204,$O109,'Report - ALL (DASHBOARD)'!$W$4) -> 1671.819804 | R109: =INDEX('Compile Data'!$AL$123:$BI$204,$O109,'Report - ALL (DASHBOARD)'!$W$4) -> 1692.271309 | S109: =INDEX('Compile Data'!$BL$123:$CI$204,$O109,'Report - ALL (DASHBOARD)'!$W$4) -> 1651.561511 | T109: =INDEX('Compile Data'!$CL$123:$DI$204,$O109,'Report - ALL (DASHBOARD)'!$W$4) -> 1692.271309 | U109: =INDEX('Compile Data'!$DL$123:$EI$204,$O109,'Report - ALL (DASHBOARD)'!$W$4) -> 2110.330013 | V109: =INDEX('Compile Data'!$EL$123:$FI$204,$O109,'Report - ALL (DASHBOARD)'!$W$4) -> 

Sheet Compile Data
B1: =Control!$B$5 -> 2035CT NAA 020921 | C1: =Control!$B$6 -> 2035CT Alt 1A 020921 | D1: =Control!$B$7 -> 2035CT Alt 1B 020921 | E1: =Control!$B$8 -> 2035CT Alt 2 020921 | F1: =Control!$B$9 -> 2035CT Alt 3 020921 | G1: =Control!$B$10 -> 0 | AE1: =$B$8 -> INST-VAL | BE1: =$C$8 -> INST-VAL | CE1: =$D$8 -> INST-VAL | DE1: =$E$8 -> INST-VAL | EE1: =$F$8 -> INST-VAL | FE1: =$G$8 -> INST-VAL
A2: Index: | B2: ='Report - ALL (DASHBOARD)'!W2 -> 5 | C2: =B2 -> 5 | D2: 5 | E2: 5 | F2: 5 | G2: 5
A3: Convert? | B3: =IF('Report - ALL (DASHBOARD)'!W5,1,0) -> 0 | C3: 0 | D3: 0 | E3: 0 | F3: 0 | G3: 0
A4: Column: | B4: =TRIM(VLOOKUP(B$2+2,DSSPathnames!$H$7:$K$168,2)) -> G | C4: G | D4: G | E4: G | F4: G | G4: G
A5: Title: | B5: =TRIM(VLOOKUP(B$2+2,DSSPathnames!$H$7:$K$168,4)) -> Shasta Storage | C5: =TRIM(VLOOKUP(C$2+2,DSSPathnames!$H$7:$K$168,4)) -> Shasta Storage | D5: =TRIM(VLOOKUP(D$2+2,DSSPathnames!$H$7:$K$168,4)) -> Shasta Storage | E5: =TRIM(VLOOKUP(E$2+2,DSSPathnames!$H$7:$K$168,4)) -> Shasta Storage | F5: =TRIM(VLOOKUP(F$2+2,DSSPathnames!$H$7:$K$168,4)) -> Shasta Storage | G5: =TRIM(VLOOKUP(G$2+2,DSSPathnames!$H$7:$K$168,4)) -> Shasta Storage
A6: Parameter: | B6: =INDIRECT(CONCATENATE("'",B$1,"'!",B$4,2)) -> S4 | C6: S4 | D6: S4 | E6: S4 | F6: S4
B7: =INDIRECT(CONCATENATE("'",B$1,"'!",B$4,3)) -> STORAGE | C7: STORAGE | D7: STORAGE | E7: STORAGE | F7: STORAGE
A8: Type: | B8: =TRIM(VLOOKUP(B$2+2,DSSPathnames!$H$7:$K$168,3)) -> INST-VAL | C8: =TRIM(VLOOKUP(C$2+2,DSSPathnames!$H$7:$K$168,3)) -> INST-VAL | D8: =TRIM(VLOOKUP(D$2+2,DSSPathnames!$H$7:$K$168,3)) -> INST-VAL | E8: =TRIM(VLOOKUP(E$2+2,DSSPathnames!$H$7:$K$168,3)) -> INST-VAL | F8: =TRIM(VLOOKUP(F$2+2,DSSPathnames!$H$7:$K$168,3)) -> INST-VAL | G8: =TRIM(VLOOKUP(G$2+2,DSSPathnames!$H$7:$K$168,3)) -> INST-VAL | K8: =CONCATENATE(TRIM(B$1),": ",TRIM(B$5)," - ",TRIM(B$6)," ",TRIM(B$7)," (",TRIM(B$10),") ",TRIM(B$11)) -> 2035CT NAA 020921: Shasta Storage - S4 STORAGE (TAF) | AK8: =CONCATENATE(TRIM(C$1),": ",TRIM(C$5)," - ",TRIM(C$6)," ",TRIM(C$7)," (",TRIM(C$10),") ",TRIM(C$11)) -> 2035CT Alt 1A 020921: Shasta Storage - S4 STORAGE (TAF) | BK8: =CONCATENATE(TRIM(D$1),": ",TRIM(D$5)," - ",TRIM(D$6)," ",TRIM(D$7)," (",TRIM(D$10),") ",TRIM(D$11)) -> 2035CT Alt 1B 020921: Shasta Storage - S4 STORAGE (TAF) | CK8: =CONCATENATE(TRIM(E$1),": ",TRIM(E$5)," - ",TRIM(E$6)," ",TRIM(E$7)," (",TRIM(E$10),") ",TRIM(E$11)) -> 2035CT Alt 2 020921: Shasta Storage - S4 STORAGE (TAF) | DK8: =CONCATENATE(TRIM(F$1),": ",TRIM(F$5)," - ",TRIM(F$6)," ",TRIM(F$7)," (",TRIM(F$10),") ",TRIM(F$11)) -> 2035CT Alt 3 020921: Shasta Storage - S4 STORAGE (TAF) | EK8: =CONCATENATE(TRIM(G$1),": ",TRIM(G$5)," - ",TRIM(G$6)," ",TRIM(G$7)," (",TRIM(G$10),") ",TRIM(G$11)) -> 
A9: Units-native: | B9: =TRIM(INDIRECT(CONCATENATE("'",B$1,"'!",B$4,11))) -> TAF | C9: TAF | D9: TAF | E9: TAF | F9: TAF
A10: Units-shown: | B10: =IF(AND(B$3>0,B$9="CFS"),"TAF",B$9) -> TAF | C10: TAF | D10: TAF | E10: TAF | F10: TAF | Y10: Jan-Dec | Z10: Mar-Feb | AA10: Oct-Sep | AC10: Nov-Mar | AD10: Aug-Oct | AE10: Oct-Jan | AF10: Dec-Feb | AG10: Mar-Jun | AH10: Jun-Sep | AI10: Sep-Nov | AY10: Jan-Dec | AZ10: Mar-Feb | BA10: Oct-Sep | BC10: Nov-Mar | BD10: Aug-Oct | BE10: Oct-Jan | BF10: Dec-Feb | BG10: Mar-Jun | BH10: Jun-Sep | BI10: Sep-Nov | BY10: Jan-Dec | BZ10: Mar-Feb | CA10: Oct-Sep | CC10: Nov-Mar | CD10: Aug-Oct | CE10: Oct-Jan | CF10: Dec-Feb | CG10: Mar-Jun | CH10: Jun-Sep | CI10: Sep-Nov | CY10: Jan-Dec | CZ10: Mar-Feb | DA10: Oct-Sep | DC10: Nov-Mar | DD10: Aug-Oct | DE10: Oct-Jan | DF10: Dec-Feb | DG10: Mar-Jun | DH10: Jun-Sep | DI10: Sep-Nov | DY10: Jan-Dec | DZ10: Mar-Feb | EA10: Oct-Sep | EC10: Nov-Mar | ED10: Aug-Oct | EE10: Oct-Jan | EF10: Dec-Feb | EG10: Mar-Jun | EH10: Jun-Sep | EI10: Sep-Nov | EY10: Jan-Dec | EZ10: Mar-Feb | FA10: Oct-Sep | FC10: Nov-Mar | FD10: Aug-Oct | FE10: Oct-Jan | FF10: Dec-Feb | FG10: Mar-Jun | FH10: Jun-Sep | FI10: Sep-Nov
A11: Date | B11: =IF(ISNUMBER(FIND("PRV",B$6)),"SHIFTED","") ->  | C11: =IF(ISNUMBER(FIND("PRV",C$6)),"SHIFTED","") ->  | D11: =IF(ISNUMBER(FIND("PRV",D$6)),"SHIFTED","") ->  | E11: =IF(ISNUMBER(FIND("PRV",E$6)),"SHIFTED","") ->  | F11: =IF(ISNUMBER(FIND("PRV",F$6)),"SHIFTED","") ->  | K11: YEAR | L11: OCT | M11: NOV | N11: DEC | O11: JAN | P11: FEB | Q11: MAR | R11: APR | S11: MAY | T11: JUN | U11: JUL | V11: AUG | W11: SEP | Y11: =IF(AND($B$10="TAF",$B$8="PER-AVER"),"TOT","AVG") -> AVG | Z11: =IF(AND($B$10="TAF",$B$8="PER-AVER"),"TOT","AVG") -> AVG | AA11: =IF(AND($B$10="TAF",$B$8="PER-AVER"),"TOT","AVG") -> AVG | AC11: =IF(AND($B$10="TAF",$B$8="PER-AVER"),"TOT","AVG") -> AVG | AD11: AVG | AE11: AVG | AF11: AVG | AG11: AVG | AH11: AVG | AI11: AVG | AK11: YEAR | AL11: OCT | AM11: NOV | AN11: DEC | AO11: JAN | AP11: FEB | AQ11: MAR | AR11: APR | AS11: MAY | AT11: JUN | AU11: JUL | AV11: AUG | AW11: SEP | AY11: =IF(AND($C$10="TAF",$C$8="PER-AVER"),"TOT","AVG") -> AVG | AZ11: =IF(AND($C$10="TAF",$C$8="PER-AVER"),"TOT","AVG") -> AVG | BA11: =IF(AND($C$10="TAF",$C$8="PER-AVER"),"TOT","AVG") -> AVG | BC11: =IF(AND($B$10="TAF",$B$8="PER-AVER"),"TOT","AVG") -> AVG | BD11: =IF(AND($B$10="TAF",$B$8="PER-AVER"),"TOT","AVG") -> AVG | BE11: =IF(AND($C$10="TAF",$C$8="PER-AVER"),"TOT","AVG") -> AVG | BF11: =IF(AND($C$10="TAF",$C$8="PER-AVER"),"TOT","AVG") -> AVG | BG11: =IF(AND($C$10="TAF",$C$8="PER-AVER"),"TOT","AVG") -> AVG | BH11: =IF(AND($C$10="TAF",$C$8="PER-AVER"),"TOT","AVG") -> AVG | BI11: =IF(AND($C$10="TAF",$C$8="PER-AVER"),"TOT","AVG") -> AVG | BK11: YEAR | BL11: OCT | BM11: NOV | BN11: DEC | BO11: JAN | BP11: FEB | BQ11: MAR | BR11: APR | BS11: MAY | BT11: JUN | BU11: JUL | BV11: AUG | BW11: SEP | BY11: =IF(AND($D$10="TAF",$D$8="PER-AVER"),"TOT","AVG") -> AVG | BZ11: =IF(AND($D$10="TAF",$D$8="PER-AVER"),"TOT","AVG") -> AVG | CA11: =IF(AND($D$10="TAF",$D$8="PER-AVER"),"TOT","AVG") -> AVG | CC11: =IF(AND($B$10="TAF",$B$8="PER-AVER"),"TOT","AVG") -> AVG | CD11: =IF(AND($B$10="TAF",$B$8="PER-AVER"),"TOT","AVG") -> AVG | CE11: =IF(AND($D$10="TAF",$D$8="PER-AVER"),"TOT","AVG") -> AVG | CF11: =IF(AND($D$10="TAF",$D$8="PER-AVER"),"TOT","AVG") -> AVG | CG11: =IF(AND($D$10="TAF",$D$8="PER-AVER"),"TOT","AVG") -> AVG | CH11: =IF(AND($D$10="TAF",$D$8="PER-AVER"),"TOT","AVG") -> AVG | CI11: =IF(AND($D$10="TAF",$D$8="PER-AVER"),"TOT","AVG") -> AVG | CK11: YEAR | CL11: OCT | CM11: NOV | CN11: DEC | CO11: JAN | CP11: FEB | CQ11: MAR | CR11: APR | CS11: MAY | CT11: JUN | CU11: JUL | CV11: AUG | CW11: SEP | CY11: =IF(AND($E$10="TAF",$E$8="PER-AVER"),"TOT","AVG") -> AVG | CZ11: =IF(AND($E$10="TAF",$E$8="PER-AVER"),"TOT","AVG") -> AVG | DA11: =IF(AND($E$10="TAF",$E$8="PER-AVER"),"TOT","AVG") -> AVG | DC11: =IF(AND($B$10="TAF",$B$8="PER-AVER"),"TOT","AVG") -> AVG | DD11: =IF(AND($B$10="TAF",$B$8="PER-AVER"),"TOT","AVG") -> AVG | DE11: =IF(AND($E$10="TAF",$E$8="PER-AVER"),"TOT","AVG") -> AVG | DF11: =IF(AND($E$10="TAF",$E$8="PER-AVER"),"TOT","AVG") -> AVG | DG11: =IF(AND($E$10="TAF",$E$8="PER-AVER"),"TOT","AVG") -> AVG | DH11: =IF(AND($E$10="TAF",$E$8="PER-AVER"),"TOT","AVG") -> AVG | DI11: =IF(AND($E$10="TAF",$E$8="PER-AVER"),"TOT","AVG") -> AVG | DK11: YEAR | DL11: OCT | DM11: NOV | DN11: DEC | DO11: JAN | DP11: FEB | DQ11: MAR | DR11: APR | DS11: MAY | DT11: JUN | DU11: JUL | DV11: AUG | DW11: SEP | DY11: =IF(AND($F$10="TAF",$F$8="PER-AVER"),"TOT","AVG") -> AVG | DZ11: =IF(AND($F$10="TAF",$F$8="PER-AVER"),"TOT","AVG") -> AVG | EA11: =IF(AND($F$10="TAF",$F$8="PER-AVER"),"TOT","AVG") -> AVG | EC11: =IF(AND($B$10="TAF",$B$8="PER-AVER"),"TOT","AVG") -> AVG | ED11: =IF(AND($B$10="TAF",$B$8="PER-AVER"),"TOT","AVG") -> AVG | EE11: =IF(AND($F$10="TAF",$F$8="PER-AVER"),"TOT","AVG") -> AVG | EF11: =IF(AND($F$10="TAF",$F$8="PER-AVER"),"TOT","AVG") -> AVG | EG11: =IF(AND($F$10="TAF",$F$8="PER-AVER"),"TOT","AVG") -> AVG | EH11: =IF(AND($F$10="TAF",$F$8="PER-AVER"),"TOT","AVG") -> AVG | EI11: =IF(AND($F$10="TAF",$F$8="PER-AVER"),"TOT","AVG") -> AVG | EK11: YEAR | EL11: OCT | EM11: NOV | EN11: DEC | EO11: JAN | EP11: FEB | EQ11: MAR | ER11: APR | ES11: MAY | ET11: JUN | EU11: JUL | EV11: AUG | EW11: SEP | EY11: =IF(AND($F$10="TAF",$F$8="PER-AVER"),"TOT","AVG") -> AVG | EZ11: =IF(AND($F$10="TAF",$F$8="PER-AVER"),"TOT","AVG") -> AVG | FA11: =IF(AND($F$10="TAF",$F$8="PER-AVER"),"TOT","AVG") -> AVG | FC11: =IF(AND($B$10="TAF",$B$8="PER-AVER"),"TOT","AVG") -> AVG | FD11: =IF(AND($B$10="TAF",$B$8="PER-AVER"),"TOT","AVG") -> AVG | FE11: =IF(AND($F$10="TAF",$F$8="PER-AVER"),"TOT","AVG") -> AVG | FF11: =IF(AND($F$10="TAF",$F$8="PER-AVER"),"TOT","AVG") -> AVG | FG11: =IF(AND($F$10="TAF",$F$8="PER-AVER"),"TOT","AVG") -> AVG | FH11: =IF(AND($F$10="TAF",$F$8="PER-AVER"),"TOT","AVG") -> AVG | FI11: =IF(AND($F$10="TAF",$F$8="PER-AVER"),"TOT","AVG") -> AVG
A12: 1921-09-30 | K12: 1922 | L12: =B13 -> 2702.895417 | M12: =B14 -> 2543.23853 | N12: =B15 -> 2778.929719 | O12: =B16 -> 2956.446921 | P12: =B17 -> 3504.031644 | Q12: =B18 -> 4022.724716 | R12: =B19 -> 4552 | S12: =B20 -> 4552 | T12: =B21 -> 4156.151085 | U12: =B22 -> 3724.776542 | V12: =B23 -> 3365.697158 | W12: =B24 -> 3256.243162 | Y12: =IF(Y$11="AVG",AVERAGE(O12:W12,L13:N13),SUM(O12:W12,L13:N13)) -> 3656.0274 | Z12: =IF(Z$11="AVG",AVERAGE(Q12:W12,L13:P13),SUM(Q12:W12,L13:P13)) -> 3744.317968 | AA12: =IF(AA$11="AVG",AVERAGE(L12:W12),SUM(L12:W12)) -> 3509.594575 | AC12: =IF(AC$11="AVG",IF(AE$1="INST-VAL",AVERAGE(L12:P12,M12:Q12),AVERAGE(M12:Q12)),SUM(M12:Q12)) -> 3029.091376 | AD12: =IF(AD$11="AVG",IF(AE$1="INST-VAL",AVERAGE(U12:W12,V12:W12,L13),AVERAGE(V12:W12,L13)),SUM(V12:W12,L13)) -> 3361.442864 | AE12: =IF(AE$11="AVG",IF(AE$1="INST-VAL",AVERAGE(W11,L12:N12,L12:O12),AVERAGE(L12:O12)),SUM(L12:O12)) -> 2715.224893 | AF12: =IF(AF$11="AVG",IF(AE$1="INST-VAL",AVERAGE(M12:O12,N12:P12),AVERAGE(N12:P12)),SUM(N12:P12)) -> 2919.670576 | AG12: =IF(AG$11="AVG",IF(AE$1="INST-VAL",AVERAGE(P12:S12,Q12:T12),AVERAGE(Q12:T12)),SUM(Q12:T12)) -> 4239.20402 | AH12: =IF(AH$11="AVG",IF(AE$1="INST-VAL",AVERAGE(S12:V12,T12:W12),AVERAGE(T12:W12)),SUM(T12:W12)) -> 3787.686591 | AI12: =IF(AI$11="AVG",IF(AE$1="INST-VAL",AVERAGE(V12:W12,L13,W12,L13:M13),AVERAGE(W12,L13:M13)),SUM(W12,L13:M13)) -> 3248.573509 | AK12: 1922 | AL12: =C13 -> 2703.74514 | AM12: =C14 -> 2544.027778 | AN12: =C15 -> 2779.718409 | AO12: =C16 -> 2957.235131 | AP12: =C17 -> 3504.819338 | AQ12: =C18 -> 4023.511475 | AR12: =C19 -> 4552 | AS12: =C20 -> 4552 | AT12: =C21 -> 4184.071698 | AU12: =C22 -> 3727.99332 | AV12: =C23 -> 3368.82785 | AW12: =C24 -> 3278.120356 | AY12: =IF(AY$11="AVG",AVERAGE(AO12:AW12,AL13:AN13),SUM(AO12:AW12,AL13:AN13)) -> 3665.153577 | AZ12: =IF(AZ$11="AVG",AVERAGE(AQ12:AW12,AL13:AP13),SUM(AQ12:AW12,AL13:AP13)) -> 3753.312819 | BA12: =IF(BA$11="AVG",AVERAGE(AL12:AW12),SUM(AL12:AW12)) -> 3514.672541 | BC12: =IF(BC$11="AVG",IF(BE$1="INST-VAL",AVERAGE(AL12:AP12,AM12:AQ12),AVERAGE(AM12:AQ12)),SUM(AM12:AQ12)) -> 3029.885793 | BD12: =IF(BD$11="AVG",IF(BE$1="INST-VAL",AVERAGE(AU12:AW12,AV12:AW12,AL13),AVERAGE(AV12:AW12,AL13)),SUM(AV12:AW12,AL13)) -> 3374.047618 | BE12: =IF(BE$11="AVG",IF(BE$1="INST-VAL",AVERAGE(AW11,AL12:AN12,AL12:AO12),AVERAGE(AL12:AO12)),SUM(AL12:AO12)) -> 2716.031112 | BF12: =IF(BF$11="AVG",IF(BE$1="INST-VAL",AVERAGE(AM12:AO12,AN12:AP12),AVERAGE(AN12:AP12)),SUM(AN12:AP12)) -> 2920.459033 | BG12: =IF(BG$11="AVG",IF(BE$1="INST-VAL",AVERAGE(AP12:AS12,AQ12:AT12),AVERAGE(AQ12:AT12)),SUM(AQ12:AT12)) -> 4242.989248 | BH12: =IF(BH$11="AVG",IF(BE$1="INST-VAL",AVERAGE(AS12:AV12,AT12:AW12),AVERAGE(AT12:AW12)),SUM(AT12:AW12)) -> 3798.988261 | BI12: =IF(BI$11="AVG",IF(BE$1="INST-VAL",AVERAGE(AV12:AW12,AL13,AW12,AL13:AM13),AVERAGE(AW12,AL13:AM13)),SUM(AW12,AL13:AM13)) -> 3268.621383 | BK12: 1922 | BL12: =D13 -> 2749.405743 | BM12: =D14 -> 2587.517864 | BN12: =D15 -> 2823.177767 | BO12: =D16 -> 3000.667991 | BP12: =D17 -> 3548.223783 | BQ12: =D18 -> 4066.866518 | BR12: =D19 -> 4552 | BS12: =D20 -> 4552 | BT12: =D21 -> 4184.708765 | BU12: =D22 -> 3768.782619 | BV12: =D23 -> 3409.185824 | BW12: =D24 -> 3296.151809 | BY12: =IF(BY$11="AVG",AVERAGE(BO12:BW12,BL13:BN13),SUM(BO12:BW12,BL13:BN13)) -> 3686.603753 | BZ12: =IF(BZ$11="AVG",AVERAGE(BQ12:BW12,BL13:BP13),SUM(BQ12:BW12,BL13:BP13)) -> 3767.526554 | CA12: =IF(CA$11="AVG",AVERAGE(BL12:BW12),SUM(BL12:BW12)) -> 3544.890723 | CC12: =IF(CC$11="AVG",IF(CE$1="INST-VAL",AVERAGE(BL12:BP12,BM12:BQ12),AVERAGE(BM12:BQ12)),SUM(BM12:BQ12)) -> 3073.544707 | CD12: =IF(CD$11="AVG",IF(CE$1="INST-VAL",AVERAGE(BU12:BW12,BV12:BW12,BL13),AVERAGE(BV12:BW12,BL13)),SUM(BV12:BW12,BL13)) -> 3403.185936 | CE12: =IF(CE$11="AVG",IF(CE$1="INST-VAL",AVERAGE(BW11,BL12:BN12,BL12:BO12),AVERAGE(BL12:BO12)),SUM(BL12:BO12)) -> 2760.124391 | CF12: =IF(CF$11="AVG",IF(CE$1="INST-VAL",AVERAGE(BM12:BO12,BN12:BP12),AVERAGE(BN12:BP12)),SUM(BN12:BP12)) -> 2963.905527 | CG12: =IF(CG$11="AVG",IF(CE$1="INST-VAL",AVERAGE(BP12:BS12,BQ12:BT12),AVERAGE(BQ12:BT12)),SUM(BQ12:BT12)) -> 4259.333198 | CH12: =IF(CH$11="AVG",IF(CE$1="INST-VAL",AVERAGE(BS12:BV12,BT12:BW12),AVERAGE(BT12:BW12)),SUM(BT12:BW12)) -> 3821.688278 | CI12: =IF(CI$11="AVG",IF(CE$1="INST-VAL",AVERAGE(BV12:BW12,BL13,BW12,BL13:BM13),AVERAGE(BW12,BL13:BM13)),SUM(BW12,BL13:BM13)) -> 3288.800818 | CK12: 1922 | CL12: =E13 -> 2703.74514 | CM12: =E14 -> 2544.027778 | CN12: =E15 -> 2779.718409 | CO12: =E16 -> 2957.235131 | CP12: =E17 -> 3504.819338 | CQ12: =E18 -> 4023.511475 | CR12: =E19 -> 4552 | CS12: =E20 -> 4552 | CT12: =E21 -> 4184.071698 | CU12: =E22 -> 3727.99332 | CV12: =E23 -> 3368.82785 | CW12: =E24 -> 3278.120356 | CY12: =IF(CY$11="AVG",AVERAGE(CO12:CW12,CL13:CN13),SUM(CO12:CW12,CL13:CN13)) -> 3665.153577 | CZ12: =IF(CZ$11="AVG",AVERAGE(CQ12:CW12,CL13:CP13),SUM(CQ12:CW12,CL13:CP13)) -> 3753.312819 | DA12: =IF(DA$11="AVG",AVERAGE(CL12:CW12),SUM(CL12:CW12)) -> 3514.672541 | DC12: =IF(DC$11="AVG",IF(DE$1="INST-VAL",AVERAGE(CL12:CP12,CM12:CQ12),AVERAGE(CM12:CQ12)),SUM(CM12:CQ12)) -> 3029.885793 | DD12: =IF(DD$11="AVG",IF(DE$1="INST-VAL",AVERAGE(CU12:CW12,CV12:CW12,CL13),AVERAGE(CV12:CW12,CL13)),SUM(CV12:CW12,CL13)) -> 3374.047618 | DE12: =IF(DE$11="AVG",IF(DE$1="INST-VAL",AVERAGE(CW11,CL12:CN12,CL12:CO12),AVERAGE(CL12:CO12)),SUM(CL12:CO12)) -> 2716.031112 | DF12: =IF(DF$11="AVG",IF(DE$1="INST-VAL",AVERAGE(CM12:CO12,CN12:CP12),AVERAGE(CN12:CP12)),SUM(CN12:CP12)) -> 2920.459033 | DG12: =IF(DG$11="AVG",IF(DE$1="INST-VAL",AVERAGE(CP12:CS12,CQ12:CT12),AVERAGE(CQ12:CT12)),SUM(CQ12:CT12)) -> 4242.989248 | DH12: =IF(DH$11="AVG",IF(DE$1="INST-VAL",AVERAGE(CS12:CV12,CT12:CW12),AVERAGE(CT12:CW12)),SUM(CT12:CW12)) -> 3798.988261 | DI12: =IF(DI$11="AVG",IF(DE$1="INST-VAL",AVERAGE(CV12:CW12,CL13,CW12,CL13:CM13),AVERAGE(CW12,CL13:CM13)),SUM(CW12,CL13:CM13)) -> 3268.621383 | DK12: 1922 | DL12: =F13 -> 2753.209232 | DM12: =F14 -> 2737.513064 | DN12: =F15 -> 2912.852221 | DO12: =F16 -> 3059.482836 | DP12: =F17 -> 3486.086573 | DQ12: =F18 -> 4006.69414 | DR12: =F19 -> 4552 | DS12: =F20 -> 4552 | DT12: =F21 -> 4318.89356 | DU12: =F22 -> 3954.053545 | DV12: =F23 -> 3598.310308 | DW12: =F24 -> 3400 | DY12: =IF(DY$11="AVG",AVERAGE(DO12:DW12,DL13:DN13),SUM(DO12:DW12,DL13:DN13)) -> 3733.21008 | DZ12: =IF(DZ$11="AVG",AVERAGE(DQ12:DW12,DL13:DP13),SUM(DQ12:DW12,DL13:DP13)) -> 3790.283449 | EA12: =IF(EA$11="AVG",AVERAGE(DL12:DW12),SUM(DL12:DW12)) -> 3610.924623 | EC12: =IF(EC$11="AVG",IF(EE$1="INST-VAL",AVERAGE(DL12:DP12,DM12:DQ12),AVERAGE(DM12:DQ12)),SUM(DM12:DQ12)) -> 3115.177276 | ED12: =IF(ED$11="AVG",IF(EE$1="INST-VAL",AVERAGE(DU12:DW12,DV12:DW12,DL13),AVERAGE(DV12:DW12,DL13)),SUM(DV12:DW12,DL13)) -> 3533.445693 | EE12: =IF(EE$11="AVG",IF(EE$1="INST-VAL",AVERAGE(DW11,DL12:DN12,DL12:DO12),AVERAGE(DL12:DO12)),SUM(DL12:DO12)) -> 2838.090267 | EF12: =IF(EF$11="AVG",IF(EE$1="INST-VAL",AVERAGE(DM12:DO12,DN12:DP12),AVERAGE(DN12:DP12)),SUM(DN12:DP12)) -> 3028.044958 | EG12: =IF(EG$11="AVG",IF(EE$1="INST-VAL",AVERAGE(DP12:DS12,DQ12:DT12),AVERAGE(DQ12:DT12)),SUM(DQ12:DT12)) -> 4253.296052 | EH12: =IF(EH$11="AVG",IF(EE$1="INST-VAL",AVERAGE(DS12:DV12,DT12:DW12),AVERAGE(DT12:DW12)),SUM(DT12:DW12)) -> 3961.814353 | EI12: =IF(EI$11="AVG",IF(EE$1="INST-VAL",AVERAGE(DV12:DW12,DL13,DW12,DL13:DM13),AVERAGE(DW12,DL13:DM13)),SUM(DW12,DL13:DM13)) -> 3358.385051 | EK12: 1922 | EL12: =G13 ->  | EM12: =G14 ->  | EN12: =G15 ->  | EO12: =G16 ->  | EP12: =G17 ->  | EQ12: =G18 ->  | ER12: =G19 ->  | ES12: =G20 ->  | ET12: =G21 ->  | EU12: =G22 ->  | EV12: =G23 ->  | EW12: =G24 ->  | EY12: =IF(EY$11="AVG",AVERAGE(EO12:EW12,EL13:EN13),SUM(EO12:EW12,EL13:EN13)) ->  | EZ12: =IF(EZ$11="AVG",AVERAGE(EQ12:EW12,EL13:EP13),SUM(EQ12:EW12,EL13:EP13)) ->  | FA12: =IF(FA$11="AVG",AVERAGE(EL12:EW12),SUM(EL12:EW12)) ->  | FC12: =IF(FC$11="AVG",IF(FE$1="INST-VAL",AVERAGE(EL12:EP12,EM12:EQ12),AVERAGE(EM12:EQ12)),SUM(EM12:EQ12)) ->  | FD12: =IF(FD$11="AVG",IF(FE$1="INST-VAL",AVERAGE(EU12:EW12,EV12:EW12,EL13),AVERAGE(EV12:EW12,EL13)),SUM(EV12:EW12,EL13)) ->  | FE12: =IF(FE$11="AVG",IF(FE$1="INST-VAL",AVERAGE(EW11,EL12:EN12,EL12:EO12),AVERAGE(EL12:EO12)),SUM(EL12:EO12)) ->  | FF12: =IF(FF$11="AVG",IF(FE$1="INST-VAL",AVERAGE(EM12:EO12,EN12:EP12),AVERAGE(EN12:EP12)),SUM(EN12:EP12)) ->  | FG12: =IF(FG$11="AVG",IF(FE$1="INST-VAL",AVERAGE(EP12:ES12,EQ12:ET12),AVERAGE(EQ12:ET12)),SUM(EQ12:ET12)) ->  | FH12: =IF(FH$11="AVG",IF(FE$1="INST-VAL",AVERAGE(ES12:EV12,ET12:EW12),AVERAGE(ET12:EW12)),SUM(ET12:EW12)) ->  | FI12: =IF(FI$11="AVG",IF(FE$1="INST-VAL",AVERAGE(EV12:EW12,EL13,EW12,EL13:EM13),AVERAGE(EW12,EL13:EM13)),SUM(EW12,EL13:EM13)) -> 
A13: 1921-10-31 | B13: =INDIRECT(CONCATENATE("'",B$1,"'!",B$4,(YEAR($A13)-1921)*12+MONTH($A13)+3+IF(ISNUMBER(FIND("PRV",B$6)),1,0)))*IF(AND(B$3>0,TRIM(B$9)="CFS"),Conversions!$C13,1) -> 2702.895417 | C13: =INDIRECT(CONCATENATE("'",C$1,"'!",C$4,(YEAR($A13)-1921)*12+MONTH($A13)+3+IF(ISNUMBER(FIND("PRV",C$6)),1,0)))*IF(AND(C$3>0,TRIM(C$9)="CFS"),Conversions!$C13,1) -> 2703.74514 | D13: =INDIRECT(CONCATENATE("'",D$1,"'!",D$4,(YEAR($A13)-1921)*12+MONTH($A13)+3+IF(ISNUMBER(FIND("PRV",D$6)),1,0)))*IF(AND(D$3>0,TRIM(D$9)="CFS"),Conversions!$C13,1) -> 2749.405743 | E13: =INDIRECT(CONCATENATE("'",E$1,"'!",E$4,(YEAR($A13)-1921)*12+MONTH($A13)+3+IF(ISNUMBER(FIND("PRV",E$6)),1,0)))*IF(AND(E$3>0,TRIM(E$9)="CFS"),Conversions!$C13,1) -> 2703.74514 | F13: =INDIRECT(CONCATENATE("'",F$1,"'!",F$4,(YEAR($A13)-1921)*12+MONTH($A13)+3+IF(ISNUMBER(FIND("PRV",F$6)),1,0)))*IF(AND(F$3>0,TRIM(F$9)="CFS"),Conversions!$C13,1) -> 2753.209232 | G13: =INDIRECT(CONCATENATE("'",G$1,"'!",G$4,(YEAR($A13)-1921)*12+MONTH($A13)+3+IF(ISNUMBER(FIND("PRV",G$6)),1,0)))*IF(AND(G$3>0,TRIM(G$9)="CFS"),Conversions!$C13,1) ->  | K13: 1923 | L13: =B25 -> 3200 | M13: =B26 -> 3213.257571 | N13: =B27 -> 3369 | O13: =B28 -> 3678.233246 | P13: =B29 -> 3841.73213 | Q13: =B30 -> 3895.151589 | R13: =B31 -> 4371.091438 | S13: =B32 -> 4013.903732 | T13: =B33 -> 3652.439587 | U13: =B34 -> 3095.052802 | V13: =B35 -> 2765.42011 | W13: =B36 -> 2762.972775 | Y13: 3299.395494 | Z13: 3126.58293 | AA13: 3488.187915 | AC13: =IF(AC$11="AVG",IF(AE$1="INST-VAL",AVERAGE(L13:P13,M13:Q13),AVERAGE(M13:Q13)),SUM(M13:Q13)) -> 3529.959749 | AD13: =IF(AD$11="AVG",IF(AE$1="INST-VAL",AVERAGE(U13:W13,V13:W13,L14),AVERAGE(V13:W13,L14)),SUM(V13:W13,L14)) -> 2789.900936 | AE13: =IF(AE$11="AVG",IF(AE$1="INST-VAL",AVERAGE(W12,L13:N13,L13:O13),AVERAGE(L13:O13)),SUM(L13:O13)) -> 3312.373944 | AF13: 3524.909366 | AG13: 4006.808155 | AH13: 3225.337688 | AI13: 2658.408441 | AK13: 1923 | AL13: =C25 -> 3222.395976 | AM13: =C26 -> 3241.867783 | AN13: =C27 -> 3369 | AO13: =C28 -> 3678.233246 | AP13: =C29 -> 3841.73213 | AQ13: =C30 -> 3891.263872 | AR13: =C31 -> 4367.20903 | AS13: =C32 -> 4030.769395 | AT13: =C33 -> 3674.813026 | AU13: =C34 -> 3121.435264 | AV13: =C35 -> 2792.817654 | AW13: =C36 -> 2793.45764 | AY13: 3314.628966 | AZ13: 3146.080367 | BA13: 3502.082918 | BC13: =IF(BC$11="AVG",IF(BE$1="INST-VAL",AVERAGE(AL13:AP13,AM13:AQ13),AVERAGE(AM13:AQ13)),SUM(AM13:AQ13)) -> 3537.532617 | BD13: =IF(BD$11="AVG",IF(BE$1="INST-VAL",AVERAGE(AU13:AW13,AV13:AW13,AL14),AVERAGE(AV13:AW13,AL14)),SUM(AV13:AW13,AL14)) -> 2817.06443 | BE13: 3327.86014 | BF13: 3529.677734 | BG13: 4011.878719 | BH13: 3250.294865 | BI13: 2683.517641 | BK13: 1923 | BL13: =D25 -> 3239.657733 | BM13: =D26 -> 3252 | BN13: =D27 -> 3369 | BO13: =D28 -> 3678.233246 | BP13: =D29 -> 3841.73213 | BQ13: =D30 -> 3898.466278 | BR13: =D31 -> 4374.401599 | BS13: =D32 -> 4037.905051 | BT13: =D33 -> 3681.920186 | BU13: =D34 -> 3123.701977 | BV13: =D35 -> 2794.196683 | BW13: =D36 -> 2794.810147 | BY13: 3315.23358 | BZ13: 3145.006228 | CA13: 3507.168753 | CC13: =IF(CC$11="AVG",IF(CE$1="INST-VAL",AVERAGE(BL13:BP13,BM13:BQ13),AVERAGE(BM13:BQ13)),SUM(BM13:BQ13)) -> 3542.005476 | CD13: =IF(CD$11="AVG",IF(CE$1="INST-VAL",AVERAGE(BU13:BW13,BV13:BW13,BL14),AVERAGE(BV13:BW13,BL14)),SUM(BV13:BW13,BL14)) -> 2816.843431 | CE13: 3336.962565 | CF13: 3531.366437 | CG13: 4018.149771 | CH13: 3254.044111 | CI13: 2679.972945 | CK13: 1923 | CL13: =E25 -> 3222.395976 | CM13: =E26 -> 3241.867783 | CN13: =E27 -> 3369 | CO13: =E28 -> 3678.233246 | CP13: =E29 -> 3841.73213 | CQ13: =E30 -> 3891.263872 | CR13: =E31 -> 4367.20903 | CS13: =E32 -> 4030.769395 | CT13: =E33 -> 3674.813026 | CU13: =E34 -> 3121.435264 | CV13: =E35 -> 2792.817654 | CW13: =E36 -> 2793.45764 | CY13: 3314.628966 | CZ13: 3146.080367 | DA13: 3502.082918 | DC13: 3537.532617 | DD13: 2817.06443 | DE13: 3327.86014 | DF13: 3529.677734 | DG13: 4011.878719 | DH13: 3250.294865 | DI13: 2683.517641 | DK13: 1923 | DL13: =F25 -> 3250 | DM13: =F26 -> 3252 | DN13: =F27 -> 3369 | DO13: =F28 -> 3589.959766 | DP13: =F29 -> 3640.490063 | DQ13: =F30 -> 3776.496516 | DR13: =F31 -> 4246.003274 | DS13: =F32 -> 3991.377675 | DT13: =F33 -> 3675.367982 | DU13: =F34 -> 3298.201907 | DV13: =F35 -> 2989.326513 | DW13: =F36 -> 2954.070677 | DY13: 3375.910215 | DZ13: 3257.217419 | EA13: 3502.691198 | EC13: 3472.939617 | ED13: 3010.765367 | EE13: 3341.494971 | EF13: 3468.401599 | EG13: 3917.951622 | EH13: 3358.905144 | EI13: 2903.725051 | EK13: 1923 | EL13: =G25 ->  | EM13: =G26 ->  | EN13: =G27 ->  | EO13: =G28 ->  | EP13: =G29 ->  | EQ13: =G30 ->  | ER13: =G31 ->  | ES13: =G32 ->  | ET13: =G33 ->  | EU13: =G34 ->  | EV13: =G35 ->  | EW13: =G36 -> 
A14: 1921-11-30 | B14: =INDIRECT(CONCATENATE("'",B$1,"'!",B$4,(YEAR($A14)-1921)*12+MONTH($A14)+3+IF(ISNUMBER(FIND("PRV",B$6)),1,0)))*IF(AND(B$3>0,TRIM(B$9)="CFS"),Conversions!$C14,1) -> 2543.23853 | C14: =INDIRECT(CONCATENATE("'",C$1,"'!",C$4,(YEAR($A14)-1921)*12+MONTH($A14)+3+IF(ISNUMBER(FIND("PRV",C$6)),1,0)))*IF(AND(C$3>0,TRIM(C$9)="CFS"),Conversions!$C14,1) -> 2544.027778 | D14: =INDIRECT(CONCATENATE("'",D$1,"'!",D$4,(YEAR($A14)-1921)*12+MONTH($A14)+3+IF(ISNUMBER(FIND("PRV",D$6)),1,0)))*IF(AND(D$3>0,TRIM(D$9)="CFS"),Conversions!$C14,1) -> 2587.517864 | E14: =INDIRECT(CONCATENATE("'",E$1,"'!",E$4,(YEAR($A14)-1921)*12+MONTH($A14)+3+IF(ISNUMBER(FIND("PRV",E$6)),1,0)))*IF(AND(E$3>0,TRIM(E$9)="CFS"),Conversions!$C14,1) -> 2544.027778 | F14: =INDIRECT(CONCATENATE("'",F$1,"'!",F$4,(YEAR($A14)-1921)*12+MONTH($A14)+3+IF(ISNUMBER(FIND("PRV",F$6)),1,0)))*IF(AND(F$3>0,TRIM(F$9)="CFS"),Conversions!$C14,1) -> 2737.513064 | G14: =INDIRECT(CONCATENATE("'",G$1,"'!",G$4,(YEAR($A14)-1921)*12+MONTH($A14)+3+IF(ISNUMBER(FIND("PRV",G$6)),1,0)))*IF(AND(G$3>0,TRIM(G$9)="CFS"),Conversions!$C14,1) ->  | K14: 1924 | L14: =B37 -> 2587.567043 | M14: =B38 -> 2483.9509 | N14: =B39 -> 2445.23058 | O14: =B40 -> 2605.495103 | P14: =B41 -> 2840.7195 | Q14: =B42 -> 2634.106463 | R14: =B43 -> 2532.943925 | S14: =B44 -> 2187.638974 | T14: =B45 -> 1818.650632 | U14: =B46 -> 1482.539131 | V14: =B47 -> 1245.243283 | W14: =B48 -> 1182.725122 | Y14: 1874.488331 | Z14: 1823.412141 | AA14: 2170.567555 | AC14: =IF(AC$11="AVG",IF(AE$1="INST-VAL",AVERAGE(L14:P14,M14:Q14),AVERAGE(M14:Q14)),SUM(M14:Q14)) -> 2597.246567 | AD14: =IF(AD$11="AVG",IF(AE$1="INST-VAL",AVERAGE(U14:W14,V14:W14,L15),AVERAGE(V14:W14,L15)),SUM(V14:W14,L15)) -> 1251.058859 | AE14: =IF(AE$11="AVG",IF(AE$1="INST-VAL",AVERAGE(W13,L14:N14,L14:O14),AVERAGE(L14:O14)),SUM(L14:O14)) -> 2550.245616 | AF14: 2571.020295 | AG14: 2421.093607 | AH14: 1557.903774 | AI14: 1212.025492 | AK14: 1924 | AL14: =C37 -> 2608.400731 | AM14: =C38 -> 2504.571447 | AN14: =C39 -> 2470.844158 | AO14: =C40 -> 2631.091465 | AP14: =C41 -> 2866.290723 | AQ14: =C42 -> 2664.634564 | AR14: =C43 -> 2565.490907 | AS14: =C44 -> 2218.982026 | AT14: =C45 -> 1849.754459 | AU14: =C46 -> 1512.516001 | AV14: =C47 -> 1269.162951 | AW14: =C48 -> 1211.256632 | AY14: 1903.394978 | AZ14: 1852.550726 | BA14: 2197.749672 | BC14: =IF(BC$11="AVG",IF(BE$1="INST-VAL",AVERAGE(AL14:AP14,AM14:AQ14),AVERAGE(AM14:AQ14)),SUM(AM14:AQ14)) -> 2621.863088 | BD14: 1279.159472 | BE14: 2574.022722 | BF14: 2595.788903 | BG14: 2451.782522 | BH14: 1586.638185 | BI14: 1241.268718 | BK14: 1924 | BL14: =D37 -> 2599.344946 | BM14: =D38 -> 2497.330799 | BN14: =D39 -> 2460.759915 | BO14: =D40 -> 2621.013999 | BP14: =D41 -> 2856.223157 | BQ14: =D42 -> 2662.486143 | BR14: =D43 -> 2565.110368 | BS14: =D44 -> 2218.440557 | BT14: =D45 -> 1849.157335 | BU14: =D46 -> 1512.059593 | BV14: =D47 -> 1268.442989 | BW14: =D48 -> 1209.325734 | BY14: 1900.308687 | BZ14: 1850.681188 | CA14: 2193.307961 | CC14: =IF(CC$11="AVG",IF(CE$1="INST-VAL",AVERAGE(BL14:BP14,BM14:BQ14),AVERAGE(BM14:BQ14)),SUM(BM14:BQ14)) -> 2613.248683 | CD14: 1277.439332 | CE14: 2566.336933 | CF14: 2586.183631 | CG14: 2449.681828 | CH14: 1585.885765 | CI14: 1238.521291 | CK14: 1924 | CL14: =E37 -> 2608.400731 | CM14: =E38 -> 2504.571447 | CN14: =E39 -> 2470.844158 | CO14: =E40 -> 2631.091465 | CP14: =E41 -> 2866.290723 | CQ14: =E42 -> 2664.634564 | CR14: =E43 -> 2565.490907 | CS14: =E44 -> 2218.982026 | CT14: =E45 -> 1849.754459 | CU14: =E46 -> 1512.516001 | CV14: =E47 -> 1269.162951 | CW14: =E48 -> 1211.256632 | CY14: 1903.394978 | CZ14: 1852.550726 | DA14: 2197.749672 | DC14: 2621.863088 | DD14: 1279.159472 | DE14: 2574.022722 | DF14: 2595.788903 | DG14: 2451.782522 | DH14: 1586.638185 | DI14: 1241.268718 | DK14: 1924 | DL14: =F37 -> 2879.595914 | DM14: =F38 -> 2765.690609 | DN14: =F39 -> 2704.341684 | DO14: =F40 -> 2798.67752 | DP14: =F41 -> 3007.458759 | DQ14: =F42 -> 2881.915543 | DR14: =F43 -> 2787.567365 | DS14: =F44 -> 2437.614183 | DT14: =F45 -> 2065.25094 | DU14: =F46 -> 1722.263035 | DV14: =F47 -> 1457.045654 | DW14: =F48 -> 1385.799051 | DY14: 2093.269104 | DZ14: 2024.530792 | EA14: 2407.768355 | EC14: 2831.38486 | ED14: 1468.019879 | EE14: 2806.500576 | EF14: 2796.531296 | EG14: 2660.862985 | EH14: 1789.066561 | EI14: 1426.83643 | EK14: 1924 | EL14: =G37 ->  | EM14: =G38 ->  | EN14: =G39 ->  | EO14: =G40 ->  | EP14: =G41 ->  | EQ14: =G42 ->  | ER14: =G43 ->  | ES14: =G44 ->  | ET14: =G45 ->  | EU14: =G46 ->  | EV14: =G47 ->  | EW14: =G48 -> 
A15: 1921-12-31 | B15: =INDIRECT(CONCATENATE("'",B$1,"'!",B$4,(YEAR($A15)-1921)*12+MONTH($A15)+3+IF(ISNUMBER(FIND("PRV",B$6)),1,0)))*IF(AND(B$3>0,TRIM(B$9)="CFS"),Conversions!$C15,1) -> 2778.929719 | C15: =INDIRECT(CONCATENATE("'",C$1,"'!",C$4,(YEAR($A15)-1921)*12+MONTH($A15)+3+IF(ISNUMBER(FIND("PRV",C$6)),1,0)))*IF(AND(C$3>0,TRIM(C$9)="CFS"),Conversions!$C15,1) -> 2779.718409 | D15: =INDIRECT(CONCATENATE("'",D$1,"'!",D$4,(YEAR($A15)-1921)*12+MONTH($A15)+3+IF(ISNUMBER(FIND("PRV",D$6)),1,0)))*IF(AND(D$3>0,TRIM(D$9)="CFS"),Conversions!$C15,1) -> 2823.177767 | E15: =INDIRECT(CONCATENATE("'",E$1,"'!",E$4,(YEAR($A15)-1921)*12+MONTH($A15)+3+IF(ISNUMBER(FIND("PRV",E$6)),1,0)))*IF(AND(E$3>0,TRIM(E$9)="CFS"),Conversions!$C15,1) -> 2779.718409 | F15: =INDIRECT(CONCATENATE("'",F$1,"'!",F$4,(YEAR($A15)-1921)*12+MONTH($A15)+3+IF(ISNUMBER(FIND("PRV",F$6)),1,0)))*IF(AND(F$3>0,TRIM(F$9)="CFS"),Conversions!$C15,1) -> 2912.852221 | G15: =INDIRECT(CONCATENATE("'",G$1,"'!",G$4,(YEAR($A15)-1921)*12+MONTH($A15)+3+IF(ISNUMBER(FIND("PRV",G$6)),1,0)))*IF(AND(G$3>0,TRIM(G$9)="CFS"),Conversions!$C15,1) ->  | K15: 1925 | L15: =B49 -> 1167.877213 | M15: =B50 -> 1325.705001 | N15: =B51 -> 1470.215622 | O15: =B52 -> 1778.08084 | P15: =B53 -> 3055.219485 | Q15: =B54 -> 3430.290234 | R15: =B55 -> 4122.641827 | S15: =B56 -> 4105.41576 | T15: =B57 -> 3786.560284 | U15: =B58 -> 3202.726044 | V15: =B59 -> 2828.266882 | W15: =B60 -> 2760.092969 | Y15: 3084.677926 | Z15: 3206.11731 | AA15: 2752.75768 | AC15: =IF(AC$11="AVG",IF(AE$1="INST-VAL",AVERAGE(L15:P15,M15:Q15),AVERAGE(M15:Q15)),SUM(M15:Q15)) -> 1985.660934 | AD15: 2837.723193 | AE15: 1361.050204 | AF15: 1812.919568 | AG15: 3769.809427 | AH15: 3312.576894 | AI15: 2711.176461 | AK15: 1925 | AL15: =C49 -> 1201.601667 | AM15: =C50 -> 1352.732762 | AN15: =C51 -> 1497.225579 | AO15: =C52 -> 1805.069667 | AP15: =C53 -> 3082.1815 | AQ15: =C54 -> 3457.214825 | AR15: =C55 -> 4149.510978 | AS15: =C56 -> 4159.561735 | AT15: =C57 -> 3820.3079 | AU15: =C58 -> 3226.516528 | AV15: =C59 -> 2848.368602 | AW15: =C60 -> 2781.297709 | AY15: 3107.570459 | AZ15: 3220.806377 | BA15: 2781.799121 | BC15: =IF(BC$11="AVG",IF(BE$1="INST-VAL",AVERAGE(AL15:AP15,AM15:AQ15),AVERAGE(AM15:AQ15)),SUM(AM15:AQ15)) -> 2013.323551 | BD15: =IF(BD$11="AVG",IF(BE$1="INST-VAL",AVERAGE(AU15:AW15,AV15:AW15,AL16),AVERAGE(AV15:AW15,AL16)),SUM(AV15:AW15,AL16)) -> 2860.064158 | BE15: 1389.930789 | BF15: 1839.917459 | BG15: 3804.38306 | BH15: 3341.405688 | BI15: 2732.242905 | BK15: 1925 | BL15: =D49 -> 1197.038953 | BM15: =D50 -> 1349.955384 | BN15: =D51 -> 1494.45003 | BO15: =D52 -> 1802.296289 | BP15: =D53 -> 3079.410878 | BQ15: =D54 -> 3454.448049 | BR15: =D55 -> 4146.749899 | BS15: =D56 -> 4174.373327 | BT15: =D57 -> 3839.801123 | BU15: =D58 -> 3242.939448 | BV15: =D59 -> 2865.314496 | BW15: =D60 -> 2797.934238 | BY15: 3124.813221 | BZ15: 3250.984581 | CA15: 2787.059343 | CC15: 2010.371216 | CD15: 2876.520531 | CE15: 1386.813845 | CF15: 1837.14315 | CG15: 3808.794319 | CH15: 3358.552212 | CI15: 2752.929814 | CK15: 1925 | CL15: =E49 -> 1201.601667 | CM15: =E50 -> 1352.732762 | CN15: =E51 -> 1497.225579 | CO15: =E52 -> 1805.069667 | CP15: =E53 -> 3082.1815 | CQ15: =E54 -> 3457.214825 | CR15: =E55 -> 4149.510978 | CS15: =E56 -> 4159.561735 | CT15: =E57 -> 3820.3079 | CU15: =E58 -> 3226.516528 | CV15: =E59 -> 2848.368602 | CW15: =E60 -> 2781.297709 | CY15: 3107.570459 | CZ15: 3220.806377 | DA15: 2781.799121 | DC15: 2013.323551 | DD15: 2860.064158 | DE15: 1389.930789 | DF15: 1839.917459 | DG15: 3804.38306 | DH15: 3341.405688 | DI15: 2732.242905 | DK15: 1925 | DL15: =F49 -> 1400.166829 | DM15: =F50 -> 1532.04117 | DN15: =F51 -> 1643.4292 | DO15: =F52 -> 1882.920771 | DP15: =F53 -> 3098.355763 | DQ15: =F54 -> 3472.543604 | DR15: =F55 -> 4175.308564 | DS15: =F56 -> 4344.307713 | DT15: =F57 -> 4159.820803 | DU15: =F58 -> 3604.667214 | DV15: =F59 -> 3244.997458 | DW15: =F60 -> 3120.215218 | DY15: 3337.259334 | DZ15: 3484.889579 | EA15: 2973.231192 | EC15: 2118.620424 | ED15: 3225.440916 | EE15: 1552.499277 | EF15: 1947.182813 | EG15: 3905.312041 | EH15: 3685.436735 | EI15: 3079.537588 | EK15: 1925 | EL15: =G49 ->  | EM15: =G50 ->  | EN15: =G51 ->  | EO15: =G52 ->  | EP15: =G53 ->  | EQ15: =G54 ->  | ER15: =G55 ->  | ES15: =G56 ->  | ET15: =G57 ->  | EU15: =G58 ->  | EV15: =G59 ->  | EW15: =G60 -> 
A16: 1922-01-31 | B16: =INDIRECT(CONCATENATE("'",B$1,"'!",B$4,(YEAR($A16)-1921)*12+MONTH($A16)+3+IF(ISNUMBER(FIND("PRV",B$6)),1,0)))*IF(AND(B$3>0,TRIM(B$9)="CFS"),Conversions!$C16,1) -> 2956.446921 | C16: =INDIRECT(CONCATENATE("'",C$1,"'!",C$4,(YEAR($A16)-1921)*12+MONTH($A16)+3+IF(ISNUMBER(FIND("PRV",C$6)),1,0)))*IF(AND(C$3>0,TRIM(C$9)="CFS"),Conversions!$C16,1) -> 2957.235131 | D16: =INDIRECT(CONCATENATE("'",D$1,"'!",D$4,(YEAR($A16)-1921)*12+MONTH($A16)+3+IF(ISNUMBER(FIND("PRV",D$6)),1,0)))*IF(AND(D$3>0,TRIM(D$9)="CFS"),Conversions!$C16,1) -> 3000.667991 | E16: =INDIRECT(CONCATENATE("'",E$1,"'!",E$4,(YEAR($A16)-1921)*12+MONTH($A16)+3+IF(ISNUMBER(FIND("PRV",E$6)),1,0)))*IF(AND(E$3>0,TRIM(E$9)="CFS"),Conversions!$C16,1) -> 2957.235131 | F16: =INDIRECT(CONCATENATE("'",F$1,"'!",F$4,(YEAR($A16)-1921)*12+MONTH($A16)+3+IF(ISNUMBER(FIND("PRV",F$6)),1,0)))*IF(AND(F$3>0,TRIM(F$9)="CFS"),Conversions!$C16,1) -> 3059.482836 | G16: =INDIRECT(CONCATENATE("'",G$1,"'!",G$4,(YEAR($A16)-1921)*12+MONTH($A16)+3+IF(ISNUMBER(FIND("PRV",G$6)),1,0)))*IF(AND(G$3>0,TRIM(G$9)="CFS"),Conversions!$C16,1) ->  | K16: 1926 | L16: =B61 -> 2646.89341 | M16: =B62 -> 2624.819126 | N16: =B63 -> 2675.128245 | O16: =B64 -> 2730.842017 | P16: =B65 -> 3559.730915 | Q16: =B66 -> 3542.814402 | R16: =B67 -> 3930.451358 | S16: =B68 -> 3550.205382 | T16: =B69 -> 3151.86436 | U16: =B70 -> 2753.426009 | V16: =B71 -> 2492.633856 | W16: =B72 -> 2433.489044 | Y16: 3059.920911 | Z16: 3129.873166 | AA16: 3007.69151 | AC16: 2937.074842 | AD16: 2494.334504 | AE16: 2673.077069 | AF16: 2832.748428 | AG16: 3594.817195 | AH16: 2847.44286 | AI16: 2491.090124 | AK16: 1926 | AL16: =C61 -> 2674.535798 | AM16: =C62 -> 2633.421813 | AN16: =C63 -> 2652.85845 | AO16: =C64 -> 2708.586296 | AP16: =C65 -> 3537.495891 | AQ16: =C66 -> 3524.610415 | AR16: =C67 -> 3820.055397 | AS16: =C68 -> 3470.369137 | AT16: =C69 -> 3080.87477 | AU16: =C70 -> 2693.500743 | AV16: =C71 -> 2433.780252 | AW16: =C72 -> 2381.136447 | AY16: 3012.113506 | AZ16: 3085.773324 | BA16: 2967.602117 | BC16: 2926.387111 | BD16: 2440.845027 | BE16: 2676.439516 | BF16: 2815.634533 | BG16: 3531.05507 | BH16: 2783.477139 | BI16: 2444.290316 | BK16: 1926 | BL16: =D61 -> 2689.686268 | BM16: =D62 -> 2677.023377 | BN16: =D63 -> 2727.781264 | BO16: =D64 -> 2783.46176 | BP16: =D65 -> 3612.301721 | BQ16: =D66 -> 3596.173829 | BR16: =D67 -> 3890.898294 | BS16: =D68 -> 3540.10848 | BT16: =D69 -> 3141.317591 | BU16: =D70 -> 2735.244578 | BV16: =D71 -> 2471.936931 | BW16: =D72 -> 2416.721061 | BY16: 3059.179076 | BZ16: 3120.365452 | CA16: 3023.554596 | CC16: 2988.699634 | CD16: 2474.636315 | CE16: 2721.297227 | CF16: 2885.301857 | CG16: 3600.997565 | CH16: 2831.728468 | CI16: 2469.270174 | CK16: 1926 | CL16: =E61 -> 2674.535798 | CM16: =E62 -> 2633.421813 | CN16: =E63 -> 2652.85845 | CO16: =E64 -> 2708.586296 | CP16: =E65 -> 3537.495891 | CQ16: =E66 -> 3524.610415 | CR16: =E67 -> 3820.055397 | CS16: =E68 -> 3470.369137 | CT16: =E69 -> 3080.87477 | CU16: =E70 -> 2693.500743 | CV16: =E71 -> 2433.780252 | CW16: =E72 -> 2381.136447 | CY16: 3012.113506 | CZ16: 3085.773324 | DA16: 2967.602117 | DC16: 2926.387111 | DD16: 2440.845027 | DE16: 2676.439516 | DF16: 2815.634533 | DG16: 3531.05507 | DH16: 2783.477139 | DI16: 2444.290316 | DK16: 1926 | DL16: =F61 -> 3017.552929 | DM16: =F62 -> 2956.691777 | DN16: =F63 -> 2969.730195 | DO16: =F64 -> 3005.732368 | DP16: =F65 -> 3747.1071 | DQ16: =F66 -> 3776.831392 | DR16: =F67 -> 4100.682404 | DS16: =F68 -> 3795.713003 | DT16: =F69 -> 3433.321899 | DU16: =F70 -> 2936.335318 | DV16: =F71 -> 2677.539384 | DW16: =F72 -> 2614.01502 | DY16: 3242.757051 | DZ16: 3274.187095 | EA16: 3252.604399 | EC16: 3215.29072 | ED16: 2671.361886 | EE16: 3001.737173 | EF16: 3109.120667 | EG16: 3815.860324 | EH16: 3063.015153 | EI16: 2648.850555 | EK16: 1926 | EL16: =G61 ->  | EM16: =G62 ->  | EN16: =G63 ->  | EO16: =G64 ->  | EP16: =G65 ->  | EQ16: =G66 ->  | ER16: =G67 ->  | ES16: =G68 ->  | ET16: =G69 ->  | EU16: =G70 ->  | EV16: =G71 ->  | EW16: =G72 -> 
A17: 1922-02-28 | B17: =INDIRECT(CONCATENATE("'",B$1,"'!",B$4,(YEAR($A17)-1921)*12+MONTH($A17)+3+IF(ISNUMBER(FIND("PRV",B$6)),1,0)))*IF(AND(B$3>0,TRIM(B$9)="CFS"),Conversions!$C17,1) -> 3504.031644 | C17: =INDIRECT(CONCATENATE("'",C$1,"'!",C$4,(YEAR($A17)-1921)*12+MONTH($A17)+3+IF(ISNUMBER(FIND("PRV",C$6)),1,0)))*IF(AND(C$3>0,TRIM(C$9)="CFS"),Conversions!$C17,1) -> 3504.819338 | D17: =INDIRECT(CONCATENATE("'",D$1,"'!",D$4,(YEAR($A17)-1921)*12+MONTH($A17)+3+IF(ISNUMBER(FIND("PRV",D$6)),1,0)))*IF(AND(D$3>0,TRIM(D$9)="CFS"),Conversions!$C17,1) -> 3548.223783 | E17: =INDIRECT(CONCATENATE("'",E$1,"'!",E$4,(YEAR($A17)-1921)*12+MONTH($A17)+3+IF(ISNUMBER(FIND("PRV",E$6)),1,0)))*IF(AND(E$3>0,TRIM(E$9)="CFS"),Conversions!$C17,1) -> 3504.819338 | F17: =INDIRECT(CONCATENATE("'",F$1,"'!",F$4,(YEAR($A17)-1921)*12+MONTH($A17)+3+IF(ISNUMBER(FIND("PRV",F$6)),1,0)))*IF(AND(F$3>0,TRIM(F$9)="CFS"),Conversions!$C17,1) -> 3486.086573 | G17: =INDIRECT(CONCATENATE("'",G$1,"'!",G$4,(YEAR($A17)-1921)*12+MONTH($A17)+3+IF(ISNUMBER(FIND("PRV",G$6)),1,0)))*IF(AND(G$3>0,TRIM(G$9)="CFS"),Conversions!$C17,1) ->  | K17: 1927 | L17: =B73 -> 2360.335216 | M17: =B74 -> 2866.258367 | N17: =B75 -> 3347 | O17: =B76 -> 3668 | P17: =B77 -> 3462 | Q17: =B78 -> 4115.13594 | R17: =B79 -> 4552 | S17: =B80 -> 4504.419062 | T17: =B81 -> 4186.657617 | U17: =B82 -> 3466.515844 | V17: =B83 -> 3011.32234 | W17: =B84 -> 2794.197673 | Y17: 3551.181995 | Z17: 3588.513444 | AA17: 3527.820172 | AC17: 3316.198789 | AD17: 2958.50318 | AE17: 2906.084526 | AF17: 3393.043061 | AG17: 4248.970953 | AH17: 3578.451042 | AI17: 2823.937403 | AK17: 1927 | AL17: =C73 -> 2321.736018 | AM17: =C74 -> 2826.21671 | AN17: =C75 -> 3347 | AO17: =C76 -> 3668 | AP17: =C77 -> 3462 | AQ17: =C78 -> 4115.13594 | AR17: =C79 -> 4552 | AS17: =C80 -> 4531.043995 | AT17: =C81 -> 4173.456586 | AU17: =C82 -> 3453.368835 | AV17: =C83 -> 3018.096406 | AW17: =C84 -> 2797.467476 | AY17: 3551.694836 | AZ17: 3588.424581 | BA17: 3522.126831 | BC17: 3304.330538 | BD17: 2960.170629 | BE17: 2879.880238 | BF17: 3386.369452 | BG17: 4253.977057 | BH17: 3577.29439 | BI17: 2826.574918 | BK17: 1927 | BL17: =D73 -> 2335.257331 | BM17: =D74 -> 2839.727331 | BN17: =D75 -> 3347 | BO17: =D76 -> 3668 | BP17: =D77 -> 3462 | BQ17: =D78 -> 4115.13594 | BR17: =D79 -> 4552 | BS17: =D80 -> 4531.108094 | BT17: =D81 -> 4173.531431 | BU17: =D82 -> 3453.443374 | BV17: =D83 -> 3018.184907 | BW17: =D84 -> 2797.558314 | BY17: 3551.752171 | BZ17: 3588.498684 | CA17: 3524.412227 | CC17: =IF(CC$11="AVG",IF(CE$1="INST-VAL",AVERAGE(BL17:BP17,BM17:BQ17),AVERAGE(BM17:BQ17)),SUM(BM17:BQ17)) -> 3308.384793 | CD17: =IF(CD$11="AVG",IF(CE$1="INST-VAL",AVERAGE(BU17:BW17,BV17:BW17,BL18),AVERAGE(BV17:BW17,BL18)),SUM(BV17:BW17,BL18)) -> 2960.258445 | CE17: 2891.086298 | CF17: 3388.621222 | CG17: 4254.002437 | CH17: 3577.373229 | CI17: 2826.667972 | CK17: 1927 | CL17: =E73 -> 2321.736018 | CM17: =E74 -> 2826.21671 | CN17: =E75 -> 3347 | CO17: =E76 -> 3668 | CP17: =E77 -> 3462 | CQ17: =E78 -> 4115.13594 | CR17: =E79 -> 4552 | CS17: =E80 -> 4531.043995 | CT17: =E81 -> 4173.456586 | CU17: =E82 -> 3453.368835 | CV17: =E83 -> 3018.096406 | CW17: =E84 -> 2797.467476 | CY17: 3551.694836 | CZ17: 3588.424581 | DA17: 3522.126831 | DC17: 3304.330538 | DD17: 2960.170629 | DE17: 2879.880238 | DF17: 3386.369452 | DG17: 4253.977057 | DH17: 3577.29439 | DI17: 2826.574918 | DK17: 1927 | DL17: =F73 -> 2508.727187 | DM17: =F74 -> 2970.079532 | DN17: =F75 -> 3347 | DO17: =F76 -> 3668 | DP17: =F77 -> 3462 | DQ17: =F78 -> 4085.375156 | DR17: =F79 -> 4552 | DS17: =F80 -> 4552 | DT17: =F81 -> 4356.732902 | DU17: =F82 -> 3847.257286 | DV17: =F83 -> 3467.137898 | DW17: =F84 -> 3190.01374 | DY17: 3739.048411 | DZ17: 3791.079357 | EA17: 3667.193642 | EC17: 3348.826141 | ED17: 3372.437419 | EE17: 2991.703557 | EF17: 3410.346589 | EG17: 4274.685402 | EH17: 3885.533739 | EI17: 3207.54888 | EK17: 1927 | EL17: =G73 ->  | EM17: =G74 ->  | EN17: =G75 ->  | EO17: =G76 ->  | EP17: =G77 ->  | EQ17: =G78 ->  | ER17: =G79 ->  | ES17: =G80 ->  | ET17: =G81 ->  | EU17: =G82 ->  | EV17: =G83 ->  | EW17: =G84 -> 
A18: 1922-03-31 | B18: =INDIRECT(CONCATENATE("'",B$1,"'!",B$4,(YEAR($A18)-1921)*12+MONTH($A18)+3+IF(ISNUMBER(FIND("PRV",B$6)),1,0)))*IF(AND(B$3>0,TRIM(B$9)="CFS"),Conversions!$C18,1) -> 4022.724716 | C18: =INDIRECT(CONCATENATE("'",C$1,"'!",C$4,(YEAR($A18)-1921)*12+MONTH($A18)+3+IF(ISNUMBER(FIND("PRV",C$6)),1,0)))*IF(AND(C$3>0,TRIM(C$9)="CFS"),Conversions!$C18,1) -> 4023.511475 | D18: =INDIRECT(CONCATENATE("'",D$1,"'!",D$4,(YEAR($A18)-1921)*12+MONTH($A18)+3+IF(ISNUMBER(FIND("PRV",D$6)),1,0)))*IF(AND(D$3>0,TRIM(D$9)="CFS"),Conversions!$C18,1) -> 4066.866518 | E18: =INDIRECT(CONCATENATE("'",E$1,"'!",E$4,(YEAR($A18)-1921)*12+MONTH($A18)+3+IF(ISNUMBER(FIND("PRV",E$6)),1,0)))*IF(AND(E$3>0,TRIM(E$9)="CFS"),Conversions!$C18,1) -> 4023.511475 | F18: =INDIRECT(CONCATENATE("'",F$1,"'!",F$4,(YEAR($A18)-1921)*12+MONTH($A18)+3+IF(ISNUMBER(FIND("PRV",F$6)),1,0)))*IF(AND(F$3>0,TRIM(F$9)="CFS"),Conversions!$C18,1) -> 4006.69414 | G18: =INDIRECT(CONCATENATE("'",G$1,"'!",G$4,(YEAR($A18)-1921)*12+MONTH($A18)+3+IF(ISNUMBER(FIND("PRV",G$6)),1,0)))*IF(AND(G$3>0,TRIM(G$9)="CFS"),Conversions!$C18,1) ->  | K18: 1928 | L18: =B85 -> 2673.463208 | M18: =B86 -> 2996.980315 | N18: =B87 -> 3183.491943 | O18: =B88 -> 3515.640636 | P18: =B89 -> 4062.336751 | Q18: =B90 -> 3965 | R18: =B91 -> 4552 | S18: =B92 -> 4201.575249 | T18: =B93 -> 3562.455822 | U18: =B94 -> 2933.290839 | V18: =B95 -> 2482.440428 | W18: =B96 -> 2333.43114 | Y18: 3140.986286 | Z18: 2909.938936 | AA18: 3371.842194 | AC18: 3415.53625 | AD18: 2435.693653 | AE18: 3002.213655 | AF18: 3409.597037 | AG18: 4132.742884 | AH18: 3061.422571 | AI18: 2202.579851 | AK18: 1928 | AL18: =C85 -> 2676.527177 | AM18: =C86 -> 2993.363798 | AN18: =C87 -> 3179.877824 | AO18: =C88 -> 3512.028898 | AP18: =C89 -> 4058.728035 | AQ18: =C90 -> 3965 | AR18: =C91 -> 4552 | AS18: =C92 -> 4207.631296 | AT18: =C93 -> 3629.893501 | AU18: =C94 -> 3000.335149 | AV18: =C95 -> 2548.546578 | AW18: =C96 -> 2464.185675 | AY18: 3190.304693 | AZ18: 2973.591486 | BA18: 3399.009828 | BC18: 3412.952429 | BD18: 2528.592301 | BE18: 3001.129247 | BF18: 3405.984213 | BG18: 4142.235516 | BH18: 3128.670928 | BI18: 2303.146937 | BK18: 1928 | BL18: =D85 -> 2676.620855 | BM18: =D86 -> 2993.464586 | BN18: =D87 -> 3179.978545 | BO18: =D88 -> 3512.129553 | BP18: =D89 -> 4058.828605 | BQ18: =D90 -> 3965 | BR18: =D91 -> 4552 | BS18: =D92 -> 4271.365254 | BT18: =D93 -> 3679.351832 | BU18: =D94 -> 3049.506328 | BV18: =D95 -> 2599.746955 | BW18: =D96 -> 2500 | BY18: 3223.436188 | BZ18: 3014.630426 | CA18: 3419.832709 | CC18: 3413.042343 | CD18: 2574.302735 | CE18: 3001.22698 | CF18: 3406.084898 | CG18: 4164.363868 | CH18: 3178.571935 | CI18: 2348.862693 | CK18: 1928 | CL18: =E85 -> 2676.527177 | CM18: =E86 -> 2993.363798 | CN18: =E87 -> 3179.877824 | CO18: =E88 -> 3512.028898 | CP18: =E89 -> 4058.728035 | CQ18: =E90 -> 3965 | CR18: =E91 -> 4552 | CS18: =E92 -> 4207.631296 | CT18: =E93 -> 3629.893501 | CU18: =E94 -> 3000.335149 | CV18: =E95 -> 2548.546578 | CW18: =E96 -> 2464.185675 | CY18: 3190.304693 | CZ18: 2973.591486 | DA18: 3399.009828 | DC18: =IF(DC$11="AVG",IF(DE$1="INST-VAL",AVERAGE(CL18:CP18,CM18:CQ18),AVERAGE(CM18:CQ18)),SUM(CM18:CQ18)) -> 3412.952429 | DD18: =IF(DD$11="AVG",IF(DE$1="INST-VAL",AVERAGE(CU18:CW18,CV18:CW18,CL19),AVERAGE(CV18:CW18,CL19)),SUM(CV18:CW18,CL19)) -> 2528.592301 | DE18: 3001.129247 | DF18: 3405.984213 | DG18: 4142.235516 | DH18: 3128.670928 | DI18: 2303.146937 | DK18: 1928 | DL18: =F85 -> 3073.06395 | DM18: =F86 -> 3252 | DN18: =F87 -> 3363 | DO18: =F88 -> 3655.371351 | DP18: =F89 -> 4099 | DQ18: =F90 -> 3965 | DR18: =F91 -> 4552 | DS18: =F92 -> 4477.54442 | DT18: =F93 -> 4063.891166 | DU18: =F94 -> 3358.672837 | DV18: =F95 -> 2898.68175 | DW18: =F96 -> 2622.633482 | DY18: 3400.771357 | DZ18: 3211.997043 | EA18: 3615.07158 | EC18: =IF(EC$11="AVG",IF(EE$1="INST-VAL",AVERAGE(DL18:DP18,DM18:DQ18),AVERAGE(DM18:DQ18)),SUM(DM18:DQ18)) -> 3577.680665 | ED18: =IF(ED$11="AVG",IF(EE$1="INST-VAL",AVERAGE(DU18:DW18,DV18:DW18,DL19),AVERAGE(DV18:DW18,DL19)),SUM(DV18:DW18,DL19)) -> 2802.313422 | EE18: 3277.689124 | EF18: 3564.623784 | EG18: 4268.997501 | EH18: 3467.833676 | EI18: 2547.680062 | EK18: 1928 | EL18: =G85 ->  | EM18: =G86 ->  | EN18: =G87 ->  | EO18: =G88 ->  | EP18: =G89 ->  | EQ18: =G90 ->  | ER18: =G91 ->  | ES18: =G92 ->  | ET18: =G93 ->  | EU18: =G94 ->  | EV18: =G95 ->  | EW18: =G96 ->  | FC18: =IF(FC$11="AVG",IF(FE$1="INST-VAL",AVERAGE(EL18:EP18,EM18:EQ18),AVERAGE(EM18:EQ18)),SUM(EM18:EQ18)) -> 
A19: 1922-04-30 | B19: =INDIRECT(CONCATENATE("'",B$1,"'!",B$4,(YEAR($A19)-1921)*12+MONTH($A19)+3+IF(ISNUMBER(FIND("PRV",B$6)),1,0)))*IF(AND(B$3>0,TRIM(B$9)="CFS"),Conversions!$C19,1) -> 4552 | C19: =INDIRECT(CONCATENATE("'",C$1,"'!",C$4,(YEAR($A19)-1921)*12+MONTH($A19)+3+IF(ISNUMBER(FIND("PRV",C$6)),1,0)))*IF(AND(C$3>0,TRIM(C$9)="CFS"),Conversions!$C19,1) -> 4552 | D19: =INDIRECT(CONCATENATE("'",D$1,"'!",D$4,(YEAR($A19)-1921)*12+MONTH($A19)+3+IF(ISNUMBER(FIND("PRV",D$6)),1,0)))*IF(AND(D$3>0,TRIM(D$9)="CFS"),Conversions!$C19,1) -> 4552 | E19: =INDIRECT(CONCATENATE("'",E$1,"'!",E$4,(YEAR($A19)-1921)*12+MONTH($A19)+3+IF(ISNUMBER(FIND("PRV",E$6)),1,0)))*IF(AND(E$3>0,TRIM(E$9)="CFS"),Conversions!$C19,1) -> 4552 | F19: =INDIRECT(CONCATENATE("'",F$1,"'!",F$4,(YEAR($A19)-1921)*12+MONTH($A19)+3+IF(ISNUMBER(FIND("PRV",F$6)),1,0)))*IF(AND(F$3>0,TRIM(F$9)="CFS"),Conversions!$C19,1) -> 4552 | G19: =INDIRECT(CONCATENATE("'",G$1,"'!",G$4,(YEAR($A19)-1921)*12+MONTH($A19)+3+IF(ISNUMBER(FIND("PRV",G$6)),1,0)))*IF(AND(G$3>0,TRIM(G$9)="CFS"),Conversions!$C19,1) ->  | K19: 1929 | L19: =B97 -> 2049.127945 | M19: =B98 -> 1967.920508 | N19: =B99 -> 2066.616112 | O19: =B100 -> 2291.775266 | P19: =B101 -> 2513.633919 | Q19: =B102 -> 2589.606003 | R19: =B103 -> 2812.001864 | S19: =B104 -> 2516.219941 | T19: =B105 -> 2211.723697 | U19: =B106 -> 1882.554114 | V19: =B107 -> 1658.886641 | W19: =B108 -> 1605.537749 | Y19: 2058.11031 | Z19: 2060.731903 | AA19: 2180.46698 | AC19: 2231.862556 | AD19: 1641.287287 | AE19: 2099.066942 | AF19: 2199.722864 | AG19: 2570.126654 | AH19: 1953.510824 | AI19: 1503.236189 | AK19: 1929 | AL19: =C97 -> 2145.75415 | AM19: =C98 -> 2050.455391 | AN19: =C99 -> 2149.097648 | AO19: =C100 -> 2374.201501 | AP19: =C101 -> 2595.996942 | AQ19: =C102 -> 2665.063037 | AR19: =C103 -> 2887.029296 | AS19: =C104 -> 2588.133464 | AT19: =C105 -> 2281.844496 | AU19: =C106 -> 1955.098952 | AV19: =C107 -> 1729.501224 | AW19: =C108 -> 1687.611205 | AY19: 2121.049223 | AZ19: 2113.396084 | BA19: 2259.148942 | BC19: 2315.032015 | BD19: 1709.467993 | BE19: 2191.125194 | BF19: 2282.175105 | BG19: 2644.786629 | BH19: 2026.079252 | BI19: 1556.216032 | BK19: 1929 | BL19: =D97 -> 2196.816173 | BM19: =D98 -> 2099.796857 | BN19: =D99 -> 2196.692704 | BO19: =D100 -> 2421.764646 | BP19: =D101 -> 2643.524368 | BQ19: =D102 -> 2706.347752 | BR19: =D103 -> 2927.899975 | BS19: =D104 -> 2627.567595 | BT19: =D105 -> 2320.146034 | BU19: =D106 -> 1996.25829 | BV19: =D107 -> 1770.477509 | BW19: =D108 -> 1727.545219 | BY19: 2162.410323 | BZ19: 2153.465824 | CA19: 2302.903094 | CC19: 2362.672107 | CD19: 1749.890146 | CE19: 2238.547014 | CF19: 2330.039321 | CG19: 2685.912631 | CH19: 2066.10956 | CI19: 1596.188218 | CK19: 1929 | CL19: =E97 -> 2145.75415 | CM19: =E98 -> 2050.455391 | CN19: =E99 -> 2149.097648 | CO19: =E100 -> 2374.201501 | CP19: =E101 -> 2595.996942 | CQ19: =E102 -> 2665.063037 | CR19: =E103 -> 2887.029296 | CS19: =E104 -> 2588.133464 | CT19: =E105 -> 2281.844496 | CU19: =E106 -> 1955.098952 | CV19: =E107 -> 1729.501224 | CW19: =E108 -> 1687.611205 | CY19: 2121.049223 | CZ19: 2113.396084 | DA19: 2259.148942 | DC19: 2315.032015 | DD19: 1709.467993 | DE19: 2191.125194 | DF19: 2282.175105 | DG19: 2644.786629 | DH19: 2026.079252 | DI19: 1556.216032 | DK19: 1929 | DL19: =F97 -> 2412.577229 | DM19: =F98 -> 2316.9772 | DN19: =F99 -> 2386.906845 | DO19: =F100 -> 2651.16599 | DP19: =F101 -> 2837.91359 | DQ19: =F102 -> 2960.094004 | DR19: =F103 -> 3100.978249 | DS19: =F104 -> 2922.224043 | DT19: =F105 -> 2714.336525 | DU19: =F106 -> 2466.489025 | DV19: =F107 -> 2192.822458 | DW19: =F108 -> 2106.591804 | DY19: 2502.517839 | DZ19: 2500.935438 | EA19: 2589.089747 | EC19: 2575.859849 | ED19: 2168.905259 | EE19: 2438.340253 | EF19: 2538.506077 | EG19: 2939.855338 | EH19: 2472.013983 | EI19: 2016.154489 | EK19: 1929 | EL19: =G97 ->  | EM19: =G98 ->  | EN19: =G99 ->  | EO19: =G100 ->  | EP19: =G101 ->  | EQ19: =G102 ->  | ER19: =G103 ->  | ES19: =G104 ->  | ET19: =G105 ->  | EU19: =G106 ->  | EV19: =G107 ->  | EW19: =G108 -> 
A20: 1922-05-31 | B20: =INDIRECT(CONCATENATE("'",B$1,"'!",B$4,(YEAR($A20)-1921)*12+MONTH($A20)+3+IF(ISNUMBER(FIND("PRV",B$6)),1,0)))*IF(AND(B$3>0,TRIM(B$9)="CFS"),Conversions!$C20,1) -> 4552 | C20: =INDIRECT(CONCATENATE("'",C$1,"'!",C$4,(YEAR($A20)-1921)*12+MONTH($A20)+3+IF(ISNUMBER(FIND("PRV",C$6)),1,0)))*IF(AND(C$3>0,TRIM(C$9)="CFS"),Conversions!$C20,1) -> 4552 | D20: =INDIRECT(CONCATENATE("'",D$1,"'!",D$4,(YEAR($A20)-1921)*12+MONTH($A20)+3+IF(ISNUMBER(FIND("PRV",D$6)),1,0)))*IF(AND(D$3>0,TRIM(D$9)="CFS"),Conversions!$C20,1) -> 4552 | E20: =INDIRECT(CONCATENATE("'",E$1,"'!",E$4,(YEAR($A20)-1921)*12+MONTH($A20)+3+IF(ISNUMBER(FIND("PRV",E$6)),1,0)))*IF(AND(E$3>0,TRIM(E$9)="CFS"),Conversions!$C20,1) -> 4552 | F20: =INDIRECT(CONCATENATE("'",F$1,"'!",F$4,(YEAR($A20)-1921)*12+MONTH($A20)+3+IF(ISNUMBER(FIND("PRV",F$6)),1,0)))*IF(AND(F$3>0,TRIM(F$9)="CFS"),Conversions!$C20,1) -> 4552 | G20: =INDIRECT(CONCATENATE("'",G$1,"'!",G$4,(YEAR($A20)-1921)*12+MONTH($A20)+3+IF(ISNUMBER(FIND("PRV",G$6)),1,0)))*IF(AND(G$3>0,TRIM(G$9)="CFS"),Conversions!$C20,1) ->  | K20: 1930 | L20: =B109 -> 1436.320831 | M20: =B110 -> 1276.813331 | N20: =B111 -> 1902.250365 | O20: =B112 -> 2195.409109 | P20: =B113 -> 2641.459188 | Q20: =B114 -> 3186.269772 | R20: =B115 -> 3396.484954 | S20: =B116 -> 3332.505722 | T20: =B117 -> 2987.0771 | U20: =B118 -> 2508.592855 | V20: =B119 -> 2212.368058 | W20: =B120 -> 2173.581031 | Y20: 2555.152872 | Z20: 2500.138858 | AA20: 2437.427693 | AC20: 2065.445459 | AD20: 2225.428882 | AE20: 1628.964489 | AF20: 2018.931911 | AG20: 3182.382148 | AH20: 2615.270347 | AI20: 2119.065334 | AK20: 1930 | AL20: =C109 -> 1467.484149 | AM20: =C110 -> 1297.60426 | AN20: =C111 -> 1923.022144 | AO20: =C112 -> 2216.16626 | AP20: =C113 -> 2662.194517 | AQ20: =C114 -> 3206.976454 | AR20: =C115 -> 3417.149459 | AS20: =C116 -> 3368.638784 | AT20: =C117 -> 3028.50309 | AU20: =C118 -> 2527.756056 | AV20: =C119 -> 2232.773827 | AW20: =C120 -> 2199.32675 | AY20: 2581.989705 | AZ20: 2529.592049 | BA20: 2462.299646 | BC20: 2087.243497 | BD20: 2247.339601 | BE20: 1659.999822 | BF20: 2039.695931 | BG20: 3209.528375 | BH20: 2643.253935 | BI20: 2140.726634 | BK20: 1930 | BL20: =D109 -> 1507.037128 | BM20: =D110 -> 1337.487107 | BN20: =D111 -> 1962.868256 | BO20: =D112 -> 2255.984312 | BP20: =D113 -> 2701.970707 | BQ20: =D114 -> 3246.696373 | BR20: =D115 -> 3456.788474 | BS20: =D116 -> 3407.695779 | BT20: =D117 -> 3071.471807 | BU20: =D118 -> 2562.383422 | BV20: =D119 -> 2264.170355 | BW20: =D120 -> 2230.493543 | BY20: 2606.312894 | BZ20: 2532.628606 | CA20: 2500.420605 | CC20: 2127.035427 | CD20: 2287.680638 | CE20: 1699.789314 | CF20: 2079.527158 | CG20: 3249.475471 | CH20: 2679.280061 | CI20: 2180.064506 | CK20: 1930 | CL20: =E109 -> 1467.484149 | CM20: =E110 -> 1297.60426 | CN20: =E111 -> 1923.022144 | CO20: =E112 -> 2216.16626 | CP20: =E113 -> 2662.194517 | CQ20: =E114 -> 3206.976454 | CR20: =E115 -> 3417.149459 | CS20: =E116 -> 3368.638784 | CT20: =E117 -> 3028.50309 | CU20: =E118 -> 2527.756056 | CV20: =E119 -> 2232.773827 | CW20: =E120 -> 2199.32675 | CY20: 2581.989705 | CZ20: 2529.592049 | DA20: 2462.299646 | DC20: 2087.243497 | DD20: 2247.339601 | DE20: 1659.999822 | DF20: 2039.695931 | DG20: 3209.528375 | DH20: 2643.253935 | DI20: 2140.726634 | DK20: 1930 | DL20: =F109 -> 1948.114007 | DM20: =F110 -> 1794.692853 | DN20: =F111 -> 2334.791524 | DO20: =F112 -> 2536.602237 | DP20: =F113 -> 2933.488521 | DQ20: =F114 -> 3425.352623 | DR20: =F115 -> 3657.741632 | DS20: =F116 -> 3637.34285 | DT20: =F117 -> 3316.775674 | DU20: =F118 -> 2955.878178 | DV20: =F119 -> 2684.748232 | DW20: =F120 -> 2653.842406 | DY20: 2945.00975 | DZ20: 2912.509244 | EA20: 2823.280895 | EC20: 2457.26169 | ED20: 2707.406211 | EE20: 2099.798851 | EF20: 2411.828149 | EG20: 3461.392301 | EH20: 3025.748678 | EI20: 2620.027693 | EK20: 1930 | EL20: =G109 ->  | EM20: =G110 ->  | EN20: =G111 ->  | EO20: =G112 ->  | EP20: =G113 ->  | EQ20: =G114 ->  | ER20: =G115 ->  | ES20: =G116 ->  | ET20: =G117 ->  | EU20: =G118 ->  | EV20: =G119 ->  | EW20: =G120 -> 
A21: 1922-06-30 | B21: =INDIRECT(CONCATENATE("'",B$1,"'!",B$4,(YEAR($A21)-1921)*12+MONTH($A21)+3+IF(ISNUMBER(FIND("PRV",B$6)),1,0)))*IF(AND(B$3>0,TRIM(B$9)="CFS"),Conversions!$C21,1) -> 4156.151085 | C21: =INDIRECT(CONCATENATE("'",C$1,"'!",C$4,(YEAR($A21)-1921)*12+MONTH($A21)+3+IF(ISNUMBER(FIND("PRV",C$6)),1,0)))*IF(AND(C$3>0,TRIM(C$9)="CFS"),Conversions!$C21,1) -> 4184.071698 | D21: =INDIRECT(CONCATENATE("'",D$1,"'!",D$4,(YEAR($A21)-1921)*12+MONTH($A21)+3+IF(ISNUMBER(FIND("PRV",D$6)),1,0)))*IF(AND(D$3>0,TRIM(D$9)="CFS"),Conversions!$C21,1) -> 4184.708765 | E21: =INDIRECT(CONCATENATE("'",E$1,"'!",E$4,(YEAR($A21)-1921)*12+MONTH($A21)+3+IF(ISNUMBER(FIND("PRV",E$6)),1,0)))*IF(AND(E$3>0,TRIM(E$9)="CFS"),Conversions!$C21,1) -> 4184.071698 | F21: =INDIRECT(CONCATENATE("'",F$1,"'!",F$4,(YEAR($A21)-1921)*12+MONTH($A21)+3+IF(ISNUMBER(FIND("PRV",F$6)),1,0)))*IF(AND(F$3>0,TRIM(F$9)="CFS"),Conversions!$C21,1) -> 4318.89356 | G21: =INDIRECT(CONCATENATE("'",G$1,"'!",G$4,(YEAR($A21)-1921)*12+MONTH($A21)+3+IF(ISNUMBER(FIND("PRV",G$6)),1,0)))*IF(AND(G$3>0,TRIM(G$9)="CFS"),Conversions!$C21,1) ->  | K21: 1931 | L21: =B121 -> 2072.082262 | M21: =B122 -> 2010.697357 | N21: =B123 -> 1945.307052 | O21: =B124 -> 2058.517338 | P21: =B125 -> 2118.182794 | Q21: =B126 -> 2166.494889 | R21: =B127 -> 1985.128275 | S21: =B128 -> 1671.819804 | T21: =B129 -> 1348.474821 | U21: =B130 -> 982.4020806 | V21: =B131 -> 717.6066887 | W21: =B132 -> 681.5931462 | Y21: 1322.414718 | Z21: 1203.192132 | AA21: 1646.525542 | AC21: 2050.398623 | AD21: 729.5584269 | AE21: 2036.033964 | AF21: 2022.754822 | AG21: 1889.192944 | AH21: 1056.297516 | AI21: 645.0242887 | AK21: 1931 | AL21: =C121 -> 2092.0804 | AM21: =C122 -> 2028.771677 | AN21: =C123 -> 2003.539184 | AO21: =C124 -> 2116.706497 | AP21: =C125 -> 2132.882411 | AQ21: =C126 -> 2187.191123 | AR21: =C127 -> 2003.339371 | AS21: =C128 -> 1692.271309 | AT21: =C129 -> 1371.366855 | AU21: =C130 -> 1006.666404 | AV21: =C131 -> 741.5610809 | AW21: =C132 -> 706.3184265 | AY21: 1345.274804 | AZ21: 1220.737248 | BA21: 1673.557895 | BC21: 2084.307106 | BD21: 753.1034693 | BE21: 2070.601971 | BF21: 2067.024242 | BG21: 1908.731609 | BH21: 1079.722302 | BI21: 663.8088937 | BK21: 1931 | BL21: =D121 -> 2174.37261 | BM21: =D122 -> 2006.484373 | BN21: =D123 -> 1897.242976 | BO21: =D124 -> 2010.488731 | BP21: =D125 -> 2063.254829 | BQ21: =D126 -> 2140.781642 | BR21: =D127 -> 1962.669181 | BS21: =D128 -> 1651.561511 | BT21: =D129 -> 1330.470148 | BU21: =D130 -> 958.6345482 | BV21: =D131 -> 693.5697498 | BW21: =D132 -> 657.9380706 | BY21: 1297.987992 | BZ21: 1183.981561 | CA21: 1628.955698 | CC21: 2027.009607 | CD21: 708.3328103 | CE21: 2049.647774 | CF21: 1980.867103 | CG21: 1862.968706 | CH21: 1034.356059 | CI21: 629.7562422 | CK21: 1931 | CL21: =E121 -> 2092.0804 | CM21: =E122 -> 2028.771677 | CN21: =E123 -> 2003.539184 | CO21: =E124 -> 2116.706497 | CP21: =E125 -> 2132.882411 | CQ21: =E126 -> 2187.191123 | CR21: =E127 -> 2003.339371 | CS21: =E128 -> 1692.271309 | CT21: =E129 -> 1371.366855 | CU21: =E130 -> 1006.666404 | CV21: =E131 -> 741.5610809 | CW21: =E132 -> 706.3184265 | CY21: 1345.274804 | CZ21: 1220.737248 | DA21: 1673.557895 | DC21: 2084.307106 | DD21: 753.1034693 | DE21: 2070.601971 | DF21: 2067.024242 | DG21: 1908.731609 | DH21: 1079.722302 | DI21: 663.8088937 | DK21: 1931 | DL21: =F121 -> 2611.377813 | DM21: =F122 -> 2504.977486 | DN21: =F123 -> 2421.989342 | DO21: =F124 -> 2498.103573 | DP21: =F125 -> 2581.981123 | DQ21: =F126 -> 2744.784754 | DR21: =F127 -> 2639.416346 | DS21: =F128 -> 2342.603182 | DT21: =F129 -> 2030.545763 | DU21: =F130 -> 1655.86161 | DV21: =F131 -> 1384.580514 | DW21: =F132 -> 1290.382007 | DY21: 1884.156112 | DZ21: 1712.399378 | EA21: 2225.550293 | EC21: 2537.026561 | ED21: 1355.189943 | EE21: 2528.579408 | EF21: 2487.857406 | EG21: 2508.266931 | EH21: 1721.870121 | EI21: 1213.331628 | EK21: 1931 | EL21: =G121 ->  | EM21: =G122 ->  | EN21: =G123 ->  | EO21: =G124 ->  | EP21: =G125 ->  | EQ21: =G126 ->  | ER21: =G127 ->  | ES21: =G128 ->  | ET21: =G129 ->  | EU21: =G130 ->  | EV21: =G131 ->  | EW21: =G132 -> 
A22: 1922-07-31 | B22: =INDIRECT(CONCATENATE("'",B$1,"'!",B$4,(YEAR($A22)-1921)*12+MONTH($A22)+3+IF(ISNUMBER(FIND("PRV",B$6)),1,0)))*IF(AND(B$3>0,TRIM(B$9)="CFS"),Conversions!$C22,1) -> 3724.776542 | C22: =INDIRECT(CONCATENATE("'",C$1,"'!",C$4,(YEAR($A22)-1921)*12+MONTH($A22)+3+IF(ISNUMBER(FIND("PRV",C$6)),1,0)))*IF(AND(C$3>0,TRIM(C$9)="CFS"),Conversions!$C22,1) -> 3727.99332 | D22: =INDIRECT(CONCATENATE("'",D$1,"'!",D$4,(YEAR($A22)-1921)*12+MONTH($A22)+3+IF(ISNUMBER(FIND("PRV",D$6)),1,0)))*IF(AND(D$3>0,TRIM(D$9)="CFS"),Conversions!$C22,1) -> 3768.782619 | E22: =INDIRECT(CONCATENATE("'",E$1,"'!",E$4,(YEAR($A22)-1921)*12+MONTH($A22)+3+IF(ISNUMBER(FIND("PRV",E$6)),1,0)))*IF(AND(E$3>0,TRIM(E$9)="CFS"),Conversions!$C22,1) -> 3727.99332 | F22: =INDIRECT(CONCATENATE("'",F$1,"'!",F$4,(YEAR($A22)-1921)*12+MONTH($A22)+3+IF(ISNUMBER(FIND("PRV",F$6)),1,0)))*IF(AND(F$3>0,TRIM(F$9)="CFS"),Conversions!$C22,1) -> 3954.053545 | G22: =INDIRECT(CONCATENATE("'",G$1,"'!",G$4,(YEAR($A22)-1921)*12+MONTH($A22)+3+IF(ISNUMBER(FIND("PRV",G$6)),1,0)))*IF(AND(G$3>0,TRIM(G$9)="CFS"),Conversions!$C22,1) ->  | K22: 1932 | L22: =B133 -> 596.5488113 | M22: =B134 -> 596.2551283 | N22: =B135 -> 945.9528347 | O22: =B136 -> 1292.487077 | P22: =B137 -> 1453.542023 | Q22: =B138 -> 1831.679241 | R22: =B139 -> 2056.73831 | S22: =B140 -> 2121.694286 | T22: =B141 -> 1876.491741 | U22: =B142 -> 1601.773549 | V22: =B143 -> 1376.37387 | W22: =B144 -> 1268.690968 | Y22: 1533.341236 | Z22: 1519.181395 | AA22: 1418.185653 | AC22: 1100.470218 | AD22: 1346.008541 | AE22: 781.4492215 | AF22: 1087.779496 | AG22: 1918.78218 | AH22: 1637.457947 | AI22: 1239.555307 | AK22: 1932 | AL22: =C133 -> 616.1953969 | AM22: =C134 -> 596.2646344 | AN22: =C135 -> 972.5341347 | AO22: =C136 -> 1292.487122 | AP22: =C137 -> 1462.651119 | AQ22: =C138 -> 1858.164786 | AR22: =C139 -> 2083.169342 | AS22: =C140 -> 2165.708692 | AT22: =C141 -> 1920.833969 | AU22: =C142 -> 1645.07941 | AV22: =C143 -> 1380.400822 | AW22: =C144 -> 1291.142658 | AY22: 1557.46847 | AZ22: 1549.122208 | BA22: 1440.386007 | BC22: 1112.22342 | BD22: 1367.191382 | BE22: 796.0992351 | BF22: 1098.159711 | BG22: 1949.696341 | BH22: 1668.684969 | BI22: 1260.829356 | BK22: 1932 | BL22: =D133 -> 588.3466728 | BM22: =D134 -> 592.3982167 | BN22: =D135 -> 925.7426026 | BO22: =D136 -> 1272.297045 | BP22: =D137 -> 1433.369342 | BQ22: =D138 -> 1811.542667 | BR22: =D139 -> 2036.64318 | BS22: =D140 -> 2119.362424 | BT22: =D141 -> 1874.739762 | BU22: =D142 -> 1599.236223 | BV22: =D143 -> 1375.97126 | BW22: =D144 -> 1266.842055 | BY22: 1485.650007 | BZ22: 1441.589712 | CA22: 1408.040954 | CC22: 1084.750375 | CD22: 1331.851699 | CE22: 767.9012625 | CF22: 1070.307809 | CG22: 1905.400706 | CH22: 1635.762371 | CI22: 1178.725082 | CK22: 1932 | CL22: =E133 -> 616.1953969 | CM22: =E134 -> 596.2646344 | CN22: =E135 -> 972.5341347 | CO22: =E136 -> 1292.487122 | CP22: =E137 -> 1462.651119 | CQ22: =E138 -> 1858.164786 | CR22: =E139 -> 2083.169342 | CS22: =E140 -> 2165.708692 | CT22: =E141 -> 1920.833969 | CU22: =E142 -> 1645.07941 | CV22: =E143 -> 1380.400822 | CW22: =E144 -> 1291.142658 | CY22: 1557.46847 | CZ22: 1549.122208 | DA22: 1440.386007 | DC22: 1112.22342 | DD22: 1367.191382 | DE22: 796.0992351 | DF22: 1098.159711 | DG22: 1949.696341 | DH22: 1668.684969 | DI22: 1260.829356 | DK22: 1932 | DL22: =F133 -> 1125.353004 | DM22: =F134 -> 1063.939233 | DN22: =F135 -> 1252.322234 | DO22: =F136 -> 1451.546479 | DP22: =F137 -> 1567.457413 | DQ22: =F138 -> 2018.746328 | DR22: =F139 -> 2248.122199 | DS22: =F140 -> 2446.112382 | DT22: =F141 -> 2293.984409 | DU22: =F142 -> 2029.164446 | DV22: =F143 -> 1813.280713 | DW22: =F144 -> 1718.4424 | DY22: 1867.085177 | DZ22: 1884.702936 | EA22: 1752.372603 | EC22: 1381.463005 | ED22: 1789.227942 | EE22: 1203.144679 | EF22: 1339.855679 | EG22: 2160.925455 | EH22: 2054.67674 | EI22: 1688.335016 | EK22: 1932 | EL22: =G133 ->  | EM22: =G134 ->  | EN22: =G135 ->  | EO22: =G136 ->  | EP22: =G137 ->  | EQ22: =G138 ->  | ER22: =G139 ->  | ES22: =G140 ->  | ET22: =G141 ->  | EU22: =G142 ->  | EV22: =G143 ->  | EW22: =G144 -> 
A23: 1922-08-31 | B23: =INDIRECT(CONCATENATE("'",B$1,"'!",B$4,(YEAR($A23)-1921)*12+MONTH($A23)+3+IF(ISNUMBER(FIND("PRV",B$6)),1,0)))*IF(AND(B$3>0,TRIM(B$9)="CFS"),Conversions!$C23,1) -> 3365.697158 | C23: =INDIRECT(CONCATENATE("'",C$1,"'!",C$4,(YEAR($A23)-1921)*12+MONTH($A23)+3+IF(ISNUMBER(FIND("PRV",C$6)),1,0)))*IF(AND(C$3>0,TRIM(C$9)="CFS"),Conversions!$C23,1) -> 3368.82785 | D23: =INDIRECT(CONCATENATE("'",D$1,"'!",D$4,(YEAR($A23)-1921)*12+MONTH($A23)+3+IF(ISNUMBER(FIND("PRV",D$6)),1,0)))*IF(AND(D$3>0,TRIM(D$9)="CFS"),Conversions!$C23,1) -> 3409.185824 | E23: =INDIRECT(CONCATENATE("'",E$1,"'!",E$4,(YEAR($A23)-1921)*12+MONTH($A23)+3+IF(ISNUMBER(FIND("PRV",E$6)),1,0)))*IF(AND(E$3>0,TRIM(E$9)="CFS"),Conversions!$C23,1) -> 3368.82785 | F23: =INDIRECT(CONCATENATE("'",F$1,"'!",F$4,(YEAR($A23)-1921)*12+MONTH($A23)+3+IF(ISNUMBER(FIND("PRV",F$6)),1,0)))*IF(AND(F$3>0,TRIM(F$9)="CFS"),Conversions!$C23,1) -> 3598.310308 | G23: =INDIRECT(CONCATENATE("'",G$1,"'!",G$4,(YEAR($A23)-1921)*12+MONTH($A23)+3+IF(ISNUMBER(FIND("PRV",G$6)),1,0)))*IF(AND(G$3>0,TRIM(G$9)="CFS"),Conversions!$C23,1) ->  | K23: 1933 | L23: =B145 -> 1184.148021 | M23: =B146 -> 1155.279997 | N23: =B147 -> 1181.195747 | O23: =B148 -> 1245.092303 | P23: =B149 -> 1331.018704 | Q23: =B150 -> 1998.283427 | R23: =B151 -> 2273.88403 | S23: =B152 -> 2196.074317 | T23: =B153 -> 1935.633122 | U23: =B154 -> 1641.254386 | V23: =B155 -> 1404.050301 | W23: =B156 -> 1317.013907 | Y23: 1543.512225 | Z23: 1606.225218 | AA23: 1571.910689 | AC23: 1300.760495 | AD23: 1363.534234 | AE23: 1194.37885 | AF23: 1223.1458 | AG23: 2025.391922 | AH23: 1684.37048 | AI23: 1198.476457 | AK23: 1933 | AL23: =C145 -> 1214.981923 | AM23: =C146 -> 1172.326151 | AN23: =C147 -> 1202.675645 | AO23: =C148 -> 1274.657522 | AP23: =C149 -> 1380.325577 | AQ23: =C150 -> 2047.514463 | AR23: =C151 -> 2323.001886 | AS23: =C152 -> 2280.84647 | AT23: =C153 -> 2017.602907 | AU23: =C154 -> 1721.462175 | AV23: =C155 -> 1470.096687 | AW23: =C156 -> 1366.010918 | AY23: 1579.603767 | AZ23: 1627.700503 | BA23: 1622.625194 | BC23: 1332.246618 | BD23: 1413.471924 | BE23: 1218.220952 | BF23: 1251.219677 | BG23: 2087.581765 | BH23: 1758.147616 | BI23: 1214.408245 | BK23: 1933 | BL23: =D145 -> 1106.247341 | BM23: =D146 -> 950.2004424 | BN23: =D147 -> 981.3483487 | BO23: =D148 -> 1045.424141 | BP23: =D149 -> 1131.518705 | BQ23: =D150 -> 1798.979113 | BR23: =D151 -> 2075.0379 | BS23: =D152 -> 2041.675775 | BT23: =D153 -> 1797.037452 | BU23: =D154 -> 1520.122041 | BV23: =D155 -> 1269.9711 | BW23: =D156 -> 1169.754695 | BY23: 1361.170116 | BZ23: 1416.585927 | CA23: 1407.276421 | CC23: 1112.220973 | CD23: 1214.934611 | CE23: 1048.482308 | CF23: 1022.544021 | CG23: 1844.992716 | CH23: 1548.211457 | CI23: 1017.150923 | CK23: 1933 | CL23: =E145 -> 1214.981923 | CM23: =E146 -> 1172.326151 | CN23: =E147 -> 1202.675645 | CO23: =E148 -> 1274.657522 | CP23: =E149 -> 1380.325577 | CQ23: =E150 -> 2047.514463 | CR23: =E151 -> 2323.001886 | CS23: =E152 -> 2280.84647 | CT23: =E153 -> 2017.602907 | CU23: =E154 -> 1721.462175 | CV23: =E155 -> 1470.096687 | CW23: =E156 -> 1366.010918 | CY23: 1579.603767 | CZ23: 1627.700503 | DA23: 1622.625194 | DC23: 1332.246618 | DD23: 1413.471924 | DE23: 1218.220952 | DF23: 1251.219677 | DG23: 2087.581765 | DH23: 1758.147616 | DI23: 1214.408245 | DK23: 1933 | DL23: =F145 -> 1642.756981 | DM23: =F146 -> 1594.330619 | DN23: =F147 -> 1581.077757 | DO23: =F148 -> 1597.024799 | DP23: =F149 -> 1633.3922 | DQ23: =F150 -> 2210.418062 | DR23: =F151 -> 2397.193293 | DS23: =F152 -> 2414.304882 | DT23: =F153 -> 2235.557455 | DU23: =F154 -> 1980.772786 | DV23: =F155 -> 1623.44396 | DW23: =F156 -> 1551.20908 | DY23: 1793.844508 | DZ23: 1819.600796 | EA23: 1871.790156 | EC23: 1666.482579 | ED23: 1613.311984 | EE23: 1618.974739 | EF23: 1597.321322 | EG23: 2239.097766 | EH23: 1955.632795 | EI23: 1438.497259 | EK23: 1933 | EL23: =G145 ->  | EM23: =G146 ->  | EN23: =G147 ->  | EO23: =G148 ->  | EP23: =G149 ->  | EQ23: =G150 ->  | ER23: =G151 ->  | ES23: =G152 ->  | ET23: =G153 ->  | EU23: =G154 ->  | EV23: =G155 ->  | EW23: =G156 -> 
A24: 1922-09-30 | B24: =INDIRECT(CONCATENATE("'",B$1,"'!",B$4,(YEAR($A24)-1921)*12+MONTH($A24)+3+IF(ISNUMBER(FIND("PRV",B$6)),1,0)))*IF(AND(B$3>0,TRIM(B$9)="CFS"),Conversions!$C24,1) -> 3256.243162 | C24: =INDIRECT(CONCATENATE("'",C$1,"'!",C$4,(YEAR($A24)-1921)*12+MONTH($A24)+3+IF(ISNUMBER(FIND("PRV",C$6)),1,0)))*IF(AND(C$3>0,TRIM(C$9)="CFS"),Conversions!$C24,1) -> 3278.120356 | D24: =INDIRECT(CONCATENATE("'",D$1,"'!",D$4,(YEAR($A24)-1921)*12+MONTH($A24)+3+IF(ISNUMBER(FIND("PRV",D$6)),1,0)))*IF(AND(D$3>0,TRIM(D$9)="CFS"),Conversions!$C24,1) -> 3296.151809 | E24: =INDIRECT(CONCATENATE("'",E$1,"'!",E$4,(YEAR($A24)-1921)*12+MONTH($A24)+3+IF(ISNUMBER(FIND("PRV",E$6)),1,0)))*IF(AND(E$3>0,TRIM(E$9)="CFS"),Conversions!$C24,1) -> 3278.120356 | F24: =INDIRECT(CONCATENATE("'",F$1,"'!",F$4,(YEAR($A24)-1921)*12+MONTH($A24)+3+IF(ISNUMBER(FIND("PRV",F$6)),1,0)))*IF(AND(F$3>0,TRIM(F$9)="CFS"),Conversions!$C24,1) -> 3400 | G24: =INDIRECT(CONCATENATE("'",G$1,"'!",G$4,(YEAR($A24)-1921)*12+MONTH($A24)+3+IF(ISNUMBER(FIND("PRV",G$6)),1,0)))*IF(AND(G$3>0,TRIM(G$9)="CFS"),Conversions!$C24,1) ->  | K24: 1934 | L24: =B157 -> 1097.8226 | M24: =B158 -> 957.1354276 | N24: =B159 -> 1124.88417 | O24: =B160 -> 1476.481513 | P24: =B161 -> 1852.185414 | Q24: =B162 -> 2132.602262 | R24: =B163 -> 2257.554224 | S24: =B164 -> 1966.971269 | T24: =B165 -> 1571.215665 | U24: =B166 -> 1287.490255 | V24: =B167 -> 1083.616135 | W24: =B168 -> 987.654148 | Y24: 1454.396299 | Z24: 1450.135196 | AA24: 1482.967757 | AC24: 1405.179791 | AD24: 1047.029243 | AE24: 1144.147477 | AF24: 1335.342035 | AG24: 2017.207074 | AH24: 1354.908691 | AI24: 953.5158152 | AK24: 1934 | AL24: =C157 -> 1087.154161 | AM24: =C158 -> 910.0226235 | AN24: =C159 -> 1076.54981 | AO24: =C160 -> 1428.192438 | AP24: =C161 -> 1803.951495 | AQ24: =C162 -> 2084.458791 | AR24: =C163 -> 2209.547844 | AS24: =C164 -> 2004.77753 | AT24: =C165 -> 1610.985649 | AU24: =C166 -> 1333.231305 | AV24: =C167 -> 1100.55744 | AW24: =C168 -> 977.0062852 | AY24: 1426.987603 | AZ24: 1421.051294 | BA24: 1468.869614 | BC24: 1360.904568 | BD24: 1040.202854 | BE24: 1117.707068 | BF24: 1287.243102 | BG24: 2001.563184 | BH24: 1383.916575 | BI24: 905.9011201 | BK24: 1934 | BL24: =D157 -> 890.0340362 | BM24: =D158 -> 713.356975 | BN24: =D159 -> 881.129461 | BO24: =D160 -> 1232.975273 | BP24: =D161 -> 1608.957308 | BQ24: =D162 -> 1889.822675 | BR24: =D163 -> 2015.465968 | BS24: =D164 -> 1811.637541 | BT24: =D165 -> 1418.754944 | BU24: =D166 -> 1145.182157 | BV24: =D167 -> 914.4051996 | BW24: =D168 -> 792.8248731 | BY24: 1239.044804 | BZ24: 1236.498547 | CA24: 1276.212201 | CC24: 1165.269474 | CD24: 857.572392 | CE24: 921.4713641 | CF24: 1091.753958 | CG24: 1807.695577 | CH24: 1195.143377 | CI24: 727.3953067 | CK24: 1934 | CL24: =E157 -> 1087.154161 | CM24: =E158 -> 910.0226235 | CN24: =E159 -> 1076.54981 | CO24: =E160 -> 1428.192438 | CP24: =E161 -> 1803.951495 | CQ24: =E162 -> 2084.458791 | CR24: =E163 -> 2209.547844 | CS24: =E164 -> 2004.77753 | CT24: =E165 -> 1610.985649 | CU24: =E166 -> 1333.231305 | CV24: =E167 -> 1100.55744 | CW24: =E168 -> 977.0062852 | CY24: 1426.987603 | CZ24: 1421.051294 | DA24: 1468.869614 | DC24: 1360.904568 | DD24: 1040.202854 | DE24: 1117.707068 | DF24: 1287.243102 | DG24: 2001.563184 | DH24: 1383.916575 | DI24: 905.9011201 | DK24: 1934 | DL24: =F157 -> 1349.793038 | DM24: =F158 -> 1205.535356 | DN24: =F159 -> 1327.489191 | DO24: =F160 -> 1612.381474 | DP24: =F161 -> 1927.110971 | DQ24: =F162 -> 2191.796227 | DR24: =F163 -> 2340.660137 | DS24: =F164 -> 2127.499309 | DT24: =F165 -> 1794.724966 | DU24: =F166 -> 1525.67549 | DV24: =F167 -> 1167.839134 | DW24: =F168 -> 1081.280772 | DY24: 1551.500583 | DZ24: 1508.106278 | EA24: 1637.648839 | EC24: 1568.662325 | ED24: 1149.131684 | EE24: 1366.153215 | EF24: 1502.064609 | EG24: 2130.21841 | EH24: 1523.157408 | EI24: 1007.440435 | EK24: 1934 | EL24: =G157 ->  | EM24: =G158 ->  | EN24: =G159 ->  | EO24: =G160 ->  | EP24: =G161 ->  | EQ24: =G162 ->  | ER24: =G163 ->  | ES24: =G164 ->  | ET24: =G165 ->  | EU24: =G166 ->  | EV24: =G167 ->  | EW24: =G168 -> 
A25: 1922-10-31 | B25: =INDIRECT(CONCATENATE("'",B$1,"'!",B$4,(YEAR($A25)-1921)*12+MONTH($A25)+3+IF(ISNUMBER(FIND("PRV",B$6)),1,0)))*IF(AND(B$3>0,TRIM(B$9)="CFS"),Conversions!$C25,1) -> 3200 | C25: =INDIRECT(CONCATENATE("'",C$1,"'!",C$4,(YEAR($A25)-1921)*12+MONTH($A25)+3+IF(ISNUMBER(FIND("PRV",C$6)),1,0)))*IF(AND(C$3>0,TRIM(C$9)="CFS"),Conversions!$C25,1) -> 3222.395976 | D25: =INDIRECT(CONCATENATE("'",D$1,"'!",D$4,(YEAR($A25)-1921)*12+MONTH($A25)+3+IF(ISNUMBER(FIND("PRV",D$6)),1,0)))*IF(AND(D$3>0,TRIM(D$9)="CFS"),Conversions!$C25,1) -> 3239.657733 | E25: =INDIRECT(CONCATENATE("'",E$1,"'!",E$4,(YEAR($A25)-1921)*12+MONTH($A25)+3+IF(ISNUMBER(FIND("PRV",E$6)),1,0)))*IF(AND(E$3>0,TRIM(E$9)="CFS"),Conversions!$C25,1) -> 3222.395976 | F25: =INDIRECT(CONCATENATE("'",F$1,"'!",F$4,(YEAR($A25)-1921)*12+MONTH($A25)+3+IF(ISNUMBER(FIND("PRV",F$6)),1,0)))*IF(AND(F$3>0,TRIM(F$9)="CFS"),Conversions!$C25,1) -> 3250 | G25: =INDIRECT(CONCATENATE("'",G$1,"'!",G$4,(YEAR($A25)-1921)*12+MONTH($A25)+3+IF(ISNUMBER(FIND("PRV",G$6)),1,0)))*IF(AND(G$3>0,TRIM(G$9)="CFS"),Conversions!$C25,1) ->  | K25: 1935 | L25: =B169 -> 852.1446376 | M25: =B170 -> 957.8811849 | N25: =B171 -> 1026.958885 | O25: =B172 -> 1475.901397 | P25: =B173 -> 1801.632286 | Q25: =B174 -> 2242.832445 | R25: =B175 -> 3319.325168 | S25: =B176 -> 3484.534992 | T25: =B177 -> 3144.733477 | U25: =B178 -> 2653.985756 | V25: =B179 -> 2330.504505 | W25: =B180 -> 2261.880503 | Y25: 2410.278979 | Z25: 2666.653014 | AA25: 2129.359603 | AC25: 1361.972459 | AD25: 2325.913899 | AE25: 1017.19062 | AF25: 1294.205672 | AG25: 2879.968872 | AH25: 2750.607871 | AI25: 2187.203536 | AK25: 1935 | AL25: =C169 -> 752.8583702 | AM25: =C170 -> 875.1199692 | AN25: =C171 -> 943.1641236 | AO25: =C172 -> 1425.689185 | AP25: =C173 -> 1735.219031 | AQ25: =C174 -> 2169.821562 | AR25: =C175 -> 3235.979075 | AS25: =C176 -> 3436.889135 | AT25: =C177 -> 3110.209487 | AU25: =C178 -> 2640.83817 | AV25: =C179 -> 2303.818298 | AW25: =C180 -> 2240.568962 | AY25: 2367.594451 | AZ25: 2630.647632 | BA25: 2072.514614 | BC25: 1288.106455 | BD25: 2303.510802 | BE25: 943.1225496 | BF25: 1224.67427 | BG25: 2816.351008 | BH25: 2723.398751 | BI25: 2161.53718 | BK25: 1935 | BL25: =D169 -> 585.7920502 | BM25: =D170 -> 692.7327938 | BN25: =D171 -> 759.9868629 | BO25: =D172 -> 1242.695011 | BP25: =D173 -> 1568.682495 | BQ25: =D174 -> 1995.990293 | BR25: =D175 -> 3053.780922 | BS25: =D176 -> 3266.061689 | BT25: =D177 -> 2968.011751 | BU25: =D178 -> 2507.183859 | BV25: =D179 -> 2184.004798 | BW25: =D180 -> 2122.637546 | BY25: 2236.153234 | BZ25: 2523.564603 | CA25: 1912.296672 | CC25: 1110.997667 | CD25: 2190.198228 | CE25: 764.0679122 | CF25: 1044.463173 | CG25: 2646.045007 | CH25: 2588.387506 | CI25: 2068.79687 | CK25: 1935 | CL25: =E169 -> 752.8583702 | CM25: =E170 -> 875.1199692 | CN25: =E171 -> 943.1641236 | CO25: =E172 -> 1425.689185 | CP25: =E173 -> 1735.219031 | CQ25: =E174 -> 2169.821562 | CR25: =E175 -> 3235.979075 | CS25: =E176 -> 3436.889135 | CT25: =E177 -> 3110.209487 | CU25: =E178 -> 2640.83817 | CV25: =E179 -> 2303.818298 | CW25: =E180 -> 2240.568962 | CY25: 2367.594451 | CZ25: 2630.647632 | DA25: 2072.514614 | DC25: 1288.106455 | DD25: 2303.510802 | DE25: 943.1225496 | DF25: 1224.67427 | DG25: 2816.351008 | DH25: 2723.398751 | DI25: 2161.53718 | DK25: 1935 | DL25: =F169 -> 870.8748032 | DM25: =F170 -> 972.4923291 | DN25: =F171 -> 1005.671381 | DO25: =F172 -> 1349.263135 | DP25: =F173 -> 1669.497654 | DQ25: =F174 -> 2057.846095 | DR25: =F175 -> 3077.418067 | DS25: =F176 -> 3446.273233 | DT25: =F177 -> 3250.562873 | DU25: =F178 -> 2880.21323 | DV25: =F179 -> 2555.825303 | DW25: =F180 -> 2482.202405 | DY25: 2486.150275 | DZ25: 2780.207736 | EA25: 2134.845042 | EC25: 1292.25699 | ED25: 2561.991151 | EE25: 1016.077616 | EF25: 1225.309836 | EG25: 2760.391915 | EH25: 2912.709806 | EI25: 2449.719724 | EK25: 1935 | EL25: =G169 ->  | EM25: =G170 ->  | EN25: =G171 ->  | EO25: =G172 ->  | EP25: =G173 ->  | EQ25: =G174 ->  | ER25: =G175 ->  | ES25: =G176 ->  | ET25: =G177 ->  | EU25: =G178 ->  | EV25: =G179 ->  | EW25: =G180 -> 
A26: 1922-11-30 | B26: =INDIRECT(CONCATENATE("'",B$1,"'!",B$4,(YEAR($A26)-1921)*12+MONTH($A26)+3+IF(ISNUMBER(FIND("PRV",B$6)),1,0)))*IF(AND(B$3>0,TRIM(B$9)="CFS"),Conversions!$C26,1) -> 3213.257571 | C26: =INDIRECT(CONCATENATE("'",C$1,"'!",C$4,(YEAR($A26)-1921)*12+MONTH($A26)+3+IF(ISNUMBER(FIND("PRV",C$6)),1,0)))*IF(AND(C$3>0,TRIM(C$9)="CFS"),Conversions!$C26,1) -> 3241.867783 | D26: =INDIRECT(CONCATENATE("'",D$1,"'!",D$4,(YEAR($A26)-1921)*12+MONTH($A26)+3+IF(ISNUMBER(FIND("PRV",D$6)),1,0)))*IF(AND(D$3>0,TRIM(D$9)="CFS"),Conversions!$C26,1) -> 3252 | E26: =INDIRECT(CONCATENATE("'",E$1,"'!",E$4,(YEAR($A26)-1921)*12+MONTH($A26)+3+IF(ISNUMBER(FIND("PRV",E$6)),1,0)))*IF(AND(E$3>0,TRIM(E$9)="CFS"),Conversions!$C26,1) -> 3241.867783 | F26: =INDIRECT(CONCATENATE("'",F$1,"'!",F$4,(YEAR($A26)-1921)*12+MONTH($A26)+3+IF(ISNUMBER(FIND("PRV",F$6)),1,0)))*IF(AND(F$3>0,TRIM(F$9)="CFS"),Conversions!$C26,1) -> 3252 | G26: =INDIRECT(CONCATENATE("'",G$1,"'!",G$4,(YEAR($A26)-1921)*12+MONTH($A26)+3+IF(ISNUMBER(FIND("PRV",G$6)),1,0)))*IF(AND(G$3>0,TRIM(G$9)="CFS"),Conversions!$C26,1) ->  | K26: 1936 | L26: =B181 -> 2116.727624 | M26: =B182 -> 2035.500454 | N26: =B183 -> 2055.789137 | O26: =B184 -> 2766.022106 | P26: =B185 -> 3588 | Q26: =B186 -> 3952.245631 | R26: =B187 -> 4224.011651 | S26: =B188 -> 4071.73718 | T26: =B189 -> 3877.460485 | U26: =B190 -> 3225.032365 | V26: =B191 -> 2838.394137 | W26: =B192 -> 2693.716185 | Y26: 3186.966379 | Z26: 3055.681961 | AA26: 3120.386413 | AC26: 2695.959665 | AD26: 2787.289218 | AE26: 2180.49213 | AF26: 2544.52049 | AG26: 3995.181176 | AH26: 3330.903417 | AI26: 2563.321021 | AK26: 1936 | AL26: =C181 -> 2091.452122 | AM26: =C182 -> 2001.362614 | AN26: =C183 -> 2019.285777 | AO26: =C184 -> 2729.546388 | AP26: =C185 -> 3588 | AQ26: =C186 -> 3952.245631 | AR26: =C187 -> 4224.011651 | AS26: =C188 -> 4070.520318 | AT26: =C189 -> 3796.730889 | AU26: =C190 -> 3194.129303 | AV26: =C191 -> 2829.40285 | AW26: =C192 -> 2681.93547 | AY26: 3172.187727 | AZ26: 3043.50393 | BA26: 3098.218584 | BC26: 2672.008731 | BD26: 2774.886213 | BE26: 2149.289547 | BF26: 2514.504491 | BG26: 3984.785761 | BH26: 3299.122734 | BI26: 2556.798788 | BK26: 1936 | BL26: =D181 -> 2020.720823 | BM26: =D182 -> 1942.059681 | BN26: =D183 -> 1962.009945 | BO26: =D184 -> 2672.313928 | BP26: =D185 -> 3588 | BQ26: =D186 -> 3952.245631 | BR26: =D187 -> 4224.011651 | BS26: =D188 -> 4094.17729 | BT26: =D189 -> 3820.362254 | BU26: =D190 -> 3218.327967 | BV26: =D191 -> 2850.828715 | BW26: =D192 -> 2703.402744 | BY26: 3182.134815 | BZ26: 3061.579521 | CA26: 3087.371719 | CC26: 2630.173356 | CD26: 2796.85896 | CE26: 2080.566547 | CF26: 2466.451238 | CG26: 3993.653925 | CH26: 3322.077238 | CI26: 2578.174405 | CK26: 1936 | CL26: =E181 -> 2091.452122 | CM26: =E182 -> 2001.362614 | CN26: =E183 -> 2019.285777 | CO26: =E184 -> 2729.546388 | CP26: =E185 -> 3588 | CQ26: =E186 -> 3952.245631 | CR26: =E187 -> 4224.011651 | CS26: =E188 -> 4070.520318 | CT26: =E189 -> 3796.730889 | CU26: =E190 -> 3194.129303 | CV26: =E191 -> 2829.40285 | CW26: =E192 -> 2681.93547 | CY26: 3172.187727 | CZ26: 3043.50393 | DA26: 3098.218584 | DC26: 2672.008731 | DD26: 2774.886213 | DE26: 2149.289547 | DF26: 2514.504491 | DG26: 3984.785761 | DH26: 3299.122734 | DI26: 2556.798788 | DK26: 1936 | DL26: =F181 -> 2415.678259 | DM26: =F182 -> 2346.731717 | DN26: =F183 -> 2302.291336 | DO26: =F184 -> 2959.450309 | DP26: =F185 -> 3588 | DQ26: =F186 -> 3956.869281 | DR26: =F187 -> 4250.343437 | DS26: =F188 -> 4179.11525 | DT26: =F189 -> 4026.13253 | DU26: =F190 -> 3601.909402 | DV26: =F191 -> 3169.402525 | DW26: =F192 -> 3022.221542 | DY26: 3404.11147 | DZ26: 3288.5147 | EA26: 3318.178799 | EC26: 2876.549427 | ED26: 3140.154052 | EE26: 2446.381917 | EF26: 2743.035835 | EG26: 4048.348558 | EH26: 3599.528213 | EI26: 2933.333527 | EK26: 1936 | EL26: =G181 ->  | EM26: =G182 ->  | EN26: =G183 ->  | EO26: =G184 ->  | EP26: =G185 ->  | EQ26: =G186 ->  | ER26: =G187 ->  | ES26: =G188 ->  | ET26: =G189 ->  | EU26: =G190 ->  | EV26: =G191 ->  | EW26: =G192 -> 
A27: 1922-12-31 | B27: =INDIRECT(CONCATENATE("'",B$1,"'!",B$4,(YEAR($A27)-1921)*12+MONTH($A27)+3+IF(ISNUMBER(FIND("PRV",B$6)),1,0)))*IF(AND(B$3>0,TRIM(B$9)="CFS"),Conversions!$C27,1) -> 3369 | C27: =INDIRECT(CONCATENATE("'",C$1,"'!",C$4,(YEAR($A27)-1921)*12+MONTH($A27)+3+IF(ISNUMBER(FIND("PRV",C$6)),1,0)))*IF(AND(C$3>0,TRIM(C$9)="CFS"),Conversions!$C27,1) -> 3369 | D27: =INDIRECT(CONCATENATE("'",D$1,"'!",D$4,(YEAR($A27)-1921)*12+MONTH($A27)+3+IF(ISNUMBER(FIND("PRV",D$6)),1,0)))*IF(AND(D$3>0,TRIM(D$9)="CFS"),Conversions!$C27,1) -> 3369 | E27: =INDIRECT(CONCATENATE("'",E$1,"'!",E$4,(YEAR($A27)-1921)*12+MONTH($A27)+3+IF(ISNUMBER(FIND("PRV",E$6)),1,0)))*IF(AND(E$3>0,TRIM(E$9)="CFS"),Conversions!$C27,1) -> 3369 | F27: =INDIRECT(CONCATENATE("'",F$1,"'!",F$4,(YEAR($A27)-1921)*12+MONTH($A27)+3+IF(ISNUMBER(FIND("PRV",F$6)),1,0)))*IF(AND(F$3>0,TRIM(F$9)="CFS"),Conversions!$C27,1) -> 3369 | G27: =INDIRECT(CONCATENATE("'",G$1,"'!",G$4,(YEAR($A27)-1921)*12+MONTH($A27)+3+IF(ISNUMBER(FIND("PRV",G$6)),1,0)))*IF(AND(G$3>0,TRIM(G$9)="CFS"),Conversions!$C27,1) ->  | K27: 1937 | L27: =B193 -> 2434.482298 | M27: =B194 -> 2285.135026 | N27: =B195 -> 2287.359484 | O27: =B196 -> 2297.967832 | P27: =B197 -> 2480.641263 | Q27: =B198 -> 3294.351159 | R27: =B199 -> 4070.033955 | S27: =B200 -> 4198.088386 | T27: =B201 -> 3924.943384 | U27: =B202 -> 3253.189223 | V27: =B203 -> 2905.205693 | W27: =B204 -> 2787.930973 | Y27: 3204.153511 | Z27: 3408.26942 | AA27: 3018.27739 | AC27: 2443.104067 | AD27: 2885.825469 | AE27: 2375.704704 | AF27: 2322.738487 | AG27: 3691.316456 | AH27: 3394.086995 | AI27: 2847.34136 | AK27: 1937 | AL27: =C193 -> 2432.511338 | AM27: =C194 -> 2282.49626 | AN27: =C195 -> 2284.722627 | AO27: =C196 -> 2295.332666 | AP27: =C197 -> 2478.008157 | AQ27: =C198 -> 3291.72157 | AR27: =C199 -> 4067.409629 | AS27: =C200 -> 4215.473847 | AT27: =C201 -> 3934.50354 | AU27: =C202 -> 3261.771155 | AV27: =C203 -> 2915.403871 | AW27: =C204 -> 2798.032489 | AY27: 3208.722678 | AZ27: 3413.277609 | BA27: 3021.448929 | BC27: 2440.535233 | BD27: 2895.609848 | BE27: 2372.091073 | BF27: 2320.102501 | BG27: 3695.215224 | BH27: 3404.607933 | BI27: 2855.583212 | BK27: 1937 | BL27: =D193 -> 2454.362874 | BM27: =D194 -> 2302.68648 | BN27: =D195 -> 2304.89824 | BO27: =D196 -> 2315.495336 | BP27: =D197 -> 2498.155072 | BQ27: =D198 -> 3311.841545 | BR27: =D199 -> 4087.489337 | BS27: =D200 -> 4235.0557 | BT27: =D201 -> 3960.548437 | BU27: =D202 -> 3283.025829 | BV27: =D203 -> 2934.615065 | BW27: =D204 -> 2816.573856 | BY27: 3225.547565 | BZ27: 3426.743364 | CA27: 3042.062314 | CC27: 2460.867468 | CD27: 2914.529045 | CE27: 2392.849159 | CF27: 2340.271451 | CG27: 3715.934584 | CH27: 3426.001027 | CI27: 2870.550663 | CK27: 1937 | CL27: =E193 -> 2432.511338 | CM27: =E194 -> 2282.49626 | CN27: =E195 -> 2284.722627 | CO27: =E196 -> 2295.332666 | CP27: =E197 -> 2478.008157 | CQ27: =E198 -> 3291.72157 | CR27: =E199 -> 4067.409629 | CS27: =E200 -> 4215.473847 | CT27: =E201 -> 3934.50354 | CU27: =E202 -> 3261.771155 | CV27: =E203 -> 2915.403871 | CW27: =E204 -> 2798.032489 | CY27: 3208.722678 | CZ27: 3413.277609 | DA27: 3021.448929 | DC27: 2440.535233 | DD27: 2895.609848 | DE27: 2372.091073 | DF27: 2320.102501 | DG27: 3695.215224 | DH27: 3404.607933 | DI27: 2855.583212 | DK27: 1937 | DL27: =F193 -> 2855.766774 | DM27: =F194 -> 2674.622004 | DN27: =F195 -> 2565.504591 | DO27: =F196 -> 2540.602988 | DP27: =F197 -> 2619.686078 | DQ27: =F198 -> 3265.9906 | DR27: =F199 -> 3986.651362 | DS27: =F200 -> 4251.055642 | DT27: =F201 -> 4165.969283 | DU27: =F202 -> 3600.313438 | DV27: =F203 -> 3233.325763 | DW27: =F204 -> 3074.347311 | DY27: 3357.800949 | DZ27: 3530.110194 | EA27: 3236.152986 | EC27: 2692.25887 | ED27: 3201.554752 | EE27: 2719.326409 | EF27: 2584.42054 | EG27: 3724.131321 | EH27: 3665.57749 | EI27: 3103.559706 | EK27: 1937 | EL27: =G193 ->  | EM27: =G194 ->  | EN27: =G195 ->  | EO27: =G196 ->  | EP27: =G197 ->  | EQ27: =G198 ->  | ER27: =G199 ->  | ES27: =G200 ->  | ET27: =G201 ->  | EU27: =G202 ->  | EV27: =G203 ->  | EW27: =G204 -> 
A28: 1923-01-31 | B28: =INDIRECT(CONCATENATE("'",B$1,"'!",B$4,(YEAR($A28)-1921)*12+MONTH($A28)+3+IF(ISNUMBER(FIND("PRV",B$6)),1,0)))*IF(AND(B$3>0,TRIM(B$9)="CFS"),Conversions!$C28,1) -> 3678.233246 | C28: =INDIRECT(CONCATENATE("'",C$1,"'!",C$4,(YEAR($A28)-1921)*12+MONTH($A28)+3+IF(ISNUMBER(FIND("PRV",C$6)),1,0)))*IF(AND(C$3>0,TRIM(C$9)="CFS"),Conversions!$C28,1) -> 3678.233246 | D28: =INDIRECT(CONCATENATE("'",D$1,"'!",D$4,(YEAR($A28)-1921)*12+MONTH($A28)+3+IF(ISNUMBER(FIND("PRV",D$6)),1,0)))*IF(AND(D$3>0,TRIM(D$9)="CFS"),Conversions!$C28,1) -> 3678.233246 | E28: =INDIRECT(CONCATENATE("'",E$1,"'!",E$4,(YEAR($A28)-1921)*12+MONTH($A28)+3+IF(ISNUMBER(FIND("PRV",E$6)),1,0)))*IF(AND(E$3>0,TRIM(E$9)="CFS"),Conversions!$C28,1) -> 3678.233246 | F28: =INDIRECT(CONCATENATE("'",F$1,"'!",F$4,(YEAR($A28)-1921)*12+MONTH($A28)+3+IF(ISNUMBER(FIND("PRV",F$6)),1,0)))*IF(AND(F$3>0,TRIM(F$9)="CFS"),Conversions!$C28,1) -> 3589.959766 | G28: =INDIRECT(CONCATENATE("'",G$1,"'!",G$4,(YEAR($A28)-1921)*12+MONTH($A28)+3+IF(ISNUMBER(FIND("PRV",G$6)),1,0)))*IF(AND(G$3>0,TRIM(G$9)="CFS"),Conversions!$C28,1) ->  | K28: 1938 | L28: =B205 -> 2675.490262 | M28: =B206 -> 3252 | N28: =B207 -> 3310 | O28: =B208 -> 3668 | P28: =B209 -> 3560 | Q28: =B210 -> 3416 | R28: =B211 -> 4058 | S28: =B212 -> 4552 | T28: =B213 -> 4334.512237 | U28: =B214 -> 3992.919901 | V28: =B215 -> 3655.910479 | W28: =B216 -> 3400 | Y28: 3692.612234 | Z28: 3687.626788 | AA28: 3656.236073 | AC28: 3367.149026 | AD28: 3559.123477 | AE28: 3116.363937 | AF28: 3461.333333 | AG28: 3993.31403 | AH28: 3989.835655 | AI28: 3356.080716 | AK28: 1938 | AL28: =C205 -> 2685.015211 | AM28: =C206 -> 3252 | AN28: =C207 -> 3310 | AO28: =C208 -> 3668 | AP28: =C209 -> 3560 | AQ28: =C210 -> 3416 | AR28: =C211 -> 4058 | AS28: =C212 -> 4552 | AT28: =C213 -> 4364.905876 | AU28: =C214 -> 4023.495427 | AV28: =C215 -> 3686.140534 | AW28: =C216 -> 3400 | AY28: 3700.68991 | AZ28: 3696.556736 | BA28: 3664.629754 | BC28: 3368.101521 | BD28: 3574.296083 | BE28: 3120.007864 | BF28: 3461.333333 | BG28: 3997.113234 | BH28: 4012.635459 | BI28: 3361.221408 | BK28: 1938 | BL28: =D205 -> 2701.770599 | BM28: =D206 -> 3252 | BN28: =D207 -> 3310 | BO28: =D208 -> 3668 | BP28: =D209 -> 3560 | BQ28: =D210 -> 3416 | BR28: =D211 -> 4058 | BS28: =D212 -> 4552 | BT28: =D213 -> 4364.921661 | BU28: =D214 -> 4023.51915 | BV28: =D215 -> 3686.170144 | BW28: =D216 -> 3400 | BY28: 3703.396766 | BZ28: 3702.261427 | CA28: 3666.031796 | CC28: 3369.77706 | CD28: 3574.309906 | CE28: 3126.514382 | CF28: 3461.333333 | CG28: 3997.115208 | CH28: 4012.652738 | CI28: 3363.62767 | CK28: 1938 | CL28: =E205 -> 2685.015211 | CM28: =E206 -> 3252 | CN28: =E207 -> 3310 | CO28: =E208 -> 3668 | CP28: =E209 -> 3560 | CQ28: =E210 -> 3416 | CR28: =E211 -> 4058 | CS28: =E212 -> 4552 | CT28: =E213 -> 4364.905876 | CU28: =E214 -> 4023.495427 | CV28: =E215 -> 3686.140534 | CW28: =E216 -> 3400 | CY28: 3700.68991 | CZ28: 3696.556736 | DA28: 3664.629754 | DC28: 3368.101521 | DD28: 3574.296083 | DE28: 3120.007864 | DF28: 3461.333333 | DG28: 3997.113234 | DH28: 4012.635459 | DI28: 3361.221408 | DK28: 1938 | DL28: =F205 -> 2993.668925 | DM28: =F206 -> 3252 | DN28: =F207 -> 3310 | DO28: =F208 -> 3668 | DP28: =F209 -> 3560 | DQ28: =F210 -> 3416 | DR28: =F211 -> 4058 | DS28: =F212 -> 4552 | DT28: =F213 -> 4500 | DU28: =F214 -> 4150 | DV28: =F215 -> 3700 | DW28: =F216 -> 3400 | DY28: 3726.574178 | DZ28: 3703.681876 | EA28: 3713.305744 | EC28: 3398.966892 | ED28: 3600 | EE28: 3231.710645 | EF28: 3461.333333 | EG28: 4014 | EH28: 4081.5 | EI28: 3367.051749 | EK28: 1938 | EL28: =G205 ->  | EM28: =G206 ->  | EN28: =G207 ->  | EO28: =G208 ->  | EP28: =G209 ->  | EQ28: =G210 ->  | ER28: =G211 ->  | ES28: =G212 ->  | ET28: =G213 ->  | EU28: =G214 ->  | EV28: =G215 ->  | EW28: =G216 -> 
A29: 1923-02-28 | B29: =INDIRECT(CONCATENATE("'",B$1,"'!",B$4,(YEAR($A29)-1921)*12+MONTH($A29)+3+IF(ISNUMBER(FIND("PRV",B$6)),1,0)))*IF(AND(B$3>0,TRIM(B$9)="CFS"),Conversions!$C29,1) -> 3841.73213 | C29: =INDIRECT(CONCATENATE("'",C$1,"'!",C$4,(YEAR($A29)-1921)*12+MONTH($A29)+3+IF(ISNUMBER(FIND("PRV",C$6)),1,0)))*IF(AND(C$3>0,TRIM(C$9)="CFS"),Conversions!$C29,1) -> 3841.73213 | D29: =INDIRECT(CONCATENATE("'",D$1,"'!",D$4,(YEAR($A29)-1921)*12+MONTH($A29)+3+IF(ISNUMBER(FIND("PRV",D$6)),1,0)))*IF(AND(D$3>0,TRIM(D$9)="CFS"),Conversions!$C29,1) -> 3841.73213 | E29: =INDIRECT(CONCATENATE("'",E$1,"'!",E$4,(YEAR($A29)-1921)*12+MONTH($A29)+3+IF(ISNUMBER(FIND("PRV",E$6)),1,0)))*IF(AND(E$3>0,TRIM(E$9)="CFS"),Conversions!$C29,1) -> 3841.73213 | F29: =INDIRECT(CONCATENATE("'",F$1,"'!",F$4,(YEAR($A29)-1921)*12+MONTH($A29)+3+IF(ISNUMBER(FIND("PRV",F$6)),1,0)))*IF(AND(F$3>0,TRIM(F$9)="CFS"),Conversions!$C29,1) -> 3640.490063 | G29: =INDIRECT(CONCATENATE("'",G$1,"'!",G$4,(YEAR($A29)-1921)*12+MONTH($A29)+3+IF(ISNUMBER(FIND("PRV",G$6)),1,0)))*IF(AND(G$3>0,TRIM(G$9)="CFS"),Conversions!$C29,1) ->  | K29: 1939 | L29: =B217 -> 3250 | M29: =B218 -> 3180.573818 | N29: =B219 -> 3243.430368 | O29: =B220 -> 3513.951586 | P29: =B221 -> 3654.223063 | Q29: =B222 -> 4074.079032 | R29: =B223 -> 3852.935462 | S29: =B224 -> 3469.015946 | T29: =B225 -> 3088.525099 | U29: =B226 -> 2729.003055 | V29: =B227 -> 2431.411441 | W29: =B228 -> 2367.694018 | Y29: 2978.736843 | Z29: 2922.893 | AA29: 3237.903574 | AC29: 3450.84367 | AD29: 2420.168376 | AE29: 3282.744995 | AF29: 3391.593465 | AG29: 3691.85113 | AH29: 2791.823644 | AI29: 2275.44371 | AK29: 1939 | AL29: =C217 -> 3250 | AM29: =C218 -> 3181.187913 | AN29: =C219 -> 3248.549172 | AO29: =C220 -> 3519.067015 | AP29: =C221 -> 3659.334895 | AQ29: =C222 -> 4079.184965 | AR29: =C223 -> 3857.000039 | AS29: =C224 -> 3472.884461 | AT29: =C225 -> 3208.216771 | AU29: =C226 -> 2851.301934 | AV29: =C227 -> 2510.539762 | AW29: =C228 -> 2411.711565 | AY29: 3020.162041 | AZ29: 2966.965675 | BA29: 3270.748208 | BC29: 3454.546296 | BD29: 2482.88715 | BE29: 3284.817648 | BF29: 3395.959197 | BG29: 3710.711325 | BH29: 2878.08912 | BI29: 2315.703091 | BK29: 1939 | BL29: =D217 -> 3250 | BM29: =D218 -> 3195.595879 | BN29: =D219 -> 3266.554358 | BO29: =D220 -> 3537.060341 | BP29: =D221 -> 3677.315595 | BQ29: =D222 -> 4097.144898 | BR29: =D223 -> 3894.004051 | BS29: =D224 -> 3509.79476 | BT29: =D225 -> 3241.274823 | BU29: =D226 -> 2884.348083 | BV29: =D227 -> 2546.259292 | BW29: =D228 -> 2444.187277 | BY29: 3049.760452 | BZ29: 2996.750967 | CA29: 3295.294946 | CC29: 3470.019724 | CD29: 2515.0937 | CE29: 3295.170102 | CF29: 3413.356812 | CG29: 3740.05973 | CH29: 2912.218304 | CI29: 2345.579971 | CK29: 1939 | CL29: =E217 -> 3250 | CM29: =E218 -> 3181.187913 | CN29: =E219 -> 3248.549172 | CO29: =E220 -> 3519.067015 | CP29: =E221 -> 3659.334895 | CQ29: =E222 -> 4079.184965 | CR29: =E223 -> 3857.000039 | CS29: =E224 -> 3472.884461 | CT29: =E225 -> 3208.216771 | CU29: =E226 -> 2851.301934 | CV29: =E227 -> 2510.539762 | CW29: =E228 -> 2411.711565 | CY29: 3020.162041 | CZ29: 2966.965675 | DA29: 3270.748208 | DC29: 3454.546296 | DD29: 2482.88715 | DE29: 3284.817648 | DF29: 3395.959197 | DG29: 3710.711325 | DH29: 2878.08912 | DI29: 2315.703091 | DK29: 1939 | DL29: =F217 -> 3250 | DM29: =F218 -> 3202.310492 | DN29: =F219 -> 3262.579646 | DO29: =F220 -> 3414.335375 | DP29: =F221 -> 3538.957 | DQ29: =F222 -> 3955.434019 | DR29: =F223 -> 3858.134466 | DS29: =F224 -> 3634.203956 | DT29: =F225 -> 3295.598478 | DU29: =F226 -> 2932.353336 | DV29: =F227 -> 2651.736744 | DW29: =F228 -> 2583.345733 | DY29: 3083.457832 | DZ29: 3044.559939 | EA29: 3298.249104 | EC29: 3404.179905 | ED29: 2652.657725 | EE29: 3280.514456 | EF29: 3349.182922 | EG29: 3716.262545 | EH29: 2997.115851 | EI29: 2521.153408 | EK29: 1939 | EL29: =G217 ->  | EM29: =G218 ->  | EN29: =G219 ->  | EO29: =G220 ->  | EP29: =G221 ->  | EQ29: =G222 ->  | ER29: =G223 ->  | ES29: =G224 ->  | ET29: =G225 ->  | EU29: =G226 ->  | EV29: =G227 ->  | EW29: =G228 -> 
A30: 1923-03-31 | B30: =INDIRECT(CONCATENATE("'",B$1,"'!",B$4,(YEAR($A30)-1921)*12+MONTH($A30)+3+IF(ISNUMBER(FIND("PRV",B$6)),1,0)))*IF(AND(B$3>0,TRIM(B$9)="CFS"),Conversions!$C30,1) -> 3895.151589 | C30: =INDIRECT(CONCATENATE("'",C$1,"'!",C$4,(YEAR($A30)-1921)*12+MONTH($A30)+3+IF(ISNUMBER(FIND("PRV",C$6)),1,0)))*IF(AND(C$3>0,TRIM(C$9)="CFS"),Conversions!$C30,1) -> 3891.263872 | D30: =INDIRECT(CONCATENATE("'",D$1,"'!",D$4,(YEAR($A30)-1921)*12+MONTH($A30)+3+IF(ISNUMBER(FIND("PRV",D$6)),1,0)))*IF(AND(D$3>0,TRIM(D$9)="CFS"),Conversions!$C30,1) -> 3898.466278 | E30: =INDIRECT(CONCATENATE("'",E$1,"'!",E$4,(YEAR($A30)-1921)*12+MONTH($A30)+3+IF(ISNUMBER(FIND("PRV",E$6)),1,0)))*IF(AND(E$3>0,TRIM(E$9)="CFS"),Conversions!$C30,1) -> 3891.263872 | F30: =INDIRECT(CONCATENATE("'",F$1,"'!",F$4,(YEAR($A30)-1921)*12+MONTH($A30)+3+IF(ISNUMBER(FIND("PRV",F$6)),1,0)))*IF(AND(F$3>0,TRIM(F$9)="CFS"),Conversions!$C30,1) -> 3776.496516 | G30: =INDIRECT(CONCATENATE("'",G$1,"'!",G$4,(YEAR($A30)-1921)*12+MONTH($A30)+3+IF(ISNUMBER(FIND("PRV",G$6)),1,0)))*IF(AND(G$3>0,TRIM(G$9)="CFS"),Conversions!$C30,1) ->  | K30: 1940 | L30: =B229 -> 2193.796283 | M30: =B230 -> 2098.270215 | N30: =B231 -> 2271.936918 | O30: =B232 -> 3246.04853 | P30: =B233 -> 3252 | Q30: =B234 -> 3435 | R30: =B235 -> 4187.980771 | S30: =B236 -> 4046.05442 | T30: =B237 -> 3704.920737 | U30: =B238 -> 3037.511259 | V30: =B239 -> 2564.431515 | W30: =B240 -> 2452.724184 | Y30: 3128.91627 | Z30: 3149.078893 | AA30: 3040.889569 | AC30: 2736.530761 | AD30: 2556.505036 | AE30: 2342.718672 | AF30: 2731.040185 | AG30: 3786.87389 | AH30: 3139.063203 | AI30: 2357.038674 | AK30: 1940 | AL30: =C229 -> 2201.518313 | AM30: =C230 -> 2157.219026 | AN30: =C231 -> 2313.96574 | AO30: =C232 -> 3288.045525 | AP30: =C233 -> 3252 | AQ30: =C234 -> 3435 | AR30: =C235 -> 4187.980771 | AS30: =C236 -> 4039.666421 | AT30: =C237 -> 3672.023997 | AU30: =C238 -> 3004.801842 | AV30: =C239 -> 2532.815685 | AW30: =C240 -> 2411.651249 | AY30: 3109.32183 | AZ30: 3125.984702 | BA30: 3041.390714 | BC30: 2765.897889 | BD30: 2519.962768 | BE30: 2380.645406 | BF30: 2768.873593 | BG30: 3781.164798 | BH30: 3108.82509 | BI30: 2316.745922 | BK30: 1940 | BL30: =D229 -> 2225.320976 | BM30: =D230 -> 2188.204028 | BN30: =D231 -> 2352.211298 | BO30: =D232 -> 3326.262121 | BP30: =D233 -> 3252 | BQ30: =D234 -> 3435 | BR30: =D235 -> 4187.980771 | BS30: =D236 -> 4083.103803 | BT30: =D237 -> 3715.68184 | BU30: =D238 -> 3048.213741 | BV30: =D239 -> 2574.276608 | BW30: =D240 -> 2460.173005 | BY30: 3142.965826 | BZ30: 3156.443982 | CA30: 3070.702349 | CC30: 2789.767587 | CD30: 2565.301003 | CE30: 2412.74025 | CF30: 2799.525144 | CG30: 3797.481373 | CH30: 3152.452648 | CI30: 2364.081882 | CK30: 1940 | CL30: =E229 -> 2201.518313 | CM30: =E230 -> 2157.219026 | CN30: =E231 -> 2313.96574 | CO30: =E232 -> 3288.045525 | CP30: =E233 -> 3252 | CQ30: =E234 -> 3435 | CR30: =E235 -> 4187.980771 | CS30: =E236 -> 4039.666421 | CT30: =E237 -> 3672.023997 | CU30: =E238 -> 3004.801842 | CV30: =E239 -> 2532.815685 | CW30: =E240 -> 2411.651249 | CY30: 3109.32183 | CZ30: 3125.984702 | DA30: 3041.390714 | DC30: 2765.897889 | DD30: 2519.962768 | DE30: 2380.645406 | DF30: 2768.873593 | DG30: 3781.164798 | DH30: 3108.82509 | DI30: 2316.745922 | DK30: 1940 | DL30: =F229 -> 2513.428057 | DM30: =F230 -> 2281.636127 | DN30: =F231 -> 2342.330689 | DO30: =F232 -> 3234.517661 | DP30: =F233 -> 3252 | DQ30: =F234 -> 3435 | DR30: =F235 -> 4224.490493 | DS30: =F236 -> 4296.786252 | DT30: =F237 -> 4112.220585 | DU30: =F238 -> 3383.230089 | DV30: =F239 -> 2962.352491 | DW30: =F240 -> 2712.717765 | DY30: 3327.994162 | DZ30: 3349.11769 | EA30: 3229.225851 | EC30: 2816.939701 | ED30: 2888.127288 | EE30: 2511.581642 | EF30: 2781.222138 | EG30: 3909.596759 | EH30: 3490.638793 | EI30: 2668.799292 | EK30: 1940 | EL30: =G229 ->  | EM30: =G230 ->  | EN30: =G231 ->  | EO30: =G232 ->  | EP30: =G233 ->  | EQ30: =G234 ->  | ER30: =G235 ->  | ES30: =G236 ->  | ET30: =G237 ->  | EU30: =G238 ->  | EV30: =G239 ->  | EW30: =G240 -> 
A31: 1923-04-30 | B31: =INDIRECT(CONCATENATE("'",B$1,"'!",B$4,(YEAR($A31)-1921)*12+MONTH($A31)+3+IF(ISNUMBER(FIND("PRV",B$6)),1,0)))*IF(AND(B$3>0,TRIM(B$9)="CFS"),Conversions!$C31,1) -> 4371.091438 | C31: =INDIRECT(CONCATENATE("'",C$1,"'!",C$4,(YEAR($A31)-1921)*12+MONTH($A31)+3+IF(ISNUMBER(FIND("PRV",C$6)),1,0)))*IF(AND(C$3>0,TRIM(C$9)="CFS"),Conversions!$C31,1) -> 4367.20903 | D31: =INDIRECT(CONCATENATE("'",D$1,"'!",D$4,(YEAR($A31)-1921)*12+MONTH($A31)+3+IF(ISNUMBER(FIND("PRV",D$6)),1,0)))*IF(AND(D$3>0,TRIM(D$9)="CFS"),Conversions!$C31,1) -> 4374.401599 | E31: =INDIRECT(CONCATENATE("'",E$1,"'!",E$4,(YEAR($A31)-1921)*12+MONTH($A31)+3+IF(ISNUMBER(FIND("PRV",E$6)),1,0)))*IF(AND(E$3>0,TRIM(E$9)="CFS"),Conversions!$C31,1) -> 4367.20903 | F31: =INDIRECT(CONCATENATE("'",F$1,"'!",F$4,(YEAR($A31)-1921)*12+MONTH($A31)+3+IF(ISNUMBER(FIND("PRV",F$6)),1,0)))*IF(AND(F$3>0,TRIM(F$9)="CFS"),Conversions!$C31,1) -> 4246.003274 | G31: =INDIRECT(CONCATENATE("'",G$1,"'!",G$4,(YEAR($A31)-1921)*12+MONTH($A31)+3+IF(ISNUMBER(FIND("PRV",G$6)),1,0)))*IF(AND(G$3>0,TRIM(G$9)="CFS"),Conversions!$C31,1) ->  | K31: 1941 | L31: =B241 -> 2267.207559 | M31: =B242 -> 2137.937044 | N31: =B243 -> 3215.179221 | O31: =B244 -> 3317 | P31: =B245 -> 3423 | Q31: =B246 -> 3940 | R31: =B247 -> 4456 | S31: =B248 -> 4552 | T31: =B249 -> 4421.728103 | U31: =B250 -> 3736.817386 | V31: =B251 -> 3366.987967 | W31: =B252 -> 3241.349952 | Y31: 3671.612668 | Z31: 3685.362668 | AA31: 3506.267269 | AC31: 3039.344009 | AD31: 3358.846982 | AE31: 2626.296479 | AF31: 3104.215914 | AG31: 4217.591013 | AH31: 3855.552108 | AI31: 3222.957524 | AK31: 1941 | AL31: =C241 -> 2226.040899 | AM31: =C242 -> 2092.275554 | AN31: =C243 -> 3169.560012 | AO31: =C244 -> 3317 | AP31: =C245 -> 3423 | AQ31: =C246 -> 3940 | AR31: =C247 -> 4456 | AS31: =C248 -> 4552 | AT31: =C249 -> 4434.998677 | AU31: =C250 -> 3740.032228 | AV31: =C251 -> 3373.756316 | AW31: =C252 -> 3248.361467 | AY31: 3675.062988 | AZ31: 3688.812988 | BA31: 3497.752096 | BC31: 3016.971203 | BD31: 3364.867243 | BE31: 2588.050522 | BF31: 3081.399263 | BG31: 4219.249835 | BH31: 3862.241989 | BI31: 3229.170346 | BK31: 1941 | BL31: =D241 -> 2274.693049 | BM31: =D242 -> 2140.482577 | BN31: =D243 -> 3217.722396 | BO31: =D244 -> 3317 | BP31: =D245 -> 3423 | BQ31: =D246 -> 3940 | BR31: =D247 -> 4456 | BS31: =D248 -> 4552 | BT31: =D249 -> 4434.358455 | BU31: =D250 -> 3745.843408 | BV31: =D251 -> 3379.702719 | BW31: =D252 -> 3252.788168 | BY31: 3678.206934 | BZ31: 3691.956934 | CA31: 3511.132564 | CC31: 3041.110299 | CD31: 3370.012796 | CE31: 2630.371131 | CF31: 3105.487895 | CG31: 4219.169807 | CH31: 3865.574666 | CI31: 3236.053518 | CK31: 1941 | CL31: =E241 -> 2226.040899 | CM31: =E242 -> 2092.275554 | CN31: =E243 -> 3169.560012 | CO31: =E244 -> 3317 | CP31: =E245 -> 3423 | CQ31: =E246 -> 3940 | CR31: =E247 -> 4456 | CS31: =E248 -> 4552 | CT31: =E249 -> 4434.998677 | CU31: =E250 -> 3740.032228 | CV31: =E251 -> 3373.756316 | CW31: =E252 -> 3248.361467 | CY31: 3675.062988 | CZ31: 3688.812988 | DA31: 3497.752096 | DC31: 3016.971203 | DD31: 3364.867243 | DE31: 2588.050522 | DF31: 3081.399263 | DG31: 4219.249835 | DH31: 3862.241989 | DI31: 3229.170346 | DK31: 1941 | DL31: =F241 -> 2595.393125 | DM31: =F242 -> 2434.22148 | DN31: =F243 -> 3293 | DO31: =F244 -> 3317 | DP31: =F245 -> 3423 | DQ31: =F246 -> 3940 | DR31: =F247 -> 4456 | DS31: =F248 -> 4552 | DT31: =F249 -> 4500 | DU31: =F250 -> 4150 | DV31: =F251 -> 3700 | DW31: =F252 -> 3400 | DY31: 3771.023718 | DZ31: 3784.773718 | EA31: 3646.717884 | EC31: 3146.983609 | ED31: 3600 | EE31: 2834.368372 | EF31: 3179.536913 | EG31: 4227.375 | EH31: 4081.5 | EI31: 3374.714102 | EK31: 1941 | EL31: =G241 ->  | EM31: =G242 ->  | EN31: =G243 ->  | EO31: =G244 ->  | EP31: =G245 ->  | EQ31: =G246 ->  | ER31: =G247 ->  | ES31: =G248 ->  | ET31: =G249 ->  | EU31: =G250 ->  | EV31: =G251 ->  | EW31: =G252 -> 
A32: 1923-05-31 | B32: =INDIRECT(CONCATENATE("'",B$1,"'!",B$4,(YEAR($A32)-1921)*12+MONTH($A32)+3+IF(ISNUMBER(FIND("PRV",B$6)),1,0)))*IF(AND(B$3>0,TRIM(B$9)="CFS"),Conversions!$C32,1) -> 4013.903732 | C32: =INDIRECT(CONCATENATE("'",C$1,"'!",C$4,(YEAR($A32)-1921)*12+MONTH($A32)+3+IF(ISNUMBER(FIND("PRV",C$6)),1,0)))*IF(AND(C$3>0,TRIM(C$9)="CFS"),Conversions!$C32,1) -> 4030.769395 | D32: =INDIRECT(CONCATENATE("'",D$1,"'!",D$4,(YEAR($A32)-1921)*12+MONTH($A32)+3+IF(ISNUMBER(FIND("PRV",D$6)),1,0)))*IF(AND(D$3>0,TRIM(D$9)="CFS"),Conversions!$C32,1) -> 4037.905051 | E32: =INDIRECT(CONCATENATE("'",E$1,"'!",E$4,(YEAR($A32)-1921)*12+MONTH($A32)+3+IF(ISNUMBER(FIND("PRV",E$6)),1,0)))*IF(AND(E$3>0,TRIM(E$9)="CFS"),Conversions!$C32,1) -> 4030.769395 | F32: =INDIRECT(CONCATENATE("'",F$1,"'!",F$4,(YEAR($A32)-1921)*12+MONTH($A32)+3+IF(ISNUMBER(FIND("PRV",F$6)),1,0)))*IF(AND(F$3>0,TRIM(F$9)="CFS"),Conversions!$C32,1) -> 3991.377675 | G32: =INDIRECT(CONCATENATE("'",G$1,"'!",G$4,(YEAR($A32)-1921)*12+MONTH($A32)+3+IF(ISNUMBER(FIND("PRV",G$6)),1,0)))*IF(AND(G$3>0,TRIM(G$9)="CFS"),Conversions!$C32,1) ->  | K32: 1942 | L32: =B253 -> 3199.588666 | M32: =B254 -> 3088.879939 | N32: =B255 -> 3316 | O32: =B256 -> 3389 | P32: =B257 -> 3516 | Q32: =B258 -> 3801.42503 | R32: =B259 -> 4438.77636 | S32: =B260 -> 4552 | T32: =B261 -> 4416.139019 | U32: =B262 -> 3846.717443 | V32: =B263 -> 3480.166752 | W32: =B264 -> 3292.634957 | Y32: 3713.63236 | Z32: 3753.965693 | AA32: 3694.777347 | AC32: 3362.077357 | AD32: 3435.841603 | AE32: 3229.910895 | AF32: 3335.813323 | AG32: 4189.567725 | AH32: 3916.335173 | AI32: 3293.815697 | AK32: 1942 | AL32: =C253 -> 3204.93566 | AM32: =C254 -> 3094.671506 | AN32: =C255 -> 3316 | AO32: =C256 -> 3389 | AP32: =C257 -> 3516 | AQ32: =C258 -> 3801.42503 | AR32: =C259 -> 4438.77636 | AS32: =C260 -> 4552 | AT32: =C261 -> 4440.42318 | AU32: =C262 -> 3861.454613 | AV32: =C263 -> 3495.099793 | AW32: =C264 -> 3298.88983 | AY32: 3719.544411 | AZ32: 3759.877745 | BA32: 3700.722998 | BC32: 3363.77037 | BD32: 3447.149665 | BE32: 3233.571975 | BF32: 3336.778584 | BG32: 4192.603245 | BH32: 3930.605625 | BI32: 3301.967952 | BK32: 1942 | BL32: =D253 -> 3209.251593 | BM32: =D254 -> 3112.538865 | BN32: =D255 -> 3316 | BO32: =D256 -> 3389 | BP32: =D257 -> 3516 | BQ32: =D258 -> 3801.42503 | BR32: =D259 -> 4438.77636 | BS32: =D260 -> 4552 | BT32: =D261 -> 4440.398267 | BU32: =D262 -> 3861.426981 | BV32: =D263 -> 3495.065872 | BW32: =D264 -> 3298.846381 | BY32: 3719.529557 | BZ32: 3759.86289 | CA32: 3702.560779 | CC32: 3367.775435 | CD32: 3447.111213 | CE32: 3239.671136 | CF32: 3339.756478 | CG32: 4192.600131 | CH32: 3930.578578 | CI32: 3301.931702 | CK32: 1942 | CL32: =E253 -> 3204.93566 | CM32: =E254 -> 3094.671506 | CN32: =E255 -> 3316 | CO32: =E256 -> 3389 | CP32: =E257 -> 3516 | CQ32: =E258 -> 3801.42503 | CR32: =E259 -> 4438.77636 | CS32: =E260 -> 4552 | CT32: =E261 -> 4440.42318 | CU32: =E262 -> 3861.454613 | CV32: =E263 -> 3495.099793 | CW32: =E264 -> 3298.88983 | CY32: 3719.544411 | CZ32: 3759.877745 | DA32: 3700.722998 | DC32: 3363.77037 | DD32: 3447.149665 | DE32: 3233.571975 | DF32: 3336.778584 | DG32: 4192.603245 | DH32: 3930.605625 | DI32: 3301.967952 | DK32: 1942 | DL32: =F253 -> 3250 | DM32: =F254 -> 3248.284611 | DN32: =F255 -> 3316 | DO32: =F256 -> 3389 | DP32: =F257 -> 3516 | DQ32: =F258 -> 3796.880095 | DR32: =F259 -> 4531.933699 | DS32: =F260 -> 4552 | DT32: =F261 -> 4500 | DU32: =F262 -> 4150 | DV32: =F263 -> 3700 | DW32: =F264 -> 3400 | DY32: 3782.817816 | DZ32: 3823.151149 | EA32: 3779.174867 | EC32: 3398.544932 | ED32: 3600 | EE32: 3302.196153 | EF32: 3362.380769 | EG32: 4222.203448 | EH32: 4081.5 | EI32: 3375.333333 | EK32: 1942 | EL32: =G253 ->  | EM32: =G254 ->  | EN32: =G255 ->  | EO32: =G256 ->  | EP32: =G257 ->  | EQ32: =G258 ->  | ER32: =G259 ->  | ES32: =G260 ->  | ET32: =G261 ->  | EU32: =G262 ->  | EV32: =G263 ->  | EW32: =G264 -> 
A33: 1923-06-30 | B33: =INDIRECT(CONCATENATE("'",B$1,"'!",B$4,(YEAR($A33)-1921)*12+MONTH($A33)+3+IF(ISNUMBER(FIND("PRV",B$6)),1,0)))*IF(AND(B$3>0,TRIM(B$9)="CFS"),Conversions!$C33,1) -> 3652.439587 | C33: =INDIRECT(CONCATENATE("'",C$1,"'!",C$4,(YEAR($A33)-1921)*12+MONTH($A33)+3+IF(ISNUMBER(FIND("PRV",C$6)),1,0)))*IF(AND(C$3>0,TRIM(C$9)="CFS"),Conversions!$C33,1) -> 3674.813026 | D33: =INDIRECT(CONCATENATE("'",D$1,"'!",D$4,(YEAR($A33)-1921)*12+MONTH($A33)+3+IF(ISNUMBER(FIND("PRV",D$6)),1,0)))*IF(AND(D$3>0,TRIM(D$9)="CFS"),Conversions!$C33,1) -> 3681.920186 | E33: =INDIRECT(CONCATENATE("'",E$1,"'!",E$4,(YEAR($A33)-1921)*12+MONTH($A33)+3+IF(ISNUMBER(FIND("PRV",E$6)),1,0)))*IF(AND(E$3>0,TRIM(E$9)="CFS"),Conversions!$C33,1) -> 3674.813026 | F33: =INDIRECT(CONCATENATE("'",F$1,"'!",F$4,(YEAR($A33)-1921)*12+MONTH($A33)+3+IF(ISNUMBER(FIND("PRV",F$6)),1,0)))*IF(AND(F$3>0,TRIM(F$9)="CFS"),Conversions!$C33,1) -> 3675.367982 | G33: =INDIRECT(CONCATENATE("'",G$1,"'!",G$4,(YEAR($A33)-1921)*12+MONTH($A33)+3+IF(ISNUMBER(FIND("PRV",G$6)),1,0)))*IF(AND(G$3>0,TRIM(G$9)="CFS"),Conversions!$C33,1) ->  | K33: 1943 | L33: =B265 -> 3222.728757 | M33: =B266 -> 3252 | N33: =B267 -> 3356 | O33: =B268 -> 3541 | P33: =B269 -> 3848 | Q33: =B270 -> 4118 | R33: =B271 -> 4552 | S33: =B272 -> 4452.793928 | T33: =B273 -> 4166.149193 | U33: =B274 -> 3523.303164 | V33: =B275 -> 3129.109314 | W33: =B276 -> 2820.028692 | Y33: 3495.105817 | Z33: 3355.822211 | AA33: 3665.092754 | AC33: 3533.472876 | AD33: 3025.057891 | AE33: 3311.886559 | AF33: 3482.333333 | AG33: 4282.467131 | AH33: 3613.743245 | AI33: 2792.499098 | AK33: 1943 | AL33: =C265 -> 3233.464129 | AM33: =C266 -> 3252 | AN33: =C267 -> 3356 | AO33: =C268 -> 3541 | AP33: =C269 -> 3848 | AQ33: =C270 -> 4118 | AR33: =C271 -> 4552 | AS33: =C272 -> 4452.718221 | AT33: =C273 -> 4166.112825 | AU33: =C274 -> 3523.260039 | AV33: =C275 -> 3129.469224 | AW33: =C276 -> 2821.762391 | AY33: 3494.98554 | AZ33: 3354.534872 | BA33: 3666.148902 | BC33: 3534.546413 | BD33: 3026.035762 | BE33: 3315.352261 | BF33: 3482.333333 | BG33: 4282.443658 | BH33: 3614.020599 | BI33: 2794.028825 | BK33: 1943 | BL33: =D265 -> 3233.41579 | BM33: =D266 -> 3252 | BN33: =D267 -> 3356 | BO33: =D268 -> 3541 | BP33: =D269 -> 3848 | BQ33: =D270 -> 4118 | BR33: =D271 -> 4552 | BS33: =D272 -> 4452.71303 | BT33: =D273 -> 4166.101514 | BU33: =D274 -> 3523.245452 | BV33: =D275 -> 3129.448354 | BW33: =D276 -> 2821.734911 | BY33: 3494.422326 | BZ33: 3353.418828 | CA33: 3666.138254 | CC33: 3534.541579 | CD33: 3026.01196 | CE33: 3315.334745 | CF33: 3482.333333 | CG33: 4282.440947 | CH33: 3614.004822 | CI33: 2793.451148 | CK33: 1943 | CL33: =E265 -> 3233.464129 | CM33: =E266 -> 3252 | CN33: =E267 -> 3356 | CO33: =E268 -> 3541 | CP33: =E269 -> 3848 | CQ33: =E270 -> 4118 | CR33: =E271 -> 4552 | CS33: =E272 -> 4452.718221 | CT33: =E273 -> 4166.112825 | CU33: =E274 -> 3523.260039 | CV33: =E275 -> 3129.469224 | CW33: =E276 -> 2821.762391 | CY33: 3494.98554 | CZ33: 3354.534872 | DA33: 3666.148902 | DC33: 3534.546413 | DD33: 3026.035762 | DE33: 3315.352261 | DF33: 3482.333333 | DG33: 4282.443658 | DH33: 3614.020599 | DI33: 2794.028825 | DK33: 1943 | DL33: =F265 -> 3250 | DM33: =F266 -> 3252 | DN33: =F267 -> 3356 | DO33: =F268 -> 3541 | DP33: =F269 -> 3848 | DQ33: =F270 -> 4118 | DR33: =F271 -> 4552 | DS33: =F272 -> 4552 | DT33: =F273 -> 4404.754979 | DU33: =F274 -> 3741.621075 | DV33: =F275 -> 3376.119761 | DW33: =F276 -> 3119.369419 | DY33: 3667.368281 | DZ33: 3563.312503 | EA33: 3759.238769 | EC33: 3536.2 | ED33: 3297.71606 | EE33: 3332.125 | EF33: 3482.333333 | EG33: 4337.094372 | EH33: 3839.545131 | EI33: 3100.635231 | EK33: 1943 | EL33: =G265 ->  | EM33: =G266 ->  | EN33: =G267 ->  | EO33: =G268 ->  | EP33: =G269 ->  | EQ33: =G270 ->  | ER33: =G271 ->  | ES33: =G272 ->  | ET33: =G273 ->  | EU33: =G274 ->  | EV33: =G275 ->  | EW33: =G276 -> 
A34: 1923-07-31 | B34: =INDIRECT(CONCATENATE("'",B$1,"'!",B$4,(YEAR($A34)-1921)*12+MONTH($A34)+3+IF(ISNUMBER(FIND("PRV",B$6)),1,0)))*IF(AND(B$3>0,TRIM(B$9)="CFS"),Conversions!$C34,1) -> 3095.052802 | C34: =INDIRECT(CONCATENATE("'",C$1,"'!",C$4,(YEAR($A34)-1921)*12+MONTH($A34)+3+IF(ISNUMBER(FIND("PRV",C$6)),1,0)))*IF(AND(C$3>0,TRIM(C$9)="CFS"),Conversions!$C34,1) -> 3121.435264 | D34: =INDIRECT(CONCATENATE("'",D$1,"'!",D$4,(YEAR($A34)-1921)*12+MONTH($A34)+3+IF(ISNUMBER(FIND("PRV",D$6)),1,0)))*IF(AND(D$3>0,TRIM(D$9)="CFS"),Conversions!$C34,1) -> 3123.701977 | E34: =INDIRECT(CONCATENATE("'",E$1,"'!",E$4,(YEAR($A34)-1921)*12+MONTH($A34)+3+IF(ISNUMBER(FIND("PRV",E$6)),1,0)))*IF(AND(E$3>0,TRIM(E$9)="CFS"),Conversions!$C34,1) -> 3121.435264 | F34: =INDIRECT(CONCATENATE("'",F$1,"'!",F$4,(YEAR($A34)-1921)*12+MONTH($A34)+3+IF(ISNUMBER(FIND("PRV",F$6)),1,0)))*IF(AND(F$3>0,TRIM(F$9)="CFS"),Conversions!$C34,1) -> 3298.201907 | G34: =INDIRECT(CONCATENATE("'",G$1,"'!",G$4,(YEAR($A34)-1921)*12+MONTH($A34)+3+IF(ISNUMBER(FIND("PRV",G$6)),1,0)))*IF(AND(G$3>0,TRIM(G$9)="CFS"),Conversions!$C34,1) ->  | K34: 1944 | L34: =B277 -> 2728.76817 | M34: =B278 -> 2528.291552 | N34: =B279 -> 2533.825786 | O34: =B280 -> 2663.758557 | P34: =B281 -> 3053.838174 | Q34: =B282 -> 3445.540138 | R34: =B283 -> 3582.967854 | S34: =B284 -> 3462.834558 | T34: =B285 -> 3147.782059 | U34: =B286 -> 2691.290871 | V34: =B287 -> 2351.365812 | W34: =B288 -> 2282.532567 | Y34: 2826.734156 | Z34: 2910.791542 | AA34: 2872.733008 | AC34: 2773.373645 | AD34: 2350.623087 | AE34: 2633.194783 | AF34: 2662.883069 | AG34: 3398.038167 | AH34: 2765.780576 | AI34: 2263.366166 | AK34: 1944 | AL34: =C277 -> 2730.491302 | AM34: =C278 -> 2530.196338 | AN34: =C279 -> 2526.816139 | AO34: =C280 -> 2656.753489 | AP34: =C281 -> 3046.8385 | AQ34: =C282 -> 3438.549868 | AR34: =C283 -> 3574.30104 | AS34: =C284 -> 3454.194153 | AT34: =C285 -> 3146.063944 | AU34: =C286 -> 2690.032439 | AV34: =C287 -> 2345.708366 | AW34: =C288 -> 2282.288809 | AY34: 2823.253465 | AZ34: 2908.777982 | BA34: 2868.519532 | BC34: 2769.02501 | BD34: 2348.747197 | BE34: 2631.69043 | BF34: 2657.362349 | BG34: 3390.874071 | BH34: 2762.511557 | BI34: 2263.244474 | BK34: 1944 | BL34: =D277 -> 2730.459778 | BM34: =D278 -> 2526.869157 | BN34: =D279 -> 2523.495714 | BO34: =D280 -> 2653.435233 | BP34: =D281 -> 3043.522798 | BQ34: =D282 -> 3435.238621 | BR34: =D283 -> 3612.780838 | BS34: =D284 -> 3525.311803 | BT34: =D285 -> 3216.92245 | BU34: =D286 -> 2781.105511 | BV34: =D287 -> 2438.522992 | BW34: =D288 -> 2357.60641 | BY34: 2873.393698 | BZ34: 2969.00653 | CA34: 2903.772609 | CC34: 2766.03442 | CD34: 2429.532244 | CE34: 2629.60243 | CF34: 2654.042308 | CG34: 3425.888471 | CH34: 2844.502515 | CI34: 2332.49683 | CK34: 1944 | CL34: =E277 -> 2730.491302 | CM34: =E278 -> 2530.196338 | CN34: =E279 -> 2526.816139 | CO34: =E280 -> 2656.753489 | CP34: =E281 -> 3046.8385 | CQ34: =E282 -> 3438.549868 | CR34: =E283 -> 3574.30104 | CS34: =E284 -> 3454.194153 | CT34: =E285 -> 3146.063944 | CU34: =E286 -> 2690.032439 | CV34: =E287 -> 2345.708366 | CW34: =E288 -> 2282.288809 | CY34: 2823.253465 | CZ34: 2908.777982 | DA34: 2868.519532 | DC34: 2769.02501 | DD34: 2348.747197 | DE34: 2631.69043 | DF34: 2657.362349 | DG34: 3390.874071 | DH34: 2762.511557 | DI34: 2263.244474 | DK34: 1944 | DL34: =F277 -> 3053.696926 | DM34: =F278 -> 2881.558937 | DN34: =F279 -> 2820.298278 | DO34: =F280 -> 2913.157429 | DP34: =F281 -> 3227.17323 | DQ34: =F282 -> 3552.542277 | DR34: =F283 -> 3755.478447 | DS34: =F284 -> 3766.321953 | DT34: =F285 -> 3528.400212 | DU34: =F286 -> 3091.026259 | DV34: =F287 -> 2773.593588 | DW34: =F288 -> 2723.302941 | DY34: 3157.151604 | DZ34: 3252.133516 | EA34: 3173.879206 | EC34: 3029.061495 | ED34: 2784.282368 | EE34: 2942.954391 | EF34: 2929.27393 | EG34: 3613.03235 | EH34: 3159.458126 | EI34: 2712.36766 | EK34: 1944 | EL34: =G277 ->  | EM34: =G278 ->  | EN34: =G279 ->  | EO34: =G280 ->  | EP34: =G281 ->  | EQ34: =G282 ->  | ER34: =G283 ->  | ES34: =G284 ->  | ET34: =G285 ->  | EU34: =G286 ->  | EV34: =G287 ->  | EW34: =G288 -> 
A35: 1923-08-31 | B35: =INDIRECT(CONCATENATE("'",B$1,"'!",B$4,(YEAR($A35)-1921)*12+MONTH($A35)+3+IF(ISNUMBER(FIND("PRV",B$6)),1,0)))*IF(AND(B$3>0,TRIM(B$9)="CFS"),Conversions!$C35,1) -> 2765.42011 | C35: =INDIRECT(CONCATENATE("'",C$1,"'!",C$4,(YEAR($A35)-1921)*12+MONTH($A35)+3+IF(ISNUMBER(FIND("PRV",C$6)),1,0)))*IF(AND(C$3>0,TRIM(C$9)="CFS"),Conversions!$C35,1) -> 2792.817654 | D35: =INDIRECT(CONCATENATE("'",D$1,"'!",D$4,(YEAR($A35)-1921)*12+MONTH($A35)+3+IF(ISNUMBER(FIND("PRV",D$6)),1,0)))*IF(AND(D$3>0,TRIM(D$9)="CFS"),Conversions!$C35,1) -> 2794.196683 | E35: =INDIRECT(CONCATENATE("'",E$1,"'!",E$4,(YEAR($A35)-1921)*12+MONTH($A35)+3+IF(ISNUMBER(FIND("PRV",E$6)),1,0)))*IF(AND(E$3>0,TRIM(E$9)="CFS"),Conversions!$C35,1) -> 2792.817654 | F35: =INDIRECT(CONCATENATE("'",F$1,"'!",F$4,(YEAR($A35)-1921)*12+MONTH($A35)+3+IF(ISNUMBER(FIND("PRV",F$6)),1,0)))*IF(AND(F$3>0,TRIM(F$9)="CFS"),Conversions!$C35,1) -> 2989.326513 | G35: =INDIRECT(CONCATENATE("'",G$1,"'!",G$4,(YEAR($A35)-1921)*12+MONTH($A35)+3+IF(ISNUMBER(FIND("PRV",G$6)),1,0)))*IF(AND(G$3>0,TRIM(G$9)="CFS"),Conversions!$C35,1) ->  | K35: 1945 | L35: =B289 -> 2144.650894 | M35: =B290 -> 2374.464262 | N35: =B291 -> 2719.784125 | O35: =B292 -> 2942.805759 | P35: =B293 -> 3783.479607 | Q35: =B294 -> 4133.395302 | R35: =B295 -> 4397.334753 | S35: =B296 -> 4368.219834 | T35: =B297 -> 4014.256973 | U35: =B298 -> 3310.641255 | V35: =B299 -> 2906.012879 | W35: =B300 -> 2807.887554 | Y35: 3476.328965 | Z35: 3543.092223 | AA35: 3325.244433 | AC35: 2991.91137 | AD35: 2914.21942 | AE35: 2462.892111 | AF35: 2913.85394 | AG35: 4199.454545 | AH35: 3454.741201 | AI35: 2842.596008 | AK35: 1945 | AL35: =C289 -> 2146.456396 | AM35: =C290 -> 2376.268067 | AN35: =C291 -> 2721.586503 | AO35: =C292 -> 2944.606957 | AP35: =C293 -> 3785.279242 | AQ35: =C294 -> 4135.193554 | AR35: =C295 -> 4399.12953 | AS35: =C296 -> 4401.818905 | AT35: =C297 -> 4036.07368 | AU35: =C298 -> 3333.87411 | AV35: =C299 -> 2934.518207 | AW35: =C300 -> 2842.360921 | AY35: 3494.204741 | AZ35: 3560.662829 | BA35: 3338.097173 | BC35: 2993.713149 | BD35: 2944.414318 | BE35: 2464.439712 | BF35: 2915.655705 | BG35: 4211.704612 | BH35: 3481.638978 | BI35: 2875.115897 | BK35: 1945 | BL35: =D289 -> 2203.829151 | BM35: =D290 -> 2433.586865 | BN35: =D291 -> 2778.86171 | BO35: =D292 -> 3001.844694 | BP35: =D293 -> 3842.467312 | BQ35: =D294 -> 4192.337582 | BR35: =D295 -> 4456.163136 | BS35: =D296 -> 4458.794396 | BT35: =D297 -> 4098.673554 | BU35: =D298 -> 3380.079594 | BV35: =D299 -> 2981.184755 | BW35: =D300 -> 2887.960754 | BY35: 3543.291396 | BZ35: 3600.213777 | CA35: 3392.981959 | CC35: 3050.96879 | CD35: 2989.336799 | CE35: 2524.00082 | CF35: 2972.911164 | CG35: 4269.466387 | CH35: 3533.328869 | CI35: 2921.62457 | CK35: 1945 | CL35: =E289 -> 2146.456396 | CM35: =E290 -> 2376.268067 | CN35: =E291 -> 2721.586503 | CO35: =E292 -> 2944.606957 | CP35: =E293 -> 3785.279242 | CQ35: =E294 -> 4135.193554 | CR35: =E295 -> 4399.12953 | CS35: =E296 -> 4401.818905 | CT35: =E297 -> 4036.07368 | CU35: =E298 -> 3333.87411 | CV35: =E299 -> 2934.518207 | CW35: =E300 -> 2842.360921 | CY35: 3494.204741 | CZ35: 3560.662829 | DA35: 3338.097173 | DC35: 2993.713149 | DD35: 2944.414318 | DE35: 2464.439712 | DF35: 2915.655705 | DG35: 4211.704612 | DH35: 3481.638978 | DI35: 2875.115897 | DK35: 1945 | DL35: =F289 -> 2620.87489 | DM35: =F290 -> 2812.256708 | DN35: =F291 -> 3121.691315 | DO35: =F292 -> 3332.113601 | DP35: =F293 -> 3948 | DQ35: =F294 -> 4266.697983 | DR35: =F295 -> 4530.802107 | DS35: =F296 -> 4552 | DT35: =F297 -> 4359.639009 | DU35: =F298 -> 3792.982846 | DV35: =F299 -> 3407.485118 | DW35: =F300 -> 3307.247727 | DY35: 3771.33688 | DZ35: 3788.557168 | EA35: 3670.982609 | EC35: 3331.569612 | ED35: 3410.753784 | EE35: 2895.632796 | EF35: 3277.977757 | EG35: 4375.829899 | EH35: 3872.432709 | EI35: 3293.021484 | EK35: 1945 | EL35: =G289 ->  | EM35: =G290 ->  | EN35: =G291 ->  | EO35: =G292 ->  | EP35: =G293 ->  | EQ35: =G294 ->  | ER35: =G295 ->  | ES35: =G296 ->  | ET35: =G297 ->  | EU35: =G298 ->  | EV35: =G299 ->  | EW35: =G300 -> 
A36: 1923-09-30 | B36: =INDIRECT(CONCATENATE("'",B$1,"'!",B$4,(YEAR($A36)-1921)*12+MONTH($A36)+3+IF(ISNUMBER(FIND("PRV",B$6)),1,0)))*IF(AND(B$3>0,TRIM(B$9)="CFS"),Conversions!$C36,1) -> 2762.972775 | C36: =INDIRECT(CONCATENATE("'",C$1,"'!",C$4,(YEAR($A36)-1921)*12+MONTH($A36)+3+IF(ISNUMBER(FIND("PRV",C$6)),1,0)))*IF(AND(C$3>0,TRIM(C$9)="CFS"),Conversions!$C36,1) -> 2793.45764 | D36: =INDIRECT(CONCATENATE("'",D$1,"'!",D$4,(YEAR($A36)-1921)*12+MONTH($A36)+3+IF(ISNUMBER(FIND("PRV",D$6)),1,0)))*IF(AND(D$3>0,TRIM(D$9)="CFS"),Conversions!$C36,1) -> 2794.810147 | E36: =INDIRECT(CONCATENATE("'",E$1,"'!",E$4,(YEAR($A36)-1921)*12+MONTH($A36)+3+IF(ISNUMBER(FIND("PRV",E$6)),1,0)))*IF(AND(E$3>0,TRIM(E$9)="CFS"),Conversions!$C36,1) -> 2793.45764 | F36: =INDIRECT(CONCATENATE("'",F$1,"'!",F$4,(YEAR($A36)-1921)*12+MONTH($A36)+3+IF(ISNUMBER(FIND("PRV",F$6)),1,0)))*IF(AND(F$3>0,TRIM(F$9)="CFS"),Conversions!$C36,1) -> 2954.070677 | G36: =INDIRECT(CONCATENATE("'",G$1,"'!",G$4,(YEAR($A36)-1921)*12+MONTH($A36)+3+IF(ISNUMBER(FIND("PRV",G$6)),1,0)))*IF(AND(G$3>0,TRIM(G$9)="CFS"),Conversions!$C36,1) ->  | K36: 1946 | L36: =B301 -> 2746.874395 | M36: =B302 -> 3040.039271 | N36: =B303 -> 3265 | O36: =B304 -> 3622 | P36: =B305 -> 3905.444461 | Q36: =B306 -> 4332.143149 | R36: =B307 -> 4552 | S36: =B308 -> 4278.878367 | T36: =B309 -> 3824.916922 | U36: =B310 -> 3143.513975 | V36: =B311 -> 2813.233341 | W36: =B312 -> 2673.070428 | Y36: 3415.099027 | Z36: 3280.144524 | AA36: 3516.426192 | AC36: 3474.398501 | AD36: 2766.462556 | AE36: 3066.714361 | AF36: 3453.247289 | AG36: 4257.050552 | AH36: 3314.409659 | AI36: 2621.621568 | AK36: 1946 | AL36: =C301 -> 2778.853544 | AM36: =C302 -> 3073.748247 | AN36: =C303 -> 3265 | AO36: =C304 -> 3622 | AP36: =C305 -> 3905.383253 | AQ36: =C306 -> 4332.081995 | AR36: =C307 -> 4552 | AS36: =C308 -> 4272.595186 | AT36: =C309 -> 3819.347104 | AU36: =C310 -> 3137.971668 | AV36: =C311 -> 2809.81049 | AW36: =C312 -> 2664.599757 | AY36: 3411.262861 | AZ36: 3274.90219 | BA36: 3519.44927 | BC36: 3484.319854 | BD36: 2761.231433 | BE36: 3087.445563 | BF36: 3458.85525 | BG36: 4254.76059 | BH36: 3308.931683 | BI36: 2616.526926 | BK36: 1946 | BL36: =D301 -> 2817.650181 | BM36: =D302 -> 3137.340795 | BN36: =D303 -> 3265 | BO36: =D304 -> 3622 | BP36: =D305 -> 3905.380575 | BQ36: =D306 -> 4332.07932 | BR36: =D307 -> 4552 | BS36: =D308 -> 4295.48073 | BT36: =D309 -> 3837.127038 | BU36: =D310 -> 3155.663831 | BV36: =D311 -> 2828.713892 | BW36: =D312 -> 2683.648131 | BY36: 3423.984003 | BZ36: 3290.745994 | CA36: 3536.007041 | CC36: 3500.917224 | CD36: 2779.966824 | CE36: 3118.742838 | CF36: 3469.453562 | CG36: 4262.703464 | CH36: 3327.767298 | CI36: 2635.428934 | CK36: 1946 | CL36: =E301 -> 2778.853544 | CM36: =E302 -> 3073.748247 | CN36: =E303 -> 3265 | CO36: =E304 -> 3622 | CP36: =E305 -> 3905.383253 | CQ36: =E306 -> 4332.081995 | CR36: =E307 -> 4552 | CS36: =E308 -> 4272.595186 | CT36: =E309 -> 3819.347104 | CU36: =E310 -> 3137.971668 | CV36: =E311 -> 2809.81049 | CW36: =E312 -> 2664.599757 | CY36: 3411.262861 | CZ36: 3274.90219 | DA36: 3519.44927 | DC36: 3484.319854 | DD36: 2761.231433 | DE36: 3087.445563 | DF36: 3458.85525 | DG36: 4254.76059 | DH36: 3308.931683 | DI36: 2616.526926 | DK36: 1946 | DL36: =F301 -> 3242.074166 | DM36: =F302 -> 3252 | DN36: =F303 -> 3265 | DO36: =F304 -> 3622 | DP36: =F305 -> 3864.757064 | DQ36: =F306 -> 4260.087613 | DR36: =F307 -> 4552 | DS36: =F308 -> 4530.083164 | DT36: =F309 -> 4167.243912 | DU36: =F310 -> 3575.005695 | DV36: =F311 -> 3263.642637 | DW36: =F312 -> 3220.995759 | DY36: 3687.936559 | DZ36: 3613.715392 | EA36: 3734.574168 | EC36: 3550.967591 | ED36: 3262.97038 | EE36: 3305.924507 | EF36: 3481.792844 | EG36: 4339.542816 | EH36: 3720.357927 | EI36: 3133.966183 | EK36: 1946 | EL36: =G301 ->  | EM36: =G302 ->  | EN36: =G303 ->  | EO36: =G304 ->  | EP36: =G305 ->  | EQ36: =G306 ->  | ER36: =G307 ->  | ES36: =G308 ->  | ET36: =G309 ->  | EU36: =G310 ->  | EV36: =G311 ->  | EW36: =G312 -> 
A37: 1923-10-31 | B37: =INDIRECT(CONCATENATE("'",B$1,"'!",B$4,(YEAR($A37)-1921)*12+MONTH($A37)+3+IF(ISNUMBER(FIND("PRV",B$6)),1,0)))*IF(AND(B$3>0,TRIM(B$9)="CFS"),Conversions!$C37,1) -> 2587.567043 | C37: =INDIRECT(CONCATENATE("'",C$1,"'!",C$4,(YEAR($A37)-1921)*12+MONTH($A37)+3+IF(ISNUMBER(FIND("PRV",C$6)),1,0)))*IF(AND(C$3>0,TRIM(C$9)="CFS"),Conversions!$C37,1) -> 2608.400731 | D37: =INDIRECT(CONCATENATE("'",D$1,"'!",D$4,(YEAR($A37)-1921)*12+MONTH($A37)+3+IF(ISNUMBER(FIND("PRV",D$6)),1,0)))*IF(AND(D$3>0,TRIM(D$9)="CFS"),Conversions!$C37,1) -> 2599.344946 | E37: =INDIRECT(CONCATENATE("'",E$1,"'!",E$4,(YEAR($A37)-1921)*12+MONTH($A37)+3+IF(ISNUMBER(FIND("PRV",E$6)),1,0)))*IF(AND(E$3>0,TRIM(E$9)="CFS"),Conversions!$C37,1) -> 2608.400731 | F37: =INDIRECT(CONCATENATE("'",F$1,"'!",F$4,(YEAR($A37)-1921)*12+MONTH($A37)+3+IF(ISNUMBER(FIND("PRV",F$6)),1,0)))*IF(AND(F$3>0,TRIM(F$9)="CFS"),Conversions!$C37,1) -> 2879.595914 | G37: =INDIRECT(CONCATENATE("'",G$1,"'!",G$4,(YEAR($A37)-1921)*12+MONTH($A37)+3+IF(ISNUMBER(FIND("PRV",G$6)),1,0)))*IF(AND(G$3>0,TRIM(G$9)="CFS"),Conversions!$C37,1) ->  | K37: 1947 | L37: =B313 -> 2482.653824 | M37: =B314 -> 2605.047564 | N37: =B315 -> 2748.286295 | O37: =B316 -> 2791.30679 | P37: =B317 -> 3116.683632 | Q37: =B318 -> 3704.966126 | R37: =B319 -> 3944.043522 | S37: =B320 -> 3569.975061 | T37: =B321 -> 3309.645815 | U37: =B322 -> 2865.278201 | V37: =B323 -> 2666.537875 | W37: =B324 -> 2599.198989 | Y37: 3027.052902 | Z37: 3055.782653 | AA37: 3033.635308 | AC37: 2871.026851 | AD37: 2672.594874 | AE37: 2642.044073 | AF37: 2800.152894 | AG37: 3608.037358 | AH37: 2981.512229 | AI37: 2617.342908 | AK37: 1947 | AL37: =C313 -> 2480.596439 | AM37: =C314 -> 2598.958677 | AN37: =C315 -> 2739.809765 | AO37: =C316 -> 2782.835579 | AP37: =C317 -> 3108.219621 | AQ37: =C318 -> 3696.514654 | AR37: =C319 -> 3935.611998 | AS37: =C320 -> 3560.723934 | AT37: =C321 -> 3360.98543 | AU37: =C322 -> 2916.6856 | AV37: =C323 -> 2694.711862 | AW37: =C324 -> 2608.429768 | AY37: 3033.240165 | AZ37: 3062.853293 | BA37: 3040.340277 | BC37: 2863.675838 | BD37: 2688.67568 | BE37: 2635.770637 | BF37: 2792.078164 | BG37: 3606.863278 | BH37: 3014.239936 | BI37: 2616.793966 | BK37: 1947 | BL37: =D313 -> 2499.413066 | BM37: =D314 -> 2617.73732 | BN37: =D315 -> 2758.564133 | BO37: =D316 -> 2801.578178 | BP37: =D317 -> 3126.94629 | BQ37: =D318 -> 3715.213581 | BR37: =D319 -> 3954.267879 | BS37: =D320 -> 3578.605027 | BT37: =D321 -> 3378.789999 | BU37: =D322 -> 2934.040405 | BV37: =D323 -> 2710.687793 | BW37: =D324 -> 2627.73743 | BY37: 3050.411629 | BZ37: 3079.169126 | CA37: 3058.631758 | CC37: 2882.427849 | CD37: 2705.697358 | CE37: 2654.581918 | CF37: 2810.828039 | CG37: 3625.238658 | CH37: 3031.672356 | CI37: 2632.972182 | CK37: 1947 | CL37: =E313 -> 2480.596439 | CM37: =E314 -> 2598.958677 | CN37: =E315 -> 2739.809765 | CO37: =E316 -> 2782.835579 | CP37: =E317 -> 3108.219621 | CQ37: =E318 -> 3696.514654 | CR37: =E319 -> 3935.611998 | CS37: =E320 -> 3560.723934 | CT37: =E321 -> 3360.98543 | CU37: =E322 -> 2916.6856 | CV37: =E323 -> 2694.711862 | CW37: =E324 -> 2608.429768 | CY37: 3033.240165 | CZ37: 3062.853293 | DA37: 3040.340277 | DC37: 2863.675838 | DD37: 2688.67568 | DE37: 2635.770637 | DF37: 2792.078164 | DG37: 3606.863278 | DH37: 3014.239936 | DI37: 2616.793966 | DK37: 1947 | DL37: =F313 -> 3033.539794 | DM37: =F314 -> 3031.083357 | DN37: =F315 -> 3134.799715 | DO37: =F316 -> 3165.277275 | DP37: =F317 -> 3430.825788 | DQ37: =F318 -> 3955.359232 | DR37: =F319 -> 4195.395742 | DS37: =F320 -> 3858.73596 | DT37: =F321 -> 3541.139874 | DU37: =F322 -> 3016.394715 | DV37: =F323 -> 2718.909607 | DW37: =F324 -> 2668.722753 | DY37: 3207.278988 | DZ37: 3186.711489 | EA37: 3312.515318 | EC37: 3251.287129 | ED37: 2746.596166 | EE37: 3098.139846 | EF37: 3177.010521 | EG37: 3873.868441 | EH37: 3135.043388 | EI37: 2678.411527 | EK37: 1947 | EL37: =G313 ->  | EM37: =G314 ->  | EN37: =G315 ->  | EO37: =G316 ->  | EP37: =G317 ->  | EQ37: =G318 ->  | ER37: =G319 ->  | ES37: =G320 ->  | ET37: =G321 ->  | EU37: =G322 ->  | EV37: =G323 ->  | EW37: =G324 -> 
A38: 1923-11-30 | B38: =INDIRECT(CONCATENATE("'",B$1,"'!",B$4,(YEAR($A38)-1921)*12+MONTH($A38)+3+IF(ISNUMBER(FIND("PRV",B$6)),1,0)))*IF(AND(B$3>0,TRIM(B$9)="CFS"),Conversions!$C38,1) -> 2483.9509 | C38: =INDIRECT(CONCATENATE("'",C$1,"'!",C$4,(YEAR($A38)-1921)*12+MONTH($A38)+3+IF(ISNUMBER(FIND("PRV",C$6)),1,0)))*IF(AND(C$3>0,TRIM(C$9)="CFS"),Conversions!$C38,1) -> 2504.571447 | D38: =INDIRECT(CONCATENATE("'",D$1,"'!",D$4,(YEAR($A38)-1921)*12+MONTH($A38)+3+IF(ISNUMBER(FIND("PRV",D$6)),1,0)))*IF(AND(D$3>0,TRIM(D$9)="CFS"),Conversions!$C38,1) -> 2497.330799 | E38: =INDIRECT(CONCATENATE("'",E$1,"'!",E$4,(YEAR($A38)-1921)*12+MONTH($A38)+3+IF(ISNUMBER(FIND("PRV",E$6)),1,0)))*IF(AND(E$3>0,TRIM(E$9)="CFS"),Conversions!$C38,1) -> 2504.571447 | F38: =INDIRECT(CONCATENATE("'",F$1,"'!",F$4,(YEAR($A38)-1921)*12+MONTH($A38)+3+IF(ISNUMBER(FIND("PRV",F$6)),1,0)))*IF(AND(F$3>0,TRIM(F$9)="CFS"),Conversions!$C38,1) -> 2765.690609 | G38: =INDIRECT(CONCATENATE("'",G$1,"'!",G$4,(YEAR($A38)-1921)*12+MONTH($A38)+3+IF(ISNUMBER(FIND("PRV",G$6)),1,0)))*IF(AND(G$3>0,TRIM(G$9)="CFS"),Conversions!$C38,1) ->  | K38: 1948 | L38: =B325 -> 2638.817315 | M38: =B326 -> 2561.486965 | N38: =B327 -> 2556.694536 | O38: =B328 -> 3128.886142 | P38: =B329 -> 3123.861293 | Q38: =B330 -> 3507.209342 | R38: =B331 -> 4422 | S38: =B332 -> 4552 | T38: =B333 -> 4480.167752 | U38: =B334 -> 3774.229467 | V38: =B335 -> 3381.988466 | W38: =B336 -> 3308.673789 | Y38: 3585.959019 | Z38: 3620.205245 | AA38: 3453.001256 | AC38: 2888.788453 | AD38: 3379.459661 | AE38: 2655.260346 | AF38: 2842.751602 | AG38: 4070.805966 | AH38: 3891.680645 | AI38: 3216.809923 | AK38: 1948 | AL38: =C325 -> 2609.085221 | AM38: =C326 -> 2571.021956 | AN38: =C327 -> 2554.056361 | AO38: =C328 -> 3126.24963 | AP38: =C329 -> 3120.163106 | AQ38: =C330 -> 3503.515219 | AR38: =C331 -> 4422 | AS38: =C332 -> 4552 | AT38: =C333 -> 4480.217387 | AU38: =C334 -> 3776.329339 | AV38: =C335 -> 3381.947533 | AW38: =C336 -> 3294.250645 | AY38: 3583.000553 | AZ38: 3616.0132 | BA38: 3449.236366 | BC38: 2885.558255 | BD38: 3376.322567 | BE38: 2650.375809 | BF38: 2841.966174 | BG38: 4069.426366 | BH38: 3890.404896 | BI38: 3212.899748 | BK38: 1948 | BL38: =D325 -> 2623.293296 | BM38: =D326 -> 2585.083848 | BN38: =D327 -> 2568.695825 | BO38: =D328 -> 3140.879865 | BP38: =D329 -> 3132.734565 | BQ38: =D330 -> 3516.072862 | BR38: =D331 -> 4422 | BS38: =D332 -> 4552 | BT38: =D333 -> 4488.737163 | BU38: =D334 -> 3782.404432 | BV38: =D335 -> 3387.757983 | BW38: =D336 -> 3299.326681 | BY38: 3589.258262 | BZ38: 3620.780873 | CA38: 3458.248877 | CC38: 2899.415437 | CD38: 3381.050407 | CE38: 2665.345404 | CF38: 2856.161632 | CG38: 4075.202182 | CH38: 3896.14073 | CI38: 3216.51114 | CK38: 1948 | CL38: =E325 -> 2609.085221 | CM38: =E326 -> 2571.021956 | CN38: =E327 -> 2554.056361 | CO38: =E328 -> 3126.24963 | CP38: =E329 -> 3120.163106 | CQ38: =E330 -> 3503.515219 | CR38: =E331 -> 4422 | CS38: =E332 -> 4552 | CT38: =E333 -> 4480.217387 | CU38: =E334 -> 3776.329339 | CV38: =E335 -> 3381.947533 | CW38: =E336 -> 3294.250645 | CY38: 3583.000553 | CZ38: 3616.0132 | DA38: 3449.236366 | DC38: 2885.558255 | DD38: 3376.322567 | DE38: 2650.375809 | DF38: 2841.966174 | DG38: 4069.426366 | DH38: 3890.404896 | DI38: 3212.899748 | DK38: 1948 | DL38: =F325 -> 2687.91756 | DM38: =F326 -> 2638.278924 | DN38: =F327 -> 2610.390419 | DO38: =F328 -> 3174.436394 | DP38: =F329 -> 3174.856687 | DQ38: =F330 -> 3511.143537 | DR38: =F331 -> 4422 | DS38: =F332 -> 4552 | DT38: =F333 -> 4500 | DU38: =F334 -> 3992.112988 | DV38: =F335 -> 3629.347856 | DW38: =F336 -> 3355.633132 | DY38: 3661.547827 | DZ38: 3688.997337 | EA38: 3520.676458 | EC38: 2939.498595 | ED38: 3533.871325 | EE38: 2714.541619 | EF38: 2897.13154 | EG38: 4080.64297 | EH38: 4018.819352 | EI38: 3330.866768 | EK38: 1948 | EL38: =G325 ->  | EM38: =G326 ->  | EN38: =G327 ->  | EO38: =G328 ->  | EP38: =G329 ->  | EQ38: =G330 ->  | ER38: =G331 ->  | ES38: =G332 ->  | ET38: =G333 ->  | EU38: =G334 ->  | EV38: =G335 ->  | EW38: =G336 -> 
A39: 1923-12-31 | B39: =INDIRECT(CONCATENATE("'",B$1,"'!",B$4,(YEAR($A39)-1921)*12+MONTH($A39)+3+IF(ISNUMBER(FIND("PRV",B$6)),1,0)))*IF(AND(B$3>0,TRIM(B$9)="CFS"),Conversions!$C39,1) -> 2445.23058 | C39: =INDIRECT(CONCATENATE("'",C$1,"'!",C$4,(YEAR($A39)-1921)*12+MONTH($A39)+3+IF(ISNUMBER(FIND("PRV",C$6)),1,0)))*IF(AND(C$3>0,TRIM(C$9)="CFS"),Conversions!$C39,1) -> 2470.844158 | D39: =INDIRECT(CONCATENATE("'",D$1,"'!",D$4,(YEAR($A39)-1921)*12+MONTH($A39)+3+IF(ISNUMBER(FIND("PRV",D$6)),1,0)))*IF(AND(D$3>0,TRIM(D$9)="CFS"),Conversions!$C39,1) -> 2460.759915 | E39: =INDIRECT(CONCATENATE("'",E$1,"'!",E$4,(YEAR($A39)-1921)*12+MONTH($A39)+3+IF(ISNUMBER(FIND("PRV",E$6)),1,0)))*IF(AND(E$3>0,TRIM(E$9)="CFS"),Conversions!$C39,1) -> 2470.844158 | F39: =INDIRECT(CONCATENATE("'",F$1,"'!",F$4,(YEAR($A39)-1921)*12+MONTH($A39)+3+IF(ISNUMBER(FIND("PRV",F$6)),1,0)))*IF(AND(F$3>0,TRIM(F$9)="CFS"),Conversions!$C39,1) -> 2704.341684 | G39: =INDIRECT(CONCATENATE("'",G$1,"'!",G$4,(YEAR($A39)-1921)*12+MONTH($A39)+3+IF(ISNUMBER(FIND("PRV",G$6)),1,0)))*IF(AND(G$3>0,TRIM(G$9)="CFS"),Conversions!$C39,1) ->  | K39: 1949 | L39: =B337 -> 3121.203992 | M39: =B338 -> 3059.11551 | N39: =B339 -> 3172.172472 | O39: =B340 -> 3203.276922 | P39: =B341 -> 3460.425224 | Q39: =B342 -> 4071 | R39: =B343 -> 4448.806 | S39: =B344 -> 4325.322406 | T39: =B345 -> 3961.612517 | U39: =B346 -> 3414.856413 | V39: =B347 -> 3057.888781 | W39: =B348 -> 2991.138069 | Y39: 3447.923577 | Z39: 3468.444069 | AA39: 3523.901525 | AC39: 3298.218425 | AD39: 3066.225996 | AE39: 3152.116832 | AF39: 3211.73992 | AG39: 4139.036819 | AH39: 3523.146987 | AI39: 2931.387313 | AK39: 1949 | AL39: =C337 -> 3129.209705 | AM39: =C338 -> 3048.530257 | AN39: =C339 -> 3161.593814 | AO39: =C340 -> 3192.704572 | AP39: =C341 -> 3449.859932 | AQ39: =C342 -> 4071 | AR39: =C343 -> 4448.806 | AS39: =C344 -> 4322.244113 | AT39: =C345 -> 3958.763507 | AU39: =C346 -> 3425.775278 | AV39: =C347 -> 3090.819801 | AW39: =C348 -> 3031.461236 | AY39: 3462.892388 | AZ39: 3492.447485 | BA39: 3527.564018 | BC39: 3290.558686 | BD39: 3099.170036 | BE39: 3145.702846 | BF39: 3201.164493 | BG39: 4136.590458 | BH39: 3538.052815 | BI39: 2970.16175 | BK39: 1949 | BL39: =D337 -> 3129.728683 | BM39: =D338 -> 3053.19813 | BN39: =D339 -> 3166.258779 | BO39: =D340 -> 3197.366755 | BP39: =D341 -> 3454.519003 | BQ39: =D342 -> 4071 | BR39: =D343 -> 4448.806 | BS39: =D344 -> 4338.235893 | BT39: =D345 -> 3971.307305 | BU39: =D346 -> 3437.6327 | BV39: =D347 -> 3103.172118 | BW39: =D348 -> 3043.956278 | BY39: 3472.205693 | BZ39: 3503.03503 | CA39: 3534.59847 | CC39: 3294.341402 | CD39: 3111.502435 | CE39: 3149.383078 | CF39: 3205.828033 | CG39: 4142.738762 | CH39: 3550.802052 | CI39: 2982.605668 | CK39: 1949 | CL39: =E337 -> 3129.209705 | CM39: =E338 -> 3048.530257 | CN39: =E339 -> 3161.593814 | CO39: =E340 -> 3192.704572 | CP39: =E341 -> 3449.859932 | CQ39: =E342 -> 4071 | CR39: =E343 -> 4448.806 | CS39: =E344 -> 4322.244113 | CT39: =E345 -> 3958.763507 | CU39: =E346 -> 3425.775278 | CV39: =E347 -> 3090.819801 | CW39: =E348 -> 3031.461236 | CY39: 3462.892388 | CZ39: 3492.447485 | DA39: 3527.564018 | DC39: 3290.558686 | DD39: 3099.170036 | DE39: 3145.702846 | DF39: 3201.164493 | DG39: 4136.590458 | DH39: 3538.052815 | DI39: 2970.16175 | DK39: 1949 | DL39: =F337 -> 3241.15299 | DM39: =F338 -> 3162.28051 | DN39: =F339 -> 3223.609827 | DO39: =F340 -> 3239.866548 | DP39: =F341 -> 3438.820653 | DQ39: =F342 -> 4071 | DR39: =F343 -> 4479.244009 | DS39: =F344 -> 4493.858074 | DT39: =F345 -> 4115.605079 | DU39: =F346 -> 3574.203768 | DV39: =F347 -> 3268.370237 | DW39: =F348 -> 3219.270778 | DY39: 3568.140129 | DZ39: 3570.09744 | EA39: 3627.273539 | EC39: 3344.130807 | ED39: 3276.228869 | EE39: 3231.198292 | EF39: 3254.675652 | EG39: 4205.328737 | EH39: 3703.685878 | EI39: 3146.245619 | EK39: 1949 | EL39: =G337 ->  | EM39: =G338 ->  | EN39: =G339 ->  | EO39: =G340 ->  | EP39: =G341 ->  | EQ39: =G342 ->  | ER39: =G343 ->  | ES39: =G344 ->  | ET39: =G345 ->  | EU39: =G346 ->  | EV39: =G347 ->  | EW39: =G348 -> 
A40: 1924-01-31 | B40: =INDIRECT(CONCATENATE("'",B$1,"'!",B$4,(YEAR($A40)-1921)*12+MONTH($A40)+3+IF(ISNUMBER(FIND("PRV",B$6)),1,0)))*IF(AND(B$3>0,TRIM(B$9)="CFS"),Conversions!$C40,1) -> 2605.495103 | C40: =INDIRECT(CONCATENATE("'",C$1,"'!",C$4,(YEAR($A40)-1921)*12+MONTH($A40)+3+IF(ISNUMBER(FIND("PRV",C$6)),1,0)))*IF(AND(C$3>0,TRIM(C$9)="CFS"),Conversions!$C40,1) -> 2631.091465 | D40: =INDIRECT(CONCATENATE("'",D$1,"'!",D$4,(YEAR($A40)-1921)*12+MONTH($A40)+3+IF(ISNUMBER(FIND("PRV",D$6)),1,0)))*IF(AND(D$3>0,TRIM(D$9)="CFS"),Conversions!$C40,1) -> 2621.013999 | E40: =INDIRECT(CONCATENATE("'",E$1,"'!",E$4,(YEAR($A40)-1921)*12+MONTH($A40)+3+IF(ISNUMBER(FIND("PRV",E$6)),1,0)))*IF(AND(E$3>0,TRIM(E$9)="CFS"),Conversions!$C40,1) -> 2631.091465 | F40: =INDIRECT(CONCATENATE("'",F$1,"'!",F$4,(YEAR($A40)-1921)*12+MONTH($A40)+3+IF(ISNUMBER(FIND("PRV",F$6)),1,0)))*IF(AND(F$3>0,TRIM(F$9)="CFS"),Conversions!$C40,1) -> 2798.67752 | G40: =INDIRECT(CONCATENATE("'",G$1,"'!",G$4,(YEAR($A40)-1921)*12+MONTH($A40)+3+IF(ISNUMBER(FIND("PRV",G$6)),1,0)))*IF(AND(G$3>0,TRIM(G$9)="CFS"),Conversions!$C40,1) ->  | K40: 1950 | L40: =B349 -> 2884.445865 | M40: =B350 -> 2779.267226 | N40: =B351 -> 2777.043498 | O40: =B352 -> 3183.7773 | P40: =B353 -> 3726.170751 | Q40: =B354 -> 4199.688575 | R40: =B355 -> 4552 | S40: =B356 -> 4336.668378 | T40: =B357 -> 4039.87605 | U40: =B358 -> 3425.04402 | V40: =B359 -> 3068.654356 | W40: =B360 -> 2966.901325 | Y40: 3600.114574 | Z40: 3642.452237 | AA40: 3494.961445 | AC40: 3201.665199 | AD40: 3104.12492 | AE40: 2882.053568 | AF40: 3071.179929 | AG40: 4242.845088 | AH40: 3546.339819 | AI40: 3085.274213 | AK40: 1950 | AL40: =C349 -> 2924.682863 | AM40: =C350 -> 2817.862501 | AN40: =C351 -> 2820.728857 | AO40: =C352 -> 3227.435051 | AP40: =C353 -> 3769.790619 | AQ40: =C354 -> 4243.273739 | AR40: =C355 -> 4552 | AS40: =C356 -> 4340.877946 | AT40: =C357 -> 4052.66989 | AU40: =C358 -> 3417.760462 | AV40: =C359 -> 3059.641219 | AW40: =C360 -> 2965.316831 | AY40: 3614.822752 | AZ40: 3649.88728 | BA40: 3516.003331 | BC40: 3243.959066 | BD40: 3107.130638 | BE40: 2923.180591 | BF40: 3113.996822 | BG40: 4261.845485 | BH40: 3545.79224 | BI40: 3098.748236 | BK40: 1950 | BL40: =D349 -> 2937.125121 | BM40: =D350 -> 2830.299094 | BN40: =D351 -> 2833.048049 | BO40: =D352 -> 3239.746458 | BP40: =D353 -> 3782.091343 | BQ40: =D354 -> 4255.56465 | BR40: =D355 -> 4552 | BS40: =D356 -> 4347.604413 | BT40: =D357 -> 4059.474902 | BU40: =D358 -> 3420.825843 | BV40: =D359 -> 3062.37273 | BW40: =D360 -> 2966.504634 | BY40: 3619.710728 | BZ40: 3652.724245 | CA40: 3523.888103 | CC40: 3256.305966 | CD40: 3109.154056 | CE40: 2935.580908 | CF40: 3126.329909 | CG40: 4268.988046 | CH40: 3549.932 | CI40: 3100.011588 | CK40: 1950 | CL40: =E349 -> 2924.682863 | CM40: =E350 -> 2817.862501 | CN40: =E351 -> 2820.728857 | CO40: =E352 -> 3227.435051 | CP40: =E353 -> 3769.790619 | CQ40: =E354 -> 4243.273739 | CR40: =E355 -> 4552 | CS40: =E356 -> 4340.877946 | CT40: =E357 -> 4052.66989 | CU40: =E358 -> 3417.760462 | CV40: =E359 -> 3059.641219 | CW40: =E360 -> 2965.316831 | CY40: 3614.822752 | CZ40: 3649.88728 | DA40: 3516.003331 | DC40: 3243.959066 | DD40: 3107.130638 | DE40: 2923.180591 | DF40: 3113.996822 | DG40: 4261.845485 | DH40: 3545.79224 | DI40: 3098.748236 | DK40: 1950 | DL40: =F349 -> 3107.887415 | DM40: =F350 -> 2954.787093 | DN40: =F351 -> 2854.767888 | DO40: =F352 -> 3149.806565 | DP40: =F353 -> 3552.368372 | DQ40: =F354 -> 4004.366773 | DR40: =F355 -> 4416.238286 | DS40: =F356 -> 4338.97964 | DT40: =F357 -> 4105.503735 | DU40: =F358 -> 3688.520629 | DV40: =F359 -> 3309.626471 | DW40: =F360 -> 3226.590999 | DY40: 3634.666789 | DZ40: 3694.318878 | EA40: 3559.120322 | EC40: 3213.571403 | ED40: 3335.159261 | EE40: 3025.495267 | EF40: 3086.050729 | EG40: 4147.130188 | EH40: 3721.609039 | EI40: 3252.468078 | EK40: 1950 | EL40: =G349 ->  | EM40: =G350 ->  | EN40: =G351 ->  | EO40: =G352 ->  | EP40: =G353 ->  | EQ40: =G354 ->  | ER40: =G355 ->  | ES40: =G356 ->  | ET40: =G357 ->  | EU40: =G358 ->  | EV40: =G359 ->  | EW40: =G360 -> 
A41: 1924-02-29 | B41: =INDIRECT(CONCATENATE("'",B$1,"'!",B$4,(YEAR($A41)-1921)*12+MONTH($A41)+3+IF(ISNUMBER(FIND("PRV",B$6)),1,0)))*IF(AND(B$3>0,TRIM(B$9)="CFS"),Conversions!$C41,1) -> 2840.7195 | C41: =INDIRECT(CONCATENATE("'",C$1,"'!",C$4,(YEAR($A41)-1921)*12+MONTH($A41)+3+IF(ISNUMBER(FIND("PRV",C$6)),1,0)))*IF(AND(C$3>0,TRIM(C$9)="CFS"),Conversions!$C41,1) -> 2866.290723 | D41: =INDIRECT(CONCATENATE("'",D$1,"'!",D$4,(YEAR($A41)-1921)*12+MONTH($A41)+3+IF(ISNUMBER(FIND("PRV",D$6)),1,0)))*IF(AND(D$3>0,TRIM(D$9)="CFS"),Conversions!$C41,1) -> 2856.223157 | E41: =INDIRECT(CONCATENATE("'",E$1,"'!",E$4,(YEAR($A41)-1921)*12+MONTH($A41)+3+IF(ISNUMBER(FIND("PRV",E$6)),1,0)))*IF(AND(E$3>0,TRIM(E$9)="CFS"),Conversions!$C41,1) -> 2866.290723 | F41: =INDIRECT(CONCATENATE("'",F$1,"'!",F$4,(YEAR($A41)-1921)*12+MONTH($A41)+3+IF(ISNUMBER(FIND("PRV",F$6)),1,0)))*IF(AND(F$3>0,TRIM(F$9)="CFS"),Conversions!$C41,1) -> 3007.458759 | G41: =INDIRECT(CONCATENATE("'",G$1,"'!",G$4,(YEAR($A41)-1921)*12+MONTH($A41)+3+IF(ISNUMBER(FIND("PRV",G$6)),1,0)))*IF(AND(G$3>0,TRIM(G$9)="CFS"),Conversions!$C41,1) ->  | K41: 1951 | L41: =B361 -> 3128.594137 | M41: =B362 -> 3252 | N41: =B363 -> 3322 | O41: =B364 -> 3624 | P41: =B365 -> 3794 | Q41: =B366 -> 4200.778104 | R41: =B367 -> 4299.133407 | S41: =B368 -> 4356.519917 | T41: =B369 -> 3921.61903 | U41: =B370 -> 3200 | V41: =B371 -> 2753.515562 | W41: =B372 -> 2565.815885 | Y41: 3431.459817 | Z41: 3425.209817 | AA41: 3534.831337 | AC41: 3531.337224 | AD41: 2723.448151 | AE41: 3249.5112 | AF41: 3489.666667 | AG41: 4178.560236 | AH41: 3334.075623 | AI41: 2590.551542 | AK41: 1951 | AL41: =C361 -> 3175.107269 | AM41: =C362 -> 3252 | AN41: =C363 -> 3322 | AO41: =C364 -> 3624 | AP41: =C365 -> 3794 | AQ41: =C366 -> 4200.778105 | AR41: =C367 -> 4311.835517 | AS41: =C368 -> 4363.358973 | AT41: =C369 -> 3928.104692 | AU41: =C370 -> 3206.460184 | AV41: =C371 -> 2759.630252 | AW41: =C372 -> 2574.217056 | AY41: 3436.789513 | AZ41: 3430.539513 | BA41: 3542.624337 | BC41: 3535.988537 | BD41: 2730.767818 | BE41: 3260.941421 | BF41: 3489.666667 | BG41: 4184.256235 | BH41: 3340.745785 | BI41: 2598.600975 | BK41: 1951 | BL41: =D361 -> 3176.343764 | BM41: =D362 -> 3252 | BN41: =D363 -> 3322 | BO41: =D364 -> 3624 | BP41: =D365 -> 3794 | BQ41: =D366 -> 4200.778105 | BR41: =D367 -> 4311.838048 | BS41: =D368 -> 4363.362417 | BT41: =D369 -> 3928.162625 | BU41: =D370 -> 3206.517889 | BV41: =D371 -> 2759.686324 | BW41: =D372 -> 2574.271746 | BY41: 3436.817691 | BZ41: 3430.567691 | CA41: 3542.746743 | CC41: 3536.112187 | CD41: 2730.823289 | CE41: 3261.39902 | CF41: 3489.666667 | CG41: 4184.26497 | CH41: 3340.79598 | CI41: 2598.655111 | CK41: 1951 | CL41: =E361 -> 3175.107269 | CM41: =E362 -> 3252 | CN41: =E363 -> 3322 | CO41: =E364 -> 3624 | CP41: =E365 -> 3794 | CQ41: =E366 -> 4200.778105 | CR41: =E367 -> 4311.835517 | CS41: =E368 -> 4363.358973 | CT41: =E369 -> 3928.104692 | CU41: =E370 -> 3206.460184 | CV41: =E371 -> 2759.630252 | CW41: =E372 -> 2574.217056 | CY41: 3436.789513 | CZ41: 3430.539513 | DA41: 3542.624337 | DC41: 3535.988537 | DD41: 2730.767818 | DE41: 3260.941421 | DF41: 3489.666667 | DG41: 4184.256235 | DH41: 3340.745785 | DI41: 2598.600975 | DK41: 1951 | DL41: =F361 -> 3250 | DM41: =F362 -> 3252 | DN41: =F363 -> 3322 | DO41: =F364 -> 3624 | DP41: =F365 -> 3794 | DQ41: =F366 -> 4196.056362 | DR41: =F367 -> 4419.749461 | DS41: =F368 -> 4552 | DT41: =F369 -> 4228.895236 | DU41: =F370 -> 3514.143519 | DV41: =F371 -> 3124.697583 | DW41: =F372 -> 2933.321453 | DY41: 3637.598739 | DZ41: 3631.348739 | EA41: 3684.238635 | EC41: 3543.005636 | ED41: 3093.132779 | EE41: 3312.323875 | EF41: 3489.666667 | EG41: 4294.81336 | EH41: 3652.599266 | EI41: 2979.712804 | EK41: 1951 | EL41: =G361 ->  | EM41: =G362 ->  | EN41: =G363 ->  | EO41: =G364 ->  | EP41: =G365 ->  | EQ41: =G366 ->  | ER41: =G367 ->  | ES41: =G368 ->  | ET41: =G369 ->  | EU41: =G370 ->  | EV41: =G371 ->  | EW41: =G372 -> 
A42: 1924-03-31 | B42: =INDIRECT(CONCATENATE("'",B$1,"'!",B$4,(YEAR($A42)-1921)*12+MONTH($A42)+3+IF(ISNUMBER(FIND("PRV",B$6)),1,0)))*IF(AND(B$3>0,TRIM(B$9)="CFS"),Conversions!$C42,1) -> 2634.106463 | C42: =INDIRECT(CONCATENATE("'",C$1,"'!",C$4,(YEAR($A42)-1921)*12+MONTH($A42)+3+IF(ISNUMBER(FIND("PRV",C$6)),1,0)))*IF(AND(C$3>0,TRIM(C$9)="CFS"),Conversions!$C42,1) -> 2664.634564 | D42: =INDIRECT(CONCATENATE("'",D$1,"'!",D$4,(YEAR($A42)-1921)*12+MONTH($A42)+3+IF(ISNUMBER(FIND("PRV",D$6)),1,0)))*IF(AND(D$3>0,TRIM(D$9)="CFS"),Conversions!$C42,1) -> 2662.486143 | E42: =INDIRECT(CONCATENATE("'",E$1,"'!",E$4,(YEAR($A42)-1921)*12+MONTH($A42)+3+IF(ISNUMBER(FIND("PRV",E$6)),1,0)))*IF(AND(E$3>0,TRIM(E$9)="CFS"),Conversions!$C42,1) -> 2664.634564 | F42: =INDIRECT(CONCATENATE("'",F$1,"'!",F$4,(YEAR($A42)-1921)*12+MONTH($A42)+3+IF(ISNUMBER(FIND("PRV",F$6)),1,0)))*IF(AND(F$3>0,TRIM(F$9)="CFS"),Conversions!$C42,1) -> 2881.915543 | G42: =INDIRECT(CONCATENATE("'",G$1,"'!",G$4,(YEAR($A42)-1921)*12+MONTH($A42)+3+IF(ISNUMBER(FIND("PRV",G$6)),1,0)))*IF(AND(G$3>0,TRIM(G$9)="CFS"),Conversions!$C42,1) ->  | K42: 1952 | L42: =B373 -> 2502.026013 | M42: =B374 -> 2654.109892 | N42: =B375 -> 3306 | O42: =B376 -> 3604 | P42: =B377 -> 3739 | Q42: =B378 -> 4022 | R42: =B379 -> 4290 | S42: =B380 -> 4552 | T42: =B381 -> 4468.720704 | U42: =B382 -> 4099.545723 | V42: =B383 -> 3700 | W42: =B384 -> 3400 | Y42: 3802.579537 | Z42: 3789.719925 | AA42: 3694.783528 | AC42: 3313.02458 | AD42: 3591.590954 | AE42: 2886.760962 | AF42: 3368.851649 | AG42: 4241.965088 | AH42: 4061.066607 | AI42: 3360.11467 | AK42: 1952 | AL42: =C373 -> 2510.452112 | AM42: =C374 -> 2662.637264 | AN42: =C375 -> 3306 | AO42: =C376 -> 3604 | AP42: =C377 -> 3739 | AQ42: =C378 -> 4022 | AR42: =C379 -> 4290 | AS42: =C380 -> 4552 | AT42: =C381 -> 4486.099759 | AU42: =C382 -> 4126.476988 | AV42: =C383 -> 3700 | AW42: =C384 -> 3400 | AY42: 3806.277747 | AZ42: 3793.418134 | BA42: 3699.888844 | BC42: 3315.572664 | BD42: 3596.079498 | BE42: 2892.049476 | BF42: 3370.272877 | BG42: 4244.13747 | BH42: 4072.144187 | BI42: 3360.126035 | BK42: 1952 | BL42: =D373 -> 2510.505707 | BM42: =D374 -> 2662.689436 | BN42: =D375 -> 3306 | BO42: =D376 -> 3604 | BP42: =D377 -> 3739 | BQ42: =D378 -> 4022 | BR42: =D379 -> 4290 | BS42: =D380 -> 4552 | BT42: =D381 -> 4486.010931 | BU42: =D382 -> 4126.345919 | BV42: =D383 -> 3700 | BW42: =D384 -> 3400 | BY42: 3807.459525 | BZ42: 3794.599913 | CA42: 3699.879333 | CC42: 3315.588458 | CD42: 3596.057653 | CE42: 2892.082754 | CF42: 3370.281573 | CG42: 4244.126366 | CH42: 4072.089213 | CI42: 3362.526242 | CK42: 1952 | CL42: =E373 -> 2510.452112 | CM42: =E374 -> 2662.637264 | CN42: =E375 -> 3306 | CO42: =E376 -> 3604 | CP42: =E377 -> 3739 | CQ42: =E378 -> 4022 | CR42: =E379 -> 4290 | CS42: =E380 -> 4552 | CT42: =E381 -> 4486.099759 | CU42: =E382 -> 4126.476988 | CV42: =E383 -> 3700 | CW42: =E384 -> 3400 | CY42: 3806.277747 | CZ42: 3793.418134 | DA42: 3699.888844 | DC42: 3315.572664 | DD42: 3596.079498 | DE42: 2892.049476 | DF42: 3370.272877 | DG42: 4244.13747 | DH42: 4072.144187 | DI42: 3360.126035 | DK42: 1952 | DL42: =F373 -> 2928.615079 | DM42: =F374 -> 3029.706172 | DN42: =F375 -> 3306 | DO42: =F376 -> 3604 | DP42: =F377 -> 3739 | DQ42: =F378 -> 4022 | DR42: =F379 -> 4290 | DS42: =F380 -> 4552 | DT42: =F381 -> 4500 | DU42: =F382 -> 4150 | DV42: =F383 -> 3700 | DW42: =F384 -> 3386.919376 | DY42: 3810.034163 | DZ42: 3788.064051 | EA42: 3767.353386 | EC42: 3430.802742 | ED42: 3595.639792 | EE42: 3133.245495 | EF42: 3431.451029 | EG42: 4245.875 | EH42: 4079.864922 | EI42: 3359.221556 | EK42: 1952 | EL42: =G373 ->  | EM42: =G374 ->  | EN42: =G375 ->  | EO42: =G376 ->  | EP42: =G377 ->  | EQ42: =G378 ->  | ER42: =G379 ->  | ES42: =G380 ->  | ET42: =G381 ->  | EU42: =G382 ->  | EV42: =G383 ->  | EW42: =G384 -> 
A43: 1924-04-30 | B43: =INDIRECT(CONCATENATE("'",B$1,"'!",B$4,(YEAR($A43)-1921)*12+MONTH($A43)+3+IF(ISNUMBER(FIND("PRV",B$6)),1,0)))*IF(AND(B$3>0,TRIM(B$9)="CFS"),Conversions!$C43,1) -> 2532.943925 | C43: =INDIRECT(CONCATENATE("'",C$1,"'!",C$4,(YEAR($A43)-1921)*12+MONTH($A43)+3+IF(ISNUMBER(FIND("PRV",C$6)),1,0)))*IF(AND(C$3>0,TRIM(C$9)="CFS"),Conversions!$C43,1) -> 2565.490907 | D43: =INDIRECT(CONCATENATE("'",D$1,"'!",D$4,(YEAR($A43)-1921)*12+MONTH($A43)+3+IF(ISNUMBER(FIND("PRV",D$6)),1,0)))*IF(AND(D$3>0,TRIM(D$9)="CFS"),Conversions!$C43,1) -> 2565.110368 | E43: =INDIRECT(CONCATENATE("'",E$1,"'!",E$4,(YEAR($A43)-1921)*12+MONTH($A43)+3+IF(ISNUMBER(FIND("PRV",E$6)),1,0)))*IF(AND(E$3>0,TRIM(E$9)="CFS"),Conversions!$C43,1) -> 2565.490907 | F43: =INDIRECT(CONCATENATE("'",F$1,"'!",F$4,(YEAR($A43)-1921)*12+MONTH($A43)+3+IF(ISNUMBER(FIND("PRV",F$6)),1,0)))*IF(AND(F$3>0,TRIM(F$9)="CFS"),Conversions!$C43,1) -> 2787.567365 | G43: =INDIRECT(CONCATENATE("'",G$1,"'!",G$4,(YEAR($A43)-1921)*12+MONTH($A43)+3+IF(ISNUMBER(FIND("PRV",G$6)),1,0)))*IF(AND(G$3>0,TRIM(G$9)="CFS"),Conversions!$C43,1) ->  | K43: 1953 | L43: =B385 -> 3250 | M43: =B386 -> 3160.688018 | N43: =B387 -> 3345 | O43: =B388 -> 3366 | P43: =B389 -> 3822.684652 | Q43: =B390 -> 4252.506351 | R43: =B391 -> 4552 | S43: =B392 -> 4552 | T43: =B393 -> 4492.868256 | U43: =B394 -> 3749.868232 | V43: =B395 -> 3348.504231 | W43: =B396 -> 3187.9152 | Y43: 3725.893954 | Z43: 3727.920233 | AA43: 3756.669578 | AC43: 3489.125169 | AD43: 3321.941664 | AE43: 3284.672004 | AF43: 3400.895445 | AG43: 4378.570701 | AH43: 3865.29958 | AI43: 3175.128746 | AK43: 1953 | AL43: =C385 -> 3250 | AM43: =C386 -> 3160.756212 | AN43: =C387 -> 3345 | AO43: =C388 -> 3366 | AP43: =C389 -> 3822.684647 | AQ43: =C390 -> 4252.506348 | AR43: =C391 -> 4552 | AS43: =C392 -> 4552 | AT43: =C393 -> 4500 | AU43: =C394 -> 3756.964461 | AV43: =C395 -> 3360.355651 | AW43: =C396 -> 3196.693341 | AY43: 3732.290213 | AZ43: 3734.316492 | BA43: 3759.580055 | BC43: 3489.138806 | BD43: 3331.513293 | BE43: 3284.689053 | BF43: 3400.90681 | BG43: 4379.462168 | BH43: 3872.916696 | BI43: 3186.990757 | BK43: 1953 | BL43: =D385 -> 3250 | BM43: =D386 -> 3175.157453 | BN43: =D387 -> 3345 | BO43: =D388 -> 3366 | BP43: =D389 -> 3822.684647 | BQ43: =D390 -> 4252.506348 | BR43: =D391 -> 4552 | BS43: =D392 -> 4552 | BT43: =D393 -> 4500 | BU43: =D394 -> 3756.964461 | BV43: =D395 -> 3360.350069 | BW43: =D396 -> 3196.685997 | BY43: 3733.517179 | BZ43: 3735.543459 | CA43: 3760.779081 | CC43: 3492.019055 | CD43: 3331.507328 | CE43: 3288.289363 | CF43: 3403.307017 | CG43: 4379.462168 | CH43: 3872.914382 | CI43: 3186.75879 | CK43: 1953 | CL43: =E385 -> 3250 | CM43: =E386 -> 3160.756212 | CN43: =E387 -> 3345 | CO43: =E388 -> 3366 | CP43: =E389 -> 3822.684647 | CQ43: =E390 -> 4252.506348 | CR43: =E391 -> 4552 | CS43: =E392 -> 4552 | CT43: =E393 -> 4500 | CU43: =E394 -> 3756.964461 | CV43: =E395 -> 3360.355651 | CW43: =E396 -> 3196.693341 | CY43: 3732.290213 | CZ43: 3734.316492 | DA43: 3759.580055 | DC43: 3489.138806 | DD43: 3331.513293 | DE43: 3284.689053 | DF43: 3400.90681 | DG43: 4379.462168 | DH43: 3872.916696 | DI43: 3186.990757 | DK43: 1953 | DL43: =F385 -> 3250 | DM43: =F386 -> 3181.490582 | DN43: =F387 -> 3345 | DO43: =F388 -> 3366 | DP43: =F389 -> 3713.358657 | DQ43: =F390 -> 4147.313395 | DR43: =F391 -> 4508.916543 | DS43: =F392 -> 4552 | DT43: =F393 -> 4500 | DU43: =F394 -> 4085.256607 | DV43: =F395 -> 3700 | DW43: =F396 -> 3400 | DY43: 3818.683603 | DZ43: 3829.820381 | EA43: 3812.444649 | EC43: 3460.901187 | ED43: 3589.209434 | EE43: 3288.237568 | EF43: 3386.14154 | EG43: 4328.727317 | EH43: 4065.314152 | EI43: 3375.333333 | EK43: 1953 | EL43: =G385 ->  | EM43: =G386 ->  | EN43: =G387 ->  | EO43: =G388 ->  | EP43: =G389 ->  | EQ43: =G390 ->  | ER43: =G391 ->  | ES43: =G392 ->  | ET43: =G393 ->  | EU43: =G394 ->  | EV43: =G395 ->  | EW43: =G396 -> 
A44: 1924-05-31 | B44: =INDIRECT(CONCATENATE("'",B$1,"'!",B$4,(YEAR($A44)-1921)*12+MONTH($A44)+3+IF(ISNUMBER(FIND("PRV",B$6)),1,0)))*IF(AND(B$3>0,TRIM(B$9)="CFS"),Conversions!$C44,1) -> 2187.638974 | C44: =INDIRECT(CONCATENATE("'",C$1,"'!",C$4,(YEAR($A44)-1921)*12+MONTH($A44)+3+IF(ISNUMBER(FIND("PRV",C$6)),1,0)))*IF(AND(C$3>0,TRIM(C$9)="CFS"),Conversions!$C44,1) -> 2218.982026 | D44: =INDIRECT(CONCATENATE("'",D$1,"'!",D$4,(YEAR($A44)-1921)*12+MONTH($A44)+3+IF(ISNUMBER(FIND("PRV",D$6)),1,0)))*IF(AND(D$3>0,TRIM(D$9)="CFS"),Conversions!$C44,1) -> 2218.440557 | E44: =INDIRECT(CONCATENATE("'",E$1,"'!",E$4,(YEAR($A44)-1921)*12+MONTH($A44)+3+IF(ISNUMBER(FIND("PRV",E$6)),1,0)))*IF(AND(E$3>0,TRIM(E$9)="CFS"),Conversions!$C44,1) -> 2218.982026 | F44: =INDIRECT(CONCATENATE("'",F$1,"'!",F$4,(YEAR($A44)-1921)*12+MONTH($A44)+3+IF(ISNUMBER(FIND("PRV",F$6)),1,0)))*IF(AND(F$3>0,TRIM(F$9)="CFS"),Conversions!$C44,1) -> 2437.614183 | G44: =INDIRECT(CONCATENATE("'",G$1,"'!",G$4,(YEAR($A44)-1921)*12+MONTH($A44)+3+IF(ISNUMBER(FIND("PRV",G$6)),1,0)))*IF(AND(G$3>0,TRIM(G$9)="CFS"),Conversions!$C44,1) ->  | K44: 1954 | L44: =B397 -> 3108.942888 | M44: =B398 -> 3108.552068 | N44: =B399 -> 3168.885567 | O44: =B400 -> 3552 | P44: =B401 -> 3661 | Q44: =B402 -> 4106 | R44: =B403 -> 4546 | S44: =B404 -> 4310.626203 | T44: =B405 -> 4033.926882 | U44: =B406 -> 3338.43504 | V44: =B407 -> 2972.705135 | W44: =B408 -> 2794.565714 | Y44: 3520.447148 | Z44: 3517.199645 | AA44: 3558.469958 | AC44: 3419.581816 | AD44: 2935.602158 | AE44: =IF(AE$11="AVG",IF(AE$1="INST-VAL",AVERAGE(W43,L44:N44,L44:O44),AVERAGE(L44:O44)),SUM(L44:O44)) -> 3189.084531 | AF44: 3368.553867 | AG44: 4202.522411 | AH44: 3474.415754 | AI44: 2824.86406 | AK44: 1954 | AL44: =C397 -> 3118.017311 | AM44: =C398 -> 3132.167589 | AN44: =C399 -> 3178.093208 | AO44: =C400 -> 3552 | AP44: =C401 -> 3661 | AQ44: =C402 -> 4106 | AR44: =C403 -> 4546 | AS44: =C404 -> 4310.274228 | AT44: =C405 -> 4030.316646 | AU44: =C406 -> 3334.840171 | AV44: =C407 -> 2970.132201 | AW44: =C408 -> 2785.866885 | AY44: 3516.94898 | AZ44: 3512.567794 | BA44: 3560.392353 | BC44: 3427.053891 | BD44: 2929.658006 | BE44: 3200.656195 | BF44: 3375.559001 | BG44: 4201.983138 | BH44: 3470.839894 | BI44: 2817.224537 | BK44: 1954 | BL44: =D397 -> 3118.007376 | BM44: =D398 -> 3130.815925 | BN44: =D399 -> 3194.191329 | BO44: =D400 -> 3552 | BP44: =D401 -> 3661 | BQ44: =D402 -> 4106 | BR44: =D403 -> 4546 | BS44: =D404 -> 4401.205523 | BT44: =D405 -> 4123.746004 | BU44: =D406 -> 3427.871873 | BV44: =D407 -> 3067.683099 | BW44: =D408 -> 2879.698706 | BY44: 3578.243112 | BZ44: 3587.749995 | CA44: 3600.684986 | CC44: 3430.002189 | CD44: 3024.388789 | CE44: =IF(CE$11="AVG",IF(CE$1="INST-VAL",AVERAGE(BW43,BL44:BN44,BL44:BO44),AVERAGE(BL44:BO44)),SUM(BL44:BO44)) -> 3204.339407 | CF44: =IF(CF$11="AVG",IF(CE$1="INST-VAL",AVERAGE(BM44:BO44,BN44:BP44),AVERAGE(BN44:BP44)),SUM(BN44:BP44)) -> 3380.699764 | CG44: =IF(CG$11="AVG",IF(CE$1="INST-VAL",AVERAGE(BP44:BS44,BQ44:BT44),AVERAGE(BQ44:BT44)),SUM(BQ44:BT44)) -> 4236.394631 | CH44: =IF(CH$11="AVG",IF(CE$1="INST-VAL",AVERAGE(BS44:BV44,BT44:BW44),AVERAGE(BT44:BW44)),SUM(BT44:BW44)) -> 3564.938272 | CI44: =IF(CI$11="AVG",IF(CE$1="INST-VAL",AVERAGE(BV44:BW44,BL45,BW44,BL45:BM45),AVERAGE(BW44,BL45:BM45)),SUM(BW44,BL45:BM45)) -> 2910.748317 | CK44: 1954 | CL44: =E397 -> 3118.017311 | CM44: =E398 -> 3132.167589 | CN44: =E399 -> 3178.093208 | CO44: =E400 -> 3552 | CP44: =E401 -> 3661 | CQ44: =E402 -> 4106 | CR44: =E403 -> 4546 | CS44: =E404 -> 4310.274228 | CT44: =E405 -> 4030.316646 | CU44: =E406 -> 3334.840171 | CV44: =E407 -> 2970.132201 | CW44: =E408 -> 2785.866885 | CY44: 3516.94898 | CZ44: 3512.567794 | DA44: 3560.392353 | DC44: 3427.053891 | DD44: 2929.658006 | DE44: 3200.656195 | DF44: 3375.559001 | DG44: 4201.983138 | DH44: 3470.839894 | DI44: 2817.224537 | DK44: 1954 | DL44: =F397 -> 3250 | DM44: =F398 -> 3252 | DN44: =F399 -> 3349.358031 | DO44: =F400 -> 3552 | DP44: =F401 -> 3661 | DQ44: =F402 -> 4106 | DR44: =F403 -> 4546 | DS44: =F404 -> 4552 | DT44: =F405 -> 4291.788578 | DU44: =F406 -> 3622.917295 | DV44: =F407 -> 3308.132364 | DW44: =F408 -> 3155.800977 | DY44: 3704.579392 | DZ44: 3699.735112 | EA44: 3720.583104 | EC44: 3498.471606 | ED44: 3274.095172 | EE44: 3331.839508 | EF44: 3452.619344 | EG44: 4295.098572 | EH44: 3769.184682 | EI44: 3168.80581 | EK44: 1954 | EL44: =G397 ->  | EM44: =G398 ->  | EN44: =G399 ->  | EO44: =G400 ->  | EP44: =G401 ->  | EQ44: =G402 ->  | ER44: =G403 ->  | ES44: =G404 ->  | ET44: =G405 ->  | EU44: =G406 ->  | EV44: =G407 ->  | EW44: =G408 -> 
A45: 1924-06-30 | B45: =INDIRECT(CONCATENATE("'",B$1,"'!",B$4,(YEAR($A45)-1921)*12+MONTH($A45)+3+IF(ISNUMBER(FIND("PRV",B$6)),1,0)))*IF(AND(B$3>0,TRIM(B$9)="CFS"),Conversions!$C45,1) -> 1818.650632 | C45: =INDIRECT(CONCATENATE("'",C$1,"'!",C$4,(YEAR($A45)-1921)*12+MONTH($A45)+3+IF(ISNUMBER(FIND("PRV",C$6)),1,0)))*IF(AND(C$3>0,TRIM(C$9)="CFS"),Conversions!$C45,1) -> 1849.754459 | D45: =INDIRECT(CONCATENATE("'",D$1,"'!",D$4,(YEAR($A45)-1921)*12+MONTH($A45)+3+IF(ISNUMBER(FIND("PRV",D$6)),1,0)))*IF(AND(D$3>0,TRIM(D$9)="CFS"),Conversions!$C45,1) -> 1849.157335 | E45: =INDIRECT(CONCATENATE("'",E$1,"'!",E$4,(YEAR($A45)-1921)*12+MONTH($A45)+3+IF(ISNUMBER(FIND("PRV",E$6)),1,0)))*IF(AND(E$3>0,TRIM(E$9)="CFS"),Conversions!$C45,1) -> 1849.754459 | F45: =INDIRECT(CONCATENATE("'",F$1,"'!",F$4,(YEAR($A45)-1921)*12+MONTH($A45)+3+IF(ISNUMBER(FIND("PRV",F$6)),1,0)))*IF(AND(F$3>0,TRIM(F$9)="CFS"),Conversions!$C45,1) -> 2065.25094 | G45: =INDIRECT(CONCATENATE("'",G$1,"'!",G$4,(YEAR($A45)-1921)*12+MONTH($A45)+3+IF(ISNUMBER(FIND("PRV",G$6)),1,0)))*IF(AND(G$3>0,TRIM(G$9)="CFS"),Conversions!$C45,1) ->  | K45: 1955 | L45: =B409 -> 2740.636212 | M45: =B410 -> 2906.075375 | N45: =B411 -> 3283.395214 | O45: =B412 -> 3497.540415 | P45: =B413 -> 3676.489554 | Q45: =B414 -> 3678.390184 | R45: =B415 -> 4092.941269 | S45: =B416 -> 4149.573882 | T45: =B417 -> 3689.190418 | U45: =B418 -> 3220.216486 | V45: =B419 -> 2899.186974 | W45: =B420 -> 2916.642717 | Y45: 3406.184787 | Z45: 3353.348957 | AA45: 3395.856558 | AC45: 3314.602751 | AD45: 2946.686519 | AE45: 3019.039966 | AF45: 3357.406031 | AG45: 3900.93633 | AH45: 3335.425544 | AI45: 2893.793535 | AK45: 1955 | AL45: =C409 -> 2731.109693 | AM45: =C410 -> 2899.261865 | AN45: =C411 -> 3276.586071 | AO45: =C412 -> 3490.735635 | AP45: =C413 -> 3669.690134 | AQ45: =C414 -> 3672.539609 | AR45: =C415 -> 4100.012408 | AS45: =C416 -> 4156.581777 | AT45: =C417 -> 3712.757831 | AU45: =C418 -> 3238.01209 | AV45: =C419 -> 2926.033561 | AW45: =C420 -> 2952.807979 | AY45: 3412.316721 | AZ45: 3360.614574 | BA45: 3402.177388 | BC45: 3307.619671 | BD45: 2974.081799 | BE45: 3011.314722 | BF45: 3350.599235 | BG45: 3905.089444 | BH45: 3357.87459 | BI45: 2909.512462 | BK45: 1955 | BL45: =D409 -> 2823.697254 | BM45: =D410 -> 2990.014882 | BN45: =D411 -> 3360 | BO45: =D412 -> 3574.096107 | BP45: =D413 -> 3752.986491 | BQ45: =D414 -> 3768.439908 | BR45: =D415 -> 4195.792624 | BS45: =D416 -> 4249.843042 | BT45: =D417 -> 3789.620832 | BU45: =D418 -> 3287.867646 | BV45: =D419 -> 2957.956388 | BW45: =D420 -> 2983.771984 | BY45: 3468.942074 | BZ45: 3403.351857 | CA45: 3477.840597 | CC45: 3394.633212 | CD45: 3006.628517 | CE45: 3100.152386 | CF45: 3435.198931 | CG45: 3996.344809 | CH45: 3413.063095 | CI45: 2934.812821 | CK45: 1955 | CL45: =E409 -> 2731.109693 | CM45: =E410 -> 2899.261865 | CN45: =E411 -> 3276.586071 | CO45: =E412 -> 3490.735635 | CP45: =E413 -> 3669.690134 | CQ45: =E414 -> 3672.539609 | CR45: =E415 -> 4100.012408 | CS45: =E416 -> 4156.581777 | CT45: =E417 -> 3712.757831 | CU45: =E418 -> 3238.01209 | CV45: =E419 -> 2926.033561 | CW45: =E420 -> 2952.807979 | CY45: 3412.316721 | CZ45: 3360.614574 | DA45: 3402.177388 | DC45: 3307.619671 | DD45: 2974.081799 | DE45: 3011.314722 | DF45: 3350.599235 | DG45: 3905.089444 | DH45: 3357.87459 | DI45: 2909.512462 | DK45: 1955 | DL45: =F409 -> 3093.787052 | DM45: =F410 -> 3205.526438 | DN45: =F411 -> 3360 | DO45: =F412 -> 3506.573261 | DP45: =F413 -> 3648.295373 | DQ45: =F414 -> 3816.751952 | DR45: =F415 -> 4203.71468 | DS45: =F416 -> 4333.817413 | DT45: =F417 -> 3846.873194 | DU45: =F418 -> 3342.570879 | DV45: =F419 -> 3003.162758 | DW45: =F420 -> 2980.168025 | DY45: 3477.680589 | DZ45: 3426.441536 | EA45: 3528.436752 | EC45: 3435.132915 | ED45: 3034.556185 | EE45: 3247.625152 | EF45: 3431.161389 | EG45: 4025.467082 | EH45: 3462.399888 | EI45: 2943.307168 | EK45: 1955 | EL45: =G409 ->  | EM45: =G410 ->  | EN45: =G411 ->  | EO45: =G412 ->  | EP45: =G413 ->  | EQ45: =G414 ->  | ER45: =G415 ->  | ES45: =G416 ->  | ET45: =G417 ->  | EU45: =G418 ->  | EV45: =G419 ->  | EW45: =G420 -> 
A46: 1924-07-31 | B46: =INDIRECT(CONCATENATE("'",B$1,"'!",B$4,(YEAR($A46)-1921)*12+MONTH($A46)+3+IF(ISNUMBER(FIND("PRV",B$6)),1,0)))*IF(AND(B$3>0,TRIM(B$9)="CFS"),Conversions!$C46,1) -> 1482.539131 | C46: =INDIRECT(CONCATENATE("'",C$1,"'!",C$4,(YEAR($A46)-1921)*12+MONTH($A46)+3+IF(ISNUMBER(FIND("PRV",C$6)),1,0)))*IF(AND(C$3>0,TRIM(C$9)="CFS"),Conversions!$C46,1) -> 1512.516001 | D46: =INDIRECT(CONCATENATE("'",D$1,"'!",D$4,(YEAR($A46)-1921)*12+MONTH($A46)+3+IF(ISNUMBER(FIND("PRV",D$6)),1,0)))*IF(AND(D$3>0,TRIM(D$9)="CFS"),Conversions!$C46,1) -> 1512.059593 | E46: =INDIRECT(CONCATENATE("'",E$1,"'!",E$4,(YEAR($A46)-1921)*12+MONTH($A46)+3+IF(ISNUMBER(FIND("PRV",E$6)),1,0)))*IF(AND(E$3>0,TRIM(E$9)="CFS"),Conversions!$C46,1) -> 1512.516001 | F46: =INDIRECT(CONCATENATE("'",F$1,"'!",F$4,(YEAR($A46)-1921)*12+MONTH($A46)+3+IF(ISNUMBER(FIND("PRV",F$6)),1,0)))*IF(AND(F$3>0,TRIM(F$9)="CFS"),Conversions!$C46,1) -> 1722.263035 | G46: =INDIRECT(CONCATENATE("'",G$1,"'!",G$4,(YEAR($A46)-1921)*12+MONTH($A46)+3+IF(ISNUMBER(FIND("PRV",G$6)),1,0)))*IF(AND(G$3>0,TRIM(G$9)="CFS"),Conversions!$C46,1) ->  | K46: 1956 | L46: =B421 -> 2828.243249 | M46: =B422 -> 2973.802303 | N46: =B423 -> 3252 | O46: =B424 -> 3252 | P46: =B425 -> 3288 | Q46: =B426 -> 4014 | R46: =B427 -> 4455.972522 | S46: =B428 -> 4552 | T46: =B429 -> 4299.782193 | U46: =B430 -> 3781.157833 | V46: =B431 -> 3483.349016 | W46: =B432 -> 3304.935326 | Y46: 3637.428427 | Z46: 3660.542494 | AA46: 3623.770204 | AC46: 3237.384786 | AD46: 3429.809764 | AE46: 3034.591728 | AF46: 3211.633717 | AG46: 4203.965905 | AH46: 3873.189176 | AI46: 3262.153269 | AK46: 1956 | AL46: =C421 -> 2848.795626 | AM46: =C422 -> 2927.834005 | AN46: =C423 -> 3252 | AO46: =C424 -> 3252 | AP46: =C425 -> 3288 | AQ46: =C426 -> 4014 | AR46: =C427 -> 4455.972519 | AS46: =C428 -> 4552 | AT46: =C429 -> 4286.951014 | AU46: =C430 -> 3779.719925 | AV46: =C431 -> 3482.649409 | AW46: =C432 -> 3299.515829 | AY46: 3634.383254 | AZ46: 3657.076603 | BA46: 3619.953194 | BC46: 3230.246363 | BD46: 3426.608603 | BE46: 3032.758405 | BF46: 3203.972334 | BG46: 4202.362006 | BH46: 3868.769566 | BI46: 3257.458033 | BK46: 1956 | BL46: =D421 -> 2868.446708 | BM46: =D422 -> 2946.483152 | BN46: =D423 -> 3252 | BO46: =D424 -> 3252 | BP46: =D425 -> 3288 | BQ46: =D426 -> 4014 | BR46: =D427 -> 4455.972519 | BS46: =D428 -> 4552 | BT46: =D429 -> 4286.964008 | BU46: =D430 -> 3779.738822 | BV46: =D431 -> 3482.674368 | BW46: =D432 -> 3299.545288 | BY46: 3638.128078 | BZ46: 3663.351956 | CA46: 3623.152072 | CC46: 3235.941301 | CD46: 3426.634894 | CE46: 3046.203963 | CF46: 3207.080525 | CG46: 4202.363631 | CH46: 3868.787461 | CI46: 3259.887924 | CK46: 1956 | CL46: =E421 -> 2848.795626 | CM46: =E422 -> 2927.834005 | CN46: =E423 -> 3252 | CO46: =E424 -> 3252 | CP46: =E425 -> 3288 | CQ46: =E426 -> 4014 | CR46: =E427 -> 4455.972519 | CS46: =E428 -> 4552 | CT46: =E429 -> 4286.951014 | CU46: =E430 -> 3779.719925 | CV46: =E431 -> 3482.649409 | CW46: =E432 -> 3299.515829 | CY46: 3634.383254 | CZ46: 3657.076603 | DA46: 3619.953194 | DC46: 3230.246363 | DD46: 3426.608603 | DE46: 3032.758405 | DF46: 3203.972334 | DG46: 4202.362006 | DH46: 3868.769566 | DI46: 3257.458033 | DK46: 1956 | DL46: =F421 -> 2898.104665 | DM46: =F422 -> 2900.134868 | DN46: =F423 -> 3252 | DO46: =F424 -> 3252 | DP46: =F425 -> 3288 | DQ46: =F426 -> 3971.402227 | DR46: =F427 -> 4487.018902 | DS46: =F428 -> 4552 | DT46: =F429 -> 4475.3249 | DU46: =F430 -> 4134.830897 | DV46: =F431 -> 3700 | DW46: =F432 -> 3400 | DY46: 3736.949035 | DZ46: 3772.931644 | EA46: 3692.568038 | EC46: 3225.377663 | ED46: 3597.471816 | EE46: 3041.580886 | EF46: 3199.355811 | EG46: 4223.020895 | EH46: 4071.538949 | EI46: 3358.59815 | EK46: 1956 | EL46: =G421 ->  | EM46: =G422 ->  | EN46: =G423 ->  | EO46: =G424 ->  | EP46: =G425 ->  | EQ46: =G426 ->  | ER46: =G427 ->  | ES46: =G428 ->  | ET46: =G429 ->  | EU46: =G430 ->  | EV46: =G431 ->  | EW46: =G432 -> 
A47: 1924-08-31 | B47: =INDIRECT(CONCATENATE("'",B$1,"'!",B$4,(YEAR($A47)-1921)*12+MONTH($A47)+3+IF(ISNUMBER(FIND("PRV",B$6)),1,0)))*IF(AND(B$3>0,TRIM(B$9)="CFS"),Conversions!$C47,1) -> 1245.243283 | C47: =INDIRECT(CONCATENATE("'",C$1,"'!",C$4,(YEAR($A47)-1921)*12+MONTH($A47)+3+IF(ISNUMBER(FIND("PRV",C$6)),1,0)))*IF(AND(C$3>0,TRIM(C$9)="CFS"),Conversions!$C47,1) -> 1269.162951 | D47: =INDIRECT(CONCATENATE("'",D$1,"'!",D$4,(YEAR($A47)-1921)*12+MONTH($A47)+3+IF(ISNUMBER(FIND("PRV",D$6)),1,0)))*IF(AND(D$3>0,TRIM(D$9)="CFS"),Conversions!$C47,1) -> 1268.442989 | E47: =INDIRECT(CONCATENATE("'",E$1,"'!",E$4,(YEAR($A47)-1921)*12+MONTH($A47)+3+IF(ISNUMBER(FIND("PRV",E$6)),1,0)))*IF(AND(E$3>0,TRIM(E$9)="CFS"),Conversions!$C47,1) -> 1269.162951 | F47: =INDIRECT(CONCATENATE("'",F$1,"'!",F$4,(YEAR($A47)-1921)*12+MONTH($A47)+3+IF(ISNUMBER(FIND("PRV",F$6)),1,0)))*IF(AND(F$3>0,TRIM(F$9)="CFS"),Conversions!$C47,1) -> 1457.045654 | G47: =INDIRECT(CONCATENATE("'",G$1,"'!",G$4,(YEAR($A47)-1921)*12+MONTH($A47)+3+IF(ISNUMBER(FIND("PRV",G$6)),1,0)))*IF(AND(G$3>0,TRIM(G$9)="CFS"),Conversions!$C47,1) ->  | K47: 1957 | L47: =B433 -> 3221.132066 | M47: =B434 -> 3037.435814 | N47: =B435 -> 2959.376355 | O47: =B436 -> 3142.368806 | P47: =B437 -> 3675 | Q47: =B438 -> 4129 | R47: =B439 -> 4552 | S47: =B440 -> 4552 | T47: =B441 -> 4174.241712 | U47: =B442 -> 3478.789795 | V47: =B443 -> 3140.470951 | W47: =B444 -> 3237.846247 | Y47: 3655.135384 | Z47: 3652.271317 | AA47: 3608.305145 | AC47: 3297.849402 | AD47: 3243.412461 | AE47: 3110.399075 | AF47: 3152.654356 | AG47: 4289.405214 | AH47: 3672.106395 | AI47: 3213.853519 | AK47: 1957 | AL47: =C433 -> 3215.601217 | AM47: =C434 -> 3031.864697 | AN47: =C435 -> 2954.324445 | AO47: =C436 -> 3137.320178 | AP47: =C437 -> 3675 | AQ47: =C438 -> 4129 | AR47: =C439 -> 4552 | AS47: =C440 -> 4552 | AT47: =C441 -> 4173.998856 | AU47: =C442 -> 3478.547949 | AV47: =C443 -> 3147.784174 | AW47: =C444 -> 3257.016444 | AY47: 3657.099543 | AZ47: 3654.656194 | BA47: 3608.70483 | BC47: 3294.161986 | BD47: 3256.358197 | BE47: 3105.05209 | BF47: 3148.35899 | BG47: 4289.374857 | BH47: 3676.2098 | BI47: 3226.057329 | BK47: 1957 | BL47: =D433 -> 3215.631229 | BM47: =D434 -> 3046.300142 | BN47: =D435 -> 2984.710556 | BO47: =D436 -> 3167.686546 | BP47: =D437 -> 3675 | BQ47: =D438 -> 4129 | BR47: =D439 -> 4552 | BS47: =D440 -> 4552 | BT47: =D441 -> 4257.545143 | BU47: =D442 -> 3561.747569 | BV47: =D443 -> 3222.767797 | BW47: =D444 -> 3330.93579 | BY47: 3685.017326 | BZ47: 3680.043447 | CA47: 3641.277064 | CC47: 3309.202572 | CD47: 3319.859124 | CE47: 3120.064461 | CF47: 3171.015724 | CG47: 4299.818143 | CH47: 3745.882101 | CI47: 3261.36074 | CK47: 1957 | CL47: =E433 -> 3215.601217 | CM47: =E434 -> 3031.864697 | CN47: =E435 -> 2954.324445 | CO47: =E436 -> 3137.320178 | CP47: =E437 -> 3675 | CQ47: =E438 -> 4129 | CR47: =E439 -> 4552 | CS47: =E440 -> 4552 | CT47: =E441 -> 4173.998856 | CU47: =E442 -> 3478.547949 | CV47: =E443 -> 3147.784174 | CW47: =E444 -> 3257.016444 | CY47: 3657.099543 | CZ47: 3654.656194 | DA47: 3608.70483 | DC47: 3294.161986 | DD47: 3256.358197 | DE47: 3105.05209 | DF47: 3148.35899 | DG47: 4289.374857 | DH47: 3676.2098 | DI47: 3226.057329 | DK47: 1957 | DL47: =F433 -> 3250 | DM47: =F434 -> 3151.588902 | DN47: =F435 -> 3181.222591 | DO47: =F436 -> 3296.791307 | DP47: =F437 -> 3675 | DQ47: =F438 -> 4129 | DR47: =F439 -> 4538.920429 | DS47: =F440 -> 4552 | DT47: =F441 -> 4433.687685 | DU47: =F442 -> 3765.192093 | DV47: =F443 -> 3313.57921 | DW47: =F444 -> 3232.920391 | DY47: 3731.42426 | DZ47: 3715.691651 | EA47: 3709.991884 | EC47: 3398.82056 | ED47: 3351.365216 | EE47: 3232.801787 | EF47: 3297.102783 | EG47: 4318.566068 | EH47: 3851.229796 | EI47: 3255.236665 | EK47: 1957 | EL47: =G433 ->  | EM47: =G434 ->  | EN47: =G435 ->  | EO47: =G436 ->  | EP47: =G437 ->  | EQ47: =G438 ->  | ER47: =G439 ->  | ES47: =G440 ->  | ET47: =G441 ->  | EU47: =G442 ->  | EV47: =G443 ->  | EW47: =G444 -> 
A48: 1924-09-30 | B48: =INDIRECT(CONCATENATE("'",B$1,"'!",B$4,(YEAR($A48)-1921)*12+MONTH($A48)+3+IF(ISNUMBER(FIND("PRV",B$6)),1,0)))*IF(AND(B$3>0,TRIM(B$9)="CFS"),Conversions!$C48,1) -> 1182.725122 | C48: =INDIRECT(CONCATENATE("'",C$1,"'!",C$4,(YEAR($A48)-1921)*12+MONTH($A48)+3+IF(ISNUMBER(FIND("PRV",C$6)),1,0)))*IF(AND(C$3>0,TRIM(C$9)="CFS"),Conversions!$C48,1) -> 1211.256632 | D48: =INDIRECT(CONCATENATE("'",D$1,"'!",D$4,(YEAR($A48)-1921)*12+MONTH($A48)+3+IF(ISNUMBER(FIND("PRV",D$6)),1,0)))*IF(AND(D$3>0,TRIM(D$9)="CFS"),Conversions!$C48,1) -> 1209.325734 | E48: =INDIRECT(CONCATENATE("'",E$1,"'!",E$4,(YEAR($A48)-1921)*12+MONTH($A48)+3+IF(ISNUMBER(FIND("PRV",E$6)),1,0)))*IF(AND(E$3>0,TRIM(E$9)="CFS"),Conversions!$C48,1) -> 1211.256632 | F48: =INDIRECT(CONCATENATE("'",F$1,"'!",F$4,(YEAR($A48)-1921)*12+MONTH($A48)+3+IF(ISNUMBER(FIND("PRV",F$6)),1,0)))*IF(AND(F$3>0,TRIM(F$9)="CFS"),Conversions!$C48,1) -> 1385.799051 | G48: =INDIRECT(CONCATENATE("'",G$1,"'!",G$4,(YEAR($A48)-1921)*12+MONTH($A48)+3+IF(ISNUMBER(FIND("PRV",G$6)),1,0)))*IF(AND(G$3>0,TRIM(G$9)="CFS"),Conversions!$C48,1) ->  | K48: 1958 | L48: =B445 -> 3225.050573 | M48: =B446 -> 3216.856521 | N48: =B447 -> 3338 | O48: =B448 -> 3531 | P48: =B449 -> 3252 | Q48: =B450 -> 3416 | R48: =B451 -> 4173 | S48: =B452 -> 4393.850738 | T48: =B453 -> 4439.493481 | U48: =B454 -> 3988.005581 | V48: =B455 -> 3700 | W48: =B456 -> 3400 | Y48: 3654.774741 | Z48: 3708.274741 | AA48: 3672.771408 | AC48: 3331.676361 | AD48: 3573.00093 | AE48: 3291.082554 | AF48: 3367.80942 | AG48: 3957.14937 | AH48: 4006.106108 | AI48: 3350.480214 | AK48: 1958 | AL48: =C445 -> 3250 | AM48: =C446 -> 3194.52691 | AN48: =C447 -> 3338 | AO48: =C448 -> 3531 | AP48: =C449 -> 3252 | AQ48: =C450 -> 3416 | AR48: =C451 -> 4173 | AS48: =C452 -> 4424.306877 | AT48: =C453 -> 4478.913389 | AU48: =C454 -> 4002.359151 | AV48: =C455 -> 3700 | AW48: =C456 -> 3400 | AY48: 3662.128346 | AZ48: 3715.628346 | BA48: 3680.00886 | BC48: 3329.705382 | BD48: 3575.393192 | BE48: 3294.133783 | BF48: 3364.087818 | BG48: 3969.690893 | BH48: 4023.356494 | BI48: 3350.814827 | BK48: 1958 | BL48: =D445 -> 3250 | BM48: =D446 -> 3183.525062 | BN48: =D447 -> 3338 | BO48: =D448 -> 3531 | BP48: =D449 -> 3252 | BQ48: =D450 -> 3416 | BR48: =D451 -> 4173 | BS48: =D452 -> 4423.715099 | BT48: =D453 -> 4478.036568 | BU48: =D454 -> 4001.371404 | BV48: =D455 -> 3700 | BW48: =D456 -> 3400 | BY48: 3664.320579 | BZ48: 3717.820579 | CA48: 3678.887344 | CC48: 3327.505012 | CD48: 3575.228567 | CE48: 3300.623239 | CF48: 3362.254177 | CG48: 3969.433346 | CH48: 4022.81638 | CI48: 3353.212774 | CK48: 1958 | CL48: =E445 -> 3250 | CM48: =E446 -> 3194.52691 | CN48: =E447 -> 3338 | CO48: =E448 -> 3531 | CP48: =E449 -> 3252 | CQ48: =E450 -> 3416 | CR48: =E451 -> 4173 | CS48: =E452 -> 4424.306877 | CT48: =E453 -> 4478.913389 | CU48: =E454 -> 4002.359151 | CV48: =E455 -> 3700 | CW48: =E456 -> 3400 | CY48: 3662.128346 | CZ48: 3715.628346 | DA48: 3680.00886 | DC48: 3329.705382 | DD48: 3575.393192 | DE48: 3294.133783 | DF48: 3364.087818 | DG48: 3969.690893 | DH48: 4023.356494 | DI48: 3350.814827 | DK48: 1958 | DL48: =F445 -> 3250 | DM48: =F446 -> 3252 | DN48: =F447 -> 3338 | DO48: =F448 -> 3531 | DP48: =F449 -> 3252 | DQ48: =F450 -> 3416 | DR48: =F451 -> 4173 | DS48: =F452 -> 4552 | DT48: =F453 -> 4500 | DU48: =F454 -> 4150 | DV48: =F455 -> 3700 | DW48: =F456 -> 3400 | DY48: 3690.248957 | DZ48: 3743.748957 | EA48: 3709.5 | EC48: 3341.2 | ED48: 3600 | EE48: 3305.490049 | EF48: 3373.666667 | EG48: 4004.25 | EH48: 4081.5 | EI48: 3356.746751 | EK48: 1958 | EL48: =G445 ->  | EM48: =G446 ->  | EN48: =G447 ->  | EO48: =G448 ->  | EP48: =G449 ->  | EQ48: =G450 ->  | ER48: =G451 ->  | ES48: =G452 ->  | ET48: =G453 ->  | EU48: =G454 ->  | EV48: =G455 ->  | EW48: =G456 -> 
A49: 1924-10-31 | B49: =INDIRECT(CONCATENATE("'",B$1,"'!",B$4,(YEAR($A49)-1921)*12+MONTH($A49)+3+IF(ISNUMBER(FIND("PRV",B$6)),1,0)))*IF(AND(B$3>0,TRIM(B$9)="CFS"),Conversions!$C49,1) -> 1167.877213 | C49: =INDIRECT(CONCATENATE("'",C$1,"'!",C$4,(YEAR($A49)-1921)*12+MONTH($A49)+3+IF(ISNUMBER(FIND("PRV",C$6)),1,0)))*IF(AND(C$3>0,TRIM(C$9)="CFS"),Conversions!$C49,1) -> 1201.601667 | D49: =INDIRECT(CONCATENATE("'",D$1,"'!",D$4,(YEAR($A49)-1921)*12+MONTH($A49)+3+IF(ISNUMBER(FIND("PRV",D$6)),1,0)))*IF(AND(D$3>0,TRIM(D$9)="CFS"),Conversions!$C49,1) -> 1197.038953 | E49: =INDIRECT(CONCATENATE("'",E$1,"'!",E$4,(YEAR($A49)-1921)*12+MONTH($A49)+3+IF(ISNUMBER(FIND("PRV",E$6)),1,0)))*IF(AND(E$3>0,TRIM(E$9)="CFS"),Conversions!$C49,1) -> 1201.601667 | F49: =INDIRECT(CONCATENATE("'",F$1,"'!",F$4,(YEAR($A49)-1921)*12+MONTH($A49)+3+IF(ISNUMBER(FIND("PRV",F$6)),1,0)))*IF(AND(F$3>0,TRIM(F$9)="CFS"),Conversions!$C49,1) -> 1400.166829 | G49: =INDIRECT(CONCATENATE("'",G$1,"'!",G$4,(YEAR($A49)-1921)*12+MONTH($A49)+3+IF(ISNUMBER(FIND("PRV",G$6)),1,0)))*IF(AND(G$3>0,TRIM(G$9)="CFS"),Conversions!$C49,1) ->  | K49: 1959 | L49: =B457 -> 3250 | M49: =B458 -> 3102.881282 | N49: =B459 -> 3211.06581 | O49: =B460 -> 3648 | P49: =B461 -> 3777 | Q49: =B462 -> 4224.302336 | R49: =B463 -> 4329.662993 | S49: =B464 -> 4084.734286 | T49: =B465 -> 3578.910894 | U49: =B466 -> 2921.326008 | V49: =B467 -> 2569.333302 | W49: =B468 -> 2585.479182 | Y49: 3223.452208 | Z49: 3100.644468 | AA49: 3440.224674 | AC49: 3495.219652 | AD49: 2608.174985 | AE49: 3271.986773 | AF49: 3433.00215 | AG49: 4079.163765 | AH49: 3101.169235 | AI49: 2471.398897 | AK49: 1959 | AL49: =C457 -> 3250 | AM49: =C458 -> 3104.888959 | AN49: =C459 -> 3213.071782 | AO49: =C460 -> 3648 | AP49: =C461 -> 3777 | AQ49: =C462 -> 4224.302337 | AR49: =C463 -> 4329.075473 | AS49: =C464 -> 4094.351837 | AT49: =C465 -> 3589.334807 | AU49: =C466 -> 2931.683216 | AV49: =C467 -> 2573.053371 | AW49: =C468 -> 2620.472633 | AY49: 3235.978254 | AZ49: 3118.908124 | BA49: 3446.269535 | BC49: 3496.022382 | BD49: 2626.753866 | BE49: 3272.990185 | BF49: 3434.00542 | BG49: 4082.724263 | BH49: 3112.870907 | BI49: 2495.518806 | BK49: 1959 | BL49: =D457 -> 3250 | BM49: =D458 -> 3119.276641 | BN49: =D459 -> 3227.447235 | BO49: =D460 -> 3648 | BP49: =D461 -> 3777 | BQ49: =D462 -> 4224.302337 | BR49: =D463 -> 4399.891763 | BS49: =D464 -> 4188.05205 | BT49: =D465 -> 3681.784337 | BU49: =D466 -> 3023.543662 | BV49: =D467 -> 2663.41853 | BW49: =D468 -> 2711.590396 | BY49: 3301.410723 | BZ49: 3198.503666 | CA49: 3492.858913 | CC49: 3501.775009 | CD49: 2717.01169 | CE49: 3280.180969 | CF49: 3441.195185 | CG49: 4135.40958 | CH49: 3204.641938 | CI49: 2583.706594 | CK49: 1959 | CL49: =E457 -> 3250 | CM49: =E458 -> 3104.888959 | CN49: =E459 -> 3213.071782 | CO49: =E460 -> 3648 | CP49: =E461 -> 3777 | CQ49: =E462 -> 4224.302337 | CR49: =E463 -> 4329.075473 | CS49: =E464 -> 4094.351837 | CT49: =E465 -> 3589.334807 | CU49: =E466 -> 2931.683216 | CV49: =E467 -> 2573.053371 | CW49: =E468 -> 2620.472633 | CY49: 3235.978254 | CZ49: 3118.908124 | DA49: 3446.269535 | DC49: 3496.022382 | DD49: 2626.753866 | DE49: 3272.990185 | DF49: 3434.00542 | DG49: 4082.724263 | DH49: 3112.870907 | DI49: 2495.518806 | DK49: 1959 | DL49: =F457 -> 3250 | DM49: =F458 -> 3140.480504 | DN49: =F459 -> 3218.506986 | DO49: =F460 -> 3648 | DP49: =F461 -> 3777 | DQ49: =F462 -> 4221.081232 | DR49: =F463 -> 4523.551974 | DS49: =F464 -> 4424.009982 | DT49: =F465 -> 3920.506494 | DU49: =F466 -> 3254.895882 | DV49: =F467 -> 2882.176899 | DW49: =F468 -> 2907.170249 | DY49: 3439.479193 | DZ49: 3328.08405 | EA49: 3597.281684 | EC49: 3503.905621 | ED49: 2928.451765 | EE49: 3283.246872 | EF49: 3441.749079 | EG49: 4254.349109 | EH49: 3430.792348 | EI49: 2782.908134 | EK49: 1959 | EL49: =G457 ->  | EM49: =G458 ->  | EN49: =G459 ->  | EO49: =G460 ->  | EP49: =G461 ->  | EQ49: =G462 ->  | ER49: =G463 ->  | ES49: =G464 ->  | ET49: =G465 ->  | EU49: =G466 ->  | EV49: =G467 ->  | EW49: =G468 -> 
A50: 1924-11-30 | B50: =INDIRECT(CONCATENATE("'",B$1,"'!",B$4,(YEAR($A50)-1921)*12+MONTH($A50)+3+IF(ISNUMBER(FIND("PRV",B$6)),1,0)))*IF(AND(B$3>0,TRIM(B$9)="CFS"),Conversions!$C50,1) -> 1325.705001 | C50: =INDIRECT(CONCATENATE("'",C$1,"'!",C$4,(YEAR($A50)-1921)*12+MONTH($A50)+3+IF(ISNUMBER(FIND("PRV",C$6)),1,0)))*IF(AND(C$3>0,TRIM(C$9)="CFS"),Conversions!$C50,1) -> 1352.732762 | D50: =INDIRECT(CONCATENATE("'",D$1,"'!",D$4,(YEAR($A50)-1921)*12+MONTH($A50)+3+IF(ISNUMBER(FIND("PRV",D$6)),1,0)))*IF(AND(D$3>0,TRIM(D$9)="CFS"),Conversions!$C50,1) -> 1349.955384 | E50: =INDIRECT(CONCATENATE("'",E$1,"'!",E$4,(YEAR($A50)-1921)*12+MONTH($A50)+3+IF(ISNUMBER(FIND("PRV",E$6)),1,0)))*IF(AND(E$3>0,TRIM(E$9)="CFS"),Conversions!$C50,1) -> 1352.732762 | F50: =INDIRECT(CONCATENATE("'",F$1,"'!",F$4,(YEAR($A50)-1921)*12+MONTH($A50)+3+IF(ISNUMBER(FIND("PRV",F$6)),1,0)))*IF(AND(F$3>0,TRIM(F$9)="CFS"),Conversions!$C50,1) -> 1532.04117 | G50: =INDIRECT(CONCATENATE("'",G$1,"'!",G$4,(YEAR($A50)-1921)*12+MONTH($A50)+3+IF(ISNUMBER(FIND("PRV",G$6)),1,0)))*IF(AND(G$3>0,TRIM(G$9)="CFS"),Conversions!$C50,1) ->  | K50: 1960 | L50: =B469 -> 2418.098935 | M50: =B470 -> 2251.903847 | N50: =B471 -> 2292.674717 | O50: =B472 -> 2544.617195 | P50: =B473 -> 3406.68992 | Q50: =B474 -> 4162.83502 | R50: =B475 -> 4121.570792 | S50: =B476 -> 4196.045878 | T50: =B477 -> 3649.080782 | U50: =B478 -> 3096.122386 | V50: =B479 -> 2719.762112 | W50: =B480 -> 2691.00002 | Y50: 3271.307718 | Z50: 3395.548781 | AA50: 3129.200134 | AC50: 2757.270531 | AD50: 2752.146981 | AE50: 2381.931422 | AF50: 2555.529599 | AG50: 4002.08426 | AH50: 3227.122057 | AI50: 2675.626141 | AK50: 1960 | AL50: =C469 -> 2441.787971 | AM50: =C470 -> 2275.538256 | AN50: =C471 -> 2327.139146 | AO50: =C472 -> 2579.056523 | AP50: =C473 -> 3441.101918 | AQ50: =C474 -> 4197.193595 | AR50: =C475 -> 4122.165146 | AS50: =C476 -> 4198.635622 | AT50: =C477 -> 3651.223811 | AU50: =C478 -> 3113.07413 | AV50: =C479 -> 2729.19588 | AW50: =C480 -> 2703.71397 | AY50: 3290.996022 | AZ50: 3413.50135 | BA50: 3148.318831 | BC50: 2788.465325 | BD50: 2765.043254 | BE50: 2411.057488 | BF50: 2588.171919 | BG50: 4016.039307 | BH50: 3236.167154 | BI50: 2692.856341 | BK50: 1960 | BL50: =D469 -> 2528.508624 | BM50: =D470 -> 2358.622994 | BN50: =D471 -> 2412.213984 | BO50: =D472 -> 2664.069924 | BP50: =D473 -> 3526.045387 | BQ50: =D474 -> 4273 | BR50: =D475 -> 4197.663921 | BS50: =D476 -> 4292.723003 | BT50: =D477 -> 3755.102943 | BU50: =D478 -> 3191.581055 | BV50: =D479 -> 2822.724331 | BW50: =D480 -> 2789.732207 | BY50: 3367.990654 | BZ50: 3476.174952 | CA50: 3234.332364 | CC50: 2872.34132 | CD50: 2850.3613 | CE50: 2496.79394 | CF50: 2672.872699 | CG50: 4100.990272 | CH50: 3327.658983 | CI50: 2774.260171 | CK50: 1960 | CL50: =E469 -> 2441.787971 | CM50: =E470 -> 2275.538256 | CN50: =E471 -> 2327.139146 | CO50: =E472 -> 2579.056523 | CP50: =E473 -> 3441.101918 | CQ50: =E474 -> 4197.193595 | CR50: =E475 -> 4122.165146 | CS50: =E476 -> 4198.635622 | CT50: =E477 -> 3651.223811 | CU50: =E478 -> 3113.07413 | CV50: =E479 -> 2729.19588 | CW50: =E480 -> 2703.71397 | CY50: 3290.996022 | CZ50: 3413.50135 | DA50: 3148.318831 | DC50: 2788.465325 | DD50: 2765.043254 | DE50: 2411.057488 | DF50: 2588.171919 | DG50: 4016.039307 | DH50: 3236.167154 | DI50: 2692.856341 | DK50: 1960 | DL50: =F469 -> 2737.120411 | DM50: =F470 -> 2526.690586 | DN50: =F471 -> 2451.546608 | DO50: =F472 -> 2680.975227 | DP50: =F473 -> 3407.283054 | DQ50: =F474 -> 4100.696829 | DR50: =F475 -> 4166.826334 | DS50: =F476 -> 4306.773931 | DT50: =F477 -> 3880.079911 | DU50: =F478 -> 3341.436779 | DV50: =F479 -> 3030.284152 | DW50: =F480 -> 2926.379206 | DY50: 3411.592548 | DZ50: 3526.200736 | EA50: 3296.341086 | EC50: 2897.080819 | ED50: 3012.254269 | EE50: 2627.357586 | EF50: 2699.836218 | EG50: 4054.494644 | EH50: 3467.094353 | EI50: 2908.363306 | EK50: 1960 | EL50: =G469 ->  | EM50: =G470 ->  | EN50: =G471 ->  | EO50: =G472 ->  | EP50: =G473 ->  | EQ50: =G474 ->  | ER50: =G475 ->  | ES50: =G476 ->  | ET50: =G477 ->  | EU50: =G478 ->  | EV50: =G479 ->  | EW50: =G480 -> 
A51: 1924-12-31 | B51: =INDIRECT(CONCATENATE("'",B$1,"'!",B$4,(YEAR($A51)-1921)*12+MONTH($A51)+3+IF(ISNUMBER(FIND("PRV",B$6)),1,0)))*IF(AND(B$3>0,TRIM(B$9)="CFS"),Conversions!$C51,1) -> 1470.215622 | C51: =INDIRECT(CONCATENATE("'",C$1,"'!",C$4,(YEAR($A51)-1921)*12+MONTH($A51)+3+IF(ISNUMBER(FIND("PRV",C$6)),1,0)))*IF(AND(C$3>0,TRIM(C$9)="CFS"),Conversions!$C51,1) -> 1497.225579 | D51: =INDIRECT(CONCATENATE("'",D$1,"'!",D$4,(YEAR($A51)-1921)*12+MONTH($A51)+3+IF(ISNUMBER(FIND("PRV",D$6)),1,0)))*IF(AND(D$3>0,TRIM(D$9)="CFS"),Conversions!$C51,1) -> 1494.45003 | E51: =INDIRECT(CONCATENATE("'",E$1,"'!",E$4,(YEAR($A51)-1921)*12+MONTH($A51)+3+IF(ISNUMBER(FIND("PRV",E$6)),1,0)))*IF(AND(E$3>0,TRIM(E$9)="CFS"),Conversions!$C51,1) -> 1497.225579 | F51: =INDIRECT(CONCATENATE("'",F$1,"'!",F$4,(YEAR($A51)-1921)*12+MONTH($A51)+3+IF(ISNUMBER(FIND("PRV",F$6)),1,0)))*IF(AND(F$3>0,TRIM(F$9)="CFS"),Conversions!$C51,1) -> 1643.4292 | G51: =INDIRECT(CONCATENATE("'",G$1,"'!",G$4,(YEAR($A51)-1921)*12+MONTH($A51)+3+IF(ISNUMBER(FIND("PRV",G$6)),1,0)))*IF(AND(G$3>0,TRIM(G$9)="CFS"),Conversions!$C51,1) ->  | K51: 1961 | L51: =B481 -> 2595.235237 | M51: =B482 -> 2761.524221 | N51: =B483 -> 3311.20905 | O51: =B484 -> 3528.199876 | P51: =B485 -> 3914 | Q51: =B486 -> 4280 | R51: =B487 -> 4502.746961 | S51: =B488 -> 4315.208696 | T51: =B489 -> 3799.50279 | U51: =B490 -> 3168.192479 | V51: =B491 -> 2871.512162 | W51: =B492 -> 2842.317811 | Y51: 3484.848196 | Z51: 3443.214211 | AA51: 3490.804107 | AC51: 3390.510153 | AD51: 2877.892297 | AE51: 2944.392114 | AF51: 3392.390346 | AG51: 4238.676763 | AH51: 3354.492671 | AI51: 2775.088147 | AK51: 1961 | AL51: =C481 -> 2611.365694 | AM51: =C482 -> 2797.782839 | AN51: =C483 -> 3347.443141 | AO51: =C484 -> 3576.222368 | AP51: =C485 -> 3914 | AQ51: =C486 -> 4280 | AR51: =C487 -> 4526.669007 | AS51: =C488 -> 4337.864386 | AT51: =C489 -> 3821.858304 | AU51: =C490 -> 3189.222846 | AV51: =C491 -> 2893.026289 | AW51: =C492 -> 2863.251524 | AY51: 3504.279522 | AZ51: 3460.431642 | BA51: 3513.225533 | BC51: 3416.226239 | BD51: 2898.501179 | BE51: 2974.139961 | BF51: 3426.518976 | BG51: 4253.115636 | BH51: 3376.166348 | BI51: 2794.599866 | BK51: 1961 | BL51: =D481 -> 2685.673671 | BM51: =D482 -> 2872.024942 | BN51: =D483 -> 3345.546461 | BO51: =D484 -> 3574.326895 | BP51: =D485 -> 3914 | BQ51: =D486 -> 4280 | BR51: =D487 -> 4513.740244 | BS51: =D488 -> 4327.695931 | BT51: =D489 -> 3811.553444 | BU51: =D490 -> 3176.18626 | BV51: =D491 -> 2879.364382 | BW51: =D492 -> 2848.621029 | BY51: 3494.251664 | BZ51: 3450.754244 | CA51: 3519.061105 | CC51: 3437.747027 | CD51: 2884.431078 | CE51: 3021.318656 | CF51: 3437.628609 | CG51: 4246.053224 | CH51: 3363.815641 | CI51: 2780.096641 | CK51: 1961 | CL51: =E481 -> 2611.365694 | CM51: =E482 -> 2797.782839 | CN51: =E483 -> 3347.443141 | CO51: =E484 -> 3576.222368 | CP51: =E485 -> 3914 | CQ51: =E486 -> 4280 | CR51: =E487 -> 4526.669007 | CS51: =E488 -> 4337.864386 | CT51: =E489 -> 3821.858304 | CU51: =E490 -> 3189.222846 | CV51: =E491 -> 2893.026289 | CW51: =E492 -> 2863.251524 | CY51: 3504.279522 | CZ51: 3460.431642 | DA51: 3513.225533 | DC51: 3416.226239 | DD51: 2898.501179 | DE51: 2974.139961 | DF51: 3426.518976 | DG51: 4253.115636 | DH51: 3376.166348 | DI51: 2794.599866 | DK51: 1961 | DL51: =F481 -> 2818.762116 | DM51: =F482 -> 2929.61304 | DN51: =F483 -> 3350 | DO51: =F484 -> 3549.556535 | DP51: =F485 -> 3914 | DQ51: =F486 -> 4280 | DR51: =F487 -> 4552 | DS51: =F488 -> 4509.487622 | DT51: =F489 -> 4028.12549 | DU51: =F490 -> 3358.6089 | DV51: =F491 -> 3063.606319 | DW51: =F492 -> 3021.436736 | DY51: 3602.962052 | DZ51: 3561.952397 | EA51: 3614.59973 | EC51: 3458.510127 | ED51: 3062.609683 | EE51: 3084.085757 | EF51: 3440.454352 | EG51: 4328.137592 | EH51: 3553.950722 | EI51: 2947.622939 | EK51: 1961 | EL51: =G481 ->  | EM51: =G482 ->  | EN51: =G483 ->  | EO51: =G484 ->  | EP51: =G485 ->  | EQ51: =G486 ->  | ER51: =G487 ->  | ES51: =G488 ->  | ET51: =G489 ->  | EU51: =G490 ->  | EV51: =G491 ->  | EW51: =G492 -> 
A52: 1925-01-31 | B52: =INDIRECT(CONCATENATE("'",B$1,"'!",B$4,(YEAR($A52)-1921)*12+MONTH($A52)+3+IF(ISNUMBER(FIND("PRV",B$6)),1,0)))*IF(AND(B$3>0,TRIM(B$9)="CFS"),Conversions!$C52,1) -> 1778.08084 | C52: =INDIRECT(CONCATENATE("'",C$1,"'!",C$4,(YEAR($A52)-1921)*12+MONTH($A52)+3+IF(ISNUMBER(FIND("PRV",C$6)),1,0)))*IF(AND(C$3>0,TRIM(C$9)="CFS"),Conversions!$C52,1) -> 1805.069667 | D52: =INDIRECT(CONCATENATE("'",D$1,"'!",D$4,(YEAR($A52)-1921)*12+MONTH($A52)+3+IF(ISNUMBER(FIND("PRV",D$6)),1,0)))*IF(AND(D$3>0,TRIM(D$9)="CFS"),Conversions!$C52,1) -> 1802.296289 | E52: =INDIRECT(CONCATENATE("'",E$1,"'!",E$4,(YEAR($A52)-1921)*12+MONTH($A52)+3+IF(ISNUMBER(FIND("PRV",E$6)),1,0)))*IF(AND(E$3>0,TRIM(E$9)="CFS"),Conversions!$C52,1) -> 1805.069667 | F52: =INDIRECT(CONCATENATE("'",F$1,"'!",F$4,(YEAR($A52)-1921)*12+MONTH($A52)+3+IF(ISNUMBER(FIND("PRV",F$6)),1,0)))*IF(AND(F$3>0,TRIM(F$9)="CFS"),Conversions!$C52,1) -> 1882.920771 | G52: =INDIRECT(CONCATENATE("'",G$1,"'!",G$4,(YEAR($A52)-1921)*12+MONTH($A52)+3+IF(ISNUMBER(FIND("PRV",G$6)),1,0)))*IF(AND(G$3>0,TRIM(G$9)="CFS"),Conversions!$C52,1) ->  | K52: 1962 | L52: =B493 -> 2671.501357 | M52: =B494 -> 2751.378384 | N52: =B495 -> 3173.617841 | O52: =B496 -> 3267.592049 | P52: =B497 -> 3675 | Q52: =B498 -> 4259.078688 | R52: =B499 -> 4552 | S52: =B500 -> 4321.859056 | T52: =B501 -> 3983.184122 | U52: =B502 -> 3200 | V52: =B503 -> 2761.147128 | W52: =B504 -> 2749.117674 | Y52: 3551.664893 | Z52: 3599.691962 | AA52: 3447.123025 | AC52: 3266.575659 | AD52: 2911.754934 | AE52: 2912.863128 | AF52: 3218.133027 | AG52: 4240.507451 | AH52: 3369.954904 | AI52: 3001.897079 | AK52: 1962 | AL52: =C493 -> 2689.228602 | AM52: =C494 -> 2769.612653 | AN52: =C495 -> 3190.398285 | AO52: =C496 -> 3289.047806 | AP52: =C497 -> 3675 | AQ52: =C498 -> 4259.078688 | AR52: =C499 -> 4552 | AS52: =C500 -> 4312.875376 | AT52: =C501 -> 3921.457585 | AU52: =C502 -> 3138.511787 | AV52: =C503 -> 2721.410607 | AW52: =C504 -> 2714.942344 | AY52: 3533.822974 | AZ52: 3580.062064 | BA52: 3436.130311 | BC52: 3279.642478 | BD52: 2873.125585 | BE52: 2931.347301 | BF52: 3233.917473 | BG52: 4230.545714 | BH52: 3323.82221 | BI52: 2975.230436 | BK52: 1962 | BL52: =D493 -> 2674.429389 | BM52: =D494 -> 2755.114631 | BN52: =D495 -> 3175.987766 | BO52: =D496 -> 3291.357856 | BP52: =D497 -> 3675 | BQ52: =D498 -> 4259.078688 | BR52: =D499 -> 4552 | BS52: =D500 -> 4335.030792 | BT52: =D501 -> 3943.154534 | BU52: =D502 -> 3160.124964 | BV52: =D503 -> 2744.077281 | BW52: =D504 -> 2736.953755 | BY52: 3545.186779 | BZ52: 3591.233364 | CA52: 3441.859138 | CC52: 3272.842858 | CD52: 2895.282273 | CE52: 2918.880307 | CF52: 3227.467646 | CG52: 4238.796687 | CH52: 3345.837263 | CI52: 2993.992479 | CK52: 1962 | CL52: =E493 -> 2689.228602 | CM52: =E494 -> 2769.612653 | CN52: =E495 -> 3190.398285 | CO52: =E496 -> 3289.047806 | CP52: =E497 -> 3675 | CQ52: =E498 -> 4259.078688 | CR52: =E499 -> 4552 | CS52: =E500 -> 4312.875376 | CT52: =E501 -> 3921.457585 | CU52: =E502 -> 3138.511787 | CV52: =E503 -> 2721.410607 | CW52: =E504 -> 2714.942344 | CY52: 3533.822974 | CZ52: 3580.062064 | DA52: 3436.130311 | DC52: 3279.642478 | DD52: 2873.125585 | DE52: 2931.347301 | DF52: 3233.917473 | DG52: 4230.545714 | DH52: 3323.82221 | DI52: 2975.230436 | DK52: 1962 | DL52: =F493 -> 2846.963088 | DM52: =F494 -> 2885.331667 | DN52: =F495 -> 3226.428262 | DO52: =F496 -> 3296.440681 | DP52: =F497 -> 3675 | DQ52: =F498 -> 4209.334355 | DR52: =F499 -> 4552 | DS52: =F500 -> 4520.399576 | DT52: =F501 -> 4211.984028 | DU52: =F502 -> 3548.48161 | DV52: =F503 -> 3235.736995 | DW52: =F504 -> 3135.689927 | DY52: 3686.205431 | DZ52: 3728.771231 | EA52: 3611.982516 | EC52: 3322.269866 | ED52: 3256.889242 | EE52: 3029.415431 | EF52: 3267.678259 | EG52: 4306.306486 | EH52: 3706.061846 | EI52: 3209.585809 | EK52: 1962 | EL52: =G493 ->  | EM52: =G494 ->  | EN52: =G495 ->  | EO52: =G496 ->  | EP52: =G497 ->  | EQ52: =G498 ->  | ER52: =G499 ->  | ES52: =G500 ->  | ET52: =G501 ->  | EU52: =G502 ->  | EV52: =G503 ->  | EW52: =G504 -> 
A53: 1925-02-28 | B53: =INDIRECT(CONCATENATE("'",B$1,"'!",B$4,(YEAR($A53)-1921)*12+MONTH($A53)+3+IF(ISNUMBER(FIND("PRV",B$6)),1,0)))*IF(AND(B$3>0,TRIM(B$9)="CFS"),Conversions!$C53,1) -> 3055.219485 | C53: =INDIRECT(CONCATENATE("'",C$1,"'!",C$4,(YEAR($A53)-1921)*12+MONTH($A53)+3+IF(ISNUMBER(FIND("PRV",C$6)),1,0)))*IF(AND(C$3>0,TRIM(C$9)="CFS"),Conversions!$C53,1) -> 3082.1815 | D53: =INDIRECT(CONCATENATE("'",D$1,"'!",D$4,(YEAR($A53)-1921)*12+MONTH($A53)+3+IF(ISNUMBER(FIND("PRV",D$6)),1,0)))*IF(AND(D$3>0,TRIM(D$9)="CFS"),Conversions!$C53,1) -> 3079.410878 | E53: =INDIRECT(CONCATENATE("'",E$1,"'!",E$4,(YEAR($A53)-1921)*12+MONTH($A53)+3+IF(ISNUMBER(FIND("PRV",E$6)),1,0)))*IF(AND(E$3>0,TRIM(E$9)="CFS"),Conversions!$C53,1) -> 3082.1815 | F53: =INDIRECT(CONCATENATE("'",F$1,"'!",F$4,(YEAR($A53)-1921)*12+MONTH($A53)+3+IF(ISNUMBER(FIND("PRV",F$6)),1,0)))*IF(AND(F$3>0,TRIM(F$9)="CFS"),Conversions!$C53,1) -> 3098.355763 | G53: =INDIRECT(CONCATENATE("'",G$1,"'!",G$4,(YEAR($A53)-1921)*12+MONTH($A53)+3+IF(ISNUMBER(FIND("PRV",G$6)),1,0)))*IF(AND(G$3>0,TRIM(G$9)="CFS"),Conversions!$C53,1) ->  | K53: 1963 | L53: =B505 -> 3250 | M53: =B506 -> 3252 | N53: =B507 -> 3349 | O53: =B508 -> 3574.916877 | P53: =B509 -> 3944 | Q53: =B510 -> 4226 | R53: =B511 -> 4137 | S53: =B512 -> 4542.794994 | T53: =B513 -> 4206.272264 | U53: =B514 -> 3542.969888 | V53: =B515 -> 3217.276722 | W53: =B516 -> 3073.481083 | Y53: 3664.375726 | Z53: 3673.887534 | AA53: 3692.975986 | AC53: 3571.583375 | AD53: 3199.631636 | AE53: 3253.254319 | AF53: 3507.305626 | AG53: 4245.232782 | AH53: 3693.664228 | AI53: 3127.141253 | AK53: 1963 | AL53: =C505 -> 3227.53582 | AM53: =C506 -> 3245.015679 | AN53: =C507 -> 3349 | AO53: =C508 -> 3574.916877 | AP53: =C509 -> 3944 | AQ53: =C510 -> 4226 | AR53: =C511 -> 4137 | AS53: =C512 -> 4552 | AT53: =C513 -> 4227.450299 | AU53: =C514 -> 3564.06872 | AV53: =C515 -> 3239.627984 | AW53: =C516 -> 3097.901223 | AY53: 3676.127055 | AZ53: 3686.139212 | BA53: 3698.709717 | BC53: 3567.940093 | BD53: 3222.175756 | BE53: 3241.620277 | BF53: 3506.141572 | BG53: 4250.181287 | BH53: 3714.024404 | BI53: 3145.880872 | BK53: 1963 | BL53: =D505 -> 3249.506602 | BM53: =D506 -> 3246.956875 | BN53: =D507 -> 3349 | BO53: =D508 -> 3574.916877 | BP53: =D509 -> 3944 | BQ53: =D510 -> 4226 | BR53: =D511 -> 4137 | BS53: =D512 -> 4552 | BT53: =D513 -> 4208.325063 | BU53: =D514 -> 3545.01501 | BV53: =D515 -> 3220.954938 | BW53: =D516 -> 3079.456053 | BY53: 3667.406432 | BZ53: 3677.418589 | CA53: 3694.427618 | CC53: 3570.525411 | CD53: 3204.031206 | CE53: 3250.349698 | CF53: 3506.465105 | CG53: 4247.790633 | CH53: 3697.505759 | CI53: 3131.427923 | CK53: 1963 | CL53: =E505 -> 3227.53582 | CM53: =E506 -> 3245.015679 | CN53: =E507 -> 3349 | CO53: =E508 -> 3574.916877 | CP53: =E509 -> 3944 | CQ53: =E510 -> 4226 | CR53: =E511 -> 4137 | CS53: =E512 -> 4552 | CT53: =E513 -> 4227.450299 | CU53: =E514 -> 3564.06872 | CV53: =E515 -> 3239.627984 | CW53: =E516 -> 3097.901223 | CY53: 3676.127055 | CZ53: 3686.139212 | DA53: 3698.709717 | DC53: 3567.940093 | DD53: 3222.175756 | DE53: 3241.620277 | DF53: 3506.141572 | DG53: 4250.181287 | DH53: 3714.024404 | DI53: 3145.880872 | DK53: 1963 | DL53: =F505 -> 3250 | DM53: =F506 -> 3250.398005 | DN53: =F507 -> 3349 | DO53: =F508 -> 3538.230273 | DP53: =F509 -> 3944 | DQ53: =F510 -> 4226 | DR53: =F511 -> 4137 | DS53: =F512 -> 4552 | DT53: =F513 -> 4396.303289 | DU53: =F514 -> 3776.303722 | DV53: =F515 -> 3458.976755 | DW53: =F516 -> 3217.227853 | DY53: 3745.38406 | DZ53: 3754.947986 | EA53: 3757.953325 | EC53: 3563.925656 | ED53: 3390.570858 | EE53: 3296.589526 | EF53: 3494.809758 | EG53: 4271.287911 | EH53: 3879.049423 | EI53: 3262.476147 | EK53: 1963 | EL53: =G505 ->  | EM53: =G506 ->  | EN53: =G507 ->  | EO53: =G508 ->  | EP53: =G509 ->  | EQ53: =G510 ->  | ER53: =G511 ->  | ES53: =G512 ->  | ET53: =G513 ->  | EU53: =G514 ->  | EV53: =G515 ->  | EW53: =G516 -> 
